Workbook

Sheet СЛ1 (hidden)
B1: Листовой | C1: Лестничный | D1: Проволочный | F1: Нет | G1: 1 | H1: 1 | J1: Крепления | L1: Покрытие | N1: Шаг полок | O1: Шаг шпилек | Q1: Кол_Пер | S1: Распред. коробки | T1: Кл_защ
B2: Наличие перфорации | F2: Да | G2: 2 | H2: 2 | J2: К стене | L2: Конв.цинк. | N2: 1 | O2: 1 | Q2: 0 | S2: A 6 (80x43x36 мм)
B3: Перфорированный | G3: 3 | H3: 3 | J3: К перекрытию | L3: Гор.цинк. | N3: 1.5 | O3: 1.5 | Q3: 1 | S3: A 8 (75x75x36 мм) | T3: IP 55
B4: Неперфорированный | G4: 4 | H4: 4 | J4: К профлисту | N4: 2 | O4: 2 | Q4: 2 | S4: A 11 (85x85x40 мм) | T4: IP 66
B5: Покрытие | H5: 5 | N5: 2.5 | S5: Т 40 (90х90х52 мм)
B6: Конв.цинк. | C6: Конв.цинк. | D6: Гальв.цинк. | H6: 6 | N6: 3 | S6: Т 60 (114х114х57 мм)
B7: Гор.цинк. | C7: Гор.цинк. | D7: Гор.цинк. | H7: 7 | S7: Т 100 (150х116х67 мм)
B8: Толщина металла | H8: 8
B9: 0.7 | C9: 1.5 | D9: 3.9 | H9: 9
B10: 0.75 | D10: 4.8 | H10: 10
B11: 0.9
B12: 1
B13: 1.5
B14: Высота
B15: 35 | C15: 60 | D15: 35
B16: 60 | C16: 110 | D16: 55
B17: 85 | D17: 105
B18: 110
B19: Ширина
B20: 50 | C20: 200 | D20: 50
B21: 100 | C21: 300 | D21: 100
B22: 150 | C22: 400 | D22: 150
B23: 200 | C23: 500 | D23: 200
B24: 300 | C24: 600 | D24: 300
B25: 400 | D25: 400
B26: 500 | D26: 500
B27: 550 | D27: 600
B28: 600

Sheet BASE (hidden)
A1: Тип | B1: Артикул | C1: Наименование | D1: Ед.изм. | E1: Масса | F1: Примечание | G1: № элемента
A2: AZDMD 50 DD | B2: 6080154 | C2: Крышка с поворотным фиксатором 53x3000 мм | D2: М | E2: 0.583 | F2: Ед.изм. - м | G2: 2
A3: AZDMD 50 FS | B3: 6080138 | C3: Крышка с поворотным фиксатором 53x3000 мм | D3: М | E3: 0.55 | F3: Ед.изм. - м | G3: 2
A4: DBV 050 S DD | B4: 7131506 | C4: Крышка внутреннего вертикального угла 90° 50 мм | D4: ШТ | E4: 0.19 | G4: 14
A5: DBV 050 S FS | B5: 7130801 | C5: Крышка вертикального внутреннего угла 90° 50 мм | D5: ШТ | E5: 0.11 | G5: 14
A6: DBV 100 S DD | B6: 7131508 | C6: Крышка внутреннего вертикального угла 90° 100 мм | D6: ШТ | E6: 0.34 | G6: 14
A7: DBV 100 S FS | B7: 7130805 | C7: Крышка вертикального внутреннего угла 90° 100 мм | D7: ШТ | E7: 0.21 | G7: 14
A8: DBV 110 100 F DD | B8: 7131556 | C8: Крышка внешнего вертикального угла 90° 100 мм | D8: ШТ | E8: 0.483 | G8: 16
A9: DBV 110 100 F FS | B9: 7131030 | C9: Крышка внешнего вертикального угла 90° 100 мм | D9: ШТ | E9: 0.29 | G9: 16
A10: DBV 110 200 F DD | B10: 7131560 | C10: Крышка внешнего вертикального угла 90° 200 мм | D10: ШТ | E10: 0.937 | G10: 16
A11: DBV 110 200 F FS | B11: 7131034 | C11: Крышка внешнего вертикального угла 90° 200 мм | D11: ШТ | E11: 0.562 | G11: 16
A12: DBV 110 300 F DD | B12: 7131564 | C12: Крышка внешнего вертикального угла 90° 300 мм | D12: ШТ | E12: 1.39 | G12: 16
A13: DBV 110 300 F FS | B13: 7131038 | C13: Крышка внешнего вертикального угла 90° 300 мм | D13: ШТ | E13: 0.834 | G13: 16
A14: DBV 110 400 F DD | B14: 7131568 | C14: Крышка внешнего вертикального угла 90° 400 мм | D14: ШТ | E14: 1.843 | G14: 16
A15: DBV 110 400 F FS | B15: 7131042 | C15: Крышка внешнего вертикального угла 90° 400 мм | D15: ШТ | E15: 1.106 | G15: 16
A16: DBV 110 500 F DD | B16: 7131572 | C16: Крышка внешнего вертикального угла 90° 500 мм | D16: ШТ | E16: 2.297 | G16: 16
A17: DBV 110 500 F FS | B17: 7131046 | C17: Крышка внешнего вертикального угла 90° 500 мм | D17: ШТ | E17: 1.378 | G17: 16
A18: DBV 110 550 F DD | B18: 7131574 | C18: Крышка внешнего вертикального угла 90° 550 мм | D18: ШТ | E18: 2.523 | G18: 16
A19: DBV 110 550 F FS | B19: 7131050 | C19: Крышка внешнего вертикального угла 90° 550 мм | D19: ШТ | E19: 1.514 | G19: 16
A20: DBV 110 600 F DD | B20: 7131576 | C20: Крышка внешнего вертикального угла 90° 600 мм | D20: ШТ | E20: 2.75 | G20: 16
A21: DBV 150 S DD | B21: 7131509 | C21: Крышка внутреннего вертикального угла 90° 150 мм | D21: ШТ | E21: 0.5 | G21: 14
A22: DBV 150 S FS | B22: 7130809 | C22: Крышка внутреннего вертикального угла 90° 150 мм | D22: ШТ | E22: 0.3 | G22: 14
A23: DBV 200 S DD | B23: 7131510 | C23: Крышка внутреннего вертикального угла 90° 200 мм | D23: ШТ | E23: 0.66 | G23: 14
A24: DBV 200 S FS | B24: 7130813 | C24: Крышка внутреннего вертикального угла 90° 200 мм | D24: ШТ | E24: 0.39 | G24: 14
A25: DBV 300 S DD | B25: 7131514 | C25: Крышка внутреннего вертикального угла 90° 300 мм | D25: ШТ | E25: 0.81 | G25: 14
A26: DBV 300 S FS | B26: 7130817 | C26: Крышка внутреннего вертикального угла 90° 300 мм | D26: ШТ | E26: 0.49 | G26: 14
A27: DBV 35 050 F DD | B27: 7131590 | C27: Крышка внешнего вертикального угла 90° 50 мм | D27: ШТ | E27: 0.1 | G27: 16
A28: DBV 35 050 F FS | B28: 7130760 | C28: Крышка внешнего вертикального угла 90° 50 мм | D28: ШТ | E28: 0.13 | G28: 16
A29: DBV 35 100 F DD | B29: 7131592 | C29: Крышка внешнего вертикального угла 90° 100 мм | D29: ШТ | E29: 0.23 | G29: 16
A30: DBV 35 100 F FS | B30: 7130764 | C30: Крышка внешнего вертикального угла 90° 100 мм | D30: ШТ | E30: 0.23 | G30: 16
A31: DBV 35 150 F DD | B31: 7131594 | C31: Крышка внешнего вертикального угла 90° 150 мм | D31: ШТ | E31: 0.37 | G31: 16
A32: DBV 35 150 F FS | B32: 7130768 | C32: Крышка внешнего вертикального угла 90° 150 мм | D32: ШТ | E32: 0.37 | G32: 16
A33: DBV 35 200 F DD | B33: 7131596 | C33: Крышка внешнего вертикального угла 90° 200 мм | D33: ШТ | E33: 0.45 | G33: 16
A34: DBV 35 200 F FS | B34: 7130772 | C34: Крышка внешнего вертикального угла 90° 200 мм | D34: ШТ | E34: 0.45 | G34: 16
A35: DBV 35 300 F DD | B35: 7131600 | C35: Крышка внешнего вертикального угла 90° 300 мм | D35: ШТ | E35: 0.67 | G35: 16
A36: DBV 35 300 F FS | B36: 7130776 | C36: Крышка внешнего вертикального угла 90° 300 мм | D36: ШТ | E36: 0.67 | G36: 16
A37: DBV 400 S DD | B37: 7131518 | C37: Крышка внутреннего вертикального угла 90° 400 мм | D37: ШТ | E37: 1.13 | G37: 14
A38: DBV 400 S FS | B38: 7130821 | C38: Крышка внутреннего вертикального угла 90° 400 мм | D38: ШТ | E38: 0.68 | G38: 14
A39: DBV 500 S DD | B39: 7131524 | C39: Крышка внутреннего вертикального угла 90° 500 мм | D39: ШТ | E39: 1.44 | G39: 14
A40: DBV 500 S FS | B40: 7130825 | C40: Крышка внутреннего вертикального угла 90° 500 мм | D40: ШТ | E40: 0.86 | G40: 14
A41: DBV 60 050 F DD | B41: 7131630 | C41: Крышка внешнего вертикального угла 90° 50 мм | D41: ШТ | E41: 0.23 | G41: 16
A42: DBV 60 050 F FS | B42: 7130847 | C42: Крышка внешнего вертикального угла 90° 50 мм | D42: ШТ | E42: 0.14 | G42: 16
A43: DBV 60 100 F DD | B43: 7131632 | C43: Крышка внешнего вертикального угла 90° 100 мм | D43: ШТ | E43: 0.42 | G43: 16
A44: DBV 60 100 F FS | B44: 7130852 | C44: Крышка внешнего вертикального угла 90° 100 мм | D44: ШТ | E44: 0.25 | G44: 16
A45: DBV 60 150 F DD | B45: 7131634 | C45: Крышка внешнего вертикального угла 90° 150 мм | D45: ШТ | E45: 0.62 | G45: 16
A46: DBV 60 150 F FS | B46: 7130856 | C46: Крышка внешнего вертикального угла 90° 150 мм | D46: ШТ | E46: 0.37 | G46: 16
A47: DBV 60 200 F DD | B47: 7131636 | C47: Крышка внешнего вертикального угла 90° 200 мм | D47: ШТ | E47: 0.82 | G47: 16
A48: DBV 60 200 F FS | B48: 7130860 | C48: Крышка внешнего вертикального угла 90° 200 мм | D48: ШТ | E48: 0.49 | G48: 16
A49: DBV 60 300 F DD | B49: 7131640 | C49: Крышка внешнего вертикального угла 90° 300 мм | D49: ШТ | E49: 1.22 | G49: 16
A50: DBV 60 300 F FS | B50: 7130864 | C50: Крышка внешнего вертикального угла 90° 300 мм | D50: ШТ | E50: 0.73 | G50: 16
A51: DBV 60 400 F DD | B51: 7131644 | C51: Крышка внешнего вертикального угла 90° 400 мм | D51: ШТ | E51: 1.6 | G51: 16
A52: DBV 60 400 F FS | B52: 7130868 | C52: Крышка внешнего вертикального угла 90° 400 мм | D52: ШТ | E52: 0.96 | G52: 16
A53: DBV 60 500 F DD | B53: 7131648 | C53: Крышка внешнего вертикального угла 90° 500 мм | D53: ШТ | E53: 2 | G53: 16
A54: DBV 60 500 F FS | B54: 7130872 | C54: Крышка внешнего вертикального угла 90° 500 мм | D54: ШТ | E54: 1.2 | G54: 16
A55: DBV 60 600 F DD | B55: 7131652 | C55: Крышка внешнего вертикального угла 90° 600 мм | D55: ШТ | E55: 2.38 | G55: 16
A56: DBV 60 600 F FS | B56: 7130876 | C56: Крышка внешнего вертикального угла 90° 600 мм | D56: ШТ | E56: 1.43 | G56: 16
A57: DBV 600 S DD | B57: 7131527 | C57: Крышка внутреннего вертикального угла 90° 600 мм | D57: ШТ | E57: 1.76 | G57: 14
A58: DBV 600 S FS | B58: 7130829 | C58: Крышка внутреннего вертикального угла 90° 600 мм | D58: ШТ | E58: 1.05 | G58: 14
A59: DBV 85 100 F DD | B59: 7131672 | C59: Крышка внешнего вертикального угла 90° 100 мм | D59: ШТ | E59: 0.452 | G59: 16
A60: DBV 85 100 F FS | B60: 7130990 | C60: Крышка внешнего вертикального угла 90° 100 мм | D60: ШТ | E60: 0.271 | G60: 16
A61: DBV 85 200 F DD | B61: 7131676 | C61: Крышка внешнего вертикального угла 90° 200 мм | D61: ШТ | E61: 0.875 | G61: 16
A62: DBV 85 200 F FS | B62: 7130994 | C62: Крышка внешнего вертикального угла 90° 200 мм | D62: ШТ | E62: 0.525 | G62: 16
A63: DBV 85 300 F DD | B63: 7131680 | C63: Крышка внешнего вертикального угла 90° 300 мм | D63: ШТ | E63: 1.297 | G63: 16
A64: DBV 85 300 F FS | B64: 7130998 | C64: Крышка внешнего вертикального угла 90° 300 мм | D64: ШТ | E64: 0.778 | G64: 16
A65: DBV 85 400 F DD | B65: 7131684 | C65: Крышка внешнего вертикального угла 90° 400 мм | D65: ШТ | E65: 1.72 | G65: 16
A66: DBV 85 400 F FS | B66: 7131002 | C66: Крышка внешнего вертикального угла 90° 400 мм | D66: ШТ | E66: 1.032 | G66: 16
A67: DBV 85 500 F DD | B67: 7131688 | C67: Крышка внешнего вертикального угла 90° 500 мм | D67: ШТ | E67: 2.142 | G67: 16
A68: DBV 85 500 F FS | B68: 7131006 | C68: Крышка внешнего вертикального угла 90° 500 мм | D68: ШТ | E68: 1.285 | G68: 16
A69: DBV 85 600 F DD | B69: 7131692 | C69: Крышка внешнего вертикального угла 90° 600 мм | D69: ШТ | E69: 2.56 | G69: 16
A70: DBV 85 600 F FS | B70: 7131010 | C70: Крышка внешнего вертикального угла 90° 600 мм | D70: ШТ | E70: 1.539 | G70: 16
A71: DFAA 050 DD | B71: 7131291 | C71: Крышка T-образного соединения 50 мм | D71: ШТ | E71: 0.14 | G71: 8
A72: DFAA 050 FS | B72: 7132110 | C72: Крышка T-образной секции | D72: ШТ | G72: 8
A73: DFAA 100 DD | B73: 7131305 | C73: Крышка T-образного соединения 100 мм | D73: ШТ | E73: 0.19 | G73: 8
A74: DFAA 100 FS | B74: 7128428 | C74: Крышка T-образного соединения 100 мм | D74: ШТ | E74: 0.19 | G74: 8
A75: DFAA 100 FS RU | B75: 7128531 | C75: Крышка Т-образ./крест. соединения для лотка LKS 100 мм | D75: ШТ | E75: 0.001 | G75: 8
A76: DFAA 150 DD | B76: 7131310 | C76: Крышка T-образного соединения 150 мм | D76: ШТ | E76: 0.24 | G76: 8
A77: DFAA 150 FS | B77: 7128436 | C77: Крышка T-образного соединения 150 мм | D77: ШТ | E77: 0.24 | G77: 8
A78: DFAA 150 FS RU | B78: 7128532 | C78: Крышка Т-образ./крест. соединения для лотка LKS 150 мм | D78: ШТ | E78: 0.07 | G78: 8
A79: DFAA 200 DD | B79: 7131321 | C79: Крышка T-образного соединения 200 мм | D79: ШТ | E79: 0.28 | G79: 8
A80: DFAA 200 FS | B80: 7128444 | C80: Крышка T-образного соединения 200 мм | D80: ШТ | E80: 0.28 | G80: 8
A81: DFAA 200 FS RU | B81: 7128533 | C81: Крышка Т-образ./крест. соединения для лотка LKS 200 мм | D81: ШТ | E81: 0.001 | G81: 8
A82: DFAA 300 DD | B82: 7131348 | C82: Крышка T-образного соединения 300 мм | D82: ШТ | E82: 0.37 | G82: 8
A83: DFAA 300 FS | B83: 7128460 | C83: Крышка T-образного соединения 300 мм | D83: ШТ | E83: 0.37 | G83: 8
A84: DFAA 300 FS RU | B84: 7128535 | C84: Крышка Т-образ./крест. соединения для лотка LKS 300 мм | D84: ШТ | E84: 0.001 | G84: 8
A85: DFAA 400 DD | B85: 7131356 | C85: Крышка T-образного соединения 400 мм | D85: ШТ | E85: 1.52 | G85: 8
A86: DFAA 400 FS | B86: 7128487 | C86: Крышка T-образного соединения 400 мм | D86: ШТ | E86: 1.5 | G86: 8
A87: DFAA 400 FS RU | B87: 7128537 | C87: Крышка Т-образ./крест. соединения для лотка LKS 400 мм | D87: ШТ | E87: 0.002 | G87: 8
A88: DFAA 500 DD | B88: 7131364 | C88: Крышка T-образного соединения 500 мм | D88: ШТ | E88: 1.72 | G88: 8
A89: DFAA 500 FS | B89: 7128509 | C89: Крышка T-образного соединения 500 мм | D89: ШТ | E89: 1.7 | G89: 8
A90: DFAA 500 FS RU | B90: 7128539 | C90: Крышка Т-образ./крест. соединения для лотка LKS 500 мм | D90: ШТ | E90: 0.002 | G90: 8
A91: DFAA 550 DD | B91: 7131372 | C91: Крышка T-образного соединения 550 мм | D91: ШТ | E91: 1.87 | G91: 8
A92: DFAA 550 FS | B92: 7128517 | C92: Крышка T-образного соединения 550 мм | D92: ШТ | E92: 1.85 | G92: 8
A93: DFAA 600 DD | B93: 7131380 | C93: Крышка T-образного соединения 600 мм | D93: ШТ | E93: 2.02 | G93: 8
A94: DFAA 600 FS | B94: 7128525 | C94: Крышка T-образного соединения 600 мм | D94: ШТ | E94: 2 | G94: 8
A95: DFAA 600 FS RU | B95: 7128541 | C95: Крышка Т-образ./крест. соединения для лотка LKS 600 мм | D95: ШТ | E95: 0.002 | G95: 8
A96: DFB 45 050 DD | B96: 7131801 | C96: Крышка угловой секции 45° 50 мм | D96: ШТ | E96: 0.23 | G96: 4
A97: DFB 45 100 DD | B97: 7131828 | C97: Крышка угловой секции 45° 100 мм | D97: ШТ | E97: 0.166 | G97: 4
A98: DFB 45 100 FS | B98: 7128819 | C98: Крышка угловой секции 45° 100 мм | D98: ШТ | E98: 0.166 | G98: 4
A99: DFB 45 100 FS RU | B99: 7128931 | C99: Крышка угловой секции 45° для лотка LKS 100 мм | D99: ШТ | E99: 0.001 | G99: 4
A100: DFB 45 150 DD | B100: 7131836 | C100: Крышка угловой секции 45° 150 мм | D100: ШТ | E100: 0.246 | G100: 4
A101: DFB 45 150 FS | B101: 7128827 | C101: Крышка угловой секции 45° 150 мм | D101: ШТ | E101: 0.246 | G101: 4
A102: DFB 45 150 FS RU | B102: 7128932 | C102: Крышка угловой секции 45° для лотка LKS 150 мм | D102: ШТ | E102: 0.18 | G102: 4
A103: DFB 45 200 DD | B103: 7131844 | C103: Крышка угловой секции 45° 200 мм | D103: ШТ | E103: 0.346 | G103: 4
A104: DFB 45 200 FS | B104: 7128835 | C104: Крышка угловой секции 45° 200 мм | D104: ШТ | E104: 0.346 | G104: 4
A105: DFB 45 200 FS RU | B105: 7128933 | C105: Крышка угловой секции 45° для лотка LKS 200 мм | D105: ШТ | E105: 0.003 | G105: 4
A106: DFB 45 300 DD | B106: 7131860 | C106: Крышка угловой секции 45° 300 мм | D106: ШТ | E106: 0.576 | G106: 4
A107: DFB 45 300 FS | B107: 7128851 | C107: Крышка угловой секции 45° 300 мм | D107: ШТ | E107: 0.576 | G107: 4
A108: DFB 45 300 FS RU | B108: 7128935 | C108: Крышка угловой секции 45° для лотка LKS 300 мм | D108: ШТ | E108: 0.004 | G108: 4
A109: DFB 45 400 DD | B109: 7131879 | C109: Крышка угловой секции 45° 400 мм | D109: ШТ | E109: 1.976 | G109: 4
A110: DFB 45 400 FS | B110: 7128886 | C110: Крышка угловой секции 45° 400 мм | D110: ШТ | E110: 1.976 | G110: 4
A111: DFB 45 400 FS RU | B111: 7128937 | C111: Крышка угловой секции 45° для лотка LKS 400 мм | D111: ШТ | E111: 0.007 | G111: 4
A112: DFB 45 500 DD | B112: 7131887 | C112: Крышка угловой секции 45° 500 мм | D112: ШТ | E112: 2.528 | G112: 4
A113: DFB 45 500 FS | B113: 7128908 | C113: Крышка угловой секции 45° 500 мм | D113: ШТ | E113: 2.528 | G113: 4
A114: DFB 45 500 FS RU | B114: 7128939 | C114: Крышка угловой секции 45° для лотка LKS 500 мм | D114: ШТ | E114: 0.009 | G114: 4
A115: DFB 45 550 DD | B115: 7131895 | C115: Крышка угловой секции 45° 550 мм | D115: ШТ | E115: 2.827 | G115: 4
A116: DFB 45 550 FS | B116: 7128916 | C116: Крышка угловой секции 45° 550 мм | D116: ШТ | E116: 2.827 | G116: 4
A117: DFB 45 600 DD | B117: 7131909 | C117: Крышка угловой секции 45° 600 мм | D117: ШТ | E117: 3.141 | G117: 4
A118: DFB 45 600 FS | B118: 7128924 | C118: Крышка угловой секции 45° 600 мм | D118: ШТ | E118: 3.141 | G118: 4
A119: DFB 45 600 FS RU | B119: 7128941 | C119: Крышка угловой секции 45° для лотка LKS 600 мм | D119: ШТ | E119: 0.012 | G119: 4
A120: DFB 90 050 DD | B120: 7130503 | C120: Крышка угловой секции 90° 50 мм | D120: ШТ | E120: 0.473 | G120: 6
A121: DFB 90 050 FS | B121: 7131780 | C121: Крышка угловой секции 90° 50 мм | D121: ШТ | G121: 6
A122: DFB 90 100 DD | B122: 7130511 | C122: Крышка угловой секции 90° 100 мм | D122: ШТ | E122: 0.214 | G122: 6
A123: DFB 90 100 FS | B123: 7129610 | C123: Крышка угловой секции 90° 100 мм | D123: ШТ | E123: 0.214 | G123: 6
A124: DFB 90 100 FS RU | B124: 7129741 | C124: Крышка угловой секции 90° для лотка LKS 100 мм | D124: ШТ | E124: 0.001 | G124: 6
A125: DFB 90 150 DD | B125: 7130538 | C125: Крышка угловой секции 90° 150 мм | D125: ШТ | E125: 0.376 | G125: 6
A126: DFB 90 150 FS | B126: 7129629 | C126: Крышка угловой секции 90° 150 мм | D126: ШТ | E126: 0.376 | G126: 6
A127: DFB 90 150 FS RU | B127: 7129742 | C127: Крышка угловой секции 90° для лотка LKS 150 мм | D127: ШТ | E127: 0.25 | G127: 6
A128: DFB 90 200 DD | B128: 7130546 | C128: Крышка угловой секции 90° 200 мм | D128: ШТ | E128: 0.542 | G128: 6
A129: DFB 90 200 FS | B129: 7129637 | C129: Крышка угловой секции 90° 200 мм | D129: ШТ | E129: 0.542 | G129: 6
A130: DFB 90 200 FS RU | B130: 7129743 | C130: Крышка угловой секции 90° для лотка LKS 200 мм | D130: ШТ | E130: 0.004 | G130: 6
A131: DFB 90 300 DD | B131: 7130562 | C131: Крышка угловой секции 90° 300 мм | D131: ШТ | E131: 0.964 | G131: 6
A132: DFB 90 300 FS | B132: 7129653 | C132: Крышка угловой секции 90° 300 мм | D132: ШТ | E132: 0.964 | G132: 6
A133: DFB 90 300 FS RU | B133: 7129745 | C133: Крышка угловой секции 90° для лотка LKS 300 мм | D133: ШТ | E133: 0.007 | G133: 6
A134: DFB 90 400 DD | B134: 7130589 | C134: Крышка угловой секции 90° 400 мм | D134: ШТ | E134: 3.36 | G134: 6
A135: DFB 90 400 FS | B135: 7129688 | C135: Крышка угловой секции 90° 400 мм | D135: ШТ | E135: 3.36 | G135: 6
A136: DFB 90 400 FS RU | B136: 7129747 | C136: Крышка угловой секции 90° для лотка LKS 400 мм | D136: ШТ | E136: 0.012 | G136: 6
A137: DFB 90 500 DD | B137: 7130600 | C137: Крышка угловой секции 90° 500 мм | D137: ШТ | E137: 4.51 | G137: 6
A138: DFB 90 500 FS | B138: 7129718 | C138: Крышка угловой секции 90° 500 мм | D138: ШТ | E138: 4.51 | G138: 6
A139: DFB 90 500 FS RU | B139: 7129749 | C139: Крышка угловой секции 90° для лотка LKS 500 мм | D139: ШТ | E139: 0.018 | G139: 6
A140: DFB 90 550 DD | B140: 7130619 | C140: Крышка угловой секции 90° 550 мм | D140: ШТ | E140: 5.18 | G140: 6
A141: DFB 90 550 FS | B141: 7129726 | C141: Крышка угловой секции 90° 550 мм | D141: ШТ | E141: 5.18 | G141: 6
A142: DFB 90 600 DD | B142: 7130627 | C142: Крышка угловой секции 90° 600 мм | D142: ШТ | E142: 5.85 | G142: 6
A143: DFB 90 600 FS | B143: 7129734 | C143: Крышка угловой секции 90° 600 мм | D143: ШТ | E143: 5.85 | G143: 6
A144: DFB 90 600 FS RU | B144: 7129751 | C144: Крышка угловой секции 90° для лотка LKS 600 мм | D144: ШТ | E144: 0.025 | G144: 6
A145: DFK 100 DD | B145: 7131089 | C145: Крышка крестообразной секции 100 мм | D145: ШТ | E145: 0.33 | G145: 12
A146: DFK 100 FS | B146: 7128614 | C146: Крышка крестообразной секции 100 мм | D146: ШТ | E146: 0.3 | G146: 12
A147: DFK 100 FS RU | B147: 7128750 | C147: Крышка X-образной секции для лотка LKS 100 мм | D147: ШТ | E147: 0.21 | G147: 12
A148: DFK 150 FS | B148: 7128622 | C148: Крышка крестообразной секции 150 мм | D148: ШТ | E148: 0.45 | G148: 12
A149: DFK 150 FS RU | B149: 7128752 | C149: Крышка X-образной секции для лотка LKS 150 мм | D149: ШТ | E149: 0.33 | G149: 12
A150: DFK 200 DD | B150: 7131100 | C150: Крышка крестообразной секции 200 мм | D150: ШТ | E150: 0.77 | G150: 12
A151: DFK 200 FS | B151: 7128630 | C151: Крышка крестообразной секции 200 мм | D151: ШТ | E151: 0.7 | G151: 12
A152: DFK 200 FS RU | B152: 7128754 | C152: Крышка X-образной секции для лотка LKS 200 мм | D152: ШТ | E152: 0.48 | G152: 12
A153: DFK 300 DD | B153: 7131127 | C153: Крышка крестообразной секции 300 мм | D153: ШТ | E153: 1.37 | G153: 12
A154: DFK 300 FS | B154: 7128657 | C154: Крышка крестообразной секции 300 мм | D154: ШТ | E154: 1.25 | G154: 12
A155: DFK 300 FS RU | B155: 7128756 | C155: Крышка X-образной секции для лотка LKS 300 мм | D155: ШТ | E155: 0.87 | G155: 12
A156: DFK 400 DD | B156: 7131143 | C156: Крышка крестообразной секции 400 мм | D156: ШТ | E156: 7.39 | G156: 12
A157: DFK 400 FS | B157: 7128673 | C157: Крышка крестообразной секции 400 мм | D157: ШТ | E157: 6.24 | G157: 12
A158: DFK 400 FS RU | B158: 7128758 | C158: Крышка X-образной секции для лотка LKS 400 мм | D158: ШТ | E158: 1.34 | G158: 12
A159: DFK 500 DD | B159: 7131178 | C159: Крышка крестообразной секции 500 мм | D159: ШТ | E159: 9.65 | G159: 12
A160: DFK 500 FS | B160: 7128703 | C160: Крышка крестообразной секции 500 мм | D160: ШТ | E160: 8.1 | G160: 12
A161: DFK 500 FS RU | B161: 7128760 | C161: Крышка X-образной секции для лотка LKS 500 мм | D161: ШТ | E161: 1.97 | G161: 12
A162: DFK 550 FS | B162: 7128711 | C162: Крышка крестообразной секции 550мм | D162: ШТ | G162: 12
A163: DFK 600 DD | B163: 7131194 | C163: Крышка крестообразной секции 600 мм | D163: ШТ | E163: 12.15 | G163: 12
A164: DFK 600 FS | B164: 7128738 | C164: Крышка крестообразной секции 600 мм | D164: ШТ | E164: 10.2 | G164: 12
A165: DFK 600 FS RU | B165: 7128762 | C165: Крышка X-образной секции для лотка LKS 600 мм | D165: ШТ | E165: 2.7 | G165: 12
A166: DFT 100 DD | B166: 7129319 | C166: Крышка T-образной секции 100 мм | D166: ШТ | E166: 0.27 | G166: 10
A167: DFT 100 FS | B167: 7128215 | C167: Крышка T-образной секции 100 мм | D167: ШТ | E167: 0.304 | G167: 10
A168: DFT 100 FS RU | B168: 7128331 | C168: Крышка Т-образной секции для лотка LKS 100 мм | D168: ШТ | E168: 0.003 | G168: 10
A169: DFT 150 DD | B169: 7129327 | C169: Крышка T-образной секции 150 мм | D169: ШТ | E169: 0.45 | G169: 10
A170: DFT 150 FS | B170: 7128223 | C170: Крышка T-образной секции 150 мм | D170: ШТ | E170: 0.4 | G170: 10
A171: DFT 150 FS RU | B171: 7128332 | C171: Крышка Т-образной секции для лотка LKS 150 мм | D171: ШТ | E171: 0.49 | G171: 10
A172: DFT 200 DD | B172: 7129335 | C172: Крышка T-образной секции 200 мм | D172: ШТ | E172: 0.65 | G172: 10
A173: DFT 200 FS | B173: 7128231 | C173: Крышка T-образной секции 200 мм | D173: ШТ | E173: 0.6 | G173: 10
A174: DFT 200 FS RU | B174: 7128333 | C174: Крышка Т-образной секции для лотка LKS 200 мм | D174: ШТ | E174: 0.009 | G174: 10
A175: DFT 300 DD | B175: 7129351 | C175: Крышка T-образной секции 300 мм | D175: ШТ | E175: 1.25 | G175: 10
A176: DFT 300 FS | B176: 7128266 | C176: Крышка T-образной секции 300 мм | D176: ШТ | E176: 1.15 | G176: 10
A177: DFT 300 FS RU | B177: 7128335 | C177: Крышка Т-образной секции для лотка LKS 300 мм | D177: ШТ | E177: 0.014 | G177: 10
A178: DFT 400 DD | B178: 7129386 | C178: Крышка T-образной секции 400 мм | D178: ШТ | E178: 6 | G178: 10
A179: DFT 400 FS | B179: 7128282 | C179: Крышка T-образной секции 400 мм | D179: ШТ | E179: 5.05 | G179: 10
A180: DFT 400 FS RU | B180: 7128337 | C180: Крышка Т-образной секции для лотка LKS 400 мм | D180: ШТ | E180: 0.02 | G180: 10
A181: DFT 500 DD | B181: 7129408 | C181: Крышка T-образной секции 500 мм | D181: ШТ | E181: 7.98 | G181: 10
A182: DFT 500 FS | B182: 7128304 | C182: Крышка T-образной секции 500 мм | D182: ШТ | E182: 6.7 | G182: 10
A183: DFT 500 FS RU | B183: 7128339 | C183: Крышка Т-образной секции для лотка LKS 500 мм | D183: ШТ | E183: 0.027 | G183: 10
A184: DFT 550 DD | B184: 7129416 | C184: Крышка T-образной секции 550 мм | D184: ШТ | E184: 9.055 | G184: 10
A185: DFT 550 FS | B185: 7128312 | C185: Крышка T-образной секции 550мм | D185: ШТ | G185: 10
A186: DFT 600 DD | B186: 7129424 | C186: Крышка T-образной секции 600 мм | D186: ШТ | E186: 10.19 | G186: 10
A187: DFT 600 FS | B187: 7128320 | C187: Крышка T-образной секции 600 мм | D187: ШТ | E187: 8.54 | G187: 10
A188: DFT 600 FS RU | B188: 7128341 | C188: Крышка Т-образной секции для лотка LKS 600 мм | D188: ШТ | E188: 0.036 | G188: 10
A189: DK DRLU A2 | B189: 6052810 | C189: Фиксатор для крышки DRLU, нержавеющая сталь | D189: ШТ | E189: 0.008 | G189: 36
A190: DRL 050 DD | B190: 6052700 | C190: Крышка кабельного листового лотка 50x3000 мм | D190: М | E190: 0.611 | F190: Ед.изм. - м | G190: 2
A191: DRL 050 FS | B191: 6052053 | C191: Крышка кабельного листового лотка 50x3000 мм | D191: М | E191: 0.611 | F191: Ед.изм. - м | G191: 2
A192: DRL 050 FT | B192: 6051332 | C192: Крышка кабельного листового лотка 50x3000 мм | D192: М | E192: 0.67 | F192: Ед.изм. - м | G192: 2
A193: DRL 100 DD | B193: 6052703 | C193: Крышка кабельного листового лотка 100x3000 мм | D193: М | E193: 1.063 | F193: Ед.изм. - м | G193: 2
A194: DRL 100 FS | B194: 6052096 | C194: Крышка кабельного листового лотка 100x3000 мм | D194: М | E194: 1.03 | F194: Ед.изм. - м | G194: 2
A195: DRL 100 FT | B195: 6051340 | C195: Крышка кабельного листового лотка 100x3000 мм | D195: М | E195: 1.067 | F195: Ед.изм. - м | G195: 2
A196: DRL 150 DD | B196: 6052706 | C196: Крышка кабельного листового лотка 150x3000 мм | D196: М | E196: 1.457 | F196: Ед.изм. - м | G196: 2
A197: DRL 150 FS | B197: 6052150 | C197: Крышка кабельного листового лотка 150x3000 мм | D197: М | E197: 1.417 | F197: Ед.изм. - м | G197: 2
A198: DRL 150 FT | B198: 6051359 | C198: Крышка кабельного листового лотка 150x3000 мм | D198: М | E198: 1.593 | F198: Ед.изм. - м | G198: 2
A199: DRL 200 DD | B199: 6052709 | C199: Крышка кабельного листового лотка 200x3000 мм | D199: М | E199: 1.85 | F199: Ед.изм. - м | G199: 2
A200: DRL 200 FS | B200: 6052207 | C200: Крышка кабельного листового лотка 200x3000 мм | D200: М | E200: 1.813 | F200: Ед.изм. - м | G200: 2
... 991 more rows

Sheet База лотков (hidden)
A1: Прямая секция лотка | K1: Крышка лотка | O1: Фиксатор крышки лотка | S1: Соединитель лотка | W1: Перегородка | AA1: Соединитель перегородки | AE1: Фиксатор перегородки | AI1: Секция гориз. 90гр. | AM1: Крышка секции гориз. 90гр. | AQ1: Соединитель секции гориз. 90гр. | AU1: Донная вставка секции гориз. 90гр. | AY1: Секция гориз. 45гр. | BC1: Крышка секции гориз. 45гр. | BG1: Соединитель секции гориз. 45гр. | BK1: Донная вставка секции гориз. 45гр. | BO1: Угол гориз. 0-90° | BS1: Секция поворота 90° вверх | BW1: Крышка секции поворота 90° вверх | CA1: Болты секции поворота 90° вверх | CE1: Секция поворота 90° вниз | CI1: Крышка секции поворота 90° вниз | CM1: Болты секции поворота 90° вниз | CQ1: Секция поворота верт. унив. | CU1: Соед. секции поворота верт. унив. | CY1: Болты т.1 секции пов. верт. унив. | DC1: Болты т.2 секции пов. верт. унив. | DG1: Секция Т-образная | DK1: Крышка секции Т-образной | DO1: Соединитель секции Т-образ. | DS1: Донная вставка секции Т-образ. | DW1: Болты секции Т-образ. | EA1: Секция Т-ответвления | EE1: Крышка секции Т-ответвления | EI1: Соединитель секции Т-ответв. | EM1: Донная вставка секции ответв. | EQ1: Болты секции Т-ответв. | EU1: Секция Х-образная | EY1: Крышка секции Х-образной | FC1: Соединитель секции Х-образ. | FG1: Донная вставка секции Х-образ. | FK1: Болты секции Х-ответв. | FO1: Торцевая заглушка
A2: Тип | B2: Артикул | C2: Ед. изм. | D2: Кол-во на 1 эл. | E2: Тип лотка | F2: Перфорация | G2: Покрытие | H2: Толщина | I2: Высота | J2: Ширина | K2: Тип | L2: Артикул | M2: Ед. изм. | N2: Кол-во на 1 эл. | O2: Тип | P2: Артикул | Q2: Ед. изм. | R2: Кол-во на 1 эл. | S2: Тип | T2: Артикул | U2: Ед. изм. | V2: Кол-во на 1 эл. | W2: Тип | X2: Артикул | Y2: Ед. изм. | Z2: Кол-во на 1 эл. | AA2: Тип | AB2: Артикул | AC2: Ед. изм. | AD2: Кол-во на 1 эл. | AE2: Тип | AF2: Артикул | AG2: Ед. изм. | AH2: Кол-во на 1 эл. | AI2: Тип | AJ2: Артикул | AK2: Ед. изм. | AL2: Кол-во на 1 эл. | AM2: Тип | AN2: Артикул | AO2: Ед. изм. | AP2: Кол-во на 1 эл. | AQ2: Тип | AR2: Артикул | AS2: Ед. изм. | AT2: Кол-во на 1 эл. | AU2: Тип | AV2: Артикул | AW2: Ед. изм. | AX2: Кол-во на 1 эл. | AY2: Тип | AZ2: Артикул | BA2: Ед. изм. | BB2: Кол-во на 1 эл. | BC2: Тип | BD2: Артикул | BE2: Ед. изм. | BF2: Кол-во на 1 эл. | BG2: Тип | BH2: Артикул | BI2: Ед. изм. | BJ2: Кол-во на 1 эл. | BK2: Тип | BL2: Артикул | BM2: Ед. изм. | BN2: Кол-во на 1 эл. | BO2: Тип | BP2: Артикул | BQ2: Ед. изм. | BR2: Кол-во на 1 эл. | BS2: Тип | BT2: Артикул | BU2: Ед. изм. | BV2: Кол-во на 1 эл. | BW2: Тип | BX2: Артикул | BY2: Ед. изм. | BZ2: Кол-во на 1 эл. | CA2: Тип | CB2: Артикул | CC2: Ед. изм. | CD2: Кол-во на 1 эл. | CE2: Тип | CF2: Артикул | CG2: Ед. изм. | CH2: Кол-во на 1 эл. | CI2: Тип | CJ2: Артикул | CK2: Ед. изм. | CL2: Кол-во на 1 эл. | CM2: Тип | CN2: Артикул | CO2: Ед. изм. | CP2: Кол-во на 1 эл. | CQ2: Тип | CR2: Артикул | CS2: Ед. изм. | CT2: Кол-во на 1 эл. | CU2: Тип | CV2: Артикул | CW2: Ед. изм. | CX2: Кол-во на 1 эл. | CY2: Тип | CZ2: Артикул | DA2: Ед. изм. | DB2: Кол-во на 1 эл. | DC2: Тип | DD2: Артикул | DE2: Ед. изм. | DF2: Кол-во на 1 эл. | DG2: Тип | DH2: Артикул | DI2: Ед. изм. | DJ2: Кол-во на 1 эл. | DK2: Тип | DL2: Артикул | DM2: Ед. изм. | DN2: Кол-во на 1 эл. | DO2: Тип | DP2: Артикул | DQ2: Ед. изм. | DR2: Кол-во на 1 эл. | DS2: Тип | DT2: Артикул | DU2: Ед. изм. | DV2: Кол-во на 1 эл. | DW2: Тип | DX2: Артикул | DY2: Ед. изм. | DZ2: Кол-во на 1 эл. | EA2: Тип | EB2: Артикул | EC2: Ед. изм. | ED2: Кол-во на 1 эл. | EE2: Тип | EF2: Артикул | EG2: Ед. изм. | EH2: Кол-во на 1 эл. | EI2: Тип | EJ2: Артикул | EK2: Ед. изм. | EL2: Кол-во на 1 эл. | EM2: Тип | EN2: Артикул | EO2: Ед. изм. | EP2: Кол-во на 1 эл. | EQ2: Тип | ER2: Артикул | ES2: Ед. изм. | ET2: Кол-во на 1 эл. | EU2: Тип | EV2: Артикул | EW2: Ед. изм. | EX2: Кол-во на 1 эл. | EY2: Тип | EZ2: Артикул | FA2: Ед. изм. | FB2: Кол-во на 1 эл. | FC2: Тип | FD2: Артикул | FE2: Ед. изм. | FF2: Кол-во на 1 эл. | FG2: Тип | FH2: Артикул | FI2: Ед. изм. | FJ2: Кол-во на 1 эл. | FK2: Тип | FL2: Артикул | FM2: Ед. изм. | FN2: Кол-во на 1 эл. | FO2: Тип | FP2: Артикул | FQ2: Ед. изм. | FR2: Кол-во на 1 эл. | FT2: 1 | FU2: 1.5 | FV2: 2 | FW2: 2.5 | FX2: 3 | FY2: 3.5 | FZ2: 4
A3: LKS 610 FS RU | B3: =VLOOKUP(A3,BASE!$A:$D,2,FALSE) -> 6048910 | C3: м | D3: 3 | E3: Листовой | F3: Перфорированный | G3: Конв.цинк. | H3: 0.7 | I3: 60 | J3: 100 | K3: DRLU 100 FS RU | L3: =VLOOKUP(K3,BASE!$A:$D,2,FALSE) -> 6052021 | M3: м | N3: 3 | O3: DK DRLU A2 | P3: =VLOOKUP(O3,BASE!$A:$D,2,FALSE) -> 6052810 | Q3: шт. | R3: 2 | S3: RLVK 60 FS RU | T3: =VLOOKUP(S3,BASE!$A:$D,2,FALSE) -> 6067091 | U3: шт. | V3: 2 | W3: TSG 60 FS | X3: =VLOOKUP(W3,BASE!$A:$D,2,FALSE) -> 6062068 | Y3: м | Z3: 3 | AA3: TSGV A2 | AB3: =VLOOKUP(AA3,BASE!$A:$D,2,FALSE) -> 6067970 | AC3: шт. | AD3: 1 | AE3: FRSB 6X12 G | AF3: =VLOOKUP(AE3,BASE!$A:$D,2,FALSE) -> 6406130 | AG3: шт. | AH3: 6 | AI3: RBL 90 610 FS RU | AJ3: =VLOOKUP(AI3,BASE!$A:$D,2,FALSE) -> 6043092 | AK3: шт. | AL3: 1 | AM3: DFB 90 100 FS RU | AN3: =VLOOKUP(AM3,BASE!$A:$D,2,FALSE) -> 7129741 | AO3: шт. | AP3: 1 | AQ3: Не требуется | AR3: --- | AS3: --- | AT3: 0 | AU3: Не требуется | AV3: --- | AW3: --- | AX3: 0 | AY3: RBL 45 610 FS RU | AZ3: =VLOOKUP(AY3,BASE!$A:$D,2,FALSE) -> 6043682 | BA3: шт. | BB3: 1 | BC3: DFB 45 100 FS RU | BD3: =VLOOKUP(BC3,BASE!$A:$D,2,FALSE) -> 7128931 | BE3: шт. | BF3: 1 | BG3: Не требуется | BH3: --- | BI3: --- | BJ3: 0 | BK3: Не требуется | BL3: --- | BM3: --- | BN3: 0 | BO3: RWVL 60 FS RU | BP3: =VLOOKUP(BO3,BASE!$A:$D,2,FALSE) -> 6067117 | BQ3: шт. | BR3: 4 | BS3: RBV 610 S FS | BT3: =VLOOKUP(BS3,BASE!$A:$D,2,FALSE) -> 7007005 | BU3: шт. | BV3: 1 | BW3: DBV 100 S FS | BX3: =VLOOKUP(BW3,BASE!$A:$D,2,FALSE) -> 7130805 | BY3: шт. | BZ3: 1 | CA3: FRSB 6X12 G | CB3: =VLOOKUP(CA3,BASE!$A:$D,2,FALSE) -> 6406130 | CC3: шт. | CD3: 8 | CE3: RBV 610 F FS | CF3: =VLOOKUP(CE3,BASE!$A:$D,2,FALSE) -> 7007055 | CG3: шт. | CH3: 1 | CI3: DBV 60 100 F FS | CJ3: =VLOOKUP(CI3,BASE!$A:$D,2,FALSE) -> 7130852 | CK3: шт. | CL3: 1 | CM3: FRSB 6X12 G | CN3: =VLOOKUP(CM3,BASE!$A:$D,2,FALSE) -> 6406130 | CO3: шт. | CP3: 8 | CQ3: RGBEV 610 FS RU | CR3: =VLOOKUP(CQ3,BASE!$A:$D,2,FALSE) -> 7005431 | CS3: шт. | CT3: 1 | CU3: RGV 60 FS RU | CV3: =VLOOKUP(CU3,BASE!$A:$D,2,FALSE) -> 7082012 | CW3: шт. | CX3: 2 | CY3: FRSB 6X12 G | CZ3: =VLOOKUP(CY3,BASE!$A:$D,2,FALSE) -> 6406130 | DA3: шт. | DB3: 2 | DC3: SKS 6X12 F | DD3: =VLOOKUP(DC3,BASE!$A:$D,2,FALSE) -> 3156494 | DE3: шт. | DF3: 2 | DG3: RT 610 FS RU | DH3: =VLOOKUP(DG3,BASE!$A:$D,2,FALSE) -> 6043302 | DI3: шт. | DJ3: 1 | DK3: DFT 100 FS RU | DL3: =VLOOKUP(DK3,BASE!$A:$D,2,FALSE) -> 7128331 | DM3: шт. | DN3: 1 | DO3: Не требуется | DP3: --- | DQ3: --- | DR3: 0 | DS3: Не требуется | DT3: --- | DU3: --- | DV3: 0 | DW3: Не требуется | DX3: --- | DY3: --- | DZ3: 0 | EA3: RAA 610 FS RU | EB3: =VLOOKUP(EA3,BASE!$A:$D,2,FALSE) -> 6040252 | EC3: шт. | ED3: 1 | EE3: DFAA 100 FS RU | EF3: =VLOOKUP(EE3,BASE!$A:$D,2,FALSE) -> 7128531 | EG3: шт. | EH3: 1 | EI3: Не требуется | EJ3: --- | EK3: --- | EL3: 0 | EM3: Не требуется | EN3: --- | EO3: --- | EP3: 0 | EQ3: Не требуется | ER3: --- | ES3: --- | ET3: 0 | EU3: RK 610 FS RU | EV3: =VLOOKUP(EU3,BASE!$A:$D,2,FALSE) -> 6043652 | EW3: шт. | EX3: 1 | EY3: DFK 100 FS RU | EZ3: =VLOOKUP(EY3,BASE!$A:$D,2,FALSE) -> 7128750 | FA3: шт. | FB3: 1 | FC3: Не требуется | FD3: --- | FE3: --- | FF3: 0 | FG3: Не требуется | FH3: --- | FI3: --- | FJ3: 0 | FK3: Не требуется | FL3: --- | FM3: --- | FN3: 0 | FO3: RWEB 610 FS RU | FP3: =VLOOKUP(FO3,BASE!$A:$D,2,FALSE) -> 7109611 | FQ3: шт. | FR3: 1 | FT3: 140 | FU3: 80 | FV3: 45 | FW3: =FV3-25/2 -> 32.5 | FX3: 20
A4: LKS 615 FS RU | B4: =VLOOKUP(A4,BASE!$A:$D,2,FALSE) -> 6048912 | C4: м | D4: 3 | E4: Листовой | F4: Перфорированный | G4: Конв.цинк. | H4: 0.7 | I4: 60 | J4: 150 | K4: DRLU 150 FS RU | L4: =VLOOKUP(K4,BASE!$A:$D,2,FALSE) -> 6052022 | M4: м | N4: 3 | O4: DK DRLU A2 | P4: =VLOOKUP(O4,BASE!$A:$D,2,FALSE) -> 6052810 | Q4: шт. | R4: 2 | S4: RLVK 60 FS RU | T4: =VLOOKUP(S4,BASE!$A:$D,2,FALSE) -> 6067091 | U4: шт. | V4: 2 | W4: TSG 60 FS | X4: =VLOOKUP(W4,BASE!$A:$D,2,FALSE) -> 6062068 | Y4: м | Z4: 3 | AA4: TSGV A2 | AB4: =VLOOKUP(AA4,BASE!$A:$D,2,FALSE) -> 6067970 | AC4: шт. | AD4: 1 | AE4: FRSB 6X12 G | AF4: =VLOOKUP(AE4,BASE!$A:$D,2,FALSE) -> 6406130 | AG4: шт. | AH4: 6 | AI4: RBL 90 615 FS RU | AJ4: =VLOOKUP(AI4,BASE!$A:$D,2,FALSE) -> 6043093 | AK4: шт. | AL4: 1 | AM4: DFB 90 150 FS RU | AN4: =VLOOKUP(AM4,BASE!$A:$D,2,FALSE) -> 7129742 | AO4: шт. | AP4: 1 | AQ4: Не требуется | AR4: --- | AS4: --- | AT4: 0 | AU4: Не требуется | AV4: --- | AW4: --- | AX4: 0 | AY4: RBL 45 615 FS RU | AZ4: =VLOOKUP(AY4,BASE!$A:$D,2,FALSE) -> 6043683 | BA4: шт. | BB4: 1 | BC4: DFB 45 150 FS RU | BD4: =VLOOKUP(BC4,BASE!$A:$D,2,FALSE) -> 7128932 | BE4: шт. | BF4: 1 | BG4: Не требуется | BH4: --- | BI4: --- | BJ4: 0 | BK4: Не требуется | BL4: --- | BM4: --- | BN4: 0 | BO4: RWVL 60 FS RU | BP4: =VLOOKUP(BO4,BASE!$A:$D,2,FALSE) -> 6067117 | BQ4: шт. | BR4: 4 | BS4: RBV 615 S FS | BT4: =VLOOKUP(BS4,BASE!$A:$D,2,FALSE) -> 7007009 | BU4: шт. | BV4: 1 | BW4: DBV 150 S FS | BX4: =VLOOKUP(BW4,BASE!$A:$D,2,FALSE) -> 7130809 | BY4: шт. | BZ4: 1 | CA4: FRSB 6X12 G | CB4: =VLOOKUP(CA4,BASE!$A:$D,2,FALSE) -> 6406130 | CC4: шт. | CD4: 8 | CE4: RBV 615 F FS | CF4: =VLOOKUP(CE4,BASE!$A:$D,2,FALSE) -> 7007059 | CG4: шт. | CH4: 1 | CI4: DBV 60 150 F FS | CJ4: =VLOOKUP(CI4,BASE!$A:$D,2,FALSE) -> 7130856 | CK4: шт. | CL4: 1 | CM4: FRSB 6X12 G | CN4: =VLOOKUP(CM4,BASE!$A:$D,2,FALSE) -> 6406130 | CO4: шт. | CP4: 8 | CQ4: RGBEV 650 FS RU | CR4: =VLOOKUP(CQ4,BASE!$A:$D,2,FALSE) -> 7005439 | CS4: шт. | CT4: 1 | CU4: RGV 60 FS RU | CV4: =VLOOKUP(CU4,BASE!$A:$D,2,FALSE) -> 7082012 | CW4: шт. | CX4: 2 | CY4: FRSB 6X12 G | CZ4: =VLOOKUP(CY4,BASE!$A:$D,2,FALSE) -> 6406130 | DA4: шт. | DB4: 2 | DC4: SKS 6X12 F | DD4: =VLOOKUP(DC4,BASE!$A:$D,2,FALSE) -> 3156494 | DE4: шт. | DF4: 2 | DG4: RT 615 FS RU | DH4: =VLOOKUP(DG4,BASE!$A:$D,2,FALSE) -> 6043303 | DI4: шт. | DJ4: 1 | DK4: DFT 150 FS RU | DL4: =VLOOKUP(DK4,BASE!$A:$D,2,FALSE) -> 7128332 | DM4: шт. | DN4: 1 | DO4: Не требуется | DP4: --- | DQ4: --- | DR4: 0 | DS4: Не требуется | DT4: --- | DU4: --- | DV4: 0 | DW4: Не требуется | DX4: --- | DY4: --- | DZ4: 0 | EA4: RAA 615 FS RU | EB4: =VLOOKUP(EA4,BASE!$A:$D,2,FALSE) -> 6040253 | EC4: шт. | ED4: 1 | EE4: DFAA 150 FS RU | EF4: =VLOOKUP(EE4,BASE!$A:$D,2,FALSE) -> 7128532 | EG4: шт. | EH4: 1 | EI4: Не требуется | EJ4: --- | EK4: --- | EL4: 0 | EM4: Не требуется | EN4: --- | EO4: --- | EP4: 0 | EQ4: Не требуется | ER4: --- | ES4: --- | ET4: 0 | EU4: RK 615 FS RU | EV4: =VLOOKUP(EU4,BASE!$A:$D,2,FALSE) -> 6043653 | EW4: шт. | EX4: 1 | EY4: DFK 150 FS RU | EZ4: =VLOOKUP(EY4,BASE!$A:$D,2,FALSE) -> 7128752 | FA4: шт. | FB4: 1 | FC4: Не требуется | FD4: --- | FE4: --- | FF4: 0 | FG4: Не требуется | FH4: --- | FI4: --- | FJ4: 0 | FK4: Не требуется | FL4: --- | FM4: --- | FN4: 0 | FO4: RWEB 615 FS RU | FP4: =VLOOKUP(FO4,BASE!$A:$D,2,FALSE) -> 7109612 | FQ4: шт. | FR4: 1 | FT4: 140 | FU4: 80 | FV4: 45 | FW4: 32.5 | FX4: 20
A5: LKS 620 FS RU | B5: =VLOOKUP(A5,BASE!$A:$D,2,FALSE) -> 6048914 | C5: м | D5: 3 | E5: Листовой | F5: Перфорированный | G5: Конв.цинк. | H5: 0.7 | I5: 60 | J5: 200 | K5: DRLU 200 FS RU | L5: =VLOOKUP(K5,BASE!$A:$D,2,FALSE) -> 6052023 | M5: м | N5: 3 | O5: DK DRLU A2 | P5: =VLOOKUP(O5,BASE!$A:$D,2,FALSE) -> 6052810 | Q5: шт. | R5: 2 | S5: RLVK 60 FS RU | T5: =VLOOKUP(S5,BASE!$A:$D,2,FALSE) -> 6067091 | U5: шт. | V5: 2 | W5: TSG 60 FS | X5: =VLOOKUP(W5,BASE!$A:$D,2,FALSE) -> 6062068 | Y5: м | Z5: 3 | AA5: TSGV A2 | AB5: =VLOOKUP(AA5,BASE!$A:$D,2,FALSE) -> 6067970 | AC5: шт. | AD5: 1 | AE5: FRSB 6X12 G | AF5: =VLOOKUP(AE5,BASE!$A:$D,2,FALSE) -> 6406130 | AG5: шт. | AH5: 6 | AI5: RBL 90 620 FS RU | AJ5: =VLOOKUP(AI5,BASE!$A:$D,2,FALSE) -> 6043094 | AK5: шт. | AL5: 1 | AM5: DFB 90 200 FS RU | AN5: =VLOOKUP(AM5,BASE!$A:$D,2,FALSE) -> 7129743 | AO5: шт. | AP5: 1 | AQ5: Не требуется | AR5: --- | AS5: --- | AT5: 0 | AU5: Не требуется | AV5: --- | AW5: --- | AX5: 0 | AY5: RBL 45 620 FS RU | AZ5: =VLOOKUP(AY5,BASE!$A:$D,2,FALSE) -> 6043684 | BA5: шт. | BB5: 1 | BC5: DFB 45 200 FS RU | BD5: =VLOOKUP(BC5,BASE!$A:$D,2,FALSE) -> 7128933 | BE5: шт. | BF5: 1 | BG5: Не требуется | BH5: --- | BI5: --- | BJ5: 0 | BK5: Не требуется | BL5: --- | BM5: --- | BN5: 0 | BO5: RWVL 60 FS RU | BP5: =VLOOKUP(BO5,BASE!$A:$D,2,FALSE) -> 6067117 | BQ5: шт. | BR5: 4 | BS5: RBV 620 S FS | BT5: =VLOOKUP(BS5,BASE!$A:$D,2,FALSE) -> 7007013 | BU5: шт. | BV5: 1 | BW5: DBV 200 S FS | BX5: =VLOOKUP(BW5,BASE!$A:$D,2,FALSE) -> 7130813 | BY5: шт. | BZ5: 1 | CA5: FRSB 6X12 G | CB5: =VLOOKUP(CA5,BASE!$A:$D,2,FALSE) -> 6406130 | CC5: шт. | CD5: 8 | CE5: RBV 620 F FS | CF5: =VLOOKUP(CE5,BASE!$A:$D,2,FALSE) -> 7007063 | CG5: шт. | CH5: 1 | CI5: DBV 60 200 F FS | CJ5: =VLOOKUP(CI5,BASE!$A:$D,2,FALSE) -> 7130860 | CK5: шт. | CL5: 1 | CM5: FRSB 6X12 G | CN5: =VLOOKUP(CM5,BASE!$A:$D,2,FALSE) -> 6406130 | CO5: шт. | CP5: 8 | CQ5: RGBEV 620 FS RU | CR5: =VLOOKUP(CQ5,BASE!$A:$D,2,FALSE) -> 7005433 | CS5: шт. | CT5: 1 | CU5: RGV 60 FS RU | CV5: =VLOOKUP(CU5,BASE!$A:$D,2,FALSE) -> 7082012 | CW5: шт. | CX5: 2 | CY5: FRSB 6X12 G | CZ5: =VLOOKUP(CY5,BASE!$A:$D,2,FALSE) -> 6406130 | DA5: шт. | DB5: 2 | DC5: SKS 6X12 F | DD5: =VLOOKUP(DC5,BASE!$A:$D,2,FALSE) -> 3156494 | DE5: шт. | DF5: 2 | DG5: RT 620 FS RU | DH5: =VLOOKUP(DG5,BASE!$A:$D,2,FALSE) -> 6043304 | DI5: шт. | DJ5: 1 | DK5: DFT 200 FS RU | DL5: =VLOOKUP(DK5,BASE!$A:$D,2,FALSE) -> 7128333 | DM5: шт. | DN5: 1 | DO5: Не требуется | DP5: --- | DQ5: --- | DR5: 0 | DS5: Не требуется | DT5: --- | DU5: --- | DV5: 0 | DW5: Не требуется | DX5: --- | DY5: --- | DZ5: 0 | EA5: RAA 620 FS RU | EB5: =VLOOKUP(EA5,BASE!$A:$D,2,FALSE) -> 6040254 | EC5: шт. | ED5: 1 | EE5: DFAA 200 FS RU | EF5: =VLOOKUP(EE5,BASE!$A:$D,2,FALSE) -> 7128533 | EG5: шт. | EH5: 1 | EI5: Не требуется | EJ5: --- | EK5: --- | EL5: 0 | EM5: Не требуется | EN5: --- | EO5: --- | EP5: 0 | EQ5: Не требуется | ER5: --- | ES5: --- | ET5: 0 | EU5: RK 620 FS RU | EV5: =VLOOKUP(EU5,BASE!$A:$D,2,FALSE) -> 6043654 | EW5: шт. | EX5: 1 | EY5: DFK 200 FS RU | EZ5: =VLOOKUP(EY5,BASE!$A:$D,2,FALSE) -> 7128754 | FA5: шт. | FB5: 1 | FC5: Не требуется | FD5: --- | FE5: --- | FF5: 0 | FG5: Не требуется | FH5: --- | FI5: --- | FJ5: 0 | FK5: Не требуется | FL5: --- | FM5: --- | FN5: 0 | FO5: RWEB 620 FS RU | FP5: =VLOOKUP(FO5,BASE!$A:$D,2,FALSE) -> 7109613 | FQ5: шт. | FR5: 1 | FT5: 140 | FU5: 80 | FV5: 45 | FW5: 32.5 | FX5: 20
A6: LKS 630 FS RU | B6: =VLOOKUP(A6,BASE!$A:$D,2,FALSE) -> 6048918 | C6: м | D6: 3 | E6: Листовой | F6: Перфорированный | G6: Конв.цинк. | H6: 0.7 | I6: 60 | J6: 300 | K6: DRLU 300 FS RU | L6: =VLOOKUP(K6,BASE!$A:$D,2,FALSE) -> 6052025 | M6: м | N6: 3 | O6: DK DRLU A2 | P6: =VLOOKUP(O6,BASE!$A:$D,2,FALSE) -> 6052810 | Q6: шт. | R6: 2 | S6: RLVK 60 FS RU | T6: =VLOOKUP(S6,BASE!$A:$D,2,FALSE) -> 6067091 | U6: шт. | V6: 2 | W6: TSG 60 FS | X6: =VLOOKUP(W6,BASE!$A:$D,2,FALSE) -> 6062068 | Y6: м | Z6: 3 | AA6: TSGV A2 | AB6: =VLOOKUP(AA6,BASE!$A:$D,2,FALSE) -> 6067970 | AC6: шт. | AD6: 1 | AE6: FRSB 6X12 G | AF6: =VLOOKUP(AE6,BASE!$A:$D,2,FALSE) -> 6406130 | AG6: шт. | AH6: 6 | AI6: RBL 90 630 FS RU | AJ6: =VLOOKUP(AI6,BASE!$A:$D,2,FALSE) -> 6043096 | AK6: шт. | AL6: 1 | AM6: DFB 90 300 FS RU | AN6: =VLOOKUP(AM6,BASE!$A:$D,2,FALSE) -> 7129745 | AO6: шт. | AP6: 1 | AQ6: Не требуется | AR6: --- | AS6: --- | AT6: 0 | AU6: Не требуется | AV6: --- | AW6: --- | AX6: 0 | AY6: RBL 45 630 FS RU | AZ6: =VLOOKUP(AY6,BASE!$A:$D,2,FALSE) -> 6043686 | BA6: шт. | BB6: 1 | BC6: DFB 45 300 FS RU | BD6: =VLOOKUP(BC6,BASE!$A:$D,2,FALSE) -> 7128935 | BE6: шт. | BF6: 1 | BG6: Не требуется | BH6: --- | BI6: --- | BJ6: 0 | BK6: Не требуется | BL6: --- | BM6: --- | BN6: 0 | BO6: RWVL 60 FS RU | BP6: =VLOOKUP(BO6,BASE!$A:$D,2,FALSE) -> 6067117 | BQ6: шт. | BR6: 4 | BS6: RBV 630 S FS | BT6: =VLOOKUP(BS6,BASE!$A:$D,2,FALSE) -> 7007017 | BU6: шт. | BV6: 1 | BW6: DBV 300 S FS | BX6: =VLOOKUP(BW6,BASE!$A:$D,2,FALSE) -> 7130817 | BY6: шт. | BZ6: 1 | CA6: FRSB 6X12 G | CB6: =VLOOKUP(CA6,BASE!$A:$D,2,FALSE) -> 6406130 | CC6: шт. | CD6: 8 | CE6: RBV 630 F FS | CF6: =VLOOKUP(CE6,BASE!$A:$D,2,FALSE) -> 7007067 | CG6: шт. | CH6: 1 | CI6: DBV 60 300 F FS | CJ6: =VLOOKUP(CI6,BASE!$A:$D,2,FALSE) -> 7130864 | CK6: шт. | CL6: 1 | CM6: FRSB 6X12 G | CN6: =VLOOKUP(CM6,BASE!$A:$D,2,FALSE) -> 6406130 | CO6: шт. | CP6: 8 | CQ6: RGBEV 630 FS RU | CR6: =VLOOKUP(CQ6,BASE!$A:$D,2,FALSE) -> 7005435 | CS6: шт. | CT6: 1 | CU6: RGV 60 FS RU | CV6: =VLOOKUP(CU6,BASE!$A:$D,2,FALSE) -> 7082012 | CW6: шт. | CX6: 2 | CY6: FRSB 6X12 G | CZ6: =VLOOKUP(CY6,BASE!$A:$D,2,FALSE) -> 6406130 | DA6: шт. | DB6: 2 | DC6: SKS 6X12 F | DD6: =VLOOKUP(DC6,BASE!$A:$D,2,FALSE) -> 3156494 | DE6: шт. | DF6: 2 | DG6: RT 630 FS RU | DH6: =VLOOKUP(DG6,BASE!$A:$D,2,FALSE) -> 6043306 | DI6: шт. | DJ6: 1 | DK6: DFT 300 FS RU | DL6: =VLOOKUP(DK6,BASE!$A:$D,2,FALSE) -> 7128335 | DM6: шт. | DN6: 1 | DO6: Не требуется | DP6: --- | DQ6: --- | DR6: 0 | DS6: Не требуется | DT6: --- | DU6: --- | DV6: 0 | DW6: Не требуется | DX6: --- | DY6: --- | DZ6: 0 | EA6: RAA 630 FS RU | EB6: =VLOOKUP(EA6,BASE!$A:$D,2,FALSE) -> 6040256 | EC6: шт. | ED6: 1 | EE6: DFAA 300 FS RU | EF6: =VLOOKUP(EE6,BASE!$A:$D,2,FALSE) -> 7128535 | EG6: шт. | EH6: 1 | EI6: Не требуется | EJ6: --- | EK6: --- | EL6: 0 | EM6: Не требуется | EN6: --- | EO6: --- | EP6: 0 | EQ6: Не требуется | ER6: --- | ES6: --- | ET6: 0 | EU6: RK 630 FS RU | EV6: =VLOOKUP(EU6,BASE!$A:$D,2,FALSE) -> 6043656 | EW6: шт. | EX6: 1 | EY6: DFK 300 FS RU | EZ6: =VLOOKUP(EY6,BASE!$A:$D,2,FALSE) -> 7128756 | FA6: шт. | FB6: 1 | FC6: Не требуется | FD6: --- | FE6: --- | FF6: 0 | FG6: Не требуется | FH6: --- | FI6: --- | FJ6: 0 | FK6: Не требуется | FL6: --- | FM6: --- | FN6: 0 | FO6: RWEB 630 FS RU | FP6: =VLOOKUP(FO6,BASE!$A:$D,2,FALSE) -> 7109615 | FQ6: шт. | FR6: 1 | FT6: 140 | FU6: 80 | FV6: 45 | FW6: 32.5 | FX6: 20
A7: LKS 640 FS RU | B7: =VLOOKUP(A7,BASE!$A:$D,2,FALSE) -> 6048920 | C7: м | D7: 3 | E7: Листовой | F7: Перфорированный | G7: Конв.цинк. | H7: 0.9 | I7: 60 | J7: 400 | K7: DRLU 400 FS RU | L7: =VLOOKUP(K7,BASE!$A:$D,2,FALSE) -> 6052027 | M7: м | N7: 3 | O7: DK DRLU A2 | P7: =VLOOKUP(O7,BASE!$A:$D,2,FALSE) -> 6052810 | Q7: шт. | R7: 2 | S7: RLVK 60 FS RU | T7: =VLOOKUP(S7,BASE!$A:$D,2,FALSE) -> 6067091 | U7: шт. | V7: 2 | W7: TSG 60 FS | X7: =VLOOKUP(W7,BASE!$A:$D,2,FALSE) -> 6062068 | Y7: м | Z7: 3 | AA7: TSGV A2 | AB7: =VLOOKUP(AA7,BASE!$A:$D,2,FALSE) -> 6067970 | AC7: шт. | AD7: 1 | AE7: FRSB 6X12 G | AF7: =VLOOKUP(AE7,BASE!$A:$D,2,FALSE) -> 6406130 | AG7: шт. | AH7: 6 | AI7: RBL 90 640 FS RU | AJ7: =VLOOKUP(AI7,BASE!$A:$D,2,FALSE) -> 6043098 | AK7: шт. | AL7: 1 | AM7: DFB 90 400 FS RU | AN7: =VLOOKUP(AM7,BASE!$A:$D,2,FALSE) -> 7129747 | AO7: шт. | AP7: 1 | AQ7: Не требуется | AR7: --- | AS7: --- | AT7: 0 | AU7: Не требуется | AV7: --- | AW7: --- | AX7: 0 | AY7: RBL 45 640 FS RU | AZ7: =VLOOKUP(AY7,BASE!$A:$D,2,FALSE) -> 6043688 | BA7: шт. | BB7: 1 | BC7: DFB 45 400 FS RU | BD7: =VLOOKUP(BC7,BASE!$A:$D,2,FALSE) -> 7128937 | BE7: шт. | BF7: 1 | BG7: Не требуется | BH7: --- | BI7: --- | BJ7: 0 | BK7: Не требуется | BL7: --- | BM7: --- | BN7: 0 | BO7: RWVL 60 FS RU | BP7: =VLOOKUP(BO7,BASE!$A:$D,2,FALSE) -> 6067117 | BQ7: шт. | BR7: 4 | BS7: RBV 640 S FS | BT7: =VLOOKUP(BS7,BASE!$A:$D,2,FALSE) -> 7007021 | BU7: шт. | BV7: 1 | BW7: DBV 400 S FS | BX7: =VLOOKUP(BW7,BASE!$A:$D,2,FALSE) -> 7130821 | BY7: шт. | BZ7: 1 | CA7: FRSB 6X12 G | CB7: =VLOOKUP(CA7,BASE!$A:$D,2,FALSE) -> 6406130 | CC7: шт. | CD7: 8 | CE7: RBV 640 F FS | CF7: =VLOOKUP(CE7,BASE!$A:$D,2,FALSE) -> 7007071 | CG7: шт. | CH7: 1 | CI7: DBV 60 400 F FS | CJ7: =VLOOKUP(CI7,BASE!$A:$D,2,FALSE) -> 7130868 | CK7: шт. | CL7: 1 | CM7: FRSB 6X12 G | CN7: =VLOOKUP(CM7,BASE!$A:$D,2,FALSE) -> 6406130 | CO7: шт. | CP7: 8 | CQ7: RGBEV 640 FS RU | CR7: =VLOOKUP(CQ7,BASE!$A:$D,2,FALSE) -> 7005437 | CS7: шт. | CT7: 1 | CU7: RGV 60 FS RU | CV7: =VLOOKUP(CU7,BASE!$A:$D,2,FALSE) -> 7082012 | CW7: шт. | CX7: 2 | CY7: FRSB 6X12 G | CZ7: =VLOOKUP(CY7,BASE!$A:$D,2,FALSE) -> 6406130 | DA7: шт. | DB7: 2 | DC7: SKS 6X12 F | DD7: =VLOOKUP(DC7,BASE!$A:$D,2,FALSE) -> 3156494 | DE7: шт. | DF7: 2 | DG7: RT 640 FS RU | DH7: =VLOOKUP(DG7,BASE!$A:$D,2,FALSE) -> 6043308 | DI7: шт. | DJ7: 1 | DK7: DFT 400 FS RU | DL7: =VLOOKUP(DK7,BASE!$A:$D,2,FALSE) -> 7128337 | DM7: шт. | DN7: 1 | DO7: Не требуется | DP7: --- | DQ7: --- | DR7: 0 | DS7: Не требуется | DT7: --- | DU7: --- | DV7: 0 | DW7: Не требуется | DX7: --- | DY7: --- | DZ7: 0 | EA7: RAA 640 FS RU | EB7: =VLOOKUP(EA7,BASE!$A:$D,2,FALSE) -> 6040258 | EC7: шт. | ED7: 1 | EE7: DFAA 400 FS RU | EF7: =VLOOKUP(EE7,BASE!$A:$D,2,FALSE) -> 7128537 | EG7: шт. | EH7: 1 | EI7: Не требуется | EJ7: --- | EK7: --- | EL7: 0 | EM7: Не требуется | EN7: --- | EO7: --- | EP7: 0 | EQ7: Не требуется | ER7: --- | ES7: --- | ET7: 0 | EU7: RK 640 FS RU | EV7: =VLOOKUP(EU7,BASE!$A:$D,2,FALSE) -> 6043660 | EW7: шт. | EX7: 1 | EY7: DFK 400 FS RU | EZ7: =VLOOKUP(EY7,BASE!$A:$D,2,FALSE) -> 7128758 | FA7: шт. | FB7: 1 | FC7: Не требуется | FD7: --- | FE7: --- | FF7: 0 | FG7: Не требуется | FH7: --- | FI7: --- | FJ7: 0 | FK7: Не требуется | FL7: --- | FM7: --- | FN7: 0 | FO7: RWEB 640 FS RU | FP7: =VLOOKUP(FO7,BASE!$A:$D,2,FALSE) -> 7109617 | FQ7: шт. | FR7: 1 | FT7: 150 | FU7: 90 | FV7: 55 | FW7: 42.5 | FX7: 30
A8: LKS 650 FS RU | B8: =VLOOKUP(A8,BASE!$A:$D,2,FALSE) -> 6048922 | C8: м | D8: 3 | E8: Листовой | F8: Перфорированный | G8: Конв.цинк. | H8: 0.9 | I8: 60 | J8: 500 | K8: DRLU 500 FS RU | L8: =VLOOKUP(K8,BASE!$A:$D,2,FALSE) -> 6052031 | M8: м | N8: 3 | O8: DK DRLU A2 | P8: =VLOOKUP(O8,BASE!$A:$D,2,FALSE) -> 6052810 | Q8: шт. | R8: 2 | S8: RLVK 60 FS RU | T8: =VLOOKUP(S8,BASE!$A:$D,2,FALSE) -> 6067091 | U8: шт. | V8: 2 | W8: TSG 60 FS | X8: =VLOOKUP(W8,BASE!$A:$D,2,FALSE) -> 6062068 | Y8: м | Z8: 3 | AA8: TSGV A2 | AB8: =VLOOKUP(AA8,BASE!$A:$D,2,FALSE) -> 6067970 | AC8: шт. | AD8: 1 | AE8: FRSB 6X12 G | AF8: =VLOOKUP(AE8,BASE!$A:$D,2,FALSE) -> 6406130 | AG8: шт. | AH8: 6 | AI8: RBL 90 650 FS RU | AJ8: =VLOOKUP(AI8,BASE!$A:$D,2,FALSE) -> 6043100 | AK8: шт. | AL8: 1 | AM8: DFB 90 500 FS RU | AN8: =VLOOKUP(AM8,BASE!$A:$D,2,FALSE) -> 7129749 | AO8: шт. | AP8: 1 | AQ8: Не требуется | AR8: --- | AS8: --- | AT8: 0 | AU8: Не требуется | AV8: --- | AW8: --- | AX8: 0 | AY8: RBL 45 650 FS RU | AZ8: =VLOOKUP(AY8,BASE!$A:$D,2,FALSE) -> 6043690 | BA8: шт. | BB8: 1 | BC8: DFB 45 500 FS RU | BD8: =VLOOKUP(BC8,BASE!$A:$D,2,FALSE) -> 7128939 | BE8: шт. | BF8: 1 | BG8: Не требуется | BH8: --- | BI8: --- | BJ8: 0 | BK8: Не требуется | BL8: --- | BM8: --- | BN8: 0 | BO8: RWVL 60 FS RU | BP8: =VLOOKUP(BO8,BASE!$A:$D,2,FALSE) -> 6067117 | BQ8: шт. | BR8: 4 | BS8: RBV 650 S FS | BT8: =VLOOKUP(BS8,BASE!$A:$D,2,FALSE) -> 7007025 | BU8: шт. | BV8: 1 | BW8: DBV 500 S FS | BX8: =VLOOKUP(BW8,BASE!$A:$D,2,FALSE) -> 7130825 | BY8: шт. | BZ8: 1 | CA8: FRSB 6X12 G | CB8: =VLOOKUP(CA8,BASE!$A:$D,2,FALSE) -> 6406130 | CC8: шт. | CD8: 8 | CE8: RBV 650 F FS | CF8: =VLOOKUP(CE8,BASE!$A:$D,2,FALSE) -> 7007075 | CG8: шт. | CH8: 1 | CI8: DBV 60 500 F FS | CJ8: =VLOOKUP(CI8,BASE!$A:$D,2,FALSE) -> 7130872 | CK8: шт. | CL8: 1 | CM8: FRSB 6X12 G | CN8: =VLOOKUP(CM8,BASE!$A:$D,2,FALSE) -> 6406130 | CO8: шт. | CP8: 8 | CQ8: RGBEV 650 FS RU | CR8: =VLOOKUP(CQ8,BASE!$A:$D,2,FALSE) -> 7005439 | CS8: шт. | CT8: 1 | CU8: RGV 60 FS RU | CV8: =VLOOKUP(CU8,BASE!$A:$D,2,FALSE) -> 7082012 | CW8: шт. | CX8: 2 | CY8: FRSB 6X12 G | CZ8: =VLOOKUP(CY8,BASE!$A:$D,2,FALSE) -> 6406130 | DA8: шт. | DB8: 2 | DC8: SKS 6X12 F | DD8: =VLOOKUP(DC8,BASE!$A:$D,2,FALSE) -> 3156494 | DE8: шт. | DF8: 2 | DG8: RT 650 FS RU | DH8: =VLOOKUP(DG8,BASE!$A:$D,2,FALSE) -> 6043310 | DI8: шт. | DJ8: 1 | DK8: DFT 500 FS RU | DL8: =VLOOKUP(DK8,BASE!$A:$D,2,FALSE) -> 7128339 | DM8: шт. | DN8: 1 | DO8: Не требуется | DP8: --- | DQ8: --- | DR8: 0 | DS8: Не требуется | DT8: --- | DU8: --- | DV8: 0 | DW8: Не требуется | DX8: --- | DY8: --- | DZ8: 0 | EA8: RAA 650 FS RU | EB8: =VLOOKUP(EA8,BASE!$A:$D,2,FALSE) -> 6040260 | EC8: шт. | ED8: 1 | EE8: DFAA 500 FS RU | EF8: =VLOOKUP(EE8,BASE!$A:$D,2,FALSE) -> 7128539 | EG8: шт. | EH8: 1 | EI8: Не требуется | EJ8: --- | EK8: --- | EL8: 0 | EM8: Не требуется | EN8: --- | EO8: --- | EP8: 0 | EQ8: Не требуется | ER8: --- | ES8: --- | ET8: 0 | EU8: RK 650 FS RU | EV8: =VLOOKUP(EU8,BASE!$A:$D,2,FALSE) -> 6043662 | EW8: шт. | EX8: 1 | EY8: DFK 500 FS RU | EZ8: =VLOOKUP(EY8,BASE!$A:$D,2,FALSE) -> 7128760 | FA8: шт. | FB8: 1 | FC8: Не требуется | FD8: --- | FE8: --- | FF8: 0 | FG8: Не требуется | FH8: --- | FI8: --- | FJ8: 0 | FK8: Не требуется | FL8: --- | FM8: --- | FN8: 0 | FO8: RWEB 650 FS RU | FP8: =VLOOKUP(FO8,BASE!$A:$D,2,FALSE) -> 7109619 | FQ8: шт. | FR8: 1 | FT8: 150 | FU8: 90 | FV8: 55 | FW8: 42.5 | FX8: 30
A9: LKS 660 FS RU | B9: =VLOOKUP(A9,BASE!$A:$D,2,FALSE) -> 6048924 | C9: м | D9: 3 | E9: Листовой | F9: Перфорированный | G9: Конв.цинк. | H9: 0.9 | I9: 60 | J9: 600 | K9: DRLU 600 FS RU | L9: =VLOOKUP(K9,BASE!$A:$D,2,FALSE) -> 6052033 | M9: м | N9: 3 | O9: DK DRLU A2 | P9: =VLOOKUP(O9,BASE!$A:$D,2,FALSE) -> 6052810 | Q9: шт. | R9: 2 | S9: RLVK 60 FS RU | T9: =VLOOKUP(S9,BASE!$A:$D,2,FALSE) -> 6067091 | U9: шт. | V9: 2 | W9: TSG 60 FS | X9: =VLOOKUP(W9,BASE!$A:$D,2,FALSE) -> 6062068 | Y9: м | Z9: 3 | AA9: TSGV A2 | AB9: =VLOOKUP(AA9,BASE!$A:$D,2,FALSE) -> 6067970 | AC9: шт. | AD9: 1 | AE9: FRSB 6X12 G | AF9: =VLOOKUP(AE9,BASE!$A:$D,2,FALSE) -> 6406130 | AG9: шт. | AH9: 6 | AI9: RBL 90 660 FS RU | AJ9: =VLOOKUP(AI9,BASE!$A:$D,2,FALSE) -> 6043102 | AK9: шт. | AL9: 1 | AM9: DFB 90 600 FS RU | AN9: =VLOOKUP(AM9,BASE!$A:$D,2,FALSE) -> 7129751 | AO9: шт. | AP9: 1 | AQ9: Не требуется | AR9: --- | AS9: --- | AT9: 0 | AU9: Не требуется | AV9: --- | AW9: --- | AX9: 0 | AY9: RBL 45 660 FS RU | AZ9: =VLOOKUP(AY9,BASE!$A:$D,2,FALSE) -> 6043692 | BA9: шт. | BB9: 1 | BC9: DFB 45 600 FS RU | BD9: =VLOOKUP(BC9,BASE!$A:$D,2,FALSE) -> 7128941 | BE9: шт. | BF9: 1 | BG9: Не требуется | BH9: --- | BI9: --- | BJ9: 0 | BK9: Не требуется | BL9: --- | BM9: --- | BN9: 0 | BO9: RWVL 60 FS RU | BP9: =VLOOKUP(BO9,BASE!$A:$D,2,FALSE) -> 6067117 | BQ9: шт. | BR9: 4 | BS9: RBV 660 S FS | BT9: =VLOOKUP(BS9,BASE!$A:$D,2,FALSE) -> 7007029 | BU9: шт. | BV9: 1 | BW9: DBV 600 S FS | BX9: =VLOOKUP(BW9,BASE!$A:$D,2,FALSE) -> 7130829 | BY9: шт. | BZ9: 1 | CA9: FRSB 6X12 G | CB9: =VLOOKUP(CA9,BASE!$A:$D,2,FALSE) -> 6406130 | CC9: шт. | CD9: 8 | CE9: RBV 660 F FS | CF9: =VLOOKUP(CE9,BASE!$A:$D,2,FALSE) -> 7007079 | CG9: шт. | CH9: 1 | CI9: DBV 60 600 F FS | CJ9: =VLOOKUP(CI9,BASE!$A:$D,2,FALSE) -> 7130876 | CK9: шт. | CL9: 1 | CM9: FRSB 6X12 G | CN9: =VLOOKUP(CM9,BASE!$A:$D,2,FALSE) -> 6406130 | CO9: шт. | CP9: 8 | CQ9: RGBEV 660 FS RU | CR9: =VLOOKUP(CQ9,BASE!$A:$D,2,FALSE) -> 7005441 | CS9: шт. | CT9: 1 | CU9: RGV 60 FS RU | CV9: =VLOOKUP(CU9,BASE!$A:$D,2,FALSE) -> 7082012 | CW9: шт. | CX9: 2 | CY9: FRSB 6X12 G | CZ9: =VLOOKUP(CY9,BASE!$A:$D,2,FALSE) -> 6406130 | DA9: шт. | DB9: 2 | DC9: SKS 6X12 F | DD9: =VLOOKUP(DC9,BASE!$A:$D,2,FALSE) -> 3156494 | DE9: шт. | DF9: 2 | DG9: RT 660 FS RU | DH9: =VLOOKUP(DG9,BASE!$A:$D,2,FALSE) -> 6043312 | DI9: шт. | DJ9: 1 | DK9: DFT 600 FS RU | DL9: =VLOOKUP(DK9,BASE!$A:$D,2,FALSE) -> 7128341 | DM9: шт. | DN9: 1 | DO9: Не требуется | DP9: --- | DQ9: --- | DR9: 0 | DS9: Не требуется | DT9: --- | DU9: --- | DV9: 0 | DW9: Не требуется | DX9: --- | DY9: --- | DZ9: 0 | EA9: RAA 660 FS RU | EB9: =VLOOKUP(EA9,BASE!$A:$D,2,FALSE) -> 6040262 | EC9: шт. | ED9: 1 | EE9: DFAA 600 FS RU | EF9: =VLOOKUP(EE9,BASE!$A:$D,2,FALSE) -> 7128541 | EG9: шт. | EH9: 1 | EI9: Не требуется | EJ9: --- | EK9: --- | EL9: 0 | EM9: Не требуется | EN9: --- | EO9: --- | EP9: 0 | EQ9: Не требуется | ER9: --- | ES9: --- | ET9: 0 | EU9: RK 660 FS RU | EV9: =VLOOKUP(EU9,BASE!$A:$D,2,FALSE) -> 6043664 | EW9: шт. | EX9: 1 | EY9: DFK 600 FS RU | EZ9: =VLOOKUP(EY9,BASE!$A:$D,2,FALSE) -> 7128762 | FA9: шт. | FB9: 1 | FC9: Не требуется | FD9: --- | FE9: --- | FF9: 0 | FG9: Не требуется | FH9: --- | FI9: --- | FJ9: 0 | FK9: Не требуется | FL9: --- | FM9: --- | FN9: 0 | FO9: RWEB 660 FS RU | FP9: =VLOOKUP(FO9,BASE!$A:$D,2,FALSE) -> 7109621 | FQ9: шт. | FR9: 1 | FT9: 150 | FU9: 90 | FV9: 55 | FW9: 42.5 | FX9: 30
A10: RKS 305 FS | B10: =VLOOKUP(A10,BASE!$A:$D,2,FALSE) -> 6047410 | C10: м | D10: 3 | E10: Листовой | F10: Перфорированный | G10: Конв.цинк. | H10: 0.75 | I10: 35 | J10: 50 | K10: AZDMD 50 FS | L10: =VLOOKUP(K10,BASE!$A:$D,2,FALSE) -> 6080138 | M10: м | N10: 3 | O10: Не требуется | P10: --- | Q10: --- | R10: 0 | S10: RLVK 35 FS | T10: =VLOOKUP(S10,BASE!$A:$D,2,FALSE) -> 6067085 | U10: шт. | V10: 2 | W10: TSG 30 FS | X10: =VLOOKUP(W10,BASE!$A:$D,2,FALSE) -> 6062050 | Y10: м | Z10: 3 | AA10: TSGV A2 | AB10: =VLOOKUP(AA10,BASE!$A:$D,2,FALSE) -> 6067970 | AC10: шт. | AD10: 1 | AE10: FRSB 6X12 G | AF10: =VLOOKUP(AE10,BASE!$A:$D,2,FALSE) -> 6406130 | AG10: шт. | AH10: 6 | AI10: RB 90 305 FS | AJ10: =VLOOKUP(AI10,BASE!$A:$D,2,FALSE) -> 7124400 | AK10: шт. | AL10: 1 | AM10: DFB 90 050 FS | AN10: =VLOOKUP(AM10,BASE!$A:$D,2,FALSE) -> 7131780 | AO10: шт. | AP10: 1 | AQ10: Не требуется | AR10: --- | AS10: --- | AT10: 0 | AU10: Не требуется | AV10: --- | AW10: --- | AX10: 0 | AY10: RWVL 35 FS | AZ10: =VLOOKUP(AY10,BASE!$A:$D,2,FALSE) -> 6067107 | BA10: шт. | BB10: 2 | BC10: Не требуется | BD10: --- | BE10: --- | BF10: 0 | BG10: Не требуется | BH10: --- | BI10: --- | BJ10: 0 | BK10: Не требуется | BL10: --- | BM10: --- | BN10: 0 | BO10: RWVL 35 FS | BP10: =VLOOKUP(BO10,BASE!$A:$D,2,FALSE) -> 6067107 | BQ10: шт. | BR10: 4 | BS10: RBV 305 S FS | BT10: =VLOOKUP(BS10,BASE!$A:$D,2,FALSE) -> 7007170 | BU10: шт. | BV10: 1 | BW10: DBV 050 S FS | BX10: =VLOOKUP(BW10,BASE!$A:$D,2,FALSE) -> 7130801 | BY10: шт. | BZ10: 1 | CA10: FRSB 6X12 G | CB10: =VLOOKUP(CA10,BASE!$A:$D,2,FALSE) -> 6406130 | CC10: шт. | CD10: 8 | CE10: RBV 305 F FS | CF10: =VLOOKUP(CE10,BASE!$A:$D,2,FALSE) -> 7007200 | CG10: шт. | CH10: 1 | CI10: DBV 35 050 F FS | CJ10: =VLOOKUP(CI10,BASE!$A:$D,2,FALSE) -> 7130760 | CK10: шт. | CL10: 1 | CM10: FRSB 6X12 G | CN10: =VLOOKUP(CM10,BASE!$A:$D,2,FALSE) -> 6406130 | CO10: шт. | CP10: 8 | CQ10: Не требуется | CR10: --- | CS10: --- | CT10: 0 | CU10: RGV 35 FS | CV10: =VLOOKUP(CU10,BASE!$A:$D,2,FALSE) -> 7082002 | CW10: шт. | CX10: 4 | CY10: Не требуется | CZ10: --- | DA10: --- | DB10: 0 | DC10: Не требуется | DD10: --- | DE10: --- | DF10: 0 | DG10: RAA 305 FS | DH10: =VLOOKUP(DG10,BASE!$A:$D,2,FALSE) -> 7120450 | DI10: шт. | DJ10: 1 | DK10: DFAA 050 FS | DL10: =VLOOKUP(DK10,BASE!$A:$D,2,FALSE) -> 7132110 | DM10: шт. | DN10: 1 | DO10: Не требуется | DP10: --- | DQ10: --- | DR10: 0 | DS10: Не требуется | DT10: --- | DU10: --- | DV10: 0 | DW10: Не требуется | DX10: --- | DY10: --- | DZ10: 0 | EA10: RAA 305 FS | EB10: =VLOOKUP(EA10,BASE!$A:$D,2,FALSE) -> 7120450 | EC10: шт. | ED10: 1 | EE10: DFAA 050 FS | EF10: =VLOOKUP(EE10,BASE!$A:$D,2,FALSE) -> 7132110 | EG10: шт. | EH10: 1 | EI10: Не требуется | EJ10: --- | EK10: --- | EL10: 0 | EM10: Не требуется | EN10: --- | EO10: --- | EP10: 0 | EQ10: Не требуется | ER10: --- | ES10: --- | ET10: 0 | EU10: RAA 305 FS | EV10: =VLOOKUP(EU10,BASE!$A:$D,2,FALSE) -> 7120450 | EW10: шт. | EX10: 2 | EY10: DFAA 050 FS | EZ10: =VLOOKUP(EY10,BASE!$A:$D,2,FALSE) -> 7132110 | FA10: шт. | FB10: 2 | FC10: Не требуется | FD10: --- | FE10: --- | FF10: 0 | FG10: Не требуется | FH10: --- | FI10: --- | FJ10: 0 | FK10: Не требуется | FL10: --- | FM10: --- | FN10: 0 | FO10: RWEB 305 FS | FP10: =VLOOKUP(FO10,BASE!$A:$D,2,FALSE) -> 7108052 | FQ10: шт. | FR10: 1 | FT10: 120 | FU10: 50 | FV10: 30 | FW10: 10 | FX10: 5
A11: MKS 310 FS | B11: =VLOOKUP(A11,BASE!$A:$D,2,FALSE) -> 6053548 | C11: м | D11: 3 | E11: Листовой | F11: Перфорированный | G11: Конв.цинк. | H11: 1 | I11: 35 | J11: 100 | K11: DRL 100 FS | L11: =VLOOKUP(K11,BASE!$A:$D,2,FALSE) -> 6052096 | M11: м | N11: 3 | O11: Не требуется | P11: --- | Q11: --- | R11: 0 | S11: Не требуется | T11: --- | U11: --- | V11: 0 | W11: TSG 30 FS | X11: =VLOOKUP(W11,BASE!$A:$D,2,FALSE) -> 6062050 | Y11: м | Z11: 3 | AA11: TSGV A2 | AB11: =VLOOKUP(AA11,BASE!$A:$D,2,FALSE) -> 6067970 | AC11: шт. | AD11: 1 | AE11: FRSB 6X12 G | AF11: =VLOOKUP(AE11,BASE!$A:$D,2,FALSE) -> 6406130 | AG11: шт. | AH11: 6 | AI11: RB 90 310 FS | AJ11: =VLOOKUP(AI11,BASE!$A:$D,2,FALSE) -> 6043119 | AK11: шт. | AL11: 1 | AM11: DFB 90 100 FS | AN11: =VLOOKUP(AM11,BASE!$A:$D,2,FALSE) -> 7129610 | AO11: шт. | AP11: 1 | AQ11: Не требуется | AR11: --- | AS11: --- | AT11: 0 | AU11: Не требуется | AV11: --- | AW11: --- | AX11: 0 | AY11: RB 45 310 FS | AZ11: =VLOOKUP(AY11,BASE!$A:$D,2,FALSE) -> 6043704 | BA11: шт. | BB11: 1 | BC11: DFB 45 100 FS | BD11: =VLOOKUP(BC11,BASE!$A:$D,2,FALSE) -> 7128819 | BE11: шт. | BF11: 1 | BG11: Не требуется | BH11: --- | BI11: --- | BJ11: 0 | BK11: Не требуется | BL11: --- | BM11: --- | BN11: 0 | BO11: RWVL 35 FS | BP11: =VLOOKUP(BO11,BASE!$A:$D,2,FALSE) -> 6067107 | BQ11: шт. | BR11: 4 | BS11: RBV 310 S FS | BT11: =VLOOKUP(BS11,BASE!$A:$D,2,FALSE) -> 7007174 | BU11: шт. | BV11: 1 | BW11: DBV 100 S FS | BX11: =VLOOKUP(BW11,BASE!$A:$D,2,FALSE) -> 7130805 | BY11: шт. | BZ11: 1 | CA11: FRSB 6X12 G | CB11: =VLOOKUP(CA11,BASE!$A:$D,2,FALSE) -> 6406130 | CC11: шт. | CD11: 8 | CE11: RBV 310 F FS | CF11: =VLOOKUP(CE11,BASE!$A:$D,2,FALSE) -> 7007204 | CG11: шт. | CH11: 1 | CI11: DBV 35 100 F FS | CJ11: =VLOOKUP(CI11,BASE!$A:$D,2,FALSE) -> 7130764 | CK11: шт. | CL11: 1 | CM11: FRSB 6X12 G | CN11: =VLOOKUP(CM11,BASE!$A:$D,2,FALSE) -> 6406130 | CO11: шт. | CP11: 8 | CQ11: Не требуется | CR11: --- | CS11: --- | CT11: 0 | CU11: RGV 35 FS | CV11: =VLOOKUP(CU11,BASE!$A:$D,2,FALSE) -> 7082002 | CW11: шт. | CX11: 4 | CY11: Не требуется | CZ11: --- | DA11: --- | DB11: 0 | DC11: Не требуется | DD11: --- | DE11: --- | DF11: 0 | DG11: RAA 310 FS | DH11: =VLOOKUP(DG11,BASE!$A:$D,2,FALSE) -> 6040322 | DI11: шт. | DJ11: 1 | DK11: DFAA 100 FS | DL11: =VLOOKUP(DK11,BASE!$A:$D,2,FALSE) -> 7128428 | DM11: шт. | DN11: 1 | DO11: Не требуется | DP11: --- | DQ11: --- | DR11: 0 | DS11: Не требуется | DT11: --- | DU11: --- | DV11: 0 | DW11: Не требуется | DX11: --- | DY11: --- | DZ11: 0 | EA11: RAA 310 FS | EB11: =VLOOKUP(EA11,BASE!$A:$D,2,FALSE) -> 6040322 | EC11: шт. | ED11: 1 | EE11: DFAA 100 FS | EF11: =VLOOKUP(EE11,BASE!$A:$D,2,FALSE) -> 7128428 | EG11: шт. | EH11: 1 | EI11: Не требуется | EJ11: --- | EK11: --- | EL11: 0 | EM11: Не требуется | EN11: --- | EO11: --- | EP11: 0 | EQ11: Не требуется | ER11: --- | ES11: --- | ET11: 0 | EU11: RAA 310 FS | EV11: =VLOOKUP(EU11,BASE!$A:$D,2,FALSE) -> 6040322 | EW11: шт. | EX11: 2 | EY11: DFAA 100 FS | EZ11: =VLOOKUP(EY11,BASE!$A:$D,2,FALSE) -> 7128428 | FA11: шт. | FB11: 2 | FC11: Не требуется | FD11: --- | FE11: --- | FF11: 0 | FG11: Не требуется | FH11: --- | FI11: --- | FJ11: 0 | FK11: Не требуется | FL11: --- | FM11: --- | FN11: 0 | FO11: RWEB 310 FS | FP11: =VLOOKUP(FO11,BASE!$A:$D,2,FALSE) -> 7108109 | FQ11: шт. | FR11: 1 | FT11: 120 | FU11: 75 | FV11: 55 | FW11: 30 | FX11: 20
A12: MKS 315 FS | B12: =VLOOKUP(A12,BASE!$A:$D,2,FALSE) -> 6053572 | C12: м | D12: 3 | E12: Листовой | F12: Перфорированный | G12: Конв.цинк. | H12: 1 | I12: 35 | J12: 150 | K12: DRL 150 FS | L12: =VLOOKUP(K12,BASE!$A:$D,2,FALSE) -> 6052150 | M12: м | N12: 3 | O12: Не требуется | P12: --- | Q12: --- | R12: 0 | S12: Не требуется | T12: --- | U12: --- | V12: 0 | W12: TSG 30 FS | X12: =VLOOKUP(W12,BASE!$A:$D,2,FALSE) -> 6062050 | Y12: м | Z12: 3 | AA12: TSGV A2 | AB12: =VLOOKUP(AA12,BASE!$A:$D,2,FALSE) -> 6067970 | AC12: шт. | AD12: 1 | AE12: FRSB 6X12 G | AF12: =VLOOKUP(AE12,BASE!$A:$D,2,FALSE) -> 6406130 | AG12: шт. | AH12: 6 | AI12: RB 90 315 FS | AJ12: =VLOOKUP(AI12,BASE!$A:$D,2,FALSE) -> 6043123 | AK12: шт. | AL12: 1 | AM12: DFB 90 150 FS | AN12: =VLOOKUP(AM12,BASE!$A:$D,2,FALSE) -> 7129629 | AO12: шт. | AP12: 1 | AQ12: Не требуется | AR12: --- | AS12: --- | AT12: 0 | AU12: Не требуется | AV12: --- | AW12: --- | AX12: 0 | AY12: RWVL 35 FS | AZ12: =VLOOKUP(AY12,BASE!$A:$D,2,FALSE) -> 6067107 | BA12: шт. | BB12: 2 | BC12: Не требуется | BD12: --- | BE12: --- | BF12: 0 | BG12: Не требуется | BH12: --- | BI12: --- | BJ12: 0 | BK12: Не требуется | BL12: --- | BM12: --- | BN12: 0 | BO12: RWVL 35 FS | BP12: =VLOOKUP(BO12,BASE!$A:$D,2,FALSE) -> 6067107 | BQ12: шт. | BR12: 4 | BS12: RBV 315 S FS | BT12: =VLOOKUP(BS12,BASE!$A:$D,2,FALSE) -> 7007178 | BU12: шт. | BV12: 1 | BW12: DBV 150 S FS | BX12: =VLOOKUP(BW12,BASE!$A:$D,2,FALSE) -> 7130809 | BY12: шт. | BZ12: 1 | CA12: FRSB 6X12 G | CB12: =VLOOKUP(CA12,BASE!$A:$D,2,FALSE) -> 6406130 | CC12: шт. | CD12: 8 | CE12: RBV 315 F FS | CF12: =VLOOKUP(CE12,BASE!$A:$D,2,FALSE) -> 7007208 | CG12: шт. | CH12: 1 | CI12: DBV 35 150 F FS | CJ12: =VLOOKUP(CI12,BASE!$A:$D,2,FALSE) -> 7130768 | CK12: шт. | CL12: 1 | CM12: FRSB 6X12 G | CN12: =VLOOKUP(CM12,BASE!$A:$D,2,FALSE) -> 6406130 | CO12: шт. | CP12: 8 | CQ12: Не требуется | CR12: --- | CS12: --- | CT12: 0 | CU12: RGV 35 FS | CV12: =VLOOKUP(CU12,BASE!$A:$D,2,FALSE) -> 7082002 | CW12: шт. | CX12: 4 | CY12: Не требуется | CZ12: --- | DA12: --- | DB12: 0 | DC12: Не требуется | DD12: --- | DE12: --- | DF12: 0 | DG12: RWVL 35 FS | DH12: =VLOOKUP(DG12,BASE!$A:$D,2,FALSE) -> 6067107 | DI12: шт. | DJ12: 2 | DK12: Не требуется | DL12: --- | DM12: --- | DN12: 0 | DO12: Не требуется | DP12: --- | DQ12: --- | DR12: 0 | DS12: Не требуется | DT12: --- | DU12: --- | DV12: 0 | DW12: Не требуется | DX12: --- | DY12: --- | DZ12: 0 | EA12: RWVL 35 FS | EB12: =VLOOKUP(EA12,BASE!$A:$D,2,FALSE) -> 6067107 | EC12: шт. | ED12: 2 | EE12: Не требуется | EF12: --- | EG12: --- | EH12: 0 | EI12: Не требуется | EJ12: --- | EK12: --- | EL12: 0 | EM12: Не требуется | EN12: --- | EO12: --- | EP12: 0 | EQ12: Не требуется | ER12: --- | ES12: --- | ET12: 0 | EU12: RWVL 35 FS | EV12: =VLOOKUP(EU12,BASE!$A:$D,2,FALSE) -> 6067107 | EW12: шт. | EX12: 4 | EY12: Не требуется | EZ12: --- | FA12: --- | FB12: 0 | FC12: Не требуется | FD12: --- | FE12: --- | FF12: 0 | FG12: Не требуется | FH12: --- | FI12: --- | FJ12: 0 | FK12: Не требуется | FL12: --- | FM12: --- | FN12: 0 | FO12: --- | FP12: --- | FQ12: --- | FR12: 0 | FT12: 120 | FU12: 75 | FV12: 55 | FW12: 30 | FX12: 20
A13: MKS 320 FS | B13: =VLOOKUP(A13,BASE!$A:$D,2,FALSE) -> 6053599 | C13: м | D13: 3 | E13: Листовой | F13: Перфорированный | G13: Конв.цинк. | H13: 1 | I13: 35 | J13: 200 | K13: DRL 200 FS | L13: =VLOOKUP(K13,BASE!$A:$D,2,FALSE) -> 6052207 | M13: м | N13: 3 | O13: Не требуется | P13: --- | Q13: --- | R13: 0 | S13: Не требуется | T13: --- | U13: --- | V13: 0 | W13: TSG 30 FS | X13: =VLOOKUP(W13,BASE!$A:$D,2,FALSE) -> 6062050 | Y13: м | Z13: 3 | AA13: TSGV A2 | AB13: =VLOOKUP(AA13,BASE!$A:$D,2,FALSE) -> 6067970 | AC13: шт. | AD13: 1 | AE13: FRSB 6X12 G | AF13: =VLOOKUP(AE13,BASE!$A:$D,2,FALSE) -> 6406130 | AG13: шт. | AH13: 6 | AI13: RB 90 320 FS | AJ13: =VLOOKUP(AI13,BASE!$A:$D,2,FALSE) -> 6043127 | AK13: шт. | AL13: 1 | AM13: DFB 90 200 FS | AN13: =VLOOKUP(AM13,BASE!$A:$D,2,FALSE) -> 7129637 | AO13: шт. | AP13: 1 | AQ13: Не требуется | AR13: --- | AS13: --- | AT13: 0 | AU13: Не требуется | AV13: --- | AW13: --- | AX13: 0 | AY13: RB 45 320 FS | AZ13: =VLOOKUP(AY13,BASE!$A:$D,2,FALSE) -> 6043712 | BA13: шт. | BB13: 1 | BC13: DFB 45 200 FS | BD13: =VLOOKUP(BC13,BASE!$A:$D,2,FALSE) -> 7128835 | BE13: шт. | BF13: 1 | BG13: Не требуется | BH13: --- | BI13: --- | BJ13: 0 | BK13: Не требуется | BL13: --- | BM13: --- | BN13: 0 | BO13: RWVL 35 FS | BP13: =VLOOKUP(BO13,BASE!$A:$D,2,FALSE) -> 6067107 | BQ13: шт. | BR13: 4 | BS13: RBV 320 S FS | BT13: =VLOOKUP(BS13,BASE!$A:$D,2,FALSE) -> 7007182 | BU13: шт. | BV13: 1 | BW13: DBV 200 S FS | BX13: =VLOOKUP(BW13,BASE!$A:$D,2,FALSE) -> 7130813 | BY13: шт. | BZ13: 1 | CA13: FRSB 6X12 G | CB13: =VLOOKUP(CA13,BASE!$A:$D,2,FALSE) -> 6406130 | CC13: шт. | CD13: 8 | CE13: RBV 320 F FS | CF13: =VLOOKUP(CE13,BASE!$A:$D,2,FALSE) -> 7007212 | CG13: шт. | CH13: 1 | CI13: DBV 35 200 F FS | CJ13: =VLOOKUP(CI13,BASE!$A:$D,2,FALSE) -> 7130772 | CK13: шт. | CL13: 1 | CM13: FRSB 6X12 G | CN13: =VLOOKUP(CM13,BASE!$A:$D,2,FALSE) -> 6406130 | CO13: шт. | CP13: 8 | CQ13: Не требуется | CR13: --- | CS13: --- | CT13: 0 | CU13: RGV 35 FS | CV13: =VLOOKUP(CU13,BASE!$A:$D,2,FALSE) -> 7082002 | CW13: шт. | CX13: 4 | CY13: Не требуется | CZ13: --- | DA13: --- | DB13: 0 | DC13: Не требуется | DD13: --- | DE13: --- | DF13: 0 | DG13: RAA 320 FS | DH13: =VLOOKUP(DG13,BASE!$A:$D,2,FALSE) -> 6040349 | DI13: шт. | DJ13: 1 | DK13: DFAA 200 FS | DL13: =VLOOKUP(DK13,BASE!$A:$D,2,FALSE) -> 7128444 | DM13: шт. | DN13: 1 | DO13: Не требуется | DP13: --- | DQ13: --- | DR13: 0 | DS13: Не требуется | DT13: --- | DU13: --- | DV13: 0 | DW13: Не требуется | DX13: --- | DY13: --- | DZ13: 0 | EA13: RAA 320 FS | EB13: =VLOOKUP(EA13,BASE!$A:$D,2,FALSE) -> 6040349 | EC13: шт. | ED13: 1 | EE13: DFAA 200 FS | EF13: =VLOOKUP(EE13,BASE!$A:$D,2,FALSE) -> 7128444 | EG13: шт. | EH13: 1 | EI13: Не требуется | EJ13: --- | EK13: --- | EL13: 0 | EM13: Не требуется | EN13: --- | EO13: --- | EP13: 0 | EQ13: Не требуется | ER13: --- | ES13: --- | ET13: 0 | EU13: RAA 320 FS | EV13: =VLOOKUP(EU13,BASE!$A:$D,2,FALSE) -> 6040349 | EW13: шт. | EX13: 2 | EY13: DFAA 200 FS | EZ13: =VLOOKUP(EY13,BASE!$A:$D,2,FALSE) -> 7128444 | FA13: шт. | FB13: 2 | FC13: Не требуется | FD13: --- | FE13: --- | FF13: 0 | FG13: Не требуется | FH13: --- | FI13: --- | FJ13: 0 | FK13: Не требуется | FL13: --- | FM13: --- | FN13: 0 | FO13: RWEB 320 FS | FP13: =VLOOKUP(FO13,BASE!$A:$D,2,FALSE) -> 7108206 | FQ13: шт. | FR13: 1 | FT13: 110 | FU13: 50 | FV13: 30 | FW13: 30 | FX13: 20
A14: MKS 330 FS | B14: =VLOOKUP(A14,BASE!$A:$D,2,FALSE) -> 6053637 | C14: м | D14: 3 | E14: Листовой | F14: Перфорированный | G14: Конв.цинк. | H14: 1 | I14: 35 | J14: 300 | K14: DRL 300 FS | L14: =VLOOKUP(K14,BASE!$A:$D,2,FALSE) -> 6052304 | M14: м | N14: 3 | O14: Не требуется | P14: --- | Q14: --- | R14: 0 | S14: Не требуется | T14: --- | U14: --- | V14: 0 | W14: TSG 30 FS | X14: =VLOOKUP(W14,BASE!$A:$D,2,FALSE) -> 6062050 | Y14: м | Z14: 3 | AA14: TSGV A2 | AB14: =VLOOKUP(AA14,BASE!$A:$D,2,FALSE) -> 6067970 | AC14: шт. | AD14: 1 | AE14: FRSB 6X12 G | AF14: =VLOOKUP(AE14,BASE!$A:$D,2,FALSE) -> 6406130 | AG14: шт. | AH14: 6 | AI14: RB 90 330 FS | AJ14: =VLOOKUP(AI14,BASE!$A:$D,2,FALSE) -> 6043135 | AK14: шт. | AL14: 1 | AM14: DFB 90 300 FS | AN14: =VLOOKUP(AM14,BASE!$A:$D,2,FALSE) -> 7129653 | AO14: шт. | AP14: 1 | AQ14: Не требуется | AR14: --- | AS14: --- | AT14: 0 | AU14: Не требуется | AV14: --- | AW14: --- | AX14: 0 | AY14: RB 45 330 FS | AZ14: =VLOOKUP(AY14,BASE!$A:$D,2,FALSE) -> 6043720 | BA14: шт. | BB14: 1 | BC14: DFB 45 300 FS | BD14: =VLOOKUP(BC14,BASE!$A:$D,2,FALSE) -> 7128851 | BE14: шт. | BF14: 1 | BG14: Не требуется | BH14: --- | BI14: --- | BJ14: 0 | BK14: Не требуется | BL14: --- | BM14: --- | BN14: 0 | BO14: RWVL 35 FS | BP14: =VLOOKUP(BO14,BASE!$A:$D,2,FALSE) -> 6067107 | BQ14: шт. | BR14: 4 | BS14: RBV 330 S FS | BT14: =VLOOKUP(BS14,BASE!$A:$D,2,FALSE) -> 7007186 | BU14: шт. | BV14: 1 | BW14: DBV 300 S FS | BX14: =VLOOKUP(BW14,BASE!$A:$D,2,FALSE) -> 7130817 | BY14: шт. | BZ14: 1 | CA14: FRSB 6X12 G | CB14: =VLOOKUP(CA14,BASE!$A:$D,2,FALSE) -> 6406130 | CC14: шт. | CD14: 8 | CE14: RBV 330 F FS | CF14: =VLOOKUP(CE14,BASE!$A:$D,2,FALSE) -> 7007216 | CG14: шт. | CH14: 1 | CI14: DBV 35 300 F FS | CJ14: =VLOOKUP(CI14,BASE!$A:$D,2,FALSE) -> 7130776 | CK14: шт. | CL14: 1 | CM14: FRSB 6X12 G | CN14: =VLOOKUP(CM14,BASE!$A:$D,2,FALSE) -> 6406130 | CO14: шт. | CP14: 8 | CQ14: Не требуется | CR14: --- | CS14: --- | CT14: 0 | CU14: RGV 35 FS | CV14: =VLOOKUP(CU14,BASE!$A:$D,2,FALSE) -> 7082002 | CW14: шт. | CX14: 4 | CY14: Не требуется | CZ14: --- | DA14: --- | DB14: 0 | DC14: Не требуется | DD14: --- | DE14: --- | DF14: 0 | DG14: RAA 330 FS | DH14: =VLOOKUP(DG14,BASE!$A:$D,2,FALSE) -> 6040357 | DI14: шт. | DJ14: 1 | DK14: DFAA 300 FS | DL14: =VLOOKUP(DK14,BASE!$A:$D,2,FALSE) -> 7128460 | DM14: шт. | DN14: 1 | DO14: Не требуется | DP14: --- | DQ14: --- | DR14: 0 | DS14: Не требуется | DT14: --- | DU14: --- | DV14: 0 | DW14: Не требуется | DX14: --- | DY14: --- | DZ14: 0 | EA14: RAA 330 FS | EB14: =VLOOKUP(EA14,BASE!$A:$D,2,FALSE) -> 6040357 | EC14: шт. | ED14: 1 | EE14: DFAA 300 FS | EF14: =VLOOKUP(EE14,BASE!$A:$D,2,FALSE) -> 7128460 | EG14: шт. | EH14: 1 | EI14: Не требуется | EJ14: --- | EK14: --- | EL14: 0 | EM14: Не требуется | EN14: --- | EO14: --- | EP14: 0 | EQ14: Не требуется | ER14: --- | ES14: --- | ET14: 0 | EU14: RAA 330 FS | EV14: =VLOOKUP(EU14,BASE!$A:$D,2,FALSE) -> 6040357 | EW14: шт. | EX14: 2 | EY14: DFAA 300 FS | EZ14: =VLOOKUP(EY14,BASE!$A:$D,2,FALSE) -> 7128460 | FA14: шт. | FB14: 2 | FC14: Не требуется | FD14: --- | FE14: --- | FF14: 0 | FG14: Не требуется | FH14: --- | FI14: --- | FJ14: 0 | FK14: Не требуется | FL14: --- | FM14: --- | FN14: 0 | FO14: RWEB 330 FS | FP14: =VLOOKUP(FO14,BASE!$A:$D,2,FALSE) -> 7108311 | FQ14: шт. | FR14: 1 | FT14: 110 | FU14: 50 | FV14: 30 | FW14: 30 | FX14: 20
A15: RKS 605 FS | B15: =VLOOKUP(A15,BASE!$A:$D,2,FALSE) -> 6047600 | C15: м | D15: 3 | E15: Листовой | F15: Перфорированный | G15: Конв.цинк. | H15: 0.75 | I15: 60 | J15: 50 | K15: AZDMD 50 FS | L15: =VLOOKUP(K15,BASE!$A:$D,2,FALSE) -> 6080138 | M15: м | N15: 3 | O15: Не требуется | P15: --- | Q15: --- | R15: 0 | S15: RLVK 60 FS | T15: =VLOOKUP(S15,BASE!$A:$D,2,FALSE) -> 6067093 | U15: шт. | V15: 2 | W15: TSG 60 FS | X15: =VLOOKUP(W15,BASE!$A:$D,2,FALSE) -> 6062068 | Y15: м | Z15: 3 | AA15: TSGV A2 | AB15: =VLOOKUP(AA15,BASE!$A:$D,2,FALSE) -> 6067970 | AC15: шт. | AD15: 1 | AE15: FRSB 6X12 G | AF15: =VLOOKUP(AE15,BASE!$A:$D,2,FALSE) -> 6406130 | AG15: шт. | AH15: 6 | AI15: RB 90 605 FS | AJ15: =VLOOKUP(AI15,BASE!$A:$D,2,FALSE) -> 7124430 | AK15: шт. | AL15: 1 | AM15: DFB 90 050 FS | AN15: =VLOOKUP(AM15,BASE!$A:$D,2,FALSE) -> 7131780 | AO15: шт. | AP15: 1 | AQ15: Не требуется | AR15: --- | AS15: --- | AT15: 0 | AU15: Не требуется | AV15: --- | AW15: --- | AX15: 0 | AY15: RWVL 60 FS | AZ15: =VLOOKUP(AY15,BASE!$A:$D,2,FALSE) -> 6067115 | BA15: шт. | BB15: 2 | BC15: Не требуется | BD15: --- | BE15: --- | BF15: 0 | BG15: Не требуется | BH15: --- | BI15: --- | BJ15: 0 | BK15: Не требуется | BL15: --- | BM15: --- | BN15: 0 | BO15: RWVL 60 FS | BP15: =VLOOKUP(BO15,BASE!$A:$D,2,FALSE) -> 6067115 | BQ15: шт. | BR15: 4 | BS15: RBV 605 S FS | BT15: =VLOOKUP(BS15,BASE!$A:$D,2,FALSE) -> 7007001 | BU15: шт. | BV15: 1 | BW15: DBV 050 S FS | BX15: =VLOOKUP(BW15,BASE!$A:$D,2,FALSE) -> 7130801 | BY15: шт. | BZ15: 1 | CA15: FRSB 6X12 G | CB15: =VLOOKUP(CA15,BASE!$A:$D,2,FALSE) -> 6406130 | CC15: шт. | CD15: 8 | CE15: RBV 605 F FS | CF15: =VLOOKUP(CE15,BASE!$A:$D,2,FALSE) -> 7007051 | CG15: шт. | CH15: 1 | CI15: DBV 60 050 F FS | CJ15: =VLOOKUP(CI15,BASE!$A:$D,2,FALSE) -> 7130847 | CK15: шт. | CL15: 1 | CM15: FRSB 6X12 G | CN15: =VLOOKUP(CM15,BASE!$A:$D,2,FALSE) -> 6406130 | CO15: шт. | CP15: 8 | CQ15: Не требуется | CR15: --- | CS15: --- | CT15: 0 | CU15: RGV 60 FS | CV15: =VLOOKUP(CU15,BASE!$A:$D,2,FALSE) -> 7082010 | CW15: шт. | CX15: 4 | CY15: Не требуется | CZ15: --- | DA15: --- | DB15: 0 | DC15: Не требуется | DD15: --- | DE15: --- | DF15: 0 | DG15: RAA 605 FS | DH15: =VLOOKUP(DG15,BASE!$A:$D,2,FALSE) -> 7120460 | DI15: шт. | DJ15: 1 | DK15: DFAA 050 FS | DL15: =VLOOKUP(DK15,BASE!$A:$D,2,FALSE) -> 7132110 | DM15: шт. | DN15: 1 | DO15: Не требуется | DP15: --- | DQ15: --- | DR15: 0 | DS15: Не требуется | DT15: --- | DU15: --- | DV15: 0 | DW15: Не требуется | DX15: --- | DY15: --- | DZ15: 0 | EA15: RAA 605 FS | EB15: =VLOOKUP(EA15,BASE!$A:$D,2,FALSE) -> 7120460 | EC15: шт. | ED15: 1 | EE15: DFAA 050 FS | EF15: =VLOOKUP(EE15,BASE!$A:$D,2,FALSE) -> 7132110 | EG15: шт. | EH15: 1 | EI15: Не требуется | EJ15: --- | EK15: --- | EL15: 0 | EM15: Не требуется | EN15: --- | EO15: --- | EP15: 0 | EQ15: Не требуется | ER15: --- | ES15: --- | ET15: 0 | EU15: RAA 605 FS | EV15: =VLOOKUP(EU15,BASE!$A:$D,2,FALSE) -> 7120460 | EW15: шт. | EX15: 2 | EY15: DFAA 050 FS | EZ15: =VLOOKUP(EY15,BASE!$A:$D,2,FALSE) -> 7132110 | FA15: шт. | FB15: 2 | FC15: Не требуется | FD15: --- | FE15: --- | FF15: 0 | FG15: Не требуется | FH15: --- | FI15: --- | FJ15: 0 | FK15: Не требуется | FL15: --- | FM15: --- | FN15: 0 | FO15: RWEB 605 DD | FP15: =VLOOKUP(FO15,BASE!$A:$D,2,FALSE) -> 7107145 | FQ15: шт. | FR15: 1 | FT15: 200 | FU15: 80 | FV15: 50 | FW15: 35 | FX15: 15
A16: MKS 610 FS | B16: =VLOOKUP(A16,BASE!$A:$D,2,FALSE) -> 6055109 | C16: м | D16: 3 | E16: Листовой | F16: Перфорированный | G16: Конв.цинк. | H16: 1 | I16: 60 | J16: 100 | K16: DRL 100 FS | L16: =VLOOKUP(K16,BASE!$A:$D,2,FALSE) -> 6052096 | M16: м | N16: 3 | O16: Не требуется | P16: --- | Q16: --- | R16: 0 | S16: Не требуется | T16: --- | U16: --- | V16: 0 | W16: TSG 60 FS | X16: =VLOOKUP(W16,BASE!$A:$D,2,FALSE) -> 6062068 | Y16: м | Z16: 3 | AA16: TSGV A2 | AB16: =VLOOKUP(AA16,BASE!$A:$D,2,FALSE) -> 6067970 | AC16: шт. | AD16: 1 | AE16: FRSB 6X12 G | AF16: =VLOOKUP(AE16,BASE!$A:$D,2,FALSE) -> 6406130 | AG16: шт. | AH16: 6 | AI16: RB 90 610 FS | AJ16: =VLOOKUP(AI16,BASE!$A:$D,2,FALSE) -> 6043216 | AK16: шт. | AL16: 1 | AM16: DFB 90 100 FS | AN16: =VLOOKUP(AM16,BASE!$A:$D,2,FALSE) -> 7129610 | AO16: шт. | AP16: 1 | AQ16: Не требуется | AR16: --- | AS16: --- | AT16: 0 | AU16: Не требуется | AV16: --- | AW16: --- | AX16: 0 | AY16: RB 45 610 FS | AZ16: =VLOOKUP(AY16,BASE!$A:$D,2,FALSE) -> 6043763 | BA16: шт. | BB16: 1 | BC16: DFB 45 100 FS | BD16: =VLOOKUP(BC16,BASE!$A:$D,2,FALSE) -> 7128819 | BE16: шт. | BF16: 1 | BG16: Не требуется | BH16: --- | BI16: --- | BJ16: 0 | BK16: Не требуется | BL16: --- | BM16: --- | BN16: 0 | BO16: RWVL 60 FS | BP16: =VLOOKUP(BO16,BASE!$A:$D,2,FALSE) -> 6067115 | BQ16: шт. | BR16: 4 | BS16: RBV 610 S FS | BT16: =VLOOKUP(BS16,BASE!$A:$D,2,FALSE) -> 7007005 | BU16: шт. | BV16: 1 | BW16: DBV 100 S FS | BX16: =VLOOKUP(BW16,BASE!$A:$D,2,FALSE) -> 7130805 | BY16: шт. | BZ16: 1 | CA16: FRSB 6X12 G | CB16: =VLOOKUP(CA16,BASE!$A:$D,2,FALSE) -> 6406130 | CC16: шт. | CD16: 8 | CE16: RBV 610 F FS | CF16: =VLOOKUP(CE16,BASE!$A:$D,2,FALSE) -> 7007055 | CG16: шт. | CH16: 1 | CI16: DBV 60 100 F FS | CJ16: =VLOOKUP(CI16,BASE!$A:$D,2,FALSE) -> 7130852 | CK16: шт. | CL16: 1 | CM16: FRSB 6X12 G | CN16: =VLOOKUP(CM16,BASE!$A:$D,2,FALSE) -> 6406130 | CO16: шт. | CP16: 8 | CQ16: RGBV 610 FS | CR16: =VLOOKUP(CQ16,BASE!$A:$D,2,FALSE) -> 7006322 | CS16: шт. | CT16: 1 | CU16: Не требуется | CV16: --- | CW16: --- | CX16: 0 | CY16: Не требуется | CZ16: --- | DA16: --- | DB16: 0 | DC16: Не требуется | DD16: --- | DE16: --- | DF16: 0 | DG16: RT 610 FS | DH16: =VLOOKUP(DG16,BASE!$A:$D,2,FALSE) -> 6043410 | DI16: шт. | DJ16: 1 | DK16: DFT 100 FS | DL16: =VLOOKUP(DK16,BASE!$A:$D,2,FALSE) -> 7128215 | DM16: шт. | DN16: 1 | DO16: Не требуется | DP16: --- | DQ16: --- | DR16: 0 | DS16: Не требуется | DT16: --- | DU16: --- | DV16: 0 | DW16: Не требуется | DX16: --- | DY16: --- | DZ16: 0 | EA16: RAA 610 FS | EB16: =VLOOKUP(EA16,BASE!$A:$D,2,FALSE) -> 6040403 | EC16: шт. | ED16: 1 | EE16: DFAA 100 FS | EF16: =VLOOKUP(EE16,BASE!$A:$D,2,FALSE) -> 7128428 | EG16: шт. | EH16: 1 | EI16: Не требуется | EJ16: --- | EK16: --- | EL16: 0 | EM16: Не требуется | EN16: --- | EO16: --- | EP16: 0 | EQ16: Не требуется | ER16: --- | ES16: --- | ET16: 0 | EU16: RK 610 FS | EV16: =VLOOKUP(EU16,BASE!$A:$D,2,FALSE) -> 6043615 | EW16: шт. | EX16: 1 | EY16: DFK 100 FS | EZ16: =VLOOKUP(EY16,BASE!$A:$D,2,FALSE) -> 7128614 | FA16: шт. | FB16: 1 | FC16: Не требуется | FD16: --- | FE16: --- | FF16: 0 | FG16: Не требуется | FH16: --- | FI16: --- | FJ16: 0 | FK16: Не требуется | FL16: --- | FM16: --- | FN16: 0 | FO16: RWEB 610 FS | FP16: =VLOOKUP(FO16,BASE!$A:$D,2,FALSE) -> 7109105 | FQ16: шт. | FR16: 1 | FT16: 150 | FU16: 150 | FV16: 100 | FW16: 50 | FX16: 0
A17: MKS 615 FS | B17: =VLOOKUP(A17,BASE!$A:$D,2,FALSE) -> 6055141 | C17: м | D17: 3 | E17: Листовой | F17: Перфорированный | G17: Конв.цинк. | H17: 1 | I17: 60 | J17: 150 | K17: DRL 150 FS | L17: =VLOOKUP(K17,BASE!$A:$D,2,FALSE) -> 6052150 | M17: м | N17: 3 | O17: Не требуется | P17: --- | Q17: --- | R17: 0 | S17: Не требуется | T17: --- | U17: --- | V17: 0 | W17: TSG 60 FS | X17: =VLOOKUP(W17,BASE!$A:$D,2,FALSE) -> 6062068 | Y17: м | Z17: 3 | AA17: TSGV A2 | AB17: =VLOOKUP(AA17,BASE!$A:$D,2,FALSE) -> 6067970 | AC17: шт. | AD17: 1 | AE17: FRSB 6X12 G | AF17: =VLOOKUP(AE17,BASE!$A:$D,2,FALSE) -> 6406130 | AG17: шт. | AH17: 6 | AI17: RB 90 615 FS | AJ17: =VLOOKUP(AI17,BASE!$A:$D,2,FALSE) -> 6043208 | AK17: шт. | AL17: 1 | AM17: DFB 90 150 FS | AN17: =VLOOKUP(AM17,BASE!$A:$D,2,FALSE) -> 7129629 | AO17: шт. | AP17: 1 | AQ17: Не требуется | AR17: --- | AS17: --- | AT17: 0 | AU17: Не требуется | AV17: --- | AW17: --- | AX17: 0 | AY17: RB 45 615 FS | AZ17: =VLOOKUP(AY17,BASE!$A:$D,2,FALSE) -> 6043755 | BA17: шт. | BB17: 1 | BC17: DFB 45 150 FS | BD17: =VLOOKUP(BC17,BASE!$A:$D,2,FALSE) -> 7128827 | BE17: шт. | BF17: 1 | BG17: Не требуется | BH17: --- | BI17: --- | BJ17: 0 | BK17: Не требуется | BL17: --- | BM17: --- | BN17: 0 | BO17: RWVL 60 FS | BP17: =VLOOKUP(BO17,BASE!$A:$D,2,FALSE) -> 6067115 | BQ17: шт. | BR17: 4 | BS17: RBV 615 S FS | BT17: =VLOOKUP(BS17,BASE!$A:$D,2,FALSE) -> 7007009 | BU17: шт. | BV17: 1 | BW17: DBV 150 S FS | BX17: =VLOOKUP(BW17,BASE!$A:$D,2,FALSE) -> 7130809 | BY17: шт. | BZ17: 1 | CA17: FRSB 6X12 G | CB17: =VLOOKUP(CA17,BASE!$A:$D,2,FALSE) -> 6406130 | CC17: шт. | CD17: 8 | CE17: RBV 615 F FS | CF17: =VLOOKUP(CE17,BASE!$A:$D,2,FALSE) -> 7007059 | CG17: шт. | CH17: 1 | CI17: DBV 60 150 F FS | CJ17: =VLOOKUP(CI17,BASE!$A:$D,2,FALSE) -> 7130856 | CK17: шт. | CL17: 1 | CM17: FRSB 6X12 G | CN17: =VLOOKUP(CM17,BASE!$A:$D,2,FALSE) -> 6406130 | CO17: шт. | CP17: 8 | CQ17: RGBV 615 FS | CR17: =VLOOKUP(CQ17,BASE!$A:$D,2,FALSE) -> 7006330 | CS17: шт. | CT17: 1 | CU17: Не требуется | CV17: --- | CW17: --- | CX17: 0 | CY17: Не требуется | CZ17: --- | DA17: --- | DB17: 0 | DC17: Не требуется | DD17: --- | DE17: --- | DF17: 0 | DG17: RT 615 FS | DH17: =VLOOKUP(DG17,BASE!$A:$D,2,FALSE) -> 6043402 | DI17: шт. | DJ17: 1 | DK17: DFT 150 FS | DL17: =VLOOKUP(DK17,BASE!$A:$D,2,FALSE) -> 7128223 | DM17: шт. | DN17: 1 | DO17: Не требуется | DP17: --- | DQ17: --- | DR17: 0 | DS17: Не требуется | DT17: --- | DU17: --- | DV17: 0 | DW17: Не требуется | DX17: --- | DY17: --- | DZ17: 0 | EA17: RAA 615 FS | EB17: =VLOOKUP(EA17,BASE!$A:$D,2,FALSE) -> 6040411 | EC17: шт. | ED17: 1 | EE17: DFAA 150 FS | EF17: =VLOOKUP(EE17,BASE!$A:$D,2,FALSE) -> 7128436 | EG17: шт. | EH17: 1 | EI17: Не требуется | EJ17: --- | EK17: --- | EL17: 0 | EM17: Не требуется | EN17: --- | EO17: --- | EP17: 0 | EQ17: Не требуется | ER17: --- | ES17: --- | ET17: 0 | EU17: RK 615 FS | EV17: =VLOOKUP(EU17,BASE!$A:$D,2,FALSE) -> 6043607 | EW17: шт. | EX17: 1 | EY17: DFK 150 FS | EZ17: =VLOOKUP(EY17,BASE!$A:$D,2,FALSE) -> 7128622 | FA17: шт. | FB17: 1 | FC17: Не требуется | FD17: --- | FE17: --- | FF17: 0 | FG17: Не требуется | FH17: --- | FI17: --- | FJ17: 0 | FK17: Не требуется | FL17: --- | FM17: --- | FN17: 0 | FO17: RWEB 615 FS | FP17: =VLOOKUP(FO17,BASE!$A:$D,2,FALSE) -> 7109156 | FQ17: шт. | FR17: 1 | FT17: 150 | FU17: 150 | FV17: 100 | FW17: 50 | FX17: 0
A18: MKS 620 FS | B18: =VLOOKUP(A18,BASE!$A:$D,2,FALSE) -> 6055206 | C18: м | D18: 3 | E18: Листовой | F18: Перфорированный | G18: Конв.цинк. | H18: 1 | I18: 60 | J18: 200 | K18: DRL 200 FS | L18: =VLOOKUP(K18,BASE!$A:$D,2,FALSE) -> 6052207 | M18: м | N18: 3 | O18: Не требуется | P18: --- | Q18: --- | R18: 0 | S18: Не требуется | T18: --- | U18: --- | V18: 0 | W18: TSG 60 FS | X18: =VLOOKUP(W18,BASE!$A:$D,2,FALSE) -> 6062068 | Y18: м | Z18: 3 | AA18: TSGV A2 | AB18: =VLOOKUP(AA18,BASE!$A:$D,2,FALSE) -> 6067970 | AC18: шт. | AD18: 1 | AE18: FRSB 6X12 G | AF18: =VLOOKUP(AE18,BASE!$A:$D,2,FALSE) -> 6406130 | AG18: шт. | AH18: 6 | AI18: RB 90 620 FS | AJ18: =VLOOKUP(AI18,BASE!$A:$D,2,FALSE) -> 6043224 | AK18: шт. | AL18: 1 | AM18: DFB 90 200 FS | AN18: =VLOOKUP(AM18,BASE!$A:$D,2,FALSE) -> 7129637 | AO18: шт. | AP18: 1 | AQ18: Не требуется | AR18: --- | AS18: --- | AT18: 0 | AU18: Не требуется | AV18: --- | AW18: --- | AX18: 0 | AY18: RB 45 620 FS | AZ18: =VLOOKUP(AY18,BASE!$A:$D,2,FALSE) -> 6043771 | BA18: шт. | BB18: 1 | BC18: DFB 45 200 FS | BD18: =VLOOKUP(BC18,BASE!$A:$D,2,FALSE) -> 7128835 | BE18: шт. | BF18: 1 | BG18: Не требуется | BH18: --- | BI18: --- | BJ18: 0 | BK18: Не требуется | BL18: --- | BM18: --- | BN18: 0 | BO18: RWVL 60 FS | BP18: =VLOOKUP(BO18,BASE!$A:$D,2,FALSE) -> 6067115 | BQ18: шт. | BR18: 4 | BS18: RBV 620 S FS | BT18: =VLOOKUP(BS18,BASE!$A:$D,2,FALSE) -> 7007013 | BU18: шт. | BV18: 1 | BW18: DBV 200 S FS | BX18: =VLOOKUP(BW18,BASE!$A:$D,2,FALSE) -> 7130813 | BY18: шт. | BZ18: 1 | CA18: FRSB 6X12 G | CB18: =VLOOKUP(CA18,BASE!$A:$D,2,FALSE) -> 6406130 | CC18: шт. | CD18: 8 | CE18: RBV 620 F FS | CF18: =VLOOKUP(CE18,BASE!$A:$D,2,FALSE) -> 7007063 | CG18: шт. | CH18: 1 | CI18: DBV 60 200 F FS | CJ18: =VLOOKUP(CI18,BASE!$A:$D,2,FALSE) -> 7130860 | CK18: шт. | CL18: 1 | CM18: FRSB 6X12 G | CN18: =VLOOKUP(CM18,BASE!$A:$D,2,FALSE) -> 6406130 | CO18: шт. | CP18: 8 | CQ18: RGBV 620 FS | CR18: =VLOOKUP(CQ18,BASE!$A:$D,2,FALSE) -> 7006349 | CS18: шт. | CT18: 1 | CU18: Не требуется | CV18: --- | CW18: --- | CX18: 0 | CY18: Не требуется | CZ18: --- | DA18: --- | DB18: 0 | DC18: Не требуется | DD18: --- | DE18: --- | DF18: 0 | DG18: RT 620 FS | DH18: =VLOOKUP(DG18,BASE!$A:$D,2,FALSE) -> 6043429 | DI18: шт. | DJ18: 1 | DK18: DFT 200 FS | DL18: =VLOOKUP(DK18,BASE!$A:$D,2,FALSE) -> 7128231 | DM18: шт. | DN18: 1 | DO18: Не требуется | DP18: --- | DQ18: --- | DR18: 0 | DS18: Не требуется | DT18: --- | DU18: --- | DV18: 0 | DW18: Не требуется | DX18: --- | DY18: --- | DZ18: 0 | EA18: RAA 620 FS | EB18: =VLOOKUP(EA18,BASE!$A:$D,2,FALSE) -> 6040438 | EC18: шт. | ED18: 1 | EE18: DFAA 200 FS | EF18: =VLOOKUP(EE18,BASE!$A:$D,2,FALSE) -> 7128444 | EG18: шт. | EH18: 1 | EI18: Не требуется | EJ18: --- | EK18: --- | EL18: 0 | EM18: Не требуется | EN18: --- | EO18: --- | EP18: 0 | EQ18: Не требуется | ER18: --- | ES18: --- | ET18: 0 | EU18: RK 620 FS | EV18: =VLOOKUP(EU18,BASE!$A:$D,2,FALSE) -> 6043623 | EW18: шт. | EX18: 1 | EY18: DFK 200 FS | EZ18: =VLOOKUP(EY18,BASE!$A:$D,2,FALSE) -> 7128630 | FA18: шт. | FB18: 1 | FC18: Не требуется | FD18: --- | FE18: --- | FF18: 0 | FG18: Не требуется | FH18: --- | FI18: --- | FJ18: 0 | FK18: Не требуется | FL18: --- | FM18: --- | FN18: 0 | FO18: RWEB 620 FS | FP18: =VLOOKUP(FO18,BASE!$A:$D,2,FALSE) -> 7109202 | FQ18: шт. | FR18: 1 | FT18: 150 | FU18: 150 | FV18: 100 | FW18: 50 | FX18: 0
A19: MKS 630 FS | B19: =VLOOKUP(A19,BASE!$A:$D,2,FALSE) -> 6055303 | C19: м | D19: 3 | E19: Листовой | F19: Перфорированный | G19: Конв.цинк. | H19: 1 | I19: 60 | J19: 300 | K19: DRL 300 FS | L19: =VLOOKUP(K19,BASE!$A:$D,2,FALSE) -> 6052304 | M19: м | N19: 3 | O19: Не требуется | P19: --- | Q19: --- | R19: 0 | S19: Не требуется | T19: --- | U19: --- | V19: 0 | W19: TSG 60 FS | X19: =VLOOKUP(W19,BASE!$A:$D,2,FALSE) -> 6062068 | Y19: м | Z19: 3 | AA19: TSGV A2 | AB19: =VLOOKUP(AA19,BASE!$A:$D,2,FALSE) -> 6067970 | AC19: шт. | AD19: 1 | AE19: FRSB 6X12 G | AF19: =VLOOKUP(AE19,BASE!$A:$D,2,FALSE) -> 6406130 | AG19: шт. | AH19: 6 | AI19: RB 90 630 FS | AJ19: =VLOOKUP(AI19,BASE!$A:$D,2,FALSE) -> 6043232 | AK19: шт. | AL19: 1 | AM19: DFB 90 300 FS | AN19: =VLOOKUP(AM19,BASE!$A:$D,2,FALSE) -> 7129653 | AO19: шт. | AP19: 1 | AQ19: Не требуется | AR19: --- | AS19: --- | AT19: 0 | AU19: Не требуется | AV19: --- | AW19: --- | AX19: 0 | AY19: RB 45 630 FS | AZ19: =VLOOKUP(AY19,BASE!$A:$D,2,FALSE) -> 6043798 | BA19: шт. | BB19: 1 | BC19: DFB 45 300 FS | BD19: =VLOOKUP(BC19,BASE!$A:$D,2,FALSE) -> 7128851 | BE19: шт. | BF19: 1 | BG19: Не требуется | BH19: --- | BI19: --- | BJ19: 0 | BK19: Не требуется | BL19: --- | BM19: --- | BN19: 0 | BO19: RWVL 60 FS | BP19: =VLOOKUP(BO19,BASE!$A:$D,2,FALSE) -> 6067115 | BQ19: шт. | BR19: 4 | BS19: RBV 630 S FS | BT19: =VLOOKUP(BS19,BASE!$A:$D,2,FALSE) -> 7007017 | BU19: шт. | BV19: 1 | BW19: DBV 300 S FS | BX19: =VLOOKUP(BW19,BASE!$A:$D,2,FALSE) -> 7130817 | BY19: шт. | BZ19: 1 | CA19: FRSB 6X12 G | CB19: =VLOOKUP(CA19,BASE!$A:$D,2,FALSE) -> 6406130 | CC19: шт. | CD19: 8 | CE19: RBV 630 F FS | CF19: =VLOOKUP(CE19,BASE!$A:$D,2,FALSE) -> 7007067 | CG19: шт. | CH19: 1 | CI19: DBV 60 300 F FS | CJ19: =VLOOKUP(CI19,BASE!$A:$D,2,FALSE) -> 7130864 | CK19: шт. | CL19: 1 | CM19: FRSB 6X12 G | CN19: =VLOOKUP(CM19,BASE!$A:$D,2,FALSE) -> 6406130 | CO19: шт. | CP19: 8 | CQ19: RGBV 630 FS | CR19: =VLOOKUP(CQ19,BASE!$A:$D,2,FALSE) -> 7006365 | CS19: шт. | CT19: 1 | CU19: Не требуется | CV19: --- | CW19: --- | CX19: 0 | CY19: Не требуется | CZ19: --- | DA19: --- | DB19: 0 | DC19: Не требуется | DD19: --- | DE19: --- | DF19: 0 | DG19: RT 630 FS | DH19: =VLOOKUP(DG19,BASE!$A:$D,2,FALSE) -> 6043437 | DI19: шт. | DJ19: 1 | DK19: DFT 300 FS | DL19: =VLOOKUP(DK19,BASE!$A:$D,2,FALSE) -> 7128266 | DM19: шт. | DN19: 1 | DO19: Не требуется | DP19: --- | DQ19: --- | DR19: 0 | DS19: Не требуется | DT19: --- | DU19: --- | DV19: 0 | DW19: Не требуется | DX19: --- | DY19: --- | DZ19: 0 | EA19: RAA 630 FS | EB19: =VLOOKUP(EA19,BASE!$A:$D,2,FALSE) -> 6040446 | EC19: шт. | ED19: 1 | EE19: DFAA 300 FS | EF19: =VLOOKUP(EE19,BASE!$A:$D,2,FALSE) -> 7128460 | EG19: шт. | EH19: 1 | EI19: Не требуется | EJ19: --- | EK19: --- | EL19: 0 | EM19: Не требуется | EN19: --- | EO19: --- | EP19: 0 | EQ19: Не требуется | ER19: --- | ES19: --- | ET19: 0 | EU19: RK 630 FS | EV19: =VLOOKUP(EU19,BASE!$A:$D,2,FALSE) -> 6043631 | EW19: шт. | EX19: 1 | EY19: DFK 300 FS | EZ19: =VLOOKUP(EY19,BASE!$A:$D,2,FALSE) -> 7128657 | FA19: шт. | FB19: 1 | FC19: Не требуется | FD19: --- | FE19: --- | FF19: 0 | FG19: Не требуется | FH19: --- | FI19: --- | FJ19: 0 | FK19: Не требуется | FL19: --- | FM19: --- | FN19: 0 | FO19: RWEB 630 FS | FP19: =VLOOKUP(FO19,BASE!$A:$D,2,FALSE) -> 7109296 | FQ19: шт. | FR19: 1 | FT19: 150 | FU19: 150 | FV19: 100 | FW19: 50 | FX19: 0
A20: MKS 640 FS | B20: =VLOOKUP(A20,BASE!$A:$D,2,FALSE) -> 6055400 | C20: м | D20: 3 | E20: Листовой | F20: Перфорированный | G20: Конв.цинк. | H20: 1 | I20: 60 | J20: 400 | K20: DRL 400 FS | L20: =VLOOKUP(K20,BASE!$A:$D,2,FALSE) -> 6052401 | M20: м | N20: 3 | O20: Не требуется | P20: --- | Q20: --- | R20: 0 | S20: Не требуется | T20: --- | U20: --- | V20: 0 | W20: TSG 60 FS | X20: =VLOOKUP(W20,BASE!$A:$D,2,FALSE) -> 6062068 | Y20: м | Z20: 3 | AA20: TSGV A2 | AB20: =VLOOKUP(AA20,BASE!$A:$D,2,FALSE) -> 6067970 | AC20: шт. | AD20: 1 | AE20: FRSB 6X12 G | AF20: =VLOOKUP(AE20,BASE!$A:$D,2,FALSE) -> 6406130 | AG20: шт. | AH20: 6 | AI20: RB 90 640 FS | AJ20: =VLOOKUP(AI20,BASE!$A:$D,2,FALSE) -> 7001290 | AK20: шт. | AL20: 1 | AM20: DFB 90 400 FS | AN20: =VLOOKUP(AM20,BASE!$A:$D,2,FALSE) -> 7129688 | AO20: шт. | AP20: 1 | AQ20: RLVK 60 FS | AR20: =VLOOKUP(AQ20,BASE!$A:$D,2,FALSE) -> 6067093 | AS20: шт. | AT20: 4 | AU20: SSLB 400 FS | AV20: =VLOOKUP(AU20,BASE!$A:$D,2,FALSE) -> 7070221 | AW20: шт. | AX20: 2 | AY20: RB 45 640 FS | AZ20: =VLOOKUP(AY20,BASE!$A:$D,2,FALSE) -> 7000383 | BA20: шт. | BB20: 1 | BC20: DFB 45 400 FS | BD20: =VLOOKUP(BC20,BASE!$A:$D,2,FALSE) -> 7128886 | BE20: шт. | BF20: 1 | BG20: RLVK 60 FS | BH20: =VLOOKUP(BG20,BASE!$A:$D,2,FALSE) -> 6067093 | BI20: шт. | BJ20: 4 | BK20: SSLB 400 FS | BL20: =VLOOKUP(BK20,BASE!$A:$D,2,FALSE) -> 7070221 | BM20: шт. | BN20: 2 | BO20: RWVL 60 FS | BP20: =VLOOKUP(BO20,BASE!$A:$D,2,FALSE) -> 6067115 | BQ20: шт. | BR20: 4 | BS20: RBV 640 S FS | BT20: =VLOOKUP(BS20,BASE!$A:$D,2,FALSE) -> 7007021 | BU20: шт. | BV20: 1 | BW20: DBV 400 S FS | BX20: =VLOOKUP(BW20,BASE!$A:$D,2,FALSE) -> 7130821 | BY20: шт. | BZ20: 1 | CA20: FRSB 6X12 G | CB20: =VLOOKUP(CA20,BASE!$A:$D,2,FALSE) -> 6406130 | CC20: шт. | CD20: 8 | CE20: RBV 640 F FS | CF20: =VLOOKUP(CE20,BASE!$A:$D,2,FALSE) -> 7007071 | CG20: шт. | CH20: 1 | CI20: DBV 60 400 F FS | CJ20: =VLOOKUP(CI20,BASE!$A:$D,2,FALSE) -> 7130868 | CK20: шт. | CL20: 1 | CM20: FRSB 6X12 G | CN20: =VLOOKUP(CM20,BASE!$A:$D,2,FALSE) -> 6406130 | CO20: шт. | CP20: 8 | CQ20: RGBV 640 FS | CR20: =VLOOKUP(CQ20,BASE!$A:$D,2,FALSE) -> 7006381 | CS20: шт. | CT20: 1 | CU20: Не требуется | CV20: --- | CW20: --- | CX20: 0 | CY20: Не требуется | CZ20: --- | DA20: --- | DB20: 0 | DC20: Не требуется | DD20: --- | DE20: --- | DF20: 0 | DG20: RT 640 FS | DH20: =VLOOKUP(DG20,BASE!$A:$D,2,FALSE) -> 7003390 | DI20: шт. | DJ20: 1 | DK20: DFT 400 FS | DL20: =VLOOKUP(DK20,BASE!$A:$D,2,FALSE) -> 7128282 | DM20: шт. | DN20: 1 | DO20: RLVK 60 FS | DP20: =VLOOKUP(DO20,BASE!$A:$D,2,FALSE) -> 6067093 | DQ20: шт. | DR20: 6 | DS20: SSLB 400 FS | DT20: =VLOOKUP(DS20,BASE!$A:$D,2,FALSE) -> 7070221 | DU20: шт. | DV20: 3 | DW20: Не требуется | DX20: --- | DY20: --- | DZ20: 0 | EA20: RAA 640 FS | EB20: =VLOOKUP(EA20,BASE!$A:$D,2,FALSE) -> 7002394 | EC20: шт. | ED20: 1 | EE20: DFAA 400 FS | EF20: =VLOOKUP(EE20,BASE!$A:$D,2,FALSE) -> 7128487 | EG20: шт. | EH20: 1 | EI20: RLVK 60 FS | EJ20: =VLOOKUP(EI20,BASE!$A:$D,2,FALSE) -> 6067093 | EK20: шт. | EL20: 2 | EM20: SSLB 400 FS | EN20: =VLOOKUP(EM20,BASE!$A:$D,2,FALSE) -> 7070221 | EO20: шт. | EP20: 1 | EQ20: FRSB 6X12 G | ER20: =VLOOKUP(EQ20,BASE!$A:$D,2,FALSE) -> 6406130 | ES20: шт. | ET20: 8 | EU20: RK 640 FS | EV20: =VLOOKUP(EU20,BASE!$A:$D,2,FALSE) -> 7004397 | EW20: шт. | EX20: 1 | EY20: DFK 400 FS | EZ20: =VLOOKUP(EY20,BASE!$A:$D,2,FALSE) -> 7128673 | FA20: шт. | FB20: 1 | FC20: RLVK 60 FS | FD20: =VLOOKUP(FC20,BASE!$A:$D,2,FALSE) -> 6067093 | FE20: шт. | FF20: 8 | FG20: SSLB 400 FS | FH20: =VLOOKUP(FG20,BASE!$A:$D,2,FALSE) -> 7070221 | FI20: шт. | FJ20: 4 | FK20: Не требуется | FL20: --- | FM20: --- | FN20: 0 | FO20: RWEB 640 FS | FP20: =VLOOKUP(FO20,BASE!$A:$D,2,FALSE) -> 7109407 | FQ20: шт. | FR20: 1 | FT20: 150 | FU20: 150 | FV20: 100 | FW20: 50 | FX20: 0
A21: MKS 650 FS | B21: =VLOOKUP(A21,BASE!$A:$D,2,FALSE) -> 6055508 | C21: м | D21: 3 | E21: Листовой | F21: Перфорированный | G21: Конв.цинк. | H21: 1 | I21: 60 | J21: 500 | K21: DRL 500 FS | L21: =VLOOKUP(K21,BASE!$A:$D,2,FALSE) -> 6052509 | M21: м | N21: 3 | O21: Не требуется | P21: --- | Q21: --- | R21: 0 | S21: Не требуется | T21: --- | U21: --- | V21: 0 | W21: TSG 60 FS | X21: =VLOOKUP(W21,BASE!$A:$D,2,FALSE) -> 6062068 | Y21: м | Z21: 3 | AA21: TSGV A2 | AB21: =VLOOKUP(AA21,BASE!$A:$D,2,FALSE) -> 6067970 | AC21: шт. | AD21: 1 | AE21: FRSB 6X12 G | AF21: =VLOOKUP(AE21,BASE!$A:$D,2,FALSE) -> 6406130 | AG21: шт. | AH21: 6 | AI21: RB 90 650 FS | AJ21: =VLOOKUP(AI21,BASE!$A:$D,2,FALSE) -> 7001304 | AK21: шт. | AL21: 1 | AM21: DFB 90 500 FS | AN21: =VLOOKUP(AM21,BASE!$A:$D,2,FALSE) -> 7129718 | AO21: шт. | AP21: 1 | AQ21: RLVK 60 FS | AR21: =VLOOKUP(AQ21,BASE!$A:$D,2,FALSE) -> 6067093 | AS21: шт. | AT21: 4 | AU21: SSLB 500 FS | AV21: =VLOOKUP(AU21,BASE!$A:$D,2,FALSE) -> 7070225 | AW21: шт. | AX21: 2 | AY21: RB 45 650 FS | AZ21: =VLOOKUP(AY21,BASE!$A:$D,2,FALSE) -> 7000405 | BA21: шт. | BB21: 1 | BC21: DFB 45 500 FS | BD21: =VLOOKUP(BC21,BASE!$A:$D,2,FALSE) -> 7128908 | BE21: шт. | BF21: 1 | BG21: RLVK 60 FS | BH21: =VLOOKUP(BG21,BASE!$A:$D,2,FALSE) -> 6067093 | BI21: шт. | BJ21: 4 | BK21: SSLB 500 FS | BL21: =VLOOKUP(BK21,BASE!$A:$D,2,FALSE) -> 7070225 | BM21: шт. | BN21: 2 | BO21: RWVL 60 FS | BP21: =VLOOKUP(BO21,BASE!$A:$D,2,FALSE) -> 6067115 | BQ21: шт. | BR21: 4 | BS21: RBV 650 S FS | BT21: =VLOOKUP(BS21,BASE!$A:$D,2,FALSE) -> 7007025 | BU21: шт. | BV21: 1 | BW21: DBV 500 S FS | BX21: =VLOOKUP(BW21,BASE!$A:$D,2,FALSE) -> 7130825 | BY21: шт. | BZ21: 1 | CA21: FRSB 6X12 G | CB21: =VLOOKUP(CA21,BASE!$A:$D,2,FALSE) -> 6406130 | CC21: шт. | CD21: 8 | CE21: RBV 650 F FS | CF21: =VLOOKUP(CE21,BASE!$A:$D,2,FALSE) -> 7007075 | CG21: шт. | CH21: 1 | CI21: DBV 60 500 F FS | CJ21: =VLOOKUP(CI21,BASE!$A:$D,2,FALSE) -> 7130872 | CK21: шт. | CL21: 1 | CM21: FRSB 6X12 G | CN21: =VLOOKUP(CM21,BASE!$A:$D,2,FALSE) -> 6406130 | CO21: шт. | CP21: 8 | CQ21: RGBV 650 FS | CR21: =VLOOKUP(CQ21,BASE!$A:$D,2,FALSE) -> 7006411 | CS21: шт. | CT21: 1 | CU21: Не требуется | CV21: --- | CW21: --- | CX21: 0 | CY21: Не требуется | CZ21: --- | DA21: --- | DB21: 0 | DC21: Не требуется | DD21: --- | DE21: --- | DF21: 0 | DG21: RT 650 FS | DH21: =VLOOKUP(DG21,BASE!$A:$D,2,FALSE) -> 7003412 | DI21: шт. | DJ21: 1 | DK21: DFT 500 FS | DL21: =VLOOKUP(DK21,BASE!$A:$D,2,FALSE) -> 7128304 | DM21: шт. | DN21: 1 | DO21: RLVK 60 FS | DP21: =VLOOKUP(DO21,BASE!$A:$D,2,FALSE) -> 6067093 | DQ21: шт. | DR21: 6 | DS21: SSLB 500 FS | DT21: =VLOOKUP(DS21,BASE!$A:$D,2,FALSE) -> 7070225 | DU21: шт. | DV21: 3 | DW21: Не требуется | DX21: --- | DY21: --- | DZ21: 0 | EA21: RAA 650 FS | EB21: =VLOOKUP(EA21,BASE!$A:$D,2,FALSE) -> 7002416 | EC21: шт. | ED21: 1 | EE21: DFAA 500 FS | EF21: =VLOOKUP(EE21,BASE!$A:$D,2,FALSE) -> 7128509 | EG21: шт. | EH21: 1 | EI21: RLVK 60 FS | EJ21: =VLOOKUP(EI21,BASE!$A:$D,2,FALSE) -> 6067093 | EK21: шт. | EL21: 2 | EM21: SSLB 500 FS | EN21: =VLOOKUP(EM21,BASE!$A:$D,2,FALSE) -> 7070225 | EO21: шт. | EP21: 1 | EQ21: FRSB 6X12 G | ER21: =VLOOKUP(EQ21,BASE!$A:$D,2,FALSE) -> 6406130 | ES21: шт. | ET21: 8 | EU21: RK 650 FS | EV21: =VLOOKUP(EU21,BASE!$A:$D,2,FALSE) -> 7004419 | EW21: шт. | EX21: 1 | EY21: DFK 500 FS | EZ21: =VLOOKUP(EY21,BASE!$A:$D,2,FALSE) -> 7128703 | FA21: шт. | FB21: 1 | FC21: RLVK 60 FS | FD21: =VLOOKUP(FC21,BASE!$A:$D,2,FALSE) -> 6067093 | FE21: шт. | FF21: 8 | FG21: SSLB 500 FS | FH21: =VLOOKUP(FG21,BASE!$A:$D,2,FALSE) -> 7070225 | FI21: шт. | FJ21: 4 | FK21: Не требуется | FL21: --- | FM21: --- | FN21: 0 | FO21: RWEB 650 FS | FP21: =VLOOKUP(FO21,BASE!$A:$D,2,FALSE) -> 7109504 | FQ21: шт. | FR21: 1 | FT21: 150 | FU21: 150 | FV21: 100 | FW21: 50 | FX21: 0
A22: MKS 660 FS | B22: =VLOOKUP(A22,BASE!$A:$D,2,FALSE) -> 6055524 | C22: м | D22: 3 | E22: Листовой | F22: Перфорированный | G22: Конв.цинк. | H22: 1 | I22: 60 | J22: 600 | K22: DRL 600 FS | L22: =VLOOKUP(K22,BASE!$A:$D,2,FALSE) -> 6052606 | M22: м | N22: 3 | O22: Не требуется | P22: --- | Q22: --- | R22: 0 | S22: Не требуется | T22: --- | U22: --- | V22: 0 | W22: TSG 60 FS | X22: =VLOOKUP(W22,BASE!$A:$D,2,FALSE) -> 6062068 | Y22: м | Z22: 3 | AA22: TSGV A2 | AB22: =VLOOKUP(AA22,BASE!$A:$D,2,FALSE) -> 6067970 | AC22: шт. | AD22: 1 | AE22: FRSB 6X12 G | AF22: =VLOOKUP(AE22,BASE!$A:$D,2,FALSE) -> 6406130 | AG22: шт. | AH22: 6 | AI22: RB 90 660 FS | AJ22: =VLOOKUP(AI22,BASE!$A:$D,2,FALSE) -> 7001312 | AK22: шт. | AL22: 1 | AM22: DFB 90 600 FS | AN22: =VLOOKUP(AM22,BASE!$A:$D,2,FALSE) -> 7129734 | AO22: шт. | AP22: 1 | AQ22: RLVK 60 FS | AR22: =VLOOKUP(AQ22,BASE!$A:$D,2,FALSE) -> 6067093 | AS22: шт. | AT22: 4 | AU22: SSLB 600 FS | AV22: =VLOOKUP(AU22,BASE!$A:$D,2,FALSE) -> 7070233 | AW22: шт. | AX22: 2 | AY22: RB 45 660 FS | AZ22: =VLOOKUP(AY22,BASE!$A:$D,2,FALSE) -> 7000421 | BA22: шт. | BB22: 1 | BC22: DFB 45 600 FS | BD22: =VLOOKUP(BC22,BASE!$A:$D,2,FALSE) -> 7128924 | BE22: шт. | BF22: 1 | BG22: RLVK 60 FS | BH22: =VLOOKUP(BG22,BASE!$A:$D,2,FALSE) -> 6067093 | BI22: шт. | BJ22: 4 | BK22: SSLB 600 FS | BL22: =VLOOKUP(BK22,BASE!$A:$D,2,FALSE) -> 7070233 | BM22: шт. | BN22: 2 | BO22: RWVL 60 FS | BP22: =VLOOKUP(BO22,BASE!$A:$D,2,FALSE) -> 6067115 | BQ22: шт. | BR22: 4 | BS22: RBV 660 S FS | BT22: =VLOOKUP(BS22,BASE!$A:$D,2,FALSE) -> 7007029 | BU22: шт. | BV22: 1 | BW22: DBV 600 S FS | BX22: =VLOOKUP(BW22,BASE!$A:$D,2,FALSE) -> 7130829 | BY22: шт. | BZ22: 1 | CA22: FRSB 6X12 G | CB22: =VLOOKUP(CA22,BASE!$A:$D,2,FALSE) -> 6406130 | CC22: шт. | CD22: 8 | CE22: RBV 660 F FS | CF22: =VLOOKUP(CE22,BASE!$A:$D,2,FALSE) -> 7007079 | CG22: шт. | CH22: 1 | CI22: DBV 60 600 F FS | CJ22: =VLOOKUP(CI22,BASE!$A:$D,2,FALSE) -> 7130876 | CK22: шт. | CL22: 1 | CM22: FRSB 6X12 G | CN22: =VLOOKUP(CM22,BASE!$A:$D,2,FALSE) -> 6406130 | CO22: шт. | CP22: 8 | CQ22: RGBV 660 FS | CR22: =VLOOKUP(CQ22,BASE!$A:$D,2,FALSE) -> 7006446 | CS22: шт. | CT22: 1 | CU22: Не требуется | CV22: --- | CW22: --- | CX22: 0 | CY22: Не требуется | CZ22: --- | DA22: --- | DB22: 0 | DC22: Не требуется | DD22: --- | DE22: --- | DF22: 0 | DG22: RT 660 FS | DH22: =VLOOKUP(DG22,BASE!$A:$D,2,FALSE) -> 7003439 | DI22: шт. | DJ22: 1 | DK22: DFT 600 FS | DL22: =VLOOKUP(DK22,BASE!$A:$D,2,FALSE) -> 7128320 | DM22: шт. | DN22: 1 | DO22: RLVK 60 FS | DP22: =VLOOKUP(DO22,BASE!$A:$D,2,FALSE) -> 6067093 | DQ22: шт. | DR22: 6 | DS22: SSLB 600 FS | DT22: =VLOOKUP(DS22,BASE!$A:$D,2,FALSE) -> 7070233 | DU22: шт. | DV22: 3 | DW22: Не требуется | DX22: --- | DY22: --- | DZ22: 0 | EA22: RAA 660 FS | EB22: =VLOOKUP(EA22,BASE!$A:$D,2,FALSE) -> 7002432 | EC22: шт. | ED22: 1 | EE22: DFAA 600 FS | EF22: =VLOOKUP(EE22,BASE!$A:$D,2,FALSE) -> 7128525 | EG22: шт. | EH22: 1 | EI22: RLVK 60 FS | EJ22: =VLOOKUP(EI22,BASE!$A:$D,2,FALSE) -> 6067093 | EK22: шт. | EL22: 2 | EM22: SSLB 600 FS | EN22: =VLOOKUP(EM22,BASE!$A:$D,2,FALSE) -> 7070233 | EO22: шт. | EP22: 1 | EQ22: FRSB 6X12 G | ER22: =VLOOKUP(EQ22,BASE!$A:$D,2,FALSE) -> 6406130 | ES22: шт. | ET22: 8 | EU22: RK 660 FS | EV22: =VLOOKUP(EU22,BASE!$A:$D,2,FALSE) -> 7004435 | EW22: шт. | EX22: 1 | EY22: DFK 600 FS | EZ22: =VLOOKUP(EY22,BASE!$A:$D,2,FALSE) -> 7128738 | FA22: шт. | FB22: 1 | FC22: RLVK 60 FS | FD22: =VLOOKUP(FC22,BASE!$A:$D,2,FALSE) -> 6067093 | FE22: шт. | FF22: 8 | FG22: SSLB 600 FS | FH22: =VLOOKUP(FG22,BASE!$A:$D,2,FALSE) -> 7070233 | FI22: шт. | FJ22: 4 | FK22: Не требуется | FL22: --- | FM22: --- | FN22: 0 | FO22: RWEB 660 FS | FP22: =VLOOKUP(FO22,BASE!$A:$D,2,FALSE) -> 7109601 | FQ22: шт. | FR22: 1 | FT22: 150 | FU22: 150 | FV22: 100 | FW22: 50 | FX22: 0
A23: SKS 610 FS | B23: =VLOOKUP(A23,BASE!$A:$D,2,FALSE) -> 6056105 | C23: м | D23: 3 | E23: Листовой | F23: Перфорированный | G23: Конв.цинк. | H23: 1.5 | I23: 60 | J23: 100 | K23: DRL 100 FS | L23: =VLOOKUP(K23,BASE!$A:$D,2,FALSE) -> 6052096 | M23: м | N23: 3 | O23: Не требуется | P23: --- | Q23: --- | R23: 0 | S23: Не требуется | T23: --- | U23: --- | V23: 0 | W23: TSG 60 FS | X23: =VLOOKUP(W23,BASE!$A:$D,2,FALSE) -> 6062068 | Y23: м | Z23: 3 | AA23: TSGV A2 | AB23: =VLOOKUP(AA23,BASE!$A:$D,2,FALSE) -> 6067970 | AC23: шт. | AD23: 1 | AE23: FRSB 6X12 G | AF23: =VLOOKUP(AE23,BASE!$A:$D,2,FALSE) -> 6406130 | AG23: шт. | AH23: 6 | AI23: RB 90 610 FS | AJ23: =VLOOKUP(AI23,BASE!$A:$D,2,FALSE) -> 6043216 | AK23: шт. | AL23: 1 | AM23: DFB 90 100 FS | AN23: =VLOOKUP(AM23,BASE!$A:$D,2,FALSE) -> 7129610 | AO23: шт. | AP23: 1 | AQ23: Не требуется | AR23: --- | AS23: --- | AT23: 0 | AU23: Не требуется | AV23: --- | AW23: --- | AX23: 0 | AY23: RB 45 610 FS | AZ23: =VLOOKUP(AY23,BASE!$A:$D,2,FALSE) -> 6043763 | BA23: шт. | BB23: 1 | BC23: DFB 45 100 FS | BD23: =VLOOKUP(BC23,BASE!$A:$D,2,FALSE) -> 7128819 | BE23: шт. | BF23: 1 | BG23: Не требуется | BH23: --- | BI23: --- | BJ23: 0 | BK23: Не требуется | BL23: --- | BM23: --- | BN23: 0 | BO23: RWVL 60 FS | BP23: =VLOOKUP(BO23,BASE!$A:$D,2,FALSE) -> 6067115 | BQ23: шт. | BR23: 4 | BS23: RBV 610 S FS | BT23: =VLOOKUP(BS23,BASE!$A:$D,2,FALSE) -> 7007005 | BU23: шт. | BV23: 1 | BW23: DBV 100 S FS | BX23: =VLOOKUP(BW23,BASE!$A:$D,2,FALSE) -> 7130805 | BY23: шт. | BZ23: 1 | CA23: FRSB 6X12 G | CB23: =VLOOKUP(CA23,BASE!$A:$D,2,FALSE) -> 6406130 | CC23: шт. | CD23: 8 | CE23: RBV 610 F FS | CF23: =VLOOKUP(CE23,BASE!$A:$D,2,FALSE) -> 7007055 | CG23: шт. | CH23: 1 | CI23: DBV 60 100 F FS | CJ23: =VLOOKUP(CI23,BASE!$A:$D,2,FALSE) -> 7130852 | CK23: шт. | CL23: 1 | CM23: FRSB 6X12 G | CN23: =VLOOKUP(CM23,BASE!$A:$D,2,FALSE) -> 6406130 | CO23: шт. | CP23: 8 | CQ23: RGBV 610 FS | CR23: =VLOOKUP(CQ23,BASE!$A:$D,2,FALSE) -> 7006322 | CS23: шт. | CT23: 1 | CU23: Не требуется | CV23: --- | CW23: --- | CX23: 0 | CY23: Не требуется | CZ23: --- | DA23: --- | DB23: 0 | DC23: Не требуется | DD23: --- | DE23: --- | DF23: 0 | DG23: RT 610 FS | DH23: =VLOOKUP(DG23,BASE!$A:$D,2,FALSE) -> 6043410 | DI23: шт. | DJ23: 1 | DK23: DFT 100 FS | DL23: =VLOOKUP(DK23,BASE!$A:$D,2,FALSE) -> 7128215 | DM23: шт. | DN23: 1 | DO23: Не требуется | DP23: --- | DQ23: --- | DR23: 0 | DS23: Не требуется | DT23: --- | DU23: --- | DV23: 0 | DW23: Не требуется | DX23: --- | DY23: --- | DZ23: 0 | EA23: RAA 610 FS | EB23: =VLOOKUP(EA23,BASE!$A:$D,2,FALSE) -> 6040403 | EC23: шт. | ED23: 1 | EE23: DFAA 100 FS | EF23: =VLOOKUP(EE23,BASE!$A:$D,2,FALSE) -> 7128428 | EG23: шт. | EH23: 1 | EI23: Не требуется | EJ23: --- | EK23: --- | EL23: 0 | EM23: Не требуется | EN23: --- | EO23: --- | EP23: 0 | EQ23: Не требуется | ER23: --- | ES23: --- | ET23: 0 | EU23: RK 610 FS | EV23: =VLOOKUP(EU23,BASE!$A:$D,2,FALSE) -> 6043615 | EW23: шт. | EX23: 1 | EY23: DFK 100 FS | EZ23: =VLOOKUP(EY23,BASE!$A:$D,2,FALSE) -> 7128614 | FA23: шт. | FB23: 1 | FC23: Не требуется | FD23: --- | FE23: --- | FF23: 0 | FG23: Не требуется | FH23: --- | FI23: --- | FJ23: 0 | FK23: Не требуется | FL23: --- | FM23: --- | FN23: 0 | FO23: RWEB 610 FS | FP23: =VLOOKUP(FO23,BASE!$A:$D,2,FALSE) -> 7109105 | FQ23: шт. | FR23: 1 | FT23: 265 | FU23: 265 | FV23: 180 | FW23: 115 | FX23: 50
A24: SKS 615 FS | B24: =VLOOKUP(A24,BASE!$A:$D,2,FALSE) -> 6056156 | C24: м | D24: 3 | E24: Листовой | F24: Перфорированный | G24: Конв.цинк. | H24: 1.5 | I24: 60 | J24: 150 | K24: DRL 150 FS | L24: =VLOOKUP(K24,BASE!$A:$D,2,FALSE) -> 6052150 | M24: м | N24: 3 | O24: Не требуется | P24: --- | Q24: --- | R24: 0 | S24: Не требуется | T24: --- | U24: --- | V24: 0 | W24: TSG 60 FS | X24: =VLOOKUP(W24,BASE!$A:$D,2,FALSE) -> 6062068 | Y24: м | Z24: 3 | AA24: TSGV A2 | AB24: =VLOOKUP(AA24,BASE!$A:$D,2,FALSE) -> 6067970 | AC24: шт. | AD24: 1 | AE24: FRSB 6X12 G | AF24: =VLOOKUP(AE24,BASE!$A:$D,2,FALSE) -> 6406130 | AG24: шт. | AH24: 6 | AI24: RB 90 615 FS | AJ24: =VLOOKUP(AI24,BASE!$A:$D,2,FALSE) -> 6043208 | AK24: шт. | AL24: 1 | AM24: DFB 90 150 FS | AN24: =VLOOKUP(AM24,BASE!$A:$D,2,FALSE) -> 7129629 | AO24: шт. | AP24: 1 | AQ24: Не требуется | AR24: --- | AS24: --- | AT24: 0 | AU24: Не требуется | AV24: --- | AW24: --- | AX24: 0 | AY24: RB 45 615 FS | AZ24: =VLOOKUP(AY24,BASE!$A:$D,2,FALSE) -> 6043755 | BA24: шт. | BB24: 1 | BC24: DFB 45 150 FS | BD24: =VLOOKUP(BC24,BASE!$A:$D,2,FALSE) -> 7128827 | BE24: шт. | BF24: 1 | BG24: Не требуется | BH24: --- | BI24: --- | BJ24: 0 | BK24: Не требуется | BL24: --- | BM24: --- | BN24: 0 | BO24: RWVL 60 FS | BP24: =VLOOKUP(BO24,BASE!$A:$D,2,FALSE) -> 6067115 | BQ24: шт. | BR24: 4 | BS24: RBV 615 S FS | BT24: =VLOOKUP(BS24,BASE!$A:$D,2,FALSE) -> 7007009 | BU24: шт. | BV24: 1 | BW24: DBV 150 S FS | BX24: =VLOOKUP(BW24,BASE!$A:$D,2,FALSE) -> 7130809 | BY24: шт. | BZ24: 1 | CA24: FRSB 6X12 G | CB24: =VLOOKUP(CA24,BASE!$A:$D,2,FALSE) -> 6406130 | CC24: шт. | CD24: 8 | CE24: RBV 615 F FS | CF24: =VLOOKUP(CE24,BASE!$A:$D,2,FALSE) -> 7007059 | CG24: шт. | CH24: 1 | CI24: DBV 60 150 F FS | CJ24: =VLOOKUP(CI24,BASE!$A:$D,2,FALSE) -> 7130856 | CK24: шт. | CL24: 1 | CM24: FRSB 6X12 G | CN24: =VLOOKUP(CM24,BASE!$A:$D,2,FALSE) -> 6406130 | CO24: шт. | CP24: 8 | CQ24: RGBV 615 FS | CR24: =VLOOKUP(CQ24,BASE!$A:$D,2,FALSE) -> 7006330 | CS24: шт. | CT24: 1 | CU24: Не требуется | CV24: --- | CW24: --- | CX24: 0 | CY24: Не требуется | CZ24: --- | DA24: --- | DB24: 0 | DC24: Не требуется | DD24: --- | DE24: --- | DF24: 0 | DG24: RT 615 FS | DH24: =VLOOKUP(DG24,BASE!$A:$D,2,FALSE) -> 6043402 | DI24: шт. | DJ24: 1 | DK24: DFT 150 FS | DL24: =VLOOKUP(DK24,BASE!$A:$D,2,FALSE) -> 7128223 | DM24: шт. | DN24: 1 | DO24: Не требуется | DP24: --- | DQ24: --- | DR24: 0 | DS24: Не требуется | DT24: --- | DU24: --- | DV24: 0 | DW24: Не требуется | DX24: --- | DY24: --- | DZ24: 0 | EA24: RAA 615 FS | EB24: =VLOOKUP(EA24,BASE!$A:$D,2,FALSE) -> 6040411 | EC24: шт. | ED24: 1 | EE24: DFAA 150 FS | EF24: =VLOOKUP(EE24,BASE!$A:$D,2,FALSE) -> 7128436 | EG24: шт. | EH24: 1 | EI24: Не требуется | EJ24: --- | EK24: --- | EL24: 0 | EM24: Не требуется | EN24: --- | EO24: --- | EP24: 0 | EQ24: Не требуется | ER24: --- | ES24: --- | ET24: 0 | EU24: RK 615 FS | EV24: =VLOOKUP(EU24,BASE!$A:$D,2,FALSE) -> 6043607 | EW24: шт. | EX24: 1 | EY24: DFK 150 FS | EZ24: =VLOOKUP(EY24,BASE!$A:$D,2,FALSE) -> 7128622 | FA24: шт. | FB24: 1 | FC24: Не требуется | FD24: --- | FE24: --- | FF24: 0 | FG24: Не требуется | FH24: --- | FI24: --- | FJ24: 0 | FK24: Не требуется | FL24: --- | FM24: --- | FN24: 0 | FO24: RWEB 615 FS | FP24: =VLOOKUP(FO24,BASE!$A:$D,2,FALSE) -> 7109156 | FQ24: шт. | FR24: 1 | FT24: 265 | FU24: 265 | FV24: 180 | FW24: 115 | FX24: 50
A25: SKS 620 FS | B25: =VLOOKUP(A25,BASE!$A:$D,2,FALSE) -> 6056202 | C25: м | D25: 3 | E25: Листовой | F25: Перфорированный | G25: Конв.цинк. | H25: 1.5 | I25: 60 | J25: 200 | K25: DRL 200 FS | L25: =VLOOKUP(K25,BASE!$A:$D,2,FALSE) -> 6052207 | M25: м | N25: 3 | O25: Не требуется | P25: --- | Q25: --- | R25: 0 | S25: Не требуется | T25: --- | U25: --- | V25: 0 | W25: TSG 60 FS | X25: =VLOOKUP(W25,BASE!$A:$D,2,FALSE) -> 6062068 | Y25: м | Z25: 3 | AA25: TSGV A2 | AB25: =VLOOKUP(AA25,BASE!$A:$D,2,FALSE) -> 6067970 | AC25: шт. | AD25: 1 | AE25: FRSB 6X12 G | AF25: =VLOOKUP(AE25,BASE!$A:$D,2,FALSE) -> 6406130 | AG25: шт. | AH25: 6 | AI25: RB 90 620 FS | AJ25: =VLOOKUP(AI25,BASE!$A:$D,2,FALSE) -> 6043224 | AK25: шт. | AL25: 1 | AM25: DFB 90 200 FS | AN25: =VLOOKUP(AM25,BASE!$A:$D,2,FALSE) -> 7129637 | AO25: шт. | AP25: 1 | AQ25: Не требуется | AR25: --- | AS25: --- | AT25: 0 | AU25: Не требуется | AV25: --- | AW25: --- | AX25: 0 | AY25: RB 45 620 FS | AZ25: =VLOOKUP(AY25,BASE!$A:$D,2,FALSE) -> 6043771 | BA25: шт. | BB25: 1 | BC25: DFB 45 200 FS | BD25: =VLOOKUP(BC25,BASE!$A:$D,2,FALSE) -> 7128835 | BE25: шт. | BF25: 1 | BG25: Не требуется | BH25: --- | BI25: --- | BJ25: 0 | BK25: Не требуется | BL25: --- | BM25: --- | BN25: 0 | BO25: RWVL 60 FS | BP25: =VLOOKUP(BO25,BASE!$A:$D,2,FALSE) -> 6067115 | BQ25: шт. | BR25: 4 | BS25: RBV 620 S FS | BT25: =VLOOKUP(BS25,BASE!$A:$D,2,FALSE) -> 7007013 | BU25: шт. | BV25: 1 | BW25: DBV 200 S FS | BX25: =VLOOKUP(BW25,BASE!$A:$D,2,FALSE) -> 7130813 | BY25: шт. | BZ25: 1 | CA25: FRSB 6X12 G | CB25: =VLOOKUP(CA25,BASE!$A:$D,2,FALSE) -> 6406130 | CC25: шт. | CD25: 8 | CE25: RBV 620 F FS | CF25: =VLOOKUP(CE25,BASE!$A:$D,2,FALSE) -> 7007063 | CG25: шт. | CH25: 1 | CI25: DBV 60 200 F FS | CJ25: =VLOOKUP(CI25,BASE!$A:$D,2,FALSE) -> 7130860 | CK25: шт. | CL25: 1 | CM25: FRSB 6X12 G | CN25: =VLOOKUP(CM25,BASE!$A:$D,2,FALSE) -> 6406130 | CO25: шт. | CP25: 8 | CQ25: RGBV 620 FS | CR25: =VLOOKUP(CQ25,BASE!$A:$D,2,FALSE) -> 7006349 | CS25: шт. | CT25: 1 | CU25: Не требуется | CV25: --- | CW25: --- | CX25: 0 | CY25: Не требуется | CZ25: --- | DA25: --- | DB25: 0 | DC25: Не требуется | DD25: --- | DE25: --- | DF25: 0 | DG25: RT 620 FS | DH25: =VLOOKUP(DG25,BASE!$A:$D,2,FALSE) -> 6043429 | DI25: шт. | DJ25: 1 | DK25: DFT 200 FS | DL25: =VLOOKUP(DK25,BASE!$A:$D,2,FALSE) -> 7128231 | DM25: шт. | DN25: 1 | DO25: Не требуется | DP25: --- | DQ25: --- | DR25: 0 | DS25: Не требуется | DT25: --- | DU25: --- | DV25: 0 | DW25: Не требуется | DX25: --- | DY25: --- | DZ25: 0 | EA25: RAA 620 FS | EB25: =VLOOKUP(EA25,BASE!$A:$D,2,FALSE) -> 6040438 | EC25: шт. | ED25: 1 | EE25: DFAA 200 FS | EF25: =VLOOKUP(EE25,BASE!$A:$D,2,FALSE) -> 7128444 | EG25: шт. | EH25: 1 | EI25: Не требуется | EJ25: --- | EK25: --- | EL25: 0 | EM25: Не требуется | EN25: --- | EO25: --- | EP25: 0 | EQ25: Не требуется | ER25: --- | ES25: --- | ET25: 0 | EU25: RK 620 FS | EV25: =VLOOKUP(EU25,BASE!$A:$D,2,FALSE) -> 6043623 | EW25: шт. | EX25: 1 | EY25: DFK 200 FS | EZ25: =VLOOKUP(EY25,BASE!$A:$D,2,FALSE) -> 7128630 | FA25: шт. | FB25: 1 | FC25: Не требуется | FD25: --- | FE25: --- | FF25: 0 | FG25: Не требуется | FH25: --- | FI25: --- | FJ25: 0 | FK25: Не требуется | FL25: --- | FM25: --- | FN25: 0 | FO25: RWEB 620 FS | FP25: =VLOOKUP(FO25,BASE!$A:$D,2,FALSE) -> 7109202 | FQ25: шт. | FR25: 1 | FT25: 265 | FU25: 265 | FV25: 180 | FW25: 115 | FX25: 50
A26: SKS 630 FS | B26: =VLOOKUP(A26,BASE!$A:$D,2,FALSE) -> 6056296 | C26: м | D26: 3 | E26: Листовой | F26: Перфорированный | G26: Конв.цинк. | H26: 1.5 | I26: 60 | J26: 300 | K26: DRL 300 FS | L26: =VLOOKUP(K26,BASE!$A:$D,2,FALSE) -> 6052304 | M26: м | N26: 3 | O26: Не требуется | P26: --- | Q26: --- | R26: 0 | S26: Не требуется | T26: --- | U26: --- | V26: 0 | W26: TSG 60 FS | X26: =VLOOKUP(W26,BASE!$A:$D,2,FALSE) -> 6062068 | Y26: м | Z26: 3 | AA26: TSGV A2 | AB26: =VLOOKUP(AA26,BASE!$A:$D,2,FALSE) -> 6067970 | AC26: шт. | AD26: 1 | AE26: FRSB 6X12 G | AF26: =VLOOKUP(AE26,BASE!$A:$D,2,FALSE) -> 6406130 | AG26: шт. | AH26: 6 | AI26: RB 90 630 FS | AJ26: =VLOOKUP(AI26,BASE!$A:$D,2,FALSE) -> 6043232 | AK26: шт. | AL26: 1 | AM26: DFB 90 300 FS | AN26: =VLOOKUP(AM26,BASE!$A:$D,2,FALSE) -> 7129653 | AO26: шт. | AP26: 1 | AQ26: Не требуется | AR26: --- | AS26: --- | AT26: 0 | AU26: Не требуется | AV26: --- | AW26: --- | AX26: 0 | AY26: RB 45 630 FS | AZ26: =VLOOKUP(AY26,BASE!$A:$D,2,FALSE) -> 6043798 | BA26: шт. | BB26: 1 | BC26: DFB 45 300 FS | BD26: =VLOOKUP(BC26,BASE!$A:$D,2,FALSE) -> 7128851 | BE26: шт. | BF26: 1 | BG26: Не требуется | BH26: --- | BI26: --- | BJ26: 0 | BK26: Не требуется | BL26: --- | BM26: --- | BN26: 0 | BO26: RWVL 60 FS | BP26: =VLOOKUP(BO26,BASE!$A:$D,2,FALSE) -> 6067115 | BQ26: шт. | BR26: 4 | BS26: RBV 630 S FS | BT26: =VLOOKUP(BS26,BASE!$A:$D,2,FALSE) -> 7007017 | BU26: шт. | BV26: 1 | BW26: DBV 300 S FS | BX26: =VLOOKUP(BW26,BASE!$A:$D,2,FALSE) -> 7130817 | BY26: шт. | BZ26: 1 | CA26: FRSB 6X12 G | CB26: =VLOOKUP(CA26,BASE!$A:$D,2,FALSE) -> 6406130 | CC26: шт. | CD26: 8 | CE26: RBV 630 F FS | CF26: =VLOOKUP(CE26,BASE!$A:$D,2,FALSE) -> 7007067 | CG26: шт. | CH26: 1 | CI26: DBV 60 300 F FS | CJ26: =VLOOKUP(CI26,BASE!$A:$D,2,FALSE) -> 7130864 | CK26: шт. | CL26: 1 | CM26: FRSB 6X12 G | CN26: =VLOOKUP(CM26,BASE!$A:$D,2,FALSE) -> 6406130 | CO26: шт. | CP26: 8 | CQ26: RGBV 630 FS | CR26: =VLOOKUP(CQ26,BASE!$A:$D,2,FALSE) -> 7006365 | CS26: шт. | CT26: 1 | CU26: Не требуется | CV26: --- | CW26: --- | CX26: 0 | CY26: Не требуется | CZ26: --- | DA26: --- | DB26: 0 | DC26: Не требуется | DD26: --- | DE26: --- | DF26: 0 | DG26: RT 630 FS | DH26: =VLOOKUP(DG26,BASE!$A:$D,2,FALSE) -> 6043437 | DI26: шт. | DJ26: 1 | DK26: DFT 300 FS | DL26: =VLOOKUP(DK26,BASE!$A:$D,2,FALSE) -> 7128266 | DM26: шт. | DN26: 1 | DO26: Не требуется | DP26: --- | DQ26: --- | DR26: 0 | DS26: Не требуется | DT26: --- | DU26: --- | DV26: 0 | DW26: Не требуется | DX26: --- | DY26: --- | DZ26: 0 | EA26: RAA 630 FS | EB26: =VLOOKUP(EA26,BASE!$A:$D,2,FALSE) -> 6040446 | EC26: шт. | ED26: 1 | EE26: DFAA 300 FS | EF26: =VLOOKUP(EE26,BASE!$A:$D,2,FALSE) -> 7128460 | EG26: шт. | EH26: 1 | EI26: Не требуется | EJ26: --- | EK26: --- | EL26: 0 | EM26: Не требуется | EN26: --- | EO26: --- | EP26: 0 | EQ26: Не требуется | ER26: --- | ES26: --- | ET26: 0 | EU26: RK 630 FS | EV26: =VLOOKUP(EU26,BASE!$A:$D,2,FALSE) -> 6043631 | EW26: шт. | EX26: 1 | EY26: DFK 300 FS | EZ26: =VLOOKUP(EY26,BASE!$A:$D,2,FALSE) -> 7128657 | FA26: шт. | FB26: 1 | FC26: Не требуется | FD26: --- | FE26: --- | FF26: 0 | FG26: Не требуется | FH26: --- | FI26: --- | FJ26: 0 | FK26: Не требуется | FL26: --- | FM26: --- | FN26: 0 | FO26: RWEB 630 FS | FP26: =VLOOKUP(FO26,BASE!$A:$D,2,FALSE) -> 7109296 | FQ26: шт. | FR26: 1 | FT26: 265 | FU26: 265 | FV26: 180 | FW26: 115 | FX26: 50
A27: SKS 640 FS | B27: =VLOOKUP(A27,BASE!$A:$D,2,FALSE) -> 6056407 | C27: м | D27: 3 | E27: Листовой | F27: Перфорированный | G27: Конв.цинк. | H27: 1.5 | I27: 60 | J27: 400 | K27: DRL 400 FS | L27: =VLOOKUP(K27,BASE!$A:$D,2,FALSE) -> 6052401 | M27: м | N27: 3 | O27: Не требуется | P27: --- | Q27: --- | R27: 0 | S27: Не требуется | T27: --- | U27: --- | V27: 0 | W27: TSG 60 FS | X27: =VLOOKUP(W27,BASE!$A:$D,2,FALSE) -> 6062068 | Y27: м | Z27: 3 | AA27: TSGV A2 | AB27: =VLOOKUP(AA27,BASE!$A:$D,2,FALSE) -> 6067970 | AC27: шт. | AD27: 1 | AE27: FRSB 6X12 G | AF27: =VLOOKUP(AE27,BASE!$A:$D,2,FALSE) -> 6406130 | AG27: шт. | AH27: 6 | AI27: RB 90 640 FS | AJ27: =VLOOKUP(AI27,BASE!$A:$D,2,FALSE) -> 7001290 | AK27: шт. | AL27: 1 | AM27: DFB 90 400 FS | AN27: =VLOOKUP(AM27,BASE!$A:$D,2,FALSE) -> 7129688 | AO27: шт. | AP27: 1 | AQ27: RLVK 60 FS | AR27: =VLOOKUP(AQ27,BASE!$A:$D,2,FALSE) -> 6067093 | AS27: шт. | AT27: 4 | AU27: SSLB 400 FS | AV27: =VLOOKUP(AU27,BASE!$A:$D,2,FALSE) -> 7070221 | AW27: шт. | AX27: 2 | AY27: RB 45 640 FS | AZ27: =VLOOKUP(AY27,BASE!$A:$D,2,FALSE) -> 7000383 | BA27: шт. | BB27: 1 | BC27: DFB 45 400 FS | BD27: =VLOOKUP(BC27,BASE!$A:$D,2,FALSE) -> 7128886 | BE27: шт. | BF27: 1 | BG27: RLVK 60 FS | BH27: =VLOOKUP(BG27,BASE!$A:$D,2,FALSE) -> 6067093 | BI27: шт. | BJ27: 4 | BK27: SSLB 400 FS | BL27: =VLOOKUP(BK27,BASE!$A:$D,2,FALSE) -> 7070221 | BM27: шт. | BN27: 2 | BO27: RWVL 60 FS | BP27: =VLOOKUP(BO27,BASE!$A:$D,2,FALSE) -> 6067115 | BQ27: шт. | BR27: 4 | BS27: RBV 640 S FS | BT27: =VLOOKUP(BS27,BASE!$A:$D,2,FALSE) -> 7007021 | BU27: шт. | BV27: 1 | BW27: DBV 400 S FS | BX27: =VLOOKUP(BW27,BASE!$A:$D,2,FALSE) -> 7130821 | BY27: шт. | BZ27: 1 | CA27: FRSB 6X12 G | CB27: =VLOOKUP(CA27,BASE!$A:$D,2,FALSE) -> 6406130 | CC27: шт. | CD27: 8 | CE27: RBV 640 F FS | CF27: =VLOOKUP(CE27,BASE!$A:$D,2,FALSE) -> 7007071 | CG27: шт. | CH27: 1 | CI27: DBV 60 400 F FS | CJ27: =VLOOKUP(CI27,BASE!$A:$D,2,FALSE) -> 7130868 | CK27: шт. | CL27: 1 | CM27: FRSB 6X12 G | CN27: =VLOOKUP(CM27,BASE!$A:$D,2,FALSE) -> 6406130 | CO27: шт. | CP27: 8 | CQ27: RGBV 640 FS | CR27: =VLOOKUP(CQ27,BASE!$A:$D,2,FALSE) -> 7006381 | CS27: шт. | CT27: 1 | CU27: Не требуется | CV27: --- | CW27: --- | CX27: 0 | CY27: Не требуется | CZ27: --- | DA27: --- | DB27: 0 | DC27: Не требуется | DD27: --- | DE27: --- | DF27: 0 | DG27: RT 640 FS | DH27: =VLOOKUP(DG27,BASE!$A:$D,2,FALSE) -> 7003390 | DI27: шт. | DJ27: 1 | DK27: DFT 400 FS | DL27: =VLOOKUP(DK27,BASE!$A:$D,2,FALSE) -> 7128282 | DM27: шт. | DN27: 1 | DO27: RLVK 60 FS | DP27: =VLOOKUP(DO27,BASE!$A:$D,2,FALSE) -> 6067093 | DQ27: шт. | DR27: 6 | DS27: SSLB 400 FS | DT27: =VLOOKUP(DS27,BASE!$A:$D,2,FALSE) -> 7070221 | DU27: шт. | DV27: 3 | DW27: Не требуется | DX27: --- | DY27: --- | DZ27: 0 | EA27: RAA 640 FS | EB27: =VLOOKUP(EA27,BASE!$A:$D,2,FALSE) -> 7002394 | EC27: шт. | ED27: 1 | EE27: DFAA 400 FS | EF27: =VLOOKUP(EE27,BASE!$A:$D,2,FALSE) -> 7128487 | EG27: шт. | EH27: 1 | EI27: RLVK 60 FS | EJ27: =VLOOKUP(EI27,BASE!$A:$D,2,FALSE) -> 6067093 | EK27: шт. | EL27: 2 | EM27: SSLB 400 FS | EN27: =VLOOKUP(EM27,BASE!$A:$D,2,FALSE) -> 7070221 | EO27: шт. | EP27: 1 | EQ27: FRSB 6X12 G | ER27: =VLOOKUP(EQ27,BASE!$A:$D,2,FALSE) -> 6406130 | ES27: шт. | ET27: 8 | EU27: RK 640 FS | EV27: =VLOOKUP(EU27,BASE!$A:$D,2,FALSE) -> 7004397 | EW27: шт. | EX27: 1 | EY27: DFK 400 FS | EZ27: =VLOOKUP(EY27,BASE!$A:$D,2,FALSE) -> 7128673 | FA27: шт. | FB27: 1 | FC27: RLVK 60 FS | FD27: =VLOOKUP(FC27,BASE!$A:$D,2,FALSE) -> 6067093 | FE27: шт. | FF27: 8 | FG27: SSLB 400 FS | FH27: =VLOOKUP(FG27,BASE!$A:$D,2,FALSE) -> 7070221 | FI27: шт. | FJ27: 4 | FK27: Не требуется | FL27: --- | FM27: --- | FN27: 0 | FO27: RWEB 640 FS | FP27: =VLOOKUP(FO27,BASE!$A:$D,2,FALSE) -> 7109407 | FQ27: шт. | FR27: 1 | FT27: 265 | FU27: 265 | FV27: 180 | FW27: 115 | FX27: 50
A28: SKS 650 FS | B28: =VLOOKUP(A28,BASE!$A:$D,2,FALSE) -> 6056504 | C28: м | D28: 3 | E28: Листовой | F28: Перфорированный | G28: Конв.цинк. | H28: 1.5 | I28: 60 | J28: 500 | K28: DRL 500 FS | L28: =VLOOKUP(K28,BASE!$A:$D,2,FALSE) -> 6052509 | M28: м | N28: 3 | O28: Не требуется | P28: --- | Q28: --- | R28: 0 | S28: Не требуется | T28: --- | U28: --- | V28: 0 | W28: TSG 60 FS | X28: =VLOOKUP(W28,BASE!$A:$D,2,FALSE) -> 6062068 | Y28: м | Z28: 3 | AA28: TSGV A2 | AB28: =VLOOKUP(AA28,BASE!$A:$D,2,FALSE) -> 6067970 | AC28: шт. | AD28: 1 | AE28: FRSB 6X12 G | AF28: =VLOOKUP(AE28,BASE!$A:$D,2,FALSE) -> 6406130 | AG28: шт. | AH28: 6 | AI28: RB 90 650 FS | AJ28: =VLOOKUP(AI28,BASE!$A:$D,2,FALSE) -> 7001304 | AK28: шт. | AL28: 1 | AM28: DFB 90 500 FS | AN28: =VLOOKUP(AM28,BASE!$A:$D,2,FALSE) -> 7129718 | AO28: шт. | AP28: 1 | AQ28: RLVK 60 FS | AR28: =VLOOKUP(AQ28,BASE!$A:$D,2,FALSE) -> 6067093 | AS28: шт. | AT28: 4 | AU28: SSLB 500 FS | AV28: =VLOOKUP(AU28,BASE!$A:$D,2,FALSE) -> 7070225 | AW28: шт. | AX28: 2 | AY28: RB 45 650 FS | AZ28: =VLOOKUP(AY28,BASE!$A:$D,2,FALSE) -> 7000405 | BA28: шт. | BB28: 1 | BC28: DFB 45 500 FS | BD28: =VLOOKUP(BC28,BASE!$A:$D,2,FALSE) -> 7128908 | BE28: шт. | BF28: 1 | BG28: RLVK 60 FS | BH28: =VLOOKUP(BG28,BASE!$A:$D,2,FALSE) -> 6067093 | BI28: шт. | BJ28: 4 | BK28: SSLB 500 FS | BL28: =VLOOKUP(BK28,BASE!$A:$D,2,FALSE) -> 7070225 | BM28: шт. | BN28: 2 | BO28: RWVL 60 FS | BP28: =VLOOKUP(BO28,BASE!$A:$D,2,FALSE) -> 6067115 | BQ28: шт. | BR28: 4 | BS28: RBV 650 S FS | BT28: =VLOOKUP(BS28,BASE!$A:$D,2,FALSE) -> 7007025 | BU28: шт. | BV28: 1 | BW28: DBV 500 S FS | BX28: =VLOOKUP(BW28,BASE!$A:$D,2,FALSE) -> 7130825 | BY28: шт. | BZ28: 1 | CA28: FRSB 6X12 G | CB28: =VLOOKUP(CA28,BASE!$A:$D,2,FALSE) -> 6406130 | CC28: шт. | CD28: 8 | CE28: RBV 650 F FS | CF28: =VLOOKUP(CE28,BASE!$A:$D,2,FALSE) -> 7007075 | CG28: шт. | CH28: 1 | CI28: DBV 60 500 F FS | CJ28: =VLOOKUP(CI28,BASE!$A:$D,2,FALSE) -> 7130872 | CK28: шт. | CL28: 1 | CM28: FRSB 6X12 G | CN28: =VLOOKUP(CM28,BASE!$A:$D,2,FALSE) -> 6406130 | CO28: шт. | CP28: 8 | CQ28: RGBV 650 FS | CR28: =VLOOKUP(CQ28,BASE!$A:$D,2,FALSE) -> 7006411 | CS28: шт. | CT28: 1 | CU28: Не требуется | CV28: --- | CW28: --- | CX28: 0 | CY28: Не требуется | CZ28: --- | DA28: --- | DB28: 0 | DC28: Не требуется | DD28: --- | DE28: --- | DF28: 0 | DG28: RT 650 FS | DH28: =VLOOKUP(DG28,BASE!$A:$D,2,FALSE) -> 7003412 | DI28: шт. | DJ28: 1 | DK28: DFT 500 FS | DL28: =VLOOKUP(DK28,BASE!$A:$D,2,FALSE) -> 7128304 | DM28: шт. | DN28: 1 | DO28: RLVK 60 FS | DP28: =VLOOKUP(DO28,BASE!$A:$D,2,FALSE) -> 6067093 | DQ28: шт. | DR28: 6 | DS28: SSLB 500 FS | DT28: =VLOOKUP(DS28,BASE!$A:$D,2,FALSE) -> 7070225 | DU28: шт. | DV28: 3 | DW28: Не требуется | DX28: --- | DY28: --- | DZ28: 0 | EA28: RAA 650 FS | EB28: =VLOOKUP(EA28,BASE!$A:$D,2,FALSE) -> 7002416 | EC28: шт. | ED28: 1 | EE28: DFAA 500 FS | EF28: =VLOOKUP(EE28,BASE!$A:$D,2,FALSE) -> 7128509 | EG28: шт. | EH28: 1 | EI28: RLVK 60 FS | EJ28: =VLOOKUP(EI28,BASE!$A:$D,2,FALSE) -> 6067093 | EK28: шт. | EL28: 2 | EM28: SSLB 500 FS | EN28: =VLOOKUP(EM28,BASE!$A:$D,2,FALSE) -> 7070225 | EO28: шт. | EP28: 1 | EQ28: FRSB 6X12 G | ER28: =VLOOKUP(EQ28,BASE!$A:$D,2,FALSE) -> 6406130 | ES28: шт. | ET28: 8 | EU28: RK 650 FS | EV28: =VLOOKUP(EU28,BASE!$A:$D,2,FALSE) -> 7004419 | EW28: шт. | EX28: 1 | EY28: DFK 500 FS | EZ28: =VLOOKUP(EY28,BASE!$A:$D,2,FALSE) -> 7128703 | FA28: шт. | FB28: 1 | FC28: RLVK 60 FS | FD28: =VLOOKUP(FC28,BASE!$A:$D,2,FALSE) -> 6067093 | FE28: шт. | FF28: 8 | FG28: SSLB 500 FS | FH28: =VLOOKUP(FG28,BASE!$A:$D,2,FALSE) -> 7070225 | FI28: шт. | FJ28: 4 | FK28: Не требуется | FL28: --- | FM28: --- | FN28: 0 | FO28: RWEB 650 FS | FP28: =VLOOKUP(FO28,BASE!$A:$D,2,FALSE) -> 7109504 | FQ28: шт. | FR28: 1 | FT28: 265 | FU28: 265 | FV28: 180 | FW28: 115 | FX28: 50
A29: SKS 660 FS | B29: =VLOOKUP(A29,BASE!$A:$D,2,FALSE) -> 6056601 | C29: м | D29: 3 | E29: Листовой | F29: Перфорированный | G29: Конв.цинк. | H29: 1.5 | I29: 60 | J29: 600 | K29: DRL 600 FS | L29: =VLOOKUP(K29,BASE!$A:$D,2,FALSE) -> 6052606 | M29: м | N29: 3 | O29: Не требуется | P29: --- | Q29: --- | R29: 0 | S29: Не требуется | T29: --- | U29: --- | V29: 0 | W29: TSG 60 FS | X29: =VLOOKUP(W29,BASE!$A:$D,2,FALSE) -> 6062068 | Y29: м | Z29: 3 | AA29: TSGV A2 | AB29: =VLOOKUP(AA29,BASE!$A:$D,2,FALSE) -> 6067970 | AC29: шт. | AD29: 1 | AE29: FRSB 6X12 G | AF29: =VLOOKUP(AE29,BASE!$A:$D,2,FALSE) -> 6406130 | AG29: шт. | AH29: 6 | AI29: RB 90 660 FS | AJ29: =VLOOKUP(AI29,BASE!$A:$D,2,FALSE) -> 7001312 | AK29: шт. | AL29: 1 | AM29: DFB 90 600 FS | AN29: =VLOOKUP(AM29,BASE!$A:$D,2,FALSE) -> 7129734 | AO29: шт. | AP29: 1 | AQ29: RLVK 60 FS | AR29: =VLOOKUP(AQ29,BASE!$A:$D,2,FALSE) -> 6067093 | AS29: шт. | AT29: 4 | AU29: SSLB 600 FS | AV29: =VLOOKUP(AU29,BASE!$A:$D,2,FALSE) -> 7070233 | AW29: шт. | AX29: 2 | AY29: RB 45 660 FS | AZ29: =VLOOKUP(AY29,BASE!$A:$D,2,FALSE) -> 7000421 | BA29: шт. | BB29: 1 | BC29: DFB 45 600 FS | BD29: =VLOOKUP(BC29,BASE!$A:$D,2,FALSE) -> 7128924 | BE29: шт. | BF29: 1 | BG29: RLVK 60 FS | BH29: =VLOOKUP(BG29,BASE!$A:$D,2,FALSE) -> 6067093 | BI29: шт. | BJ29: 4 | BK29: SSLB 600 FS | BL29: =VLOOKUP(BK29,BASE!$A:$D,2,FALSE) -> 7070233 | BM29: шт. | BN29: 2 | BO29: RWVL 60 FS | BP29: =VLOOKUP(BO29,BASE!$A:$D,2,FALSE) -> 6067115 | BQ29: шт. | BR29: 4 | BS29: RBV 660 S FS | BT29: =VLOOKUP(BS29,BASE!$A:$D,2,FALSE) -> 7007029 | BU29: шт. | BV29: 1 | BW29: DBV 600 S FS | BX29: =VLOOKUP(BW29,BASE!$A:$D,2,FALSE) -> 7130829 | BY29: шт. | BZ29: 1 | CA29: FRSB 6X12 G | CB29: =VLOOKUP(CA29,BASE!$A:$D,2,FALSE) -> 6406130 | CC29: шт. | CD29: 8 | CE29: RBV 660 F FS | CF29: =VLOOKUP(CE29,BASE!$A:$D,2,FALSE) -> 7007079 | CG29: шт. | CH29: 1 | CI29: DBV 60 600 F FS | CJ29: =VLOOKUP(CI29,BASE!$A:$D,2,FALSE) -> 7130876 | CK29: шт. | CL29: 1 | CM29: FRSB 6X12 G | CN29: =VLOOKUP(CM29,BASE!$A:$D,2,FALSE) -> 6406130 | CO29: шт. | CP29: 8 | CQ29: RGBV 660 FS | CR29: =VLOOKUP(CQ29,BASE!$A:$D,2,FALSE) -> 7006446 | CS29: шт. | CT29: 1 | CU29: Не требуется | CV29: --- | CW29: --- | CX29: 0 | CY29: Не требуется | CZ29: --- | DA29: --- | DB29: 0 | DC29: Не требуется | DD29: --- | DE29: --- | DF29: 0 | DG29: RT 660 FS | DH29: =VLOOKUP(DG29,BASE!$A:$D,2,FALSE) -> 7003439 | DI29: шт. | DJ29: 1 | DK29: DFT 600 FS | DL29: =VLOOKUP(DK29,BASE!$A:$D,2,FALSE) -> 7128320 | DM29: шт. | DN29: 1 | DO29: RLVK 60 FS | DP29: =VLOOKUP(DO29,BASE!$A:$D,2,FALSE) -> 6067093 | DQ29: шт. | DR29: 6 | DS29: SSLB 600 FS | DT29: =VLOOKUP(DS29,BASE!$A:$D,2,FALSE) -> 7070233 | DU29: шт. | DV29: 3 | DW29: Не требуется | DX29: --- | DY29: --- | DZ29: 0 | EA29: RAA 660 FS | EB29: =VLOOKUP(EA29,BASE!$A:$D,2,FALSE) -> 7002432 | EC29: шт. | ED29: 1 | EE29: DFAA 600 FS | EF29: =VLOOKUP(EE29,BASE!$A:$D,2,FALSE) -> 7128525 | EG29: шт. | EH29: 1 | EI29: RLVK 60 FS | EJ29: =VLOOKUP(EI29,BASE!$A:$D,2,FALSE) -> 6067093 | EK29: шт. | EL29: 2 | EM29: SSLB 600 FS | EN29: =VLOOKUP(EM29,BASE!$A:$D,2,FALSE) -> 7070233 | EO29: шт. | EP29: 1 | EQ29: FRSB 6X12 G | ER29: =VLOOKUP(EQ29,BASE!$A:$D,2,FALSE) -> 6406130 | ES29: шт. | ET29: 8 | EU29: RK 660 FS | EV29: =VLOOKUP(EU29,BASE!$A:$D,2,FALSE) -> 7004435 | EW29: шт. | EX29: 1 | EY29: DFK 600 FS | EZ29: =VLOOKUP(EY29,BASE!$A:$D,2,FALSE) -> 7128738 | FA29: шт. | FB29: 1 | FC29: RLVK 60 FS | FD29: =VLOOKUP(FC29,BASE!$A:$D,2,FALSE) -> 6067093 | FE29: шт. | FF29: 8 | FG29: SSLB 600 FS | FH29: =VLOOKUP(FG29,BASE!$A:$D,2,FALSE) -> 7070233 | FI29: шт. | FJ29: 4 | FK29: Не требуется | FL29: --- | FM29: --- | FN29: 0 | FO29: RWEB 660 FS | FP29: =VLOOKUP(FO29,BASE!$A:$D,2,FALSE) -> 7109601 | FQ29: шт. | FR29: 1 | FT29: 265 | FU29: 265 | FV29: 180 | FW29: 115 | FX29: 50
A30: MKS 810 FS | B30: =VLOOKUP(A30,BASE!$A:$D,2,FALSE) -> 6057101 | C30: м | D30: 3 | E30: Листовой | F30: Перфорированный | G30: Конв.цинк. | H30: 1 | I30: 85 | J30: 100 | K30: DRL 100 FS | L30: =VLOOKUP(K30,BASE!$A:$D,2,FALSE) -> 6052096 | M30: м | N30: 3 | O30: Не требуется | P30: --- | Q30: --- | R30: 0 | S30: Не требуется | T30: --- | U30: --- | V30: 0 | W30: TSG 85 FS | X30: =VLOOKUP(W30,BASE!$A:$D,2,FALSE) -> 6062114 | Y30: м | Z30: 3 | AA30: TSGV A2 | AB30: =VLOOKUP(AA30,BASE!$A:$D,2,FALSE) -> 6067970 | AC30: шт. | AD30: 1 | AE30: FRSB 6X12 G | AF30: =VLOOKUP(AE30,BASE!$A:$D,2,FALSE) -> 6406130 | AG30: шт. | AH30: 6 | AI30: RB 90 810 FS | AJ30: =VLOOKUP(AI30,BASE!$A:$D,2,FALSE) -> 7001762 | AK30: шт. | AL30: 1 | AM30: DFB 90 100 FS | AN30: =VLOOKUP(AM30,BASE!$A:$D,2,FALSE) -> 7129610 | AO30: шт. | AP30: 1 | AQ30: Не требуется | AR30: --- | AS30: --- | AT30: 0 | AU30: Не требуется | AV30: --- | AW30: --- | AX30: 0 | AY30: RB 45 810 FS | AZ30: =VLOOKUP(AY30,BASE!$A:$D,2,FALSE) -> 7000472 | BA30: шт. | BB30: 1 | BC30: DFB 45 100 FS | BD30: =VLOOKUP(BC30,BASE!$A:$D,2,FALSE) -> 7128819 | BE30: шт. | BF30: 1 | BG30: Не требуется | BH30: --- | BI30: --- | BJ30: 0 | BK30: Не требуется | BL30: --- | BM30: --- | BN30: 0 | BO30: RLVL 85 FS | BP30: =VLOOKUP(BO30,BASE!$A:$D,2,FALSE) -> 6067123 | BQ30: шт. | BR30: 4 | BS30: RBV 810 S FS | BT30: =VLOOKUP(BS30,BASE!$A:$D,2,FALSE) -> 7007230 | BU30: шт. | BV30: 1 | BW30: DBV 100 S FS | BX30: =VLOOKUP(BW30,BASE!$A:$D,2,FALSE) -> 7130805 | BY30: шт. | BZ30: 1 | CA30: FRSB 6X12 G | CB30: =VLOOKUP(CA30,BASE!$A:$D,2,FALSE) -> 6406130 | CC30: шт. | CD30: 16 | CE30: RBV 810 F FS | CF30: =VLOOKUP(CE30,BASE!$A:$D,2,FALSE) -> 7007270 | CG30: шт. | CH30: 1 | CI30: DBV 85 100 F FS | CJ30: =VLOOKUP(CI30,BASE!$A:$D,2,FALSE) -> 7130990 | CK30: шт. | CL30: 1 | CM30: FRSB 6X12 G | CN30: =VLOOKUP(CM30,BASE!$A:$D,2,FALSE) -> 6406130 | CO30: шт. | CP30: 16 | CQ30: RGBV 810 FS | CR30: =VLOOKUP(CQ30,BASE!$A:$D,2,FALSE) -> 7006462 | CS30: шт. | CT30: 1 | CU30: Не требуется | CV30: --- | CW30: --- | CX30: 0 | CY30: Не требуется | CZ30: --- | DA30: --- | DB30: 0 | DC30: Не требуется | DD30: --- | DE30: --- | DF30: 0 | DG30: RAA 810 FS | DH30: =VLOOKUP(DG30,BASE!$A:$D,2,FALSE) -> 7002475 | DI30: шт. | DJ30: 1 | DK30: DFAA 100 FS | DL30: =VLOOKUP(DK30,BASE!$A:$D,2,FALSE) -> 7128428 | DM30: шт. | DN30: 1 | DO30: Не требуется | DP30: --- | DQ30: --- | DR30: 0 | DS30: Не требуется | DT30: --- | DU30: --- | DV30: 0 | DW30: Не требуется | DX30: --- | DY30: --- | DZ30: 0 | EA30: RAA 810 FS | EB30: =VLOOKUP(EA30,BASE!$A:$D,2,FALSE) -> 7002475 | EC30: шт. | ED30: 1 | EE30: DFAA 100 FS | EF30: =VLOOKUP(EE30,BASE!$A:$D,2,FALSE) -> 7128428 | EG30: шт. | EH30: 1 | EI30: Не требуется | EJ30: --- | EK30: --- | EL30: 0 | EM30: Не требуется | EN30: --- | EO30: --- | EP30: 0 | EQ30: Не требуется | ER30: --- | ES30: --- | ET30: 0 | EU30: RAA 810 FS | EV30: =VLOOKUP(EU30,BASE!$A:$D,2,FALSE) -> 7002475 | EW30: шт. | EX30: 2 | EY30: DFAA 100 FS | EZ30: =VLOOKUP(EY30,BASE!$A:$D,2,FALSE) -> 7128428 | FA30: шт. | FB30: 2 | FC30: Не требуется | FD30: --- | FE30: --- | FF30: 0 | FG30: Не требуется | FH30: --- | FI30: --- | FJ30: 0 | FK30: Не требуется | FL30: --- | FM30: --- | FN30: 0 | FO30: RWEB 810 FS | FP30: =VLOOKUP(FO30,BASE!$A:$D,2,FALSE) -> 7110103 | FQ30: шт. | FR30: 1 | FT30: 175 | FU30: 175 | FV30: 110 | FW30: 50 | FX30: 0
A31: MKS 820 FS | B31: =VLOOKUP(A31,BASE!$A:$D,2,FALSE) -> 6057209 | C31: м | D31: 3 | E31: Листовой | F31: Перфорированный | G31: Конв.цинк. | H31: 1 | I31: 85 | J31: 200 | K31: DRL 200 FS | L31: =VLOOKUP(K31,BASE!$A:$D,2,FALSE) -> 6052207 | M31: м | N31: 3 | O31: Не требуется | P31: --- | Q31: --- | R31: 0 | S31: Не требуется | T31: --- | U31: --- | V31: 0 | W31: TSG 85 FS | X31: =VLOOKUP(W31,BASE!$A:$D,2,FALSE) -> 6062114 | Y31: м | Z31: 3 | AA31: TSGV A2 | AB31: =VLOOKUP(AA31,BASE!$A:$D,2,FALSE) -> 6067970 | AC31: шт. | AD31: 1 | AE31: FRSB 6X12 G | AF31: =VLOOKUP(AE31,BASE!$A:$D,2,FALSE) -> 6406130 | AG31: шт. | AH31: 6 | AI31: RB 90 820 FS | AJ31: =VLOOKUP(AI31,BASE!$A:$D,2,FALSE) -> 7001789 | AK31: шт. | AL31: 1 | AM31: DFB 90 200 FS | AN31: =VLOOKUP(AM31,BASE!$A:$D,2,FALSE) -> 7129637 | AO31: шт. | AP31: 1 | AQ31: Не требуется | AR31: --- | AS31: --- | AT31: 0 | AU31: Не требуется | AV31: --- | AW31: --- | AX31: 0 | AY31: RB 45 820 FS | AZ31: =VLOOKUP(AY31,BASE!$A:$D,2,FALSE) -> 7000499 | BA31: шт. | BB31: 1 | BC31: DFB 45 200 FS | BD31: =VLOOKUP(BC31,BASE!$A:$D,2,FALSE) -> 7128835 | BE31: шт. | BF31: 1 | BG31: Не требуется | BH31: --- | BI31: --- | BJ31: 0 | BK31: Не требуется | BL31: --- | BM31: --- | BN31: 0 | BO31: RLVL 85 FS | BP31: =VLOOKUP(BO31,BASE!$A:$D,2,FALSE) -> 6067123 | BQ31: шт. | BR31: 4 | BS31: RBV 820 S FS | BT31: =VLOOKUP(BS31,BASE!$A:$D,2,FALSE) -> 7007234 | BU31: шт. | BV31: 1 | BW31: DBV 200 S FS | BX31: =VLOOKUP(BW31,BASE!$A:$D,2,FALSE) -> 7130813 | BY31: шт. | BZ31: 1 | CA31: FRSB 6X12 G | CB31: =VLOOKUP(CA31,BASE!$A:$D,2,FALSE) -> 6406130 | CC31: шт. | CD31: 16 | CE31: RBV 820 F FS | CF31: =VLOOKUP(CE31,BASE!$A:$D,2,FALSE) -> 7007274 | CG31: шт. | CH31: 1 | CI31: DBV 85 200 F FS | CJ31: =VLOOKUP(CI31,BASE!$A:$D,2,FALSE) -> 7130994 | CK31: шт. | CL31: 1 | CM31: FRSB 6X12 G | CN31: =VLOOKUP(CM31,BASE!$A:$D,2,FALSE) -> 6406130 | CO31: шт. | CP31: 16 | CQ31: RGBV 820 FS | CR31: =VLOOKUP(CQ31,BASE!$A:$D,2,FALSE) -> 7006489 | CS31: шт. | CT31: 1 | CU31: Не требуется | CV31: --- | CW31: --- | CX31: 0 | CY31: Не требуется | CZ31: --- | DA31: --- | DB31: 0 | DC31: Не требуется | DD31: --- | DE31: --- | DF31: 0 | DG31: RAA 820 FS | DH31: =VLOOKUP(DG31,BASE!$A:$D,2,FALSE) -> 7002491 | DI31: шт. | DJ31: 1 | DK31: DFAA 200 FS | DL31: =VLOOKUP(DK31,BASE!$A:$D,2,FALSE) -> 7128444 | DM31: шт. | DN31: 1 | DO31: Не требуется | DP31: --- | DQ31: --- | DR31: 0 | DS31: Не требуется | DT31: --- | DU31: --- | DV31: 0 | DW31: Не требуется | DX31: --- | DY31: --- | DZ31: 0 | EA31: RAA 820 FS | EB31: =VLOOKUP(EA31,BASE!$A:$D,2,FALSE) -> 7002491 | EC31: шт. | ED31: 1 | EE31: DFAA 200 FS | EF31: =VLOOKUP(EE31,BASE!$A:$D,2,FALSE) -> 7128444 | EG31: шт. | EH31: 1 | EI31: Не требуется | EJ31: --- | EK31: --- | EL31: 0 | EM31: Не требуется | EN31: --- | EO31: --- | EP31: 0 | EQ31: Не требуется | ER31: --- | ES31: --- | ET31: 0 | EU31: RAA 820 FS | EV31: =VLOOKUP(EU31,BASE!$A:$D,2,FALSE) -> 7002491 | EW31: шт. | EX31: 2 | EY31: DFAA 200 FS | EZ31: =VLOOKUP(EY31,BASE!$A:$D,2,FALSE) -> 7128444 | FA31: шт. | FB31: 2 | FC31: Не требуется | FD31: --- | FE31: --- | FF31: 0 | FG31: Не требуется | FH31: --- | FI31: --- | FJ31: 0 | FK31: Не требуется | FL31: --- | FM31: --- | FN31: 0 | FO31: RWEB 820 FS | FP31: =VLOOKUP(FO31,BASE!$A:$D,2,FALSE) -> 7110200 | FQ31: шт. | FR31: 1 | FT31: 175 | FU31: 175 | FV31: 110 | FW31: 50 | FX31: 0
A32: MKS 830 FS | B32: =VLOOKUP(A32,BASE!$A:$D,2,FALSE) -> 6057306 | C32: м | D32: 3 | E32: Листовой | F32: Перфорированный | G32: Конв.цинк. | H32: 1 | I32: 85 | J32: 300 | K32: DRL 300 FS | L32: =VLOOKUP(K32,BASE!$A:$D,2,FALSE) -> 6052304 | M32: м | N32: 3 | O32: Не требуется | P32: --- | Q32: --- | R32: 0 | S32: Не требуется | T32: --- | U32: --- | V32: 0 | W32: TSG 85 FS | X32: =VLOOKUP(W32,BASE!$A:$D,2,FALSE) -> 6062114 | Y32: м | Z32: 3 | AA32: TSGV A2 | AB32: =VLOOKUP(AA32,BASE!$A:$D,2,FALSE) -> 6067970 | AC32: шт. | AD32: 1 | AE32: FRSB 6X12 G | AF32: =VLOOKUP(AE32,BASE!$A:$D,2,FALSE) -> 6406130 | AG32: шт. | AH32: 6 | AI32: RB 90 830 FS | AJ32: =VLOOKUP(AI32,BASE!$A:$D,2,FALSE) -> 7001800 | AK32: шт. | AL32: 1 | AM32: DFB 90 300 FS | AN32: =VLOOKUP(AM32,BASE!$A:$D,2,FALSE) -> 7129653 | AO32: шт. | AP32: 1 | AQ32: Не требуется | AR32: --- | AS32: --- | AT32: 0 | AU32: Не требуется | AV32: --- | AW32: --- | AX32: 0 | AY32: RB 45 830 FS | AZ32: =VLOOKUP(AY32,BASE!$A:$D,2,FALSE) -> 7000510 | BA32: шт. | BB32: 1 | BC32: DFB 45 300 FS | BD32: =VLOOKUP(BC32,BASE!$A:$D,2,FALSE) -> 7128851 | BE32: шт. | BF32: 1 | BG32: Не требуется | BH32: --- | BI32: --- | BJ32: 0 | BK32: Не требуется | BL32: --- | BM32: --- | BN32: 0 | BO32: RLVL 85 FS | BP32: =VLOOKUP(BO32,BASE!$A:$D,2,FALSE) -> 6067123 | BQ32: шт. | BR32: 4 | BS32: RBV 830 S FS | BT32: =VLOOKUP(BS32,BASE!$A:$D,2,FALSE) -> 7007238 | BU32: шт. | BV32: 1 | BW32: DBV 300 S FS | BX32: =VLOOKUP(BW32,BASE!$A:$D,2,FALSE) -> 7130817 | BY32: шт. | BZ32: 1 | CA32: FRSB 6X12 G | CB32: =VLOOKUP(CA32,BASE!$A:$D,2,FALSE) -> 6406130 | CC32: шт. | CD32: 16 | CE32: RBV 830 F FS | CF32: =VLOOKUP(CE32,BASE!$A:$D,2,FALSE) -> 7007278 | CG32: шт. | CH32: 1 | CI32: DBV 85 300 F FS | CJ32: =VLOOKUP(CI32,BASE!$A:$D,2,FALSE) -> 7130998 | CK32: шт. | CL32: 1 | CM32: FRSB 6X12 G | CN32: =VLOOKUP(CM32,BASE!$A:$D,2,FALSE) -> 6406130 | CO32: шт. | CP32: 16 | CQ32: RGBV 830 FS | CR32: =VLOOKUP(CQ32,BASE!$A:$D,2,FALSE) -> 7006500 | CS32: шт. | CT32: 1 | CU32: Не требуется | CV32: --- | CW32: --- | CX32: 0 | CY32: Не требуется | CZ32: --- | DA32: --- | DB32: 0 | DC32: Не требуется | DD32: --- | DE32: --- | DF32: 0 | DG32: RAA 830 FS | DH32: =VLOOKUP(DG32,BASE!$A:$D,2,FALSE) -> 7002513 | DI32: шт. | DJ32: 1 | DK32: DFAA 300 FS | DL32: =VLOOKUP(DK32,BASE!$A:$D,2,FALSE) -> 7128460 | DM32: шт. | DN32: 1 | DO32: Не требуется | DP32: --- | DQ32: --- | DR32: 0 | DS32: Не требуется | DT32: --- | DU32: --- | DV32: 0 | DW32: Не требуется | DX32: --- | DY32: --- | DZ32: 0 | EA32: RAA 830 FS | EB32: =VLOOKUP(EA32,BASE!$A:$D,2,FALSE) -> 7002513 | EC32: шт. | ED32: 1 | EE32: DFAA 300 FS | EF32: =VLOOKUP(EE32,BASE!$A:$D,2,FALSE) -> 7128460 | EG32: шт. | EH32: 1 | EI32: Не требуется | EJ32: --- | EK32: --- | EL32: 0 | EM32: Не требуется | EN32: --- | EO32: --- | EP32: 0 | EQ32: Не требуется | ER32: --- | ES32: --- | ET32: 0 | EU32: RAA 830 FS | EV32: =VLOOKUP(EU32,BASE!$A:$D,2,FALSE) -> 7002513 | EW32: шт. | EX32: 2 | EY32: DFAA 300 FS | EZ32: =VLOOKUP(EY32,BASE!$A:$D,2,FALSE) -> 7128460 | FA32: шт. | FB32: 2 | FC32: Не требуется | FD32: --- | FE32: --- | FF32: 0 | FG32: Не требуется | FH32: --- | FI32: --- | FJ32: 0 | FK32: Не требуется | FL32: --- | FM32: --- | FN32: 0 | FO32: RWEB 830 FS | FP32: =VLOOKUP(FO32,BASE!$A:$D,2,FALSE) -> 7110308 | FQ32: шт. | FR32: 1 | FT32: 175 | FU32: 175 | FV32: 110 | FW32: 50 | FX32: 0
A33: MKS 840 FS | B33: =VLOOKUP(A33,BASE!$A:$D,2,FALSE) -> 6057403 | C33: м | D33: 3 | E33: Листовой | F33: Перфорированный | G33: Конв.цинк. | H33: 1 | I33: 85 | J33: 400 | K33: DRL 400 FS | L33: =VLOOKUP(K33,BASE!$A:$D,2,FALSE) -> 6052401 | M33: м | N33: 3 | O33: Не требуется | P33: --- | Q33: --- | R33: 0 | S33: Не требуется | T33: --- | U33: --- | V33: 0 | W33: TSG 85 FS | X33: =VLOOKUP(W33,BASE!$A:$D,2,FALSE) -> 6062114 | Y33: м | Z33: 3 | AA33: TSGV A2 | AB33: =VLOOKUP(AA33,BASE!$A:$D,2,FALSE) -> 6067970 | AC33: шт. | AD33: 1 | AE33: FRSB 6X12 G | AF33: =VLOOKUP(AE33,BASE!$A:$D,2,FALSE) -> 6406130 | AG33: шт. | AH33: 6 | AI33: RB 90 840 FS | AJ33: =VLOOKUP(AI33,BASE!$A:$D,2,FALSE) -> 7001819 | AK33: шт. | AL33: 1 | AM33: DFB 90 400 FS | AN33: =VLOOKUP(AM33,BASE!$A:$D,2,FALSE) -> 7129688 | AO33: шт. | AP33: 1 | AQ33: RLVL 85 FS | AR33: =VLOOKUP(AQ33,BASE!$A:$D,2,FALSE) -> 6067123 | AS33: шт. | AT33: 4 | AU33: SSLB 400 FS | AV33: =VLOOKUP(AU33,BASE!$A:$D,2,FALSE) -> 7070221 | AW33: шт. | AX33: 2 | AY33: RB 45 840 FS | AZ33: =VLOOKUP(AY33,BASE!$A:$D,2,FALSE) -> 7000529 | BA33: шт. | BB33: 1 | BC33: DFB 45 400 FS | BD33: =VLOOKUP(BC33,BASE!$A:$D,2,FALSE) -> 7128886 | BE33: шт. | BF33: 1 | BG33: RLVL 85 FS | BH33: =VLOOKUP(BG33,BASE!$A:$D,2,FALSE) -> 6067123 | BI33: шт. | BJ33: 4 | BK33: SSLB 400 FS | BL33: =VLOOKUP(BK33,BASE!$A:$D,2,FALSE) -> 7070221 | BM33: шт. | BN33: 2 | BO33: RLVL 85 FS | BP33: =VLOOKUP(BO33,BASE!$A:$D,2,FALSE) -> 6067123 | BQ33: шт. | BR33: 4 | BS33: RBV 840 S FS | BT33: =VLOOKUP(BS33,BASE!$A:$D,2,FALSE) -> 7007242 | BU33: шт. | BV33: 1 | BW33: DBV 400 S FS | BX33: =VLOOKUP(BW33,BASE!$A:$D,2,FALSE) -> 7130821 | BY33: шт. | BZ33: 1 | CA33: FRSB 6X12 G | CB33: =VLOOKUP(CA33,BASE!$A:$D,2,FALSE) -> 6406130 | CC33: шт. | CD33: 16 | CE33: RBV 840 F FS | CF33: =VLOOKUP(CE33,BASE!$A:$D,2,FALSE) -> 7007282 | CG33: шт. | CH33: 1 | CI33: DBV 85 400 F FS | CJ33: =VLOOKUP(CI33,BASE!$A:$D,2,FALSE) -> 7131002 | CK33: шт. | CL33: 1 | CM33: FRSB 6X12 G | CN33: =VLOOKUP(CM33,BASE!$A:$D,2,FALSE) -> 6406130 | CO33: шт. | CP33: 16 | CQ33: RGBV 840 FS | CR33: =VLOOKUP(CQ33,BASE!$A:$D,2,FALSE) -> 7006527 | CS33: шт. | CT33: 1 | CU33: Не требуется | CV33: --- | CW33: --- | CX33: 0 | CY33: Не требуется | CZ33: --- | DA33: --- | DB33: 0 | DC33: Не требуется | DD33: --- | DE33: --- | DF33: 0 | DG33: RAA 840 FS | DH33: =VLOOKUP(DG33,BASE!$A:$D,2,FALSE) -> 7002521 | DI33: шт. | DJ33: 1 | DK33: DFAA 400 FS | DL33: =VLOOKUP(DK33,BASE!$A:$D,2,FALSE) -> 7128487 | DM33: шт. | DN33: 1 | DO33: RLVL 85 FS | DP33: =VLOOKUP(DO33,BASE!$A:$D,2,FALSE) -> 6067123 | DQ33: шт. | DR33: 2 | DS33: SSLB 400 FS | DT33: =VLOOKUP(DS33,BASE!$A:$D,2,FALSE) -> 7070221 | DU33: шт. | DV33: 1 | DW33: FRSB 6X12 G | DX33: =VLOOKUP(DW33,BASE!$A:$D,2,FALSE) -> 6406130 | DY33: шт. | DZ33: 12 | EA33: RAA 840 FS | EB33: =VLOOKUP(EA33,BASE!$A:$D,2,FALSE) -> 7002521 | EC33: шт. | ED33: 1 | EE33: DFAA 400 FS | EF33: =VLOOKUP(EE33,BASE!$A:$D,2,FALSE) -> 7128487 | EG33: шт. | EH33: 1 | EI33: RLVL 85 FS | EJ33: =VLOOKUP(EI33,BASE!$A:$D,2,FALSE) -> 6067123 | EK33: шт. | EL33: 2 | EM33: SSLB 400 FS | EN33: =VLOOKUP(EM33,BASE!$A:$D,2,FALSE) -> 7070221 | EO33: шт. | EP33: 1 | EQ33: FRSB 6X12 G | ER33: =VLOOKUP(EQ33,BASE!$A:$D,2,FALSE) -> 6406130 | ES33: шт. | ET33: 12 | EU33: RAA 840 FS | EV33: =VLOOKUP(EU33,BASE!$A:$D,2,FALSE) -> 7002521 | EW33: шт. | EX33: 2 | EY33: DFAA 400 FS | EZ33: =VLOOKUP(EY33,BASE!$A:$D,2,FALSE) -> 7128487 | FA33: шт. | FB33: 2 | FC33: RLVL 85 FS | FD33: =VLOOKUP(FC33,BASE!$A:$D,2,FALSE) -> 6067123 | FE33: шт. | FF33: 8 | FG33: SSLB 400 FS | FH33: =VLOOKUP(FG33,BASE!$A:$D,2,FALSE) -> 7070221 | FI33: шт. | FJ33: 4 | FK33: FRSB 6X12 G | FL33: =VLOOKUP(FK33,BASE!$A:$D,2,FALSE) -> 6406130 | FM33: шт. | FN33: 24 | FO33: RWEB 840 FS | FP33: =VLOOKUP(FO33,BASE!$A:$D,2,FALSE) -> 7110405 | FQ33: шт. | FR33: 1 | FT33: 175 | FU33: 175 | FV33: 110 | FW33: 50 | FX33: 0
A34: MKS 850 FS | B34: =VLOOKUP(A34,BASE!$A:$D,2,FALSE) -> 6057500 | C34: м | D34: 3 | E34: Листовой | F34: Перфорированный | G34: Конв.цинк. | H34: 1 | I34: 85 | J34: 500 | K34: DRL 500 FS | L34: =VLOOKUP(K34,BASE!$A:$D,2,FALSE) -> 6052509 | M34: м | N34: 3 | O34: Не требуется | P34: --- | Q34: --- | R34: 0 | S34: Не требуется | T34: --- | U34: --- | V34: 0 | W34: TSG 85 FS | X34: =VLOOKUP(W34,BASE!$A:$D,2,FALSE) -> 6062114 | Y34: м | Z34: 3 | AA34: TSGV A2 | AB34: =VLOOKUP(AA34,BASE!$A:$D,2,FALSE) -> 6067970 | AC34: шт. | AD34: 1 | AE34: FRSB 6X12 G | AF34: =VLOOKUP(AE34,BASE!$A:$D,2,FALSE) -> 6406130 | AG34: шт. | AH34: 6 | AI34: RB 90 850 FS | AJ34: =VLOOKUP(AI34,BASE!$A:$D,2,FALSE) -> 7001835 | AK34: шт. | AL34: 1 | AM34: DFB 90 500 FS | AN34: =VLOOKUP(AM34,BASE!$A:$D,2,FALSE) -> 7129718 | AO34: шт. | AP34: 1 | AQ34: RLVL 85 FS | AR34: =VLOOKUP(AQ34,BASE!$A:$D,2,FALSE) -> 6067123 | AS34: шт. | AT34: 4 | AU34: SSLB 500 FS | AV34: =VLOOKUP(AU34,BASE!$A:$D,2,FALSE) -> 7070225 | AW34: шт. | AX34: 2 | AY34: RB 45 850 FS | AZ34: =VLOOKUP(AY34,BASE!$A:$D,2,FALSE) -> 7000545 | BA34: шт. | BB34: 1 | BC34: DFB 45 500 FS | BD34: =VLOOKUP(BC34,BASE!$A:$D,2,FALSE) -> 7128908 | BE34: шт. | BF34: 1 | BG34: RLVL 85 FS | BH34: =VLOOKUP(BG34,BASE!$A:$D,2,FALSE) -> 6067123 | BI34: шт. | BJ34: 4 | BK34: SSLB 500 FS | BL34: =VLOOKUP(BK34,BASE!$A:$D,2,FALSE) -> 7070225 | BM34: шт. | BN34: 2 | BO34: RLVL 85 FS | BP34: =VLOOKUP(BO34,BASE!$A:$D,2,FALSE) -> 6067123 | BQ34: шт. | BR34: 4 | BS34: RBV 850 S FS | BT34: =VLOOKUP(BS34,BASE!$A:$D,2,FALSE) -> 7007246 | BU34: шт. | BV34: 1 | BW34: DBV 500 S FS | BX34: =VLOOKUP(BW34,BASE!$A:$D,2,FALSE) -> 7130825 | BY34: шт. | BZ34: 1 | CA34: FRSB 6X12 G | CB34: =VLOOKUP(CA34,BASE!$A:$D,2,FALSE) -> 6406130 | CC34: шт. | CD34: 16 | CE34: RBV 850 F FS | CF34: =VLOOKUP(CE34,BASE!$A:$D,2,FALSE) -> 7007286 | CG34: шт. | CH34: 1 | CI34: DBV 85 500 F FS | CJ34: =VLOOKUP(CI34,BASE!$A:$D,2,FALSE) -> 7131006 | CK34: шт. | CL34: 1 | CM34: FRSB 6X12 G | CN34: =VLOOKUP(CM34,BASE!$A:$D,2,FALSE) -> 6406130 | CO34: шт. | CP34: 16 | CQ34: RGBV 850 FS | CR34: =VLOOKUP(CQ34,BASE!$A:$D,2,FALSE) -> 7006543 | CS34: шт. | CT34: 1 | CU34: Не требуется | CV34: --- | CW34: --- | CX34: 0 | CY34: Не требуется | CZ34: --- | DA34: --- | DB34: 0 | DC34: Не требуется | DD34: --- | DE34: --- | DF34: 0 | DG34: RAA 850 FS | DH34: =VLOOKUP(DG34,BASE!$A:$D,2,FALSE) -> 7002556 | DI34: шт. | DJ34: 1 | DK34: DFAA 500 FS | DL34: =VLOOKUP(DK34,BASE!$A:$D,2,FALSE) -> 7128509 | DM34: шт. | DN34: 1 | DO34: RLVL 85 FS | DP34: =VLOOKUP(DO34,BASE!$A:$D,2,FALSE) -> 6067123 | DQ34: шт. | DR34: 2 | DS34: SSLB 500 FS | DT34: =VLOOKUP(DS34,BASE!$A:$D,2,FALSE) -> 7070225 | DU34: шт. | DV34: 1 | DW34: FRSB 6X12 G | DX34: =VLOOKUP(DW34,BASE!$A:$D,2,FALSE) -> 6406130 | DY34: шт. | DZ34: 12 | EA34: RAA 850 FS | EB34: =VLOOKUP(EA34,BASE!$A:$D,2,FALSE) -> 7002556 | EC34: шт. | ED34: 1 | EE34: DFAA 500 FS | EF34: =VLOOKUP(EE34,BASE!$A:$D,2,FALSE) -> 7128509 | EG34: шт. | EH34: 1 | EI34: RLVL 85 FS | EJ34: =VLOOKUP(EI34,BASE!$A:$D,2,FALSE) -> 6067123 | EK34: шт. | EL34: 2 | EM34: SSLB 500 FS | EN34: =VLOOKUP(EM34,BASE!$A:$D,2,FALSE) -> 7070225 | EO34: шт. | EP34: 1 | EQ34: FRSB 6X12 G | ER34: =VLOOKUP(EQ34,BASE!$A:$D,2,FALSE) -> 6406130 | ES34: шт. | ET34: 12 | EU34: RAA 850 FS | EV34: =VLOOKUP(EU34,BASE!$A:$D,2,FALSE) -> 7002556 | EW34: шт. | EX34: 2 | EY34: DFAA 500 FS | EZ34: =VLOOKUP(EY34,BASE!$A:$D,2,FALSE) -> 7128509 | FA34: шт. | FB34: 2 | FC34: RLVL 85 FS | FD34: =VLOOKUP(FC34,BASE!$A:$D,2,FALSE) -> 6067123 | FE34: шт. | FF34: 8 | FG34: SSLB 500 FS | FH34: =VLOOKUP(FG34,BASE!$A:$D,2,FALSE) -> 7070225 | FI34: шт. | FJ34: 4 | FK34: FRSB 6X12 G | FL34: =VLOOKUP(FK34,BASE!$A:$D,2,FALSE) -> 6406130 | FM34: шт. | FN34: 24 | FO34: RWEB 850 FS | FP34: =VLOOKUP(FO34,BASE!$A:$D,2,FALSE) -> 7110502 | FQ34: шт. | FR34: 1 | FT34: 175 | FU34: 175 | FV34: 110 | FW34: 50 | FX34: 0
A35: MKS 860 FS | B35: =VLOOKUP(A35,BASE!$A:$D,2,FALSE) -> 6057535 | C35: м | D35: 3 | E35: Листовой | F35: Перфорированный | G35: Конв.цинк. | H35: 1 | I35: 85 | J35: 600 | K35: DRL 600 FS | L35: =VLOOKUP(K35,BASE!$A:$D,2,FALSE) -> 6052606 | M35: м | N35: 3 | O35: Не требуется | P35: --- | Q35: --- | R35: 0 | S35: Не требуется | T35: --- | U35: --- | V35: 0 | W35: TSG 85 FS | X35: =VLOOKUP(W35,BASE!$A:$D,2,FALSE) -> 6062114 | Y35: м | Z35: 3 | AA35: TSGV A2 | AB35: =VLOOKUP(AA35,BASE!$A:$D,2,FALSE) -> 6067970 | AC35: шт. | AD35: 1 | AE35: FRSB 6X12 G | AF35: =VLOOKUP(AE35,BASE!$A:$D,2,FALSE) -> 6406130 | AG35: шт. | AH35: 6 | AI35: RB 90 860 FS | AJ35: =VLOOKUP(AI35,BASE!$A:$D,2,FALSE) -> 7001851 | AK35: шт. | AL35: 1 | AM35: DFB 90 600 FS | AN35: =VLOOKUP(AM35,BASE!$A:$D,2,FALSE) -> 7129734 | AO35: шт. | AP35: 1 | AQ35: RLVL 85 FS | AR35: =VLOOKUP(AQ35,BASE!$A:$D,2,FALSE) -> 6067123 | AS35: шт. | AT35: 4 | AU35: SSLB 600 FS | AV35: =VLOOKUP(AU35,BASE!$A:$D,2,FALSE) -> 7070233 | AW35: шт. | AX35: 2 | AY35: RB 45 860 FS | AZ35: =VLOOKUP(AY35,BASE!$A:$D,2,FALSE) -> 7000561 | BA35: шт. | BB35: 1 | BC35: DFB 45 600 FS | BD35: =VLOOKUP(BC35,BASE!$A:$D,2,FALSE) -> 7128924 | BE35: шт. | BF35: 1 | BG35: RLVL 85 FS | BH35: =VLOOKUP(BG35,BASE!$A:$D,2,FALSE) -> 6067123 | BI35: шт. | BJ35: 4 | BK35: SSLB 600 FS | BL35: =VLOOKUP(BK35,BASE!$A:$D,2,FALSE) -> 7070233 | BM35: шт. | BN35: 2 | BO35: RLVL 85 FS | BP35: =VLOOKUP(BO35,BASE!$A:$D,2,FALSE) -> 6067123 | BQ35: шт. | BR35: 4 | BS35: RBV 860 S FS | BT35: =VLOOKUP(BS35,BASE!$A:$D,2,FALSE) -> 7007250 | BU35: шт. | BV35: 1 | BW35: DBV 600 S FS | BX35: =VLOOKUP(BW35,BASE!$A:$D,2,FALSE) -> 7130829 | BY35: шт. | BZ35: 1 | CA35: FRSB 6X12 G | CB35: =VLOOKUP(CA35,BASE!$A:$D,2,FALSE) -> 6406130 | CC35: шт. | CD35: 16 | CE35: RBV 860 F FS | CF35: =VLOOKUP(CE35,BASE!$A:$D,2,FALSE) -> 7007290 | CG35: шт. | CH35: 1 | CI35: DBV 85 600 F FS | CJ35: =VLOOKUP(CI35,BASE!$A:$D,2,FALSE) -> 7131010 | CK35: шт. | CL35: 1 | CM35: FRSB 6X12 G | CN35: =VLOOKUP(CM35,BASE!$A:$D,2,FALSE) -> 6406130 | CO35: шт. | CP35: 16 | CQ35: RGBV 860 FS | CR35: =VLOOKUP(CQ35,BASE!$A:$D,2,FALSE) -> 7006578 | CS35: шт. | CT35: 1 | CU35: Не требуется | CV35: --- | CW35: --- | CX35: 0 | CY35: Не требуется | CZ35: --- | DA35: --- | DB35: 0 | DC35: Не требуется | DD35: --- | DE35: --- | DF35: 0 | DG35: RAA 860 FS | DH35: =VLOOKUP(DG35,BASE!$A:$D,2,FALSE) -> 7002572 | DI35: шт. | DJ35: 1 | DK35: DFAA 600 FS | DL35: =VLOOKUP(DK35,BASE!$A:$D,2,FALSE) -> 7128525 | DM35: шт. | DN35: 1 | DO35: RLVL 85 FS | DP35: =VLOOKUP(DO35,BASE!$A:$D,2,FALSE) -> 6067123 | DQ35: шт. | DR35: 2 | DS35: SSLB 600 FS | DT35: =VLOOKUP(DS35,BASE!$A:$D,2,FALSE) -> 7070233 | DU35: шт. | DV35: 1 | DW35: FRSB 6X12 G | DX35: =VLOOKUP(DW35,BASE!$A:$D,2,FALSE) -> 6406130 | DY35: шт. | DZ35: 12 | EA35: RAA 860 FS | EB35: =VLOOKUP(EA35,BASE!$A:$D,2,FALSE) -> 7002572 | EC35: шт. | ED35: 1 | EE35: DFAA 600 FS | EF35: =VLOOKUP(EE35,BASE!$A:$D,2,FALSE) -> 7128525 | EG35: шт. | EH35: 1 | EI35: RLVL 85 FS | EJ35: =VLOOKUP(EI35,BASE!$A:$D,2,FALSE) -> 6067123 | EK35: шт. | EL35: 2 | EM35: SSLB 600 FS | EN35: =VLOOKUP(EM35,BASE!$A:$D,2,FALSE) -> 7070233 | EO35: шт. | EP35: 1 | EQ35: FRSB 6X12 G | ER35: =VLOOKUP(EQ35,BASE!$A:$D,2,FALSE) -> 6406130 | ES35: шт. | ET35: 12 | EU35: RAA 860 FS | EV35: =VLOOKUP(EU35,BASE!$A:$D,2,FALSE) -> 7002572 | EW35: шт. | EX35: 2 | EY35: DFAA 600 FS | EZ35: =VLOOKUP(EY35,BASE!$A:$D,2,FALSE) -> 7128525 | FA35: шт. | FB35: 2 | FC35: RLVL 85 FS | FD35: =VLOOKUP(FC35,BASE!$A:$D,2,FALSE) -> 6067123 | FE35: шт. | FF35: 8 | FG35: SSLB 600 FS | FH35: =VLOOKUP(FG35,BASE!$A:$D,2,FALSE) -> 7070233 | FI35: шт. | FJ35: 4 | FK35: FRSB 6X12 G | FL35: =VLOOKUP(FK35,BASE!$A:$D,2,FALSE) -> 6406130 | FM35: шт. | FN35: 24 | FO35: RWEB 860 FS | FP35: =VLOOKUP(FO35,BASE!$A:$D,2,FALSE) -> 7110618 | FQ35: шт. | FR35: 1 | FT35: 175 | FU35: 175 | FV35: 110 | FW35: 50 | FX35: 0
A36: SKS 810 FS | B36: =VLOOKUP(A36,BASE!$A:$D,2,FALSE) -> 6058108 | C36: м | D36: 3 | E36: Листовой | F36: Перфорированный | G36: Конв.цинк. | H36: 1.5 | I36: 85 | J36: 100 | K36: DRL 100 FS | L36: =VLOOKUP(K36,BASE!$A:$D,2,FALSE) -> 6052096 | M36: м | N36: 3 | O36: Не требуется | P36: --- | Q36: --- | R36: 0 | S36: Не требуется | T36: --- | U36: --- | V36: 0 | W36: TSG 85 FS | X36: =VLOOKUP(W36,BASE!$A:$D,2,FALSE) -> 6062114 | Y36: м | Z36: 3 | AA36: TSGV A2 | AB36: =VLOOKUP(AA36,BASE!$A:$D,2,FALSE) -> 6067970 | AC36: шт. | AD36: 1 | AE36: FRSB 6X12 G | AF36: =VLOOKUP(AE36,BASE!$A:$D,2,FALSE) -> 6406130 | AG36: шт. | AH36: 6 | AI36: RB 90 810 FS | AJ36: =VLOOKUP(AI36,BASE!$A:$D,2,FALSE) -> 7001762 | AK36: шт. | AL36: 1 | AM36: DFB 90 100 FS | AN36: =VLOOKUP(AM36,BASE!$A:$D,2,FALSE) -> 7129610 | AO36: шт. | AP36: 1 | AQ36: Не требуется | AR36: --- | AS36: --- | AT36: 0 | AU36: Не требуется | AV36: --- | AW36: --- | AX36: 0 | AY36: RB 45 810 FS | AZ36: =VLOOKUP(AY36,BASE!$A:$D,2,FALSE) -> 7000472 | BA36: шт. | BB36: 1 | BC36: DFB 45 100 FS | BD36: =VLOOKUP(BC36,BASE!$A:$D,2,FALSE) -> 7128819 | BE36: шт. | BF36: 1 | BG36: Не требуется | BH36: --- | BI36: --- | BJ36: 0 | BK36: Не требуется | BL36: --- | BM36: --- | BN36: 0 | BO36: RLVL 85 FS | BP36: =VLOOKUP(BO36,BASE!$A:$D,2,FALSE) -> 6067123 | BQ36: шт. | BR36: 4 | BS36: RBV 810 S FS | BT36: =VLOOKUP(BS36,BASE!$A:$D,2,FALSE) -> 7007230 | BU36: шт. | BV36: 1 | BW36: DBV 100 S FS | BX36: =VLOOKUP(BW36,BASE!$A:$D,2,FALSE) -> 7130805 | BY36: шт. | BZ36: 1 | CA36: FRSB 6X12 G | CB36: =VLOOKUP(CA36,BASE!$A:$D,2,FALSE) -> 6406130 | CC36: шт. | CD36: 16 | CE36: RBV 810 F FS | CF36: =VLOOKUP(CE36,BASE!$A:$D,2,FALSE) -> 7007270 | CG36: шт. | CH36: 1 | CI36: DBV 85 100 F FS | CJ36: =VLOOKUP(CI36,BASE!$A:$D,2,FALSE) -> 7130990 | CK36: шт. | CL36: 1 | CM36: FRSB 6X12 G | CN36: =VLOOKUP(CM36,BASE!$A:$D,2,FALSE) -> 6406130 | CO36: шт. | CP36: 16 | CQ36: RGBV 810 FS | CR36: =VLOOKUP(CQ36,BASE!$A:$D,2,FALSE) -> 7006462 | CS36: шт. | CT36: 1 | CU36: Не требуется | CV36: --- | CW36: --- | CX36: 0 | CY36: Не требуется | CZ36: --- | DA36: --- | DB36: 0 | DC36: Не требуется | DD36: --- | DE36: --- | DF36: 0 | DG36: RAA 810 FS | DH36: =VLOOKUP(DG36,BASE!$A:$D,2,FALSE) -> 7002475 | DI36: шт. | DJ36: 1 | DK36: DFAA 100 FS | DL36: =VLOOKUP(DK36,BASE!$A:$D,2,FALSE) -> 7128428 | DM36: шт. | DN36: 1 | DO36: Не требуется | DP36: --- | DQ36: --- | DR36: 0 | DS36: Не требуется | DT36: --- | DU36: --- | DV36: 0 | DW36: Не требуется | DX36: --- | DY36: --- | DZ36: 0 | EA36: RAA 810 FS | EB36: =VLOOKUP(EA36,BASE!$A:$D,2,FALSE) -> 7002475 | EC36: шт. | ED36: 1 | EE36: DFAA 100 FS | EF36: =VLOOKUP(EE36,BASE!$A:$D,2,FALSE) -> 7128428 | EG36: шт. | EH36: 1 | EI36: Не требуется | EJ36: --- | EK36: --- | EL36: 0 | EM36: Не требуется | EN36: --- | EO36: --- | EP36: 0 | EQ36: Не требуется | ER36: --- | ES36: --- | ET36: 0 | EU36: RAA 810 FS | EV36: =VLOOKUP(EU36,BASE!$A:$D,2,FALSE) -> 7002475 | EW36: шт. | EX36: 2 | EY36: DFAA 100 FS | EZ36: =VLOOKUP(EY36,BASE!$A:$D,2,FALSE) -> 7128428 | FA36: шт. | FB36: 2 | FC36: Не требуется | FD36: --- | FE36: --- | FF36: 0 | FG36: Не требуется | FH36: --- | FI36: --- | FJ36: 0 | FK36: Не требуется | FL36: --- | FM36: --- | FN36: 0 | FO36: RWEB 810 FS | FP36: =VLOOKUP(FO36,BASE!$A:$D,2,FALSE) -> 7110103 | FQ36: шт. | FR36: 1 | FT36: 280 | FU36: 280 | FV36: 225 | FW36: 150 | FX36: 75
A37: SKS 820 FS | B37: =VLOOKUP(A37,BASE!$A:$D,2,FALSE) -> 6058205 | C37: м | D37: 3 | E37: Листовой | F37: Перфорированный | G37: Конв.цинк. | H37: 1.5 | I37: 85 | J37: 200 | K37: DRL 200 FS | L37: =VLOOKUP(K37,BASE!$A:$D,2,FALSE) -> 6052207 | M37: м | N37: 3 | O37: Не требуется | P37: --- | Q37: --- | R37: 0 | S37: Не требуется | T37: --- | U37: --- | V37: 0 | W37: TSG 85 FS | X37: =VLOOKUP(W37,BASE!$A:$D,2,FALSE) -> 6062114 | Y37: м | Z37: 3 | AA37: TSGV A2 | AB37: =VLOOKUP(AA37,BASE!$A:$D,2,FALSE) -> 6067970 | AC37: шт. | AD37: 1 | AE37: FRSB 6X12 G | AF37: =VLOOKUP(AE37,BASE!$A:$D,2,FALSE) -> 6406130 | AG37: шт. | AH37: 6 | AI37: RB 90 820 FS | AJ37: =VLOOKUP(AI37,BASE!$A:$D,2,FALSE) -> 7001789 | AK37: шт. | AL37: 1 | AM37: DFB 90 200 FS | AN37: =VLOOKUP(AM37,BASE!$A:$D,2,FALSE) -> 7129637 | AO37: шт. | AP37: 1 | AQ37: Не требуется | AR37: --- | AS37: --- | AT37: 0 | AU37: Не требуется | AV37: --- | AW37: --- | AX37: 0 | AY37: RB 45 820 FS | AZ37: =VLOOKUP(AY37,BASE!$A:$D,2,FALSE) -> 7000499 | BA37: шт. | BB37: 1 | BC37: DFB 45 200 FS | BD37: =VLOOKUP(BC37,BASE!$A:$D,2,FALSE) -> 7128835 | BE37: шт. | BF37: 1 | BG37: Не требуется | BH37: --- | BI37: --- | BJ37: 0 | BK37: Не требуется | BL37: --- | BM37: --- | BN37: 0 | BO37: RLVL 85 FS | BP37: =VLOOKUP(BO37,BASE!$A:$D,2,FALSE) -> 6067123 | BQ37: шт. | BR37: 4 | BS37: RBV 820 S FS | BT37: =VLOOKUP(BS37,BASE!$A:$D,2,FALSE) -> 7007234 | BU37: шт. | BV37: 1 | BW37: DBV 200 S FS | BX37: =VLOOKUP(BW37,BASE!$A:$D,2,FALSE) -> 7130813 | BY37: шт. | BZ37: 1 | CA37: FRSB 6X12 G | CB37: =VLOOKUP(CA37,BASE!$A:$D,2,FALSE) -> 6406130 | CC37: шт. | CD37: 16 | CE37: RBV 820 F FS | CF37: =VLOOKUP(CE37,BASE!$A:$D,2,FALSE) -> 7007274 | CG37: шт. | CH37: 1 | CI37: DBV 85 200 F FS | CJ37: =VLOOKUP(CI37,BASE!$A:$D,2,FALSE) -> 7130994 | CK37: шт. | CL37: 1 | CM37: FRSB 6X12 G | CN37: =VLOOKUP(CM37,BASE!$A:$D,2,FALSE) -> 6406130 | CO37: шт. | CP37: 16 | CQ37: RGBV 820 FS | CR37: =VLOOKUP(CQ37,BASE!$A:$D,2,FALSE) -> 7006489 | CS37: шт. | CT37: 1 | CU37: Не требуется | CV37: --- | CW37: --- | CX37: 0 | CY37: Не требуется | CZ37: --- | DA37: --- | DB37: 0 | DC37: Не требуется | DD37: --- | DE37: --- | DF37: 0 | DG37: RAA 820 FS | DH37: =VLOOKUP(DG37,BASE!$A:$D,2,FALSE) -> 7002491 | DI37: шт. | DJ37: 1 | DK37: DFAA 200 FS | DL37: =VLOOKUP(DK37,BASE!$A:$D,2,FALSE) -> 7128444 | DM37: шт. | DN37: 1 | DO37: Не требуется | DP37: --- | DQ37: --- | DR37: 0 | DS37: Не требуется | DT37: --- | DU37: --- | DV37: 0 | DW37: Не требуется | DX37: --- | DY37: --- | DZ37: 0 | EA37: RAA 820 FS | EB37: =VLOOKUP(EA37,BASE!$A:$D,2,FALSE) -> 7002491 | EC37: шт. | ED37: 1 | EE37: DFAA 200 FS | EF37: =VLOOKUP(EE37,BASE!$A:$D,2,FALSE) -> 7128444 | EG37: шт. | EH37: 1 | EI37: Не требуется | EJ37: --- | EK37: --- | EL37: 0 | EM37: Не требуется | EN37: --- | EO37: --- | EP37: 0 | EQ37: Не требуется | ER37: --- | ES37: --- | ET37: 0 | EU37: RAA 820 FS | EV37: =VLOOKUP(EU37,BASE!$A:$D,2,FALSE) -> 7002491 | EW37: шт. | EX37: 2 | EY37: DFAA 200 FS | EZ37: =VLOOKUP(EY37,BASE!$A:$D,2,FALSE) -> 7128444 | FA37: шт. | FB37: 2 | FC37: Не требуется | FD37: --- | FE37: --- | FF37: 0 | FG37: Не требуется | FH37: --- | FI37: --- | FJ37: 0 | FK37: Не требуется | FL37: --- | FM37: --- | FN37: 0 | FO37: RWEB 820 FS | FP37: =VLOOKUP(FO37,BASE!$A:$D,2,FALSE) -> 7110200 | FQ37: шт. | FR37: 1 | FT37: 280 | FU37: 280 | FV37: 225 | FW37: 150 | FX37: 75
A38: SKS 830 FS | B38: =VLOOKUP(A38,BASE!$A:$D,2,FALSE) -> 6058302 | C38: м | D38: 3 | E38: Листовой | F38: Перфорированный | G38: Конв.цинк. | H38: 1.5 | I38: 85 | J38: 300 | K38: DRL 300 FS | L38: =VLOOKUP(K38,BASE!$A:$D,2,FALSE) -> 6052304 | M38: м | N38: 3 | O38: Не требуется | P38: --- | Q38: --- | R38: 0 | S38: Не требуется | T38: --- | U38: --- | V38: 0 | W38: TSG 85 FS | X38: =VLOOKUP(W38,BASE!$A:$D,2,FALSE) -> 6062114 | Y38: м | Z38: 3 | AA38: TSGV A2 | AB38: =VLOOKUP(AA38,BASE!$A:$D,2,FALSE) -> 6067970 | AC38: шт. | AD38: 1 | AE38: FRSB 6X12 G | AF38: =VLOOKUP(AE38,BASE!$A:$D,2,FALSE) -> 6406130 | AG38: шт. | AH38: 6 | AI38: RB 90 830 FS | AJ38: =VLOOKUP(AI38,BASE!$A:$D,2,FALSE) -> 7001800 | AK38: шт. | AL38: 1 | AM38: DFB 90 300 FS | AN38: =VLOOKUP(AM38,BASE!$A:$D,2,FALSE) -> 7129653 | AO38: шт. | AP38: 1 | AQ38: Не требуется | AR38: --- | AS38: --- | AT38: 0 | AU38: Не требуется | AV38: --- | AW38: --- | AX38: 0 | AY38: RB 45 830 FS | AZ38: =VLOOKUP(AY38,BASE!$A:$D,2,FALSE) -> 7000510 | BA38: шт. | BB38: 1 | BC38: DFB 45 300 FS | BD38: =VLOOKUP(BC38,BASE!$A:$D,2,FALSE) -> 7128851 | BE38: шт. | BF38: 1 | BG38: Не требуется | BH38: --- | BI38: --- | BJ38: 0 | BK38: Не требуется | BL38: --- | BM38: --- | BN38: 0 | BO38: RLVL 85 FS | BP38: =VLOOKUP(BO38,BASE!$A:$D,2,FALSE) -> 6067123 | BQ38: шт. | BR38: 4 | BS38: RBV 830 S FS | BT38: =VLOOKUP(BS38,BASE!$A:$D,2,FALSE) -> 7007238 | BU38: шт. | BV38: 1 | BW38: DBV 300 S FS | BX38: =VLOOKUP(BW38,BASE!$A:$D,2,FALSE) -> 7130817 | BY38: шт. | BZ38: 1 | CA38: FRSB 6X12 G | CB38: =VLOOKUP(CA38,BASE!$A:$D,2,FALSE) -> 6406130 | CC38: шт. | CD38: 16 | CE38: RBV 830 F FS | CF38: =VLOOKUP(CE38,BASE!$A:$D,2,FALSE) -> 7007278 | CG38: шт. | CH38: 1 | CI38: DBV 85 300 F FS | CJ38: =VLOOKUP(CI38,BASE!$A:$D,2,FALSE) -> 7130998 | CK38: шт. | CL38: 1 | CM38: FRSB 6X12 G | CN38: =VLOOKUP(CM38,BASE!$A:$D,2,FALSE) -> 6406130 | CO38: шт. | CP38: 16 | CQ38: RGBV 830 FS | CR38: =VLOOKUP(CQ38,BASE!$A:$D,2,FALSE) -> 7006500 | CS38: шт. | CT38: 1 | CU38: Не требуется | CV38: --- | CW38: --- | CX38: 0 | CY38: Не требуется | CZ38: --- | DA38: --- | DB38: 0 | DC38: Не требуется | DD38: --- | DE38: --- | DF38: 0 | DG38: RAA 830 FS | DH38: =VLOOKUP(DG38,BASE!$A:$D,2,FALSE) -> 7002513 | DI38: шт. | DJ38: 1 | DK38: DFAA 300 FS | DL38: =VLOOKUP(DK38,BASE!$A:$D,2,FALSE) -> 7128460 | DM38: шт. | DN38: 1 | DO38: Не требуется | DP38: --- | DQ38: --- | DR38: 0 | DS38: Не требуется | DT38: --- | DU38: --- | DV38: 0 | DW38: Не требуется | DX38: --- | DY38: --- | DZ38: 0 | EA38: RAA 830 FS | EB38: =VLOOKUP(EA38,BASE!$A:$D,2,FALSE) -> 7002513 | EC38: шт. | ED38: 1 | EE38: DFAA 300 FS | EF38: =VLOOKUP(EE38,BASE!$A:$D,2,FALSE) -> 7128460 | EG38: шт. | EH38: 1 | EI38: Не требуется | EJ38: --- | EK38: --- | EL38: 0 | EM38: Не требуется | EN38: --- | EO38: --- | EP38: 0 | EQ38: Не требуется | ER38: --- | ES38: --- | ET38: 0 | EU38: RAA 830 FS | EV38: =VLOOKUP(EU38,BASE!$A:$D,2,FALSE) -> 7002513 | EW38: шт. | EX38: 2 | EY38: DFAA 300 FS | EZ38: =VLOOKUP(EY38,BASE!$A:$D,2,FALSE) -> 7128460 | FA38: шт. | FB38: 2 | FC38: Не требуется | FD38: --- | FE38: --- | FF38: 0 | FG38: Не требуется | FH38: --- | FI38: --- | FJ38: 0 | FK38: Не требуется | FL38: --- | FM38: --- | FN38: 0 | FO38: RWEB 830 FS | FP38: =VLOOKUP(FO38,BASE!$A:$D,2,FALSE) -> 7110308 | FQ38: шт. | FR38: 1 | FT38: 280 | FU38: 280 | FV38: 225 | FW38: 150 | FX38: 75
A39: SKS 840 FS | B39: =VLOOKUP(A39,BASE!$A:$D,2,FALSE) -> 6058396 | C39: м | D39: 3 | E39: Листовой | F39: Перфорированный | G39: Конв.цинк. | H39: 1.5 | I39: 85 | J39: 400 | K39: DRL 400 FS | L39: =VLOOKUP(K39,BASE!$A:$D,2,FALSE) -> 6052401 | M39: м | N39: 3 | O39: Не требуется | P39: --- | Q39: --- | R39: 0 | S39: Не требуется | T39: --- | U39: --- | V39: 0 | W39: TSG 85 FS | X39: =VLOOKUP(W39,BASE!$A:$D,2,FALSE) -> 6062114 | Y39: м | Z39: 3 | AA39: TSGV A2 | AB39: =VLOOKUP(AA39,BASE!$A:$D,2,FALSE) -> 6067970 | AC39: шт. | AD39: 1 | AE39: FRSB 6X12 G | AF39: =VLOOKUP(AE39,BASE!$A:$D,2,FALSE) -> 6406130 | AG39: шт. | AH39: 6 | AI39: RB 90 840 FS | AJ39: =VLOOKUP(AI39,BASE!$A:$D,2,FALSE) -> 7001819 | AK39: шт. | AL39: 1 | AM39: DFB 90 400 FS | AN39: =VLOOKUP(AM39,BASE!$A:$D,2,FALSE) -> 7129688 | AO39: шт. | AP39: 1 | AQ39: RLVL 85 FS | AR39: =VLOOKUP(AQ39,BASE!$A:$D,2,FALSE) -> 6067123 | AS39: шт. | AT39: 4 | AU39: SSLB 400 FS | AV39: =VLOOKUP(AU39,BASE!$A:$D,2,FALSE) -> 7070221 | AW39: шт. | AX39: 2 | AY39: RB 45 840 FS | AZ39: =VLOOKUP(AY39,BASE!$A:$D,2,FALSE) -> 7000529 | BA39: шт. | BB39: 1 | BC39: DFB 45 400 FS | BD39: =VLOOKUP(BC39,BASE!$A:$D,2,FALSE) -> 7128886 | BE39: шт. | BF39: 1 | BG39: RLVL 85 FS | BH39: =VLOOKUP(BG39,BASE!$A:$D,2,FALSE) -> 6067123 | BI39: шт. | BJ39: 4 | BK39: SSLB 400 FS | BL39: =VLOOKUP(BK39,BASE!$A:$D,2,FALSE) -> 7070221 | BM39: шт. | BN39: 2 | BO39: RLVL 85 FS | BP39: =VLOOKUP(BO39,BASE!$A:$D,2,FALSE) -> 6067123 | BQ39: шт. | BR39: 4 | BS39: RBV 840 S FS | BT39: =VLOOKUP(BS39,BASE!$A:$D,2,FALSE) -> 7007242 | BU39: шт. | BV39: 1 | BW39: DBV 400 S FS | BX39: =VLOOKUP(BW39,BASE!$A:$D,2,FALSE) -> 7130821 | BY39: шт. | BZ39: 1 | CA39: FRSB 6X12 G | CB39: =VLOOKUP(CA39,BASE!$A:$D,2,FALSE) -> 6406130 | CC39: шт. | CD39: 16 | CE39: RBV 840 F FS | CF39: =VLOOKUP(CE39,BASE!$A:$D,2,FALSE) -> 7007282 | CG39: шт. | CH39: 1 | CI39: DBV 85 400 F FS | CJ39: =VLOOKUP(CI39,BASE!$A:$D,2,FALSE) -> 7131002 | CK39: шт. | CL39: 1 | CM39: FRSB 6X12 G | CN39: =VLOOKUP(CM39,BASE!$A:$D,2,FALSE) -> 6406130 | CO39: шт. | CP39: 16 | CQ39: RGBV 840 FS | CR39: =VLOOKUP(CQ39,BASE!$A:$D,2,FALSE) -> 7006527 | CS39: шт. | CT39: 1 | CU39: Не требуется | CV39: --- | CW39: --- | CX39: 0 | CY39: Не требуется | CZ39: --- | DA39: --- | DB39: 0 | DC39: Не требуется | DD39: --- | DE39: --- | DF39: 0 | DG39: RAA 840 FS | DH39: =VLOOKUP(DG39,BASE!$A:$D,2,FALSE) -> 7002521 | DI39: шт. | DJ39: 1 | DK39: DFAA 400 FS | DL39: =VLOOKUP(DK39,BASE!$A:$D,2,FALSE) -> 7128487 | DM39: шт. | DN39: 1 | DO39: RLVL 85 FS | DP39: =VLOOKUP(DO39,BASE!$A:$D,2,FALSE) -> 6067123 | DQ39: шт. | DR39: 2 | DS39: SSLB 400 FS | DT39: =VLOOKUP(DS39,BASE!$A:$D,2,FALSE) -> 7070221 | DU39: шт. | DV39: 1 | DW39: FRSB 6X12 G | DX39: =VLOOKUP(DW39,BASE!$A:$D,2,FALSE) -> 6406130 | DY39: шт. | DZ39: 12 | EA39: RAA 840 FS | EB39: =VLOOKUP(EA39,BASE!$A:$D,2,FALSE) -> 7002521 | EC39: шт. | ED39: 1 | EE39: DFAA 400 FS | EF39: =VLOOKUP(EE39,BASE!$A:$D,2,FALSE) -> 7128487 | EG39: шт. | EH39: 1 | EI39: RLVL 85 FS | EJ39: =VLOOKUP(EI39,BASE!$A:$D,2,FALSE) -> 6067123 | EK39: шт. | EL39: 2 | EM39: SSLB 400 FS | EN39: =VLOOKUP(EM39,BASE!$A:$D,2,FALSE) -> 7070221 | EO39: шт. | EP39: 1 | EQ39: FRSB 6X12 G | ER39: =VLOOKUP(EQ39,BASE!$A:$D,2,FALSE) -> 6406130 | ES39: шт. | ET39: 12 | EU39: RAA 840 FS | EV39: =VLOOKUP(EU39,BASE!$A:$D,2,FALSE) -> 7002521 | EW39: шт. | EX39: 2 | EY39: DFAA 400 FS | EZ39: =VLOOKUP(EY39,BASE!$A:$D,2,FALSE) -> 7128487 | FA39: шт. | FB39: 2 | FC39: RLVL 85 FS | FD39: =VLOOKUP(FC39,BASE!$A:$D,2,FALSE) -> 6067123 | FE39: шт. | FF39: 8 | FG39: SSLB 400 FS | FH39: =VLOOKUP(FG39,BASE!$A:$D,2,FALSE) -> 7070221 | FI39: шт. | FJ39: 4 | FK39: FRSB 6X12 G | FL39: =VLOOKUP(FK39,BASE!$A:$D,2,FALSE) -> 6406130 | FM39: шт. | FN39: 24 | FO39: RWEB 840 FS | FP39: =VLOOKUP(FO39,BASE!$A:$D,2,FALSE) -> 7110405 | FQ39: шт. | FR39: 1 | FT39: 280 | FU39: 280 | FV39: 225 | FW39: 150 | FX39: 75
A40: SKS 850 FS | B40: =VLOOKUP(A40,BASE!$A:$D,2,FALSE) -> 6058507 | C40: м | D40: 3 | E40: Листовой | F40: Перфорированный | G40: Конв.цинк. | H40: 1.5 | I40: 85 | J40: 500 | K40: DRL 500 FS | L40: =VLOOKUP(K40,BASE!$A:$D,2,FALSE) -> 6052509 | M40: м | N40: 3 | O40: Не требуется | P40: --- | Q40: --- | R40: 0 | S40: Не требуется | T40: --- | U40: --- | V40: 0 | W40: TSG 85 FS | X40: =VLOOKUP(W40,BASE!$A:$D,2,FALSE) -> 6062114 | Y40: м | Z40: 3 | AA40: TSGV A2 | AB40: =VLOOKUP(AA40,BASE!$A:$D,2,FALSE) -> 6067970 | AC40: шт. | AD40: 1 | AE40: FRSB 6X12 G | AF40: =VLOOKUP(AE40,BASE!$A:$D,2,FALSE) -> 6406130 | AG40: шт. | AH40: 6 | AI40: RB 90 850 FS | AJ40: =VLOOKUP(AI40,BASE!$A:$D,2,FALSE) -> 7001835 | AK40: шт. | AL40: 1 | AM40: DFB 90 500 FS | AN40: =VLOOKUP(AM40,BASE!$A:$D,2,FALSE) -> 7129718 | AO40: шт. | AP40: 1 | AQ40: RLVL 85 FS | AR40: =VLOOKUP(AQ40,BASE!$A:$D,2,FALSE) -> 6067123 | AS40: шт. | AT40: 4 | AU40: SSLB 500 FS | AV40: =VLOOKUP(AU40,BASE!$A:$D,2,FALSE) -> 7070225 | AW40: шт. | AX40: 2 | AY40: RB 45 850 FS | AZ40: =VLOOKUP(AY40,BASE!$A:$D,2,FALSE) -> 7000545 | BA40: шт. | BB40: 1 | BC40: DFB 45 500 FS | BD40: =VLOOKUP(BC40,BASE!$A:$D,2,FALSE) -> 7128908 | BE40: шт. | BF40: 1 | BG40: RLVL 85 FS | BH40: =VLOOKUP(BG40,BASE!$A:$D,2,FALSE) -> 6067123 | BI40: шт. | BJ40: 4 | BK40: SSLB 500 FS | BL40: =VLOOKUP(BK40,BASE!$A:$D,2,FALSE) -> 7070225 | BM40: шт. | BN40: 2 | BO40: RLVL 85 FS | BP40: =VLOOKUP(BO40,BASE!$A:$D,2,FALSE) -> 6067123 | BQ40: шт. | BR40: 4 | BS40: RBV 850 S FS | BT40: =VLOOKUP(BS40,BASE!$A:$D,2,FALSE) -> 7007246 | BU40: шт. | BV40: 1 | BW40: DBV 500 S FS | BX40: =VLOOKUP(BW40,BASE!$A:$D,2,FALSE) -> 7130825 | BY40: шт. | BZ40: 1 | CA40: FRSB 6X12 G | CB40: =VLOOKUP(CA40,BASE!$A:$D,2,FALSE) -> 6406130 | CC40: шт. | CD40: 16 | CE40: RBV 850 F FS | CF40: =VLOOKUP(CE40,BASE!$A:$D,2,FALSE) -> 7007286 | CG40: шт. | CH40: 1 | CI40: DBV 85 500 F FS | CJ40: =VLOOKUP(CI40,BASE!$A:$D,2,FALSE) -> 7131006 | CK40: шт. | CL40: 1 | CM40: FRSB 6X12 G | CN40: =VLOOKUP(CM40,BASE!$A:$D,2,FALSE) -> 6406130 | CO40: шт. | CP40: 16 | CQ40: RGBV 850 FS | CR40: =VLOOKUP(CQ40,BASE!$A:$D,2,FALSE) -> 7006543 | CS40: шт. | CT40: 1 | CU40: Не требуется | CV40: --- | CW40: --- | CX40: 0 | CY40: Не требуется | CZ40: --- | DA40: --- | DB40: 0 | DC40: Не требуется | DD40: --- | DE40: --- | DF40: 0 | DG40: RAA 850 FS | DH40: =VLOOKUP(DG40,BASE!$A:$D,2,FALSE) -> 7002556 | DI40: шт. | DJ40: 1 | DK40: DFAA 500 FS | DL40: =VLOOKUP(DK40,BASE!$A:$D,2,FALSE) -> 7128509 | DM40: шт. | DN40: 1 | DO40: RLVL 85 FS | DP40: =VLOOKUP(DO40,BASE!$A:$D,2,FALSE) -> 6067123 | DQ40: шт. | DR40: 2 | DS40: SSLB 500 FS | DT40: =VLOOKUP(DS40,BASE!$A:$D,2,FALSE) -> 7070225 | DU40: шт. | DV40: 1 | DW40: FRSB 6X12 G | DX40: =VLOOKUP(DW40,BASE!$A:$D,2,FALSE) -> 6406130 | DY40: шт. | DZ40: 12 | EA40: RAA 850 FS | EB40: =VLOOKUP(EA40,BASE!$A:$D,2,FALSE) -> 7002556 | EC40: шт. | ED40: 1 | EE40: DFAA 500 FS | EF40: =VLOOKUP(EE40,BASE!$A:$D,2,FALSE) -> 7128509 | EG40: шт. | EH40: 1 | EI40: RLVL 85 FS | EJ40: =VLOOKUP(EI40,BASE!$A:$D,2,FALSE) -> 6067123 | EK40: шт. | EL40: 2 | EM40: SSLB 500 FS | EN40: =VLOOKUP(EM40,BASE!$A:$D,2,FALSE) -> 7070225 | EO40: шт. | EP40: 1 | EQ40: FRSB 6X12 G | ER40: =VLOOKUP(EQ40,BASE!$A:$D,2,FALSE) -> 6406130 | ES40: шт. | ET40: 12 | EU40: RAA 850 FS | EV40: =VLOOKUP(EU40,BASE!$A:$D,2,FALSE) -> 7002556 | EW40: шт. | EX40: 2 | EY40: DFAA 500 FS | EZ40: =VLOOKUP(EY40,BASE!$A:$D,2,FALSE) -> 7128509 | FA40: шт. | FB40: 2 | FC40: RLVL 85 FS | FD40: =VLOOKUP(FC40,BASE!$A:$D,2,FALSE) -> 6067123 | FE40: шт. | FF40: 8 | FG40: SSLB 500 FS | FH40: =VLOOKUP(FG40,BASE!$A:$D,2,FALSE) -> 7070225 | FI40: шт. | FJ40: 4 | FK40: FRSB 6X12 G | FL40: =VLOOKUP(FK40,BASE!$A:$D,2,FALSE) -> 6406130 | FM40: шт. | FN40: 24 | FO40: RWEB 850 FS | FP40: =VLOOKUP(FO40,BASE!$A:$D,2,FALSE) -> 7110502 | FQ40: шт. | FR40: 1 | FT40: 280 | FU40: 280 | FV40: 225 | FW40: 150 | FX40: 75
A41: SKS 860 FS | B41: =VLOOKUP(A41,BASE!$A:$D,2,FALSE) -> 6058604 | C41: м | D41: 3 | E41: Листовой | F41: Перфорированный | G41: Конв.цинк. | H41: 1.5 | I41: 85 | J41: 600 | K41: DRL 600 FS | L41: =VLOOKUP(K41,BASE!$A:$D,2,FALSE) -> 6052606 | M41: м | N41: 3 | O41: Не требуется | P41: --- | Q41: --- | R41: 0 | S41: Не требуется | T41: --- | U41: --- | V41: 0 | W41: TSG 85 FS | X41: =VLOOKUP(W41,BASE!$A:$D,2,FALSE) -> 6062114 | Y41: м | Z41: 3 | AA41: TSGV A2 | AB41: =VLOOKUP(AA41,BASE!$A:$D,2,FALSE) -> 6067970 | AC41: шт. | AD41: 1 | AE41: FRSB 6X12 G | AF41: =VLOOKUP(AE41,BASE!$A:$D,2,FALSE) -> 6406130 | AG41: шт. | AH41: 6 | AI41: RB 90 860 FS | AJ41: =VLOOKUP(AI41,BASE!$A:$D,2,FALSE) -> 7001851 | AK41: шт. | AL41: 1 | AM41: DFB 90 600 FS | AN41: =VLOOKUP(AM41,BASE!$A:$D,2,FALSE) -> 7129734 | AO41: шт. | AP41: 1 | AQ41: RLVL 85 FS | AR41: =VLOOKUP(AQ41,BASE!$A:$D,2,FALSE) -> 6067123 | AS41: шт. | AT41: 4 | AU41: SSLB 600 FS | AV41: =VLOOKUP(AU41,BASE!$A:$D,2,FALSE) -> 7070233 | AW41: шт. | AX41: 2 | AY41: RB 45 860 FS | AZ41: =VLOOKUP(AY41,BASE!$A:$D,2,FALSE) -> 7000561 | BA41: шт. | BB41: 1 | BC41: DFB 45 600 FS | BD41: =VLOOKUP(BC41,BASE!$A:$D,2,FALSE) -> 7128924 | BE41: шт. | BF41: 1 | BG41: RLVL 85 FS | BH41: =VLOOKUP(BG41,BASE!$A:$D,2,FALSE) -> 6067123 | BI41: шт. | BJ41: 4 | BK41: SSLB 600 FS | BL41: =VLOOKUP(BK41,BASE!$A:$D,2,FALSE) -> 7070233 | BM41: шт. | BN41: 2 | BO41: RLVL 85 FS | BP41: =VLOOKUP(BO41,BASE!$A:$D,2,FALSE) -> 6067123 | BQ41: шт. | BR41: 4 | BS41: RBV 860 S FS | BT41: =VLOOKUP(BS41,BASE!$A:$D,2,FALSE) -> 7007250 | BU41: шт. | BV41: 1 | BW41: DBV 600 S FS | BX41: =VLOOKUP(BW41,BASE!$A:$D,2,FALSE) -> 7130829 | BY41: шт. | BZ41: 1 | CA41: FRSB 6X12 G | CB41: =VLOOKUP(CA41,BASE!$A:$D,2,FALSE) -> 6406130 | CC41: шт. | CD41: 16 | CE41: RBV 860 F FS | CF41: =VLOOKUP(CE41,BASE!$A:$D,2,FALSE) -> 7007290 | CG41: шт. | CH41: 1 | CI41: DBV 85 600 F FS | CJ41: =VLOOKUP(CI41,BASE!$A:$D,2,FALSE) -> 7131010 | CK41: шт. | CL41: 1 | CM41: FRSB 6X12 G | CN41: =VLOOKUP(CM41,BASE!$A:$D,2,FALSE) -> 6406130 | CO41: шт. | CP41: 16 | CQ41: RGBV 860 FS | CR41: =VLOOKUP(CQ41,BASE!$A:$D,2,FALSE) -> 7006578 | CS41: шт. | CT41: 1 | CU41: Не требуется | CV41: --- | CW41: --- | CX41: 0 | CY41: Не требуется | CZ41: --- | DA41: --- | DB41: 0 | DC41: Не требуется | DD41: --- | DE41: --- | DF41: 0 | DG41: RAA 860 FS | DH41: =VLOOKUP(DG41,BASE!$A:$D,2,FALSE) -> 7002572 | DI41: шт. | DJ41: 1 | DK41: DFAA 600 FS | DL41: =VLOOKUP(DK41,BASE!$A:$D,2,FALSE) -> 7128525 | DM41: шт. | DN41: 1 | DO41: RLVL 85 FS | DP41: =VLOOKUP(DO41,BASE!$A:$D,2,FALSE) -> 6067123 | DQ41: шт. | DR41: 2 | DS41: SSLB 600 FS | DT41: =VLOOKUP(DS41,BASE!$A:$D,2,FALSE) -> 7070233 | DU41: шт. | DV41: 1 | DW41: FRSB 6X12 G | DX41: =VLOOKUP(DW41,BASE!$A:$D,2,FALSE) -> 6406130 | DY41: шт. | DZ41: 12 | EA41: RAA 860 FS | EB41: =VLOOKUP(EA41,BASE!$A:$D,2,FALSE) -> 7002572 | EC41: шт. | ED41: 1 | EE41: DFAA 600 FS | EF41: =VLOOKUP(EE41,BASE!$A:$D,2,FALSE) -> 7128525 | EG41: шт. | EH41: 1 | EI41: RLVL 85 FS | EJ41: =VLOOKUP(EI41,BASE!$A:$D,2,FALSE) -> 6067123 | EK41: шт. | EL41: 2 | EM41: SSLB 600 FS | EN41: =VLOOKUP(EM41,BASE!$A:$D,2,FALSE) -> 7070233 | EO41: шт. | EP41: 1 | EQ41: FRSB 6X12 G | ER41: =VLOOKUP(EQ41,BASE!$A:$D,2,FALSE) -> 6406130 | ES41: шт. | ET41: 12 | EU41: RAA 860 FS | EV41: =VLOOKUP(EU41,BASE!$A:$D,2,FALSE) -> 7002572 | EW41: шт. | EX41: 2 | EY41: DFAA 600 FS | EZ41: =VLOOKUP(EY41,BASE!$A:$D,2,FALSE) -> 7128525 | FA41: шт. | FB41: 2 | FC41: RLVL 85 FS | FD41: =VLOOKUP(FC41,BASE!$A:$D,2,FALSE) -> 6067123 | FE41: шт. | FF41: 8 | FG41: SSLB 600 FS | FH41: =VLOOKUP(FG41,BASE!$A:$D,2,FALSE) -> 7070233 | FI41: шт. | FJ41: 4 | FK41: FRSB 6X12 G | FL41: =VLOOKUP(FK41,BASE!$A:$D,2,FALSE) -> 6406130 | FM41: шт. | FN41: 24 | FO41: RWEB 860 FS | FP41: =VLOOKUP(FO41,BASE!$A:$D,2,FALSE) -> 7110618 | FQ41: шт. | FR41: 1 | FT41: 280 | FU41: 280 | FV41: 225 | FW41: 150 | FX41: 75
A42: MKS 110 FS | B42: =VLOOKUP(A42,BASE!$A:$D,2,FALSE) -> 6060102 | C42: м | D42: 3 | E42: Листовой | F42: Перфорированный | G42: Конв.цинк. | H42: 1 | I42: 110 | J42: 100 | K42: DRL 100 FS | L42: =VLOOKUP(K42,BASE!$A:$D,2,FALSE) -> 6052096 | M42: м | N42: 3 | O42: Не требуется | P42: --- | Q42: --- | R42: 0 | S42: Не требуется | T42: --- | U42: --- | V42: 0 | W42: TSG 110 FS | X42: =VLOOKUP(W42,BASE!$A:$D,2,FALSE) -> 6062122 | Y42: м | Z42: 3 | AA42: TSGV A2 | AB42: =VLOOKUP(AA42,BASE!$A:$D,2,FALSE) -> 6067970 | AC42: шт. | AD42: 1 | AE42: FRSB 6X12 G | AF42: =VLOOKUP(AE42,BASE!$A:$D,2,FALSE) -> 6406130 | AG42: шт. | AH42: 6 | AI42: RB 90 110 FS | AJ42: =VLOOKUP(AI42,BASE!$A:$D,2,FALSE) -> 7001894 | AK42: шт. | AL42: 1 | AM42: DFB 90 100 FS | AN42: =VLOOKUP(AM42,BASE!$A:$D,2,FALSE) -> 7129610 | AO42: шт. | AP42: 1 | AQ42: Не требуется | AR42: --- | AS42: --- | AT42: 0 | AU42: Не требуется | AV42: --- | AW42: --- | AX42: 0 | AY42: RB 45 110 FS | AZ42: =VLOOKUP(AY42,BASE!$A:$D,2,FALSE) -> 7000634 | BA42: шт. | BB42: 1 | BC42: DFB 45 100 FS | BD42: =VLOOKUP(BC42,BASE!$A:$D,2,FALSE) -> 7128819 | BE42: шт. | BF42: 1 | BG42: Не требуется | BH42: --- | BI42: --- | BJ42: 0 | BK42: Не требуется | BL42: --- | BM42: --- | BN42: 0 | BO42: RLVL 110 FS | BP42: =VLOOKUP(BO42,BASE!$A:$D,2,FALSE) -> 6067131 | BQ42: шт. | BR42: 4 | BS42: RBV 110 S FS | BT42: =VLOOKUP(BS42,BASE!$A:$D,2,FALSE) -> 7007310 | BU42: шт. | BV42: 1 | BW42: DBV 100 S FS | BX42: =VLOOKUP(BW42,BASE!$A:$D,2,FALSE) -> 7130805 | BY42: шт. | BZ42: 1 | CA42: FRSB 6X12 G | CB42: =VLOOKUP(CA42,BASE!$A:$D,2,FALSE) -> 6406130 | CC42: шт. | CD42: 16 | CE42: RBV 110 F FS | CF42: =VLOOKUP(CE42,BASE!$A:$D,2,FALSE) -> 7007350 | CG42: шт. | CH42: 1 | CI42: DBV 110 100 F FS | CJ42: =VLOOKUP(CI42,BASE!$A:$D,2,FALSE) -> 7131030 | CK42: шт. | CL42: 1 | CM42: FRSB 6X12 G | CN42: =VLOOKUP(CM42,BASE!$A:$D,2,FALSE) -> 6406130 | CO42: шт. | CP42: 16 | CQ42: RGBV 110 FS | CR42: =VLOOKUP(CQ42,BASE!$A:$D,2,FALSE) -> 7006624 | CS42: шт. | CT42: 1 | CU42: Не требуется | CV42: --- | CW42: --- | CX42: 0 | CY42: Не требуется | CZ42: --- | DA42: --- | DB42: 0 | DC42: Не требуется | DD42: --- | DE42: --- | DF42: 0 | DG42: RT 110 FS | DH42: =VLOOKUP(DG42,BASE!$A:$D,2,FALSE) -> 7003633 | DI42: шт. | DJ42: 1 | DK42: DFT 100 FS | DL42: =VLOOKUP(DK42,BASE!$A:$D,2,FALSE) -> 7128215 | DM42: шт. | DN42: 1 | DO42: Не требуется | DP42: --- | DQ42: --- | DR42: 0 | DS42: Не требуется | DT42: --- | DU42: --- | DV42: 0 | DW42: Не требуется | DX42: --- | DY42: --- | DZ42: 0 | EA42: RAA 110 FS | EB42: =VLOOKUP(EA42,BASE!$A:$D,2,FALSE) -> 7002637 | EC42: шт. | ED42: 1 | EE42: DFAA 100 FS | EF42: =VLOOKUP(EE42,BASE!$A:$D,2,FALSE) -> 7128428 | EG42: шт. | EH42: 1 | EI42: Не требуется | EJ42: --- | EK42: --- | EL42: 0 | EM42: Не требуется | EN42: --- | EO42: --- | EP42: 0 | EQ42: Не требуется | ER42: --- | ES42: --- | ET42: 0 | EU42: RK 110 FS | EV42: =VLOOKUP(EU42,BASE!$A:$D,2,FALSE) -> 7004648 | EW42: шт. | EX42: 1 | EY42: DFK 100 FS | EZ42: =VLOOKUP(EY42,BASE!$A:$D,2,FALSE) -> 7128614 | FA42: шт. | FB42: 1 | FC42: Не требуется | FD42: --- | FE42: --- | FF42: 0 | FG42: Не требуется | FH42: --- | FI42: --- | FJ42: 0 | FK42: Не требуется | FL42: --- | FM42: --- | FN42: 0 | FO42: RWEB 110 FS | FP42: =VLOOKUP(FO42,BASE!$A:$D,2,FALSE) -> 7111096 | FQ42: шт. | FR42: 1 | FT42: 185 | FU42: 185 | FV42: 130 | FW42: 75 | FX42: 60
A43: MKS 120 FS | B43: =VLOOKUP(A43,BASE!$A:$D,2,FALSE) -> 6060196 | C43: м | D43: 3 | E43: Листовой | F43: Перфорированный | G43: Конв.цинк. | H43: 1 | I43: 110 | J43: 200 | K43: DRL 200 FS | L43: =VLOOKUP(K43,BASE!$A:$D,2,FALSE) -> 6052207 | M43: м | N43: 3 | O43: Не требуется | P43: --- | Q43: --- | R43: 0 | S43: Не требуется | T43: --- | U43: --- | V43: 0 | W43: TSG 110 FS | X43: =VLOOKUP(W43,BASE!$A:$D,2,FALSE) -> 6062122 | Y43: м | Z43: 3 | AA43: TSGV A2 | AB43: =VLOOKUP(AA43,BASE!$A:$D,2,FALSE) -> 6067970 | AC43: шт. | AD43: 1 | AE43: FRSB 6X12 G | AF43: =VLOOKUP(AE43,BASE!$A:$D,2,FALSE) -> 6406130 | AG43: шт. | AH43: 6 | AI43: RB 90 120 FS | AJ43: =VLOOKUP(AI43,BASE!$A:$D,2,FALSE) -> 7001916 | AK43: шт. | AL43: 1 | AM43: DFB 90 200 FS | AN43: =VLOOKUP(AM43,BASE!$A:$D,2,FALSE) -> 7129637 | AO43: шт. | AP43: 1 | AQ43: Не требуется | AR43: --- | AS43: --- | AT43: 0 | AU43: Не требуется | AV43: --- | AW43: --- | AX43: 0 | AY43: RB 45 120 FS | AZ43: =VLOOKUP(AY43,BASE!$A:$D,2,FALSE) -> 7000650 | BA43: шт. | BB43: 1 | BC43: DFB 45 200 FS | BD43: =VLOOKUP(BC43,BASE!$A:$D,2,FALSE) -> 7128835 | BE43: шт. | BF43: 1 | BG43: Не требуется | BH43: --- | BI43: --- | BJ43: 0 | BK43: Не требуется | BL43: --- | BM43: --- | BN43: 0 | BO43: RLVL 110 FS | BP43: =VLOOKUP(BO43,BASE!$A:$D,2,FALSE) -> 6067131 | BQ43: шт. | BR43: 4 | BS43: RBV 120 S FS | BT43: =VLOOKUP(BS43,BASE!$A:$D,2,FALSE) -> 7007314 | BU43: шт. | BV43: 1 | BW43: DBV 200 S FS | BX43: =VLOOKUP(BW43,BASE!$A:$D,2,FALSE) -> 7130813 | BY43: шт. | BZ43: 1 | CA43: FRSB 6X12 G | CB43: =VLOOKUP(CA43,BASE!$A:$D,2,FALSE) -> 6406130 | CC43: шт. | CD43: 16 | CE43: RBV 120 F FS | CF43: =VLOOKUP(CE43,BASE!$A:$D,2,FALSE) -> 7007354 | CG43: шт. | CH43: 1 | CI43: DBV 110 200 F FS | CJ43: =VLOOKUP(CI43,BASE!$A:$D,2,FALSE) -> 7131034 | CK43: шт. | CL43: 1 | CM43: FRSB 6X12 G | CN43: =VLOOKUP(CM43,BASE!$A:$D,2,FALSE) -> 6406130 | CO43: шт. | CP43: 16 | CQ43: RGBV 120 FS | CR43: =VLOOKUP(CQ43,BASE!$A:$D,2,FALSE) -> 7006640 | CS43: шт. | CT43: 1 | CU43: Не требуется | CV43: --- | CW43: --- | CX43: 0 | CY43: Не требуется | CZ43: --- | DA43: --- | DB43: 0 | DC43: Не требуется | DD43: --- | DE43: --- | DF43: 0 | DG43: RT 120 FS | DH43: =VLOOKUP(DG43,BASE!$A:$D,2,FALSE) -> 7003668 | DI43: шт. | DJ43: 1 | DK43: DFT 200 FS | DL43: =VLOOKUP(DK43,BASE!$A:$D,2,FALSE) -> 7128231 | DM43: шт. | DN43: 1 | DO43: Не требуется | DP43: --- | DQ43: --- | DR43: 0 | DS43: Не требуется | DT43: --- | DU43: --- | DV43: 0 | DW43: Не требуется | DX43: --- | DY43: --- | DZ43: 0 | EA43: RAA 120 FS | EB43: =VLOOKUP(EA43,BASE!$A:$D,2,FALSE) -> 7002653 | EC43: шт. | ED43: 1 | EE43: DFAA 200 FS | EF43: =VLOOKUP(EE43,BASE!$A:$D,2,FALSE) -> 7128444 | EG43: шт. | EH43: 1 | EI43: Не требуется | EJ43: --- | EK43: --- | EL43: 0 | EM43: Не требуется | EN43: --- | EO43: --- | EP43: 0 | EQ43: Не требуется | ER43: --- | ES43: --- | ET43: 0 | EU43: RK 120 FS | EV43: =VLOOKUP(EU43,BASE!$A:$D,2,FALSE) -> 7004664 | EW43: шт. | EX43: 1 | EY43: DFK 200 FS | EZ43: =VLOOKUP(EY43,BASE!$A:$D,2,FALSE) -> 7128630 | FA43: шт. | FB43: 1 | FC43: Не требуется | FD43: --- | FE43: --- | FF43: 0 | FG43: Не требуется | FH43: --- | FI43: --- | FJ43: 0 | FK43: Не требуется | FL43: --- | FM43: --- | FN43: 0 | FO43: RWEB 120 FS | FP43: =VLOOKUP(FO43,BASE!$A:$D,2,FALSE) -> 7111207 | FQ43: шт. | FR43: 1 | FT43: 185 | FU43: 185 | FV43: 130 | FW43: 75 | FX43: 60
A44: MKS 130 FS | B44: =VLOOKUP(A44,BASE!$A:$D,2,FALSE) -> 6060307 | C44: м | D44: 3 | E44: Листовой | F44: Перфорированный | G44: Конв.цинк. | H44: 1 | I44: 110 | J44: 300 | K44: DRL 300 FS | L44: =VLOOKUP(K44,BASE!$A:$D,2,FALSE) -> 6052304 | M44: м | N44: 3 | O44: Не требуется | P44: --- | Q44: --- | R44: 0 | S44: Не требуется | T44: --- | U44: --- | V44: 0 | W44: TSG 110 FS | X44: =VLOOKUP(W44,BASE!$A:$D,2,FALSE) -> 6062122 | Y44: м | Z44: 3 | AA44: TSGV A2 | AB44: =VLOOKUP(AA44,BASE!$A:$D,2,FALSE) -> 6067970 | AC44: шт. | AD44: 1 | AE44: FRSB 6X12 G | AF44: =VLOOKUP(AE44,BASE!$A:$D,2,FALSE) -> 6406130 | AG44: шт. | AH44: 6 | AI44: RB 90 130 FS | AJ44: =VLOOKUP(AI44,BASE!$A:$D,2,FALSE) -> 7001932 | AK44: шт. | AL44: 1 | AM44: DFB 90 300 FS | AN44: =VLOOKUP(AM44,BASE!$A:$D,2,FALSE) -> 7129653 | AO44: шт. | AP44: 1 | AQ44: Не требуется | AR44: --- | AS44: --- | AT44: 0 | AU44: Не требуется | AV44: --- | AW44: --- | AX44: 0 | AY44: RB 45 130 FS | AZ44: =VLOOKUP(AY44,BASE!$A:$D,2,FALSE) -> 7000677 | BA44: шт. | BB44: 1 | BC44: DFB 45 300 FS | BD44: =VLOOKUP(BC44,BASE!$A:$D,2,FALSE) -> 7128851 | BE44: шт. | BF44: 1 | BG44: Не требуется | BH44: --- | BI44: --- | BJ44: 0 | BK44: Не требуется | BL44: --- | BM44: --- | BN44: 0 | BO44: RLVL 110 FS | BP44: =VLOOKUP(BO44,BASE!$A:$D,2,FALSE) -> 6067131 | BQ44: шт. | BR44: 4 | BS44: RBV 130 S FS | BT44: =VLOOKUP(BS44,BASE!$A:$D,2,FALSE) -> 7007318 | BU44: шт. | BV44: 1 | BW44: DBV 300 S FS | BX44: =VLOOKUP(BW44,BASE!$A:$D,2,FALSE) -> 7130817 | BY44: шт. | BZ44: 1 | CA44: FRSB 6X12 G | CB44: =VLOOKUP(CA44,BASE!$A:$D,2,FALSE) -> 6406130 | CC44: шт. | CD44: 16 | CE44: RBV 130 F FS | CF44: =VLOOKUP(CE44,BASE!$A:$D,2,FALSE) -> 7007358 | CG44: шт. | CH44: 1 | CI44: DBV 110 300 F FS | CJ44: =VLOOKUP(CI44,BASE!$A:$D,2,FALSE) -> 7131038 | CK44: шт. | CL44: 1 | CM44: FRSB 6X12 G | CN44: =VLOOKUP(CM44,BASE!$A:$D,2,FALSE) -> 6406130 | CO44: шт. | CP44: 16 | CQ44: RGBV 130 FS | CR44: =VLOOKUP(CQ44,BASE!$A:$D,2,FALSE) -> 7006667 | CS44: шт. | CT44: 1 | CU44: Не требуется | CV44: --- | CW44: --- | CX44: 0 | CY44: Не требуется | CZ44: --- | DA44: --- | DB44: 0 | DC44: Не требуется | DD44: --- | DE44: --- | DF44: 0 | DG44: RT 130 FS | DH44: =VLOOKUP(DG44,BASE!$A:$D,2,FALSE) -> 7003684 | DI44: шт. | DJ44: 1 | DK44: DFT 300 FS | DL44: =VLOOKUP(DK44,BASE!$A:$D,2,FALSE) -> 7128266 | DM44: шт. | DN44: 1 | DO44: Не требуется | DP44: --- | DQ44: --- | DR44: 0 | DS44: Не требуется | DT44: --- | DU44: --- | DV44: 0 | DW44: Не требуется | DX44: --- | DY44: --- | DZ44: 0 | EA44: RAA 130 FS | EB44: =VLOOKUP(EA44,BASE!$A:$D,2,FALSE) -> 7002688 | EC44: шт. | ED44: 1 | EE44: DFAA 300 FS | EF44: =VLOOKUP(EE44,BASE!$A:$D,2,FALSE) -> 7128460 | EG44: шт. | EH44: 1 | EI44: Не требуется | EJ44: --- | EK44: --- | EL44: 0 | EM44: Не требуется | EN44: --- | EO44: --- | EP44: 0 | EQ44: Не требуется | ER44: --- | ES44: --- | ET44: 0 | EU44: RK 130 FS | EV44: =VLOOKUP(EU44,BASE!$A:$D,2,FALSE) -> 7004680 | EW44: шт. | EX44: 1 | EY44: DFK 300 FS | EZ44: =VLOOKUP(EY44,BASE!$A:$D,2,FALSE) -> 7128657 | FA44: шт. | FB44: 1 | FC44: Не требуется | FD44: --- | FE44: --- | FF44: 0 | FG44: Не требуется | FH44: --- | FI44: --- | FJ44: 0 | FK44: Не требуется | FL44: --- | FM44: --- | FN44: 0 | FO44: RWEB 130 FS | FP44: =VLOOKUP(FO44,BASE!$A:$D,2,FALSE) -> 7111304 | FQ44: шт. | FR44: 1 | FT44: 185 | FU44: 185 | FV44: 130 | FW44: 75 | FX44: 60
A45: MKS 140 FS | B45: =VLOOKUP(A45,BASE!$A:$D,2,FALSE) -> 6060404 | C45: м | D45: 3 | E45: Листовой | F45: Перфорированный | G45: Конв.цинк. | H45: 1 | I45: 110 | J45: 400 | K45: DRL 400 FS | L45: =VLOOKUP(K45,BASE!$A:$D,2,FALSE) -> 6052401 | M45: м | N45: 3 | O45: Не требуется | P45: --- | Q45: --- | R45: 0 | S45: Не требуется | T45: --- | U45: --- | V45: 0 | W45: TSG 110 FS | X45: =VLOOKUP(W45,BASE!$A:$D,2,FALSE) -> 6062122 | Y45: м | Z45: 3 | AA45: TSGV A2 | AB45: =VLOOKUP(AA45,BASE!$A:$D,2,FALSE) -> 6067970 | AC45: шт. | AD45: 1 | AE45: FRSB 6X12 G | AF45: =VLOOKUP(AE45,BASE!$A:$D,2,FALSE) -> 6406130 | AG45: шт. | AH45: 6 | AI45: RB 90 140 FS | AJ45: =VLOOKUP(AI45,BASE!$A:$D,2,FALSE) -> 7001940 | AK45: шт. | AL45: 1 | AM45: DFB 90 400 FS | AN45: =VLOOKUP(AM45,BASE!$A:$D,2,FALSE) -> 7129688 | AO45: шт. | AP45: 1 | AQ45: RLVL 110 FS | AR45: =VLOOKUP(AQ45,BASE!$A:$D,2,FALSE) -> 6067131 | AS45: шт. | AT45: 4 | AU45: SSLB 400 FS | AV45: =VLOOKUP(AU45,BASE!$A:$D,2,FALSE) -> 7070221 | AW45: шт. | AX45: 2 | AY45: RB 45 140 FS | AZ45: =VLOOKUP(AY45,BASE!$A:$D,2,FALSE) -> 7000685 | BA45: шт. | BB45: 1 | BC45: DFB 45 400 FS | BD45: =VLOOKUP(BC45,BASE!$A:$D,2,FALSE) -> 7128886 | BE45: шт. | BF45: 1 | BG45: RLVL 110 FS | BH45: =VLOOKUP(BG45,BASE!$A:$D,2,FALSE) -> 6067131 | BI45: шт. | BJ45: 4 | BK45: SSLB 400 FS | BL45: =VLOOKUP(BK45,BASE!$A:$D,2,FALSE) -> 7070221 | BM45: шт. | BN45: 2 | BO45: RLVL 110 FS | BP45: =VLOOKUP(BO45,BASE!$A:$D,2,FALSE) -> 6067131 | BQ45: шт. | BR45: 4 | BS45: RBV 140 S FS | BT45: =VLOOKUP(BS45,BASE!$A:$D,2,FALSE) -> 7007322 | BU45: шт. | BV45: 1 | BW45: DBV 400 S FS | BX45: =VLOOKUP(BW45,BASE!$A:$D,2,FALSE) -> 7130821 | BY45: шт. | BZ45: 1 | CA45: FRSB 6X12 G | CB45: =VLOOKUP(CA45,BASE!$A:$D,2,FALSE) -> 6406130 | CC45: шт. | CD45: 16 | CE45: RBV 140 F FS | CF45: =VLOOKUP(CE45,BASE!$A:$D,2,FALSE) -> 7007362 | CG45: шт. | CH45: 1 | CI45: DBV 110 400 F FS | CJ45: =VLOOKUP(CI45,BASE!$A:$D,2,FALSE) -> 7131042 | CK45: шт. | CL45: 1 | CM45: FRSB 6X12 G | CN45: =VLOOKUP(CM45,BASE!$A:$D,2,FALSE) -> 6406130 | CO45: шт. | CP45: 16 | CQ45: RGBV 140 FS | CR45: =VLOOKUP(CQ45,BASE!$A:$D,2,FALSE) -> 7006683 | CS45: шт. | CT45: 1 | CU45: Не требуется | CV45: --- | CW45: --- | CX45: 0 | CY45: Не требуется | CZ45: --- | DA45: --- | DB45: 0 | DC45: Не требуется | DD45: --- | DE45: --- | DF45: 0 | DG45: RT 140 FS | DH45: =VLOOKUP(DG45,BASE!$A:$D,2,FALSE) -> 7003692 | DI45: шт. | DJ45: 1 | DK45: DFT 400 FS | DL45: =VLOOKUP(DK45,BASE!$A:$D,2,FALSE) -> 7128282 | DM45: шт. | DN45: 1 | DO45: RLVL 110 FS | DP45: =VLOOKUP(DO45,BASE!$A:$D,2,FALSE) -> 6067131 | DQ45: шт. | DR45: 6 | DS45: SSLB 400 FS | DT45: =VLOOKUP(DS45,BASE!$A:$D,2,FALSE) -> 7070221 | DU45: шт. | DV45: 3 | DW45: Не требуется | DX45: --- | DY45: --- | DZ45: 0 | EA45: RAA 140 FS | EB45: =VLOOKUP(EA45,BASE!$A:$D,2,FALSE) -> 7002696 | EC45: шт. | ED45: 1 | EE45: DFAA 400 FS | EF45: =VLOOKUP(EE45,BASE!$A:$D,2,FALSE) -> 7128487 | EG45: шт. | EH45: 1 | EI45: RLVL 110 FS | EJ45: =VLOOKUP(EI45,BASE!$A:$D,2,FALSE) -> 6067131 | EK45: шт. | EL45: 2 | EM45: SSLB 400 FS | EN45: =VLOOKUP(EM45,BASE!$A:$D,2,FALSE) -> 7070221 | EO45: шт. | EP45: 1 | EQ45: FRSB 6X12 G | ER45: =VLOOKUP(EQ45,BASE!$A:$D,2,FALSE) -> 6406130 | ES45: шт. | ET45: 12 | EU45: RK 140 FS | EV45: =VLOOKUP(EU45,BASE!$A:$D,2,FALSE) -> 7004699 | EW45: шт. | EX45: 1 | EY45: DFK 400 FS | EZ45: =VLOOKUP(EY45,BASE!$A:$D,2,FALSE) -> 7128673 | FA45: шт. | FB45: 1 | FC45: RLVL 110 FS | FD45: =VLOOKUP(FC45,BASE!$A:$D,2,FALSE) -> 6067131 | FE45: шт. | FF45: 8 | FG45: SSLB 400 FS | FH45: =VLOOKUP(FG45,BASE!$A:$D,2,FALSE) -> 7070221 | FI45: шт. | FJ45: 4 | FK45: Не требуется | FL45: --- | FM45: --- | FN45: 0 | FO45: RWEB 140 FS | FP45: =VLOOKUP(FO45,BASE!$A:$D,2,FALSE) -> 7111428 | FQ45: шт. | FR45: 1 | FT45: 185 | FU45: 185 | FV45: 130 | FW45: 75 | FX45: 60
A46: MKS 150 FS | B46: =VLOOKUP(A46,BASE!$A:$D,2,FALSE) -> 6060412 | C46: м | D46: 3 | E46: Листовой | F46: Перфорированный | G46: Конв.цинк. | H46: 1 | I46: 110 | J46: 500 | K46: DRL 500 FS | L46: =VLOOKUP(K46,BASE!$A:$D,2,FALSE) -> 6052509 | M46: м | N46: 3 | O46: Не требуется | P46: --- | Q46: --- | R46: 0 | S46: Не требуется | T46: --- | U46: --- | V46: 0 | W46: TSG 110 FS | X46: =VLOOKUP(W46,BASE!$A:$D,2,FALSE) -> 6062122 | Y46: м | Z46: 3 | AA46: TSGV A2 | AB46: =VLOOKUP(AA46,BASE!$A:$D,2,FALSE) -> 6067970 | AC46: шт. | AD46: 1 | AE46: FRSB 6X12 G | AF46: =VLOOKUP(AE46,BASE!$A:$D,2,FALSE) -> 6406130 | AG46: шт. | AH46: 6 | AI46: RB 90 150 FS | AJ46: =VLOOKUP(AI46,BASE!$A:$D,2,FALSE) -> 7001967 | AK46: шт. | AL46: 1 | AM46: DFB 90 500 FS | AN46: =VLOOKUP(AM46,BASE!$A:$D,2,FALSE) -> 7129718 | AO46: шт. | AP46: 1 | AQ46: RLVL 110 FS | AR46: =VLOOKUP(AQ46,BASE!$A:$D,2,FALSE) -> 6067131 | AS46: шт. | AT46: 4 | AU46: SSLB 500 FS | AV46: =VLOOKUP(AU46,BASE!$A:$D,2,FALSE) -> 7070225 | AW46: шт. | AX46: 2 | AY46: RB 45 150 FS | AZ46: =VLOOKUP(AY46,BASE!$A:$D,2,FALSE) -> 7000707 | BA46: шт. | BB46: 1 | BC46: DFB 45 500 FS | BD46: =VLOOKUP(BC46,BASE!$A:$D,2,FALSE) -> 7128908 | BE46: шт. | BF46: 1 | BG46: RLVL 110 FS | BH46: =VLOOKUP(BG46,BASE!$A:$D,2,FALSE) -> 6067131 | BI46: шт. | BJ46: 4 | BK46: SSLB 500 FS | BL46: =VLOOKUP(BK46,BASE!$A:$D,2,FALSE) -> 7070225 | BM46: шт. | BN46: 2 | BO46: RLVL 110 FS | BP46: =VLOOKUP(BO46,BASE!$A:$D,2,FALSE) -> 6067131 | BQ46: шт. | BR46: 4 | BS46: RBV 150 S FS | BT46: =VLOOKUP(BS46,BASE!$A:$D,2,FALSE) -> 7007326 | BU46: шт. | BV46: 1 | BW46: DBV 500 S FS | BX46: =VLOOKUP(BW46,BASE!$A:$D,2,FALSE) -> 7130825 | BY46: шт. | BZ46: 1 | CA46: FRSB 6X12 G | CB46: =VLOOKUP(CA46,BASE!$A:$D,2,FALSE) -> 6406130 | CC46: шт. | CD46: 16 | CE46: RBV 150 F FS | CF46: =VLOOKUP(CE46,BASE!$A:$D,2,FALSE) -> 7007366 | CG46: шт. | CH46: 1 | CI46: DBV 110 500 F FS | CJ46: =VLOOKUP(CI46,BASE!$A:$D,2,FALSE) -> 7131046 | CK46: шт. | CL46: 1 | CM46: FRSB 6X12 G | CN46: =VLOOKUP(CM46,BASE!$A:$D,2,FALSE) -> 6406130 | CO46: шт. | CP46: 16 | CQ46: RGBV 150 FS | CR46: =VLOOKUP(CQ46,BASE!$A:$D,2,FALSE) -> 7006705 | CS46: шт. | CT46: 1 | CU46: Не требуется | CV46: --- | CW46: --- | CX46: 0 | CY46: Не требуется | CZ46: --- | DA46: --- | DB46: 0 | DC46: Не требуется | DD46: --- | DE46: --- | DF46: 0 | DG46: RT 150 FS | DH46: =VLOOKUP(DG46,BASE!$A:$D,2,FALSE) -> 7003714 | DI46: шт. | DJ46: 1 | DK46: DFT 500 FS | DL46: =VLOOKUP(DK46,BASE!$A:$D,2,FALSE) -> 7128304 | DM46: шт. | DN46: 1 | DO46: RLVL 110 FS | DP46: =VLOOKUP(DO46,BASE!$A:$D,2,FALSE) -> 6067131 | DQ46: шт. | DR46: 6 | DS46: SSLB 500 FS | DT46: =VLOOKUP(DS46,BASE!$A:$D,2,FALSE) -> 7070225 | DU46: шт. | DV46: 3 | DW46: Не требуется | DX46: --- | DY46: --- | DZ46: 0 | EA46: RAA 150 FS | EB46: =VLOOKUP(EA46,BASE!$A:$D,2,FALSE) -> 7002726 | EC46: шт. | ED46: 1 | EE46: DFAA 500 FS | EF46: =VLOOKUP(EE46,BASE!$A:$D,2,FALSE) -> 7128509 | EG46: шт. | EH46: 1 | EI46: RLVL 110 FS | EJ46: =VLOOKUP(EI46,BASE!$A:$D,2,FALSE) -> 6067131 | EK46: шт. | EL46: 2 | EM46: SSLB 500 FS | EN46: =VLOOKUP(EM46,BASE!$A:$D,2,FALSE) -> 7070225 | EO46: шт. | EP46: 1 | EQ46: FRSB 6X12 G | ER46: =VLOOKUP(EQ46,BASE!$A:$D,2,FALSE) -> 6406130 | ES46: шт. | ET46: 12 | EU46: RK 150 FS | EV46: =VLOOKUP(EU46,BASE!$A:$D,2,FALSE) -> 7004710 | EW46: шт. | EX46: 1 | EY46: DFK 500 FS | EZ46: =VLOOKUP(EY46,BASE!$A:$D,2,FALSE) -> 7128703 | FA46: шт. | FB46: 1 | FC46: RLVL 110 FS | FD46: =VLOOKUP(FC46,BASE!$A:$D,2,FALSE) -> 6067131 | FE46: шт. | FF46: 8 | FG46: SSLB 500 FS | FH46: =VLOOKUP(FG46,BASE!$A:$D,2,FALSE) -> 7070225 | FI46: шт. | FJ46: 4 | FK46: Не требуется | FL46: --- | FM46: --- | FN46: 0 | FO46: RWEB 150 FS | FP46: =VLOOKUP(FO46,BASE!$A:$D,2,FALSE) -> 7111509 | FQ46: шт. | FR46: 1 | FT46: 185 | FU46: 185 | FV46: 130 | FW46: 75 | FX46: 60
A47: MKS 155 FS | B47: =VLOOKUP(A47,BASE!$A:$D,2,FALSE) -> 6060528 | C47: м | D47: 3 | E47: Листовой | F47: Перфорированный | G47: Конв.цинк. | H47: 1 | I47: 110 | J47: 550 | K47: DRL 550 FS | L47: =VLOOKUP(K47,BASE!$A:$D,2,FALSE) -> 6052568 | M47: м | N47: 3 | O47: Не требуется | P47: --- | Q47: --- | R47: 0 | S47: Не требуется | T47: --- | U47: --- | V47: 0 | W47: TSG 110 FS | X47: =VLOOKUP(W47,BASE!$A:$D,2,FALSE) -> 6062122 | Y47: м | Z47: 3 | AA47: TSGV A2 | AB47: =VLOOKUP(AA47,BASE!$A:$D,2,FALSE) -> 6067970 | AC47: шт. | AD47: 1 | AE47: FRSB 6X12 G | AF47: =VLOOKUP(AE47,BASE!$A:$D,2,FALSE) -> 6406130 | AG47: шт. | AH47: 6 | AI47: RB 90 155 FS | AJ47: =VLOOKUP(AI47,BASE!$A:$D,2,FALSE) -> 7001975 | AK47: шт. | AL47: 1 | AM47: DFB 90 550 FS | AN47: =VLOOKUP(AM47,BASE!$A:$D,2,FALSE) -> 7129726 | AO47: шт. | AP47: 1 | AQ47: RLVL 110 FS | AR47: =VLOOKUP(AQ47,BASE!$A:$D,2,FALSE) -> 6067131 | AS47: шт. | AT47: 4 | AU47: SSLB 550 FS | AV47: =VLOOKUP(AU47,BASE!$A:$D,2,FALSE) -> 7070229 | AW47: шт. | AX47: 2 | AY47: RB 45 155 FS | AZ47: =VLOOKUP(AY47,BASE!$A:$D,2,FALSE) -> 7000715 | BA47: шт. | BB47: 1 | BC47: DFB 45 550 FS | BD47: =VLOOKUP(BC47,BASE!$A:$D,2,FALSE) -> 7128916 | BE47: шт. | BF47: 1 | BG47: RLVL 110 FS | BH47: =VLOOKUP(BG47,BASE!$A:$D,2,FALSE) -> 6067131 | BI47: шт. | BJ47: 4 | BK47: SSLB 550 FS | BL47: =VLOOKUP(BK47,BASE!$A:$D,2,FALSE) -> 7070229 | BM47: шт. | BN47: 2 | BO47: RLVL 110 FS | BP47: =VLOOKUP(BO47,BASE!$A:$D,2,FALSE) -> 6067131 | BQ47: шт. | BR47: 4 | BS47: RBV 155 S FS | BT47: =VLOOKUP(BS47,BASE!$A:$D,2,FALSE) -> 7007330 | BU47: шт. | BV47: 1 | BW47: DBV 550 S FS | BX47: =VLOOKUP(BW47,BASE!$A:$D,2,FALSE) ->  | BY47: шт. | BZ47: 1 | CA47: FRSB 6X12 G | CB47: =VLOOKUP(CA47,BASE!$A:$D,2,FALSE) -> 6406130 | CC47: шт. | CD47: 16 | CE47: RBV 155 F FS | CF47: =VLOOKUP(CE47,BASE!$A:$D,2,FALSE) -> 7007370 | CG47: шт. | CH47: 1 | CI47: DBV 110 550 F FS | CJ47: =VLOOKUP(CI47,BASE!$A:$D,2,FALSE) -> 7131050 | CK47: шт. | CL47: 1 | CM47: FRSB 6X12 G | CN47: =VLOOKUP(CM47,BASE!$A:$D,2,FALSE) -> 6406130 | CO47: шт. | CP47: 16 | CQ47: RGBV 155 FS | CR47: =VLOOKUP(CQ47,BASE!$A:$D,2,FALSE) -> 7006713 | CS47: шт. | CT47: 1 | CU47: Не требуется | CV47: --- | CW47: --- | CX47: 0 | CY47: Не требуется | CZ47: --- | DA47: --- | DB47: 0 | DC47: Не требуется | DD47: --- | DE47: --- | DF47: 0 | DG47: RT 155 FS | DH47: =VLOOKUP(DG47,BASE!$A:$D,2,FALSE) -> 7003722 | DI47: шт. | DJ47: 1 | DK47: DFT 550 FS | DL47: =VLOOKUP(DK47,BASE!$A:$D,2,FALSE) -> 7128312 | DM47: шт. | DN47: 1 | DO47: RLVL 110 FS | DP47: =VLOOKUP(DO47,BASE!$A:$D,2,FALSE) -> 6067131 | DQ47: шт. | DR47: 6 | DS47: SSLB 550 FS | DT47: =VLOOKUP(DS47,BASE!$A:$D,2,FALSE) -> 7070229 | DU47: шт. | DV47: 3 | DW47: Не требуется | DX47: --- | DY47: --- | DZ47: 0 | EA47: RAA 155 FS | EB47: =VLOOKUP(EA47,BASE!$A:$D,2,FALSE) -> 7002734 | EC47: шт. | ED47: 1 | EE47: DFAA 550 FS | EF47: =VLOOKUP(EE47,BASE!$A:$D,2,FALSE) -> 7128517 | EG47: шт. | EH47: 1 | EI47: RLVL 110 FS | EJ47: =VLOOKUP(EI47,BASE!$A:$D,2,FALSE) -> 6067131 | EK47: шт. | EL47: 2 | EM47: SSLB 550 FS | EN47: =VLOOKUP(EM47,BASE!$A:$D,2,FALSE) -> 7070229 | EO47: шт. | EP47: 1 | EQ47: FRSB 6X12 G | ER47: =VLOOKUP(EQ47,BASE!$A:$D,2,FALSE) -> 6406130 | ES47: шт. | ET47: 12 | EU47: RK 155 FS | EV47: =VLOOKUP(EU47,BASE!$A:$D,2,FALSE) -> 7004729 | EW47: шт. | EX47: 1 | EY47: DFK 550 FS | EZ47: =VLOOKUP(EY47,BASE!$A:$D,2,FALSE) -> 7128711 | FA47: шт. | FB47: 1 | FC47: RLVL 110 FS | FD47: =VLOOKUP(FC47,BASE!$A:$D,2,FALSE) -> 6067131 | FE47: шт. | FF47: 8 | FG47: SSLB 550 FS | FH47: =VLOOKUP(FG47,BASE!$A:$D,2,FALSE) -> 7070229 | FI47: шт. | FJ47: 4 | FK47: Не требуется | FL47: --- | FM47: --- | FN47: 0 | FO47: RWEB 155 FS | FP47: =VLOOKUP(FO47,BASE!$A:$D,2,FALSE) -> 7111541 | FQ47: шт. | FR47: 1 | FT47: 185 | FU47: 185 | FV47: 130 | FW47: 75 | FX47: 60
A48: SKS 110 FS | B48: =VLOOKUP(A48,BASE!$A:$D,2,FALSE) -> 6061109 | C48: м | D48: 3 | E48: Листовой | F48: Перфорированный | G48: Конв.цинк. | H48: 1.5 | I48: 110 | J48: 100 | K48: DRL 100 FS | L48: =VLOOKUP(K48,BASE!$A:$D,2,FALSE) -> 6052096 | M48: м | N48: 3 | O48: Не требуется | P48: --- | Q48: --- | R48: 0 | S48: Не требуется | T48: --- | U48: --- | V48: 0 | W48: TSG 110 FS | X48: =VLOOKUP(W48,BASE!$A:$D,2,FALSE) -> 6062122 | Y48: м | Z48: 3 | AA48: TSGV A2 | AB48: =VLOOKUP(AA48,BASE!$A:$D,2,FALSE) -> 6067970 | AC48: шт. | AD48: 1 | AE48: FRSB 6X12 G | AF48: =VLOOKUP(AE48,BASE!$A:$D,2,FALSE) -> 6406130 | AG48: шт. | AH48: 6 | AI48: RB 90 110 FS | AJ48: =VLOOKUP(AI48,BASE!$A:$D,2,FALSE) -> 7001894 | AK48: шт. | AL48: 1 | AM48: DFB 90 100 FS | AN48: =VLOOKUP(AM48,BASE!$A:$D,2,FALSE) -> 7129610 | AO48: шт. | AP48: 1 | AQ48: Не требуется | AR48: --- | AS48: --- | AT48: 0 | AU48: Не требуется | AV48: --- | AW48: --- | AX48: 0 | AY48: RB 45 110 FS | AZ48: =VLOOKUP(AY48,BASE!$A:$D,2,FALSE) -> 7000634 | BA48: шт. | BB48: 1 | BC48: DFB 45 100 FS | BD48: =VLOOKUP(BC48,BASE!$A:$D,2,FALSE) -> 7128819 | BE48: шт. | BF48: 1 | BG48: Не требуется | BH48: --- | BI48: --- | BJ48: 0 | BK48: Не требуется | BL48: --- | BM48: --- | BN48: 0 | BO48: RLVL 110 FS | BP48: =VLOOKUP(BO48,BASE!$A:$D,2,FALSE) -> 6067131 | BQ48: шт. | BR48: 4 | BS48: RBV 110 S FS | BT48: =VLOOKUP(BS48,BASE!$A:$D,2,FALSE) -> 7007310 | BU48: шт. | BV48: 1 | BW48: DBV 100 S FS | BX48: =VLOOKUP(BW48,BASE!$A:$D,2,FALSE) -> 7130805 | BY48: шт. | BZ48: 1 | CA48: FRSB 6X12 G | CB48: =VLOOKUP(CA48,BASE!$A:$D,2,FALSE) -> 6406130 | CC48: шт. | CD48: 16 | CE48: RBV 110 F FS | CF48: =VLOOKUP(CE48,BASE!$A:$D,2,FALSE) -> 7007350 | CG48: шт. | CH48: 1 | CI48: DBV 110 100 F FS | CJ48: =VLOOKUP(CI48,BASE!$A:$D,2,FALSE) -> 7131030 | CK48: шт. | CL48: 1 | CM48: FRSB 6X12 G | CN48: =VLOOKUP(CM48,BASE!$A:$D,2,FALSE) -> 6406130 | CO48: шт. | CP48: 16 | CQ48: RGBV 110 FS | CR48: =VLOOKUP(CQ48,BASE!$A:$D,2,FALSE) -> 7006624 | CS48: шт. | CT48: 1 | CU48: Не требуется | CV48: --- | CW48: --- | CX48: 0 | CY48: Не требуется | CZ48: --- | DA48: --- | DB48: 0 | DC48: Не требуется | DD48: --- | DE48: --- | DF48: 0 | DG48: RT 110 FS | DH48: =VLOOKUP(DG48,BASE!$A:$D,2,FALSE) -> 7003633 | DI48: шт. | DJ48: 1 | DK48: DFT 100 FS | DL48: =VLOOKUP(DK48,BASE!$A:$D,2,FALSE) -> 7128215 | DM48: шт. | DN48: 1 | DO48: Не требуется | DP48: --- | DQ48: --- | DR48: 0 | DS48: Не требуется | DT48: --- | DU48: --- | DV48: 0 | DW48: Не требуется | DX48: --- | DY48: --- | DZ48: 0 | EA48: RAA 110 FS | EB48: =VLOOKUP(EA48,BASE!$A:$D,2,FALSE) -> 7002637 | EC48: шт. | ED48: 1 | EE48: DFAA 100 FS | EF48: =VLOOKUP(EE48,BASE!$A:$D,2,FALSE) -> 7128428 | EG48: шт. | EH48: 1 | EI48: Не требуется | EJ48: --- | EK48: --- | EL48: 0 | EM48: Не требуется | EN48: --- | EO48: --- | EP48: 0 | EQ48: Не требуется | ER48: --- | ES48: --- | ET48: 0 | EU48: RK 110 FS | EV48: =VLOOKUP(EU48,BASE!$A:$D,2,FALSE) -> 7004648 | EW48: шт. | EX48: 1 | EY48: DFK 100 FS | EZ48: =VLOOKUP(EY48,BASE!$A:$D,2,FALSE) -> 7128614 | FA48: шт. | FB48: 1 | FC48: Не требуется | FD48: --- | FE48: --- | FF48: 0 | FG48: Не требуется | FH48: --- | FI48: --- | FJ48: 0 | FK48: Не требуется | FL48: --- | FM48: --- | FN48: 0 | FO48: RWEB 110 FS | FP48: =VLOOKUP(FO48,BASE!$A:$D,2,FALSE) -> 7111096 | FQ48: шт. | FR48: 1 | FT48: 300 | FU48: 300 | FV48: 240 | FW48: 180 | FX48: 120 | FY48: 100 | FZ48: 80
A49: SKS 120 FS | B49: =VLOOKUP(A49,BASE!$A:$D,2,FALSE) -> 6061206 | C49: м | D49: 3 | E49: Листовой | F49: Перфорированный | G49: Конв.цинк. | H49: 1.5 | I49: 110 | J49: 200 | K49: DRL 200 FS | L49: =VLOOKUP(K49,BASE!$A:$D,2,FALSE) -> 6052207 | M49: м | N49: 3 | O49: Не требуется | P49: --- | Q49: --- | R49: 0 | S49: Не требуется | T49: --- | U49: --- | V49: 0 | W49: TSG 110 FS | X49: =VLOOKUP(W49,BASE!$A:$D,2,FALSE) -> 6062122 | Y49: м | Z49: 3 | AA49: TSGV A2 | AB49: =VLOOKUP(AA49,BASE!$A:$D,2,FALSE) -> 6067970 | AC49: шт. | AD49: 1 | AE49: FRSB 6X12 G | AF49: =VLOOKUP(AE49,BASE!$A:$D,2,FALSE) -> 6406130 | AG49: шт. | AH49: 6 | AI49: RB 90 120 FS | AJ49: =VLOOKUP(AI49,BASE!$A:$D,2,FALSE) -> 7001916 | AK49: шт. | AL49: 1 | AM49: DFB 90 200 FS | AN49: =VLOOKUP(AM49,BASE!$A:$D,2,FALSE) -> 7129637 | AO49: шт. | AP49: 1 | AQ49: Не требуется | AR49: --- | AS49: --- | AT49: 0 | AU49: Не требуется | AV49: --- | AW49: --- | AX49: 0 | AY49: RB 45 120 FS | AZ49: =VLOOKUP(AY49,BASE!$A:$D,2,FALSE) -> 7000650 | BA49: шт. | BB49: 1 | BC49: DFB 45 200 FS | BD49: =VLOOKUP(BC49,BASE!$A:$D,2,FALSE) -> 7128835 | BE49: шт. | BF49: 1 | BG49: Не требуется | BH49: --- | BI49: --- | BJ49: 0 | BK49: Не требуется | BL49: --- | BM49: --- | BN49: 0 | BO49: RLVL 110 FS | BP49: =VLOOKUP(BO49,BASE!$A:$D,2,FALSE) -> 6067131 | BQ49: шт. | BR49: 4 | BS49: RBV 120 S FS | BT49: =VLOOKUP(BS49,BASE!$A:$D,2,FALSE) -> 7007314 | BU49: шт. | BV49: 1 | BW49: DBV 200 S FS | BX49: =VLOOKUP(BW49,BASE!$A:$D,2,FALSE) -> 7130813 | BY49: шт. | BZ49: 1 | CA49: FRSB 6X12 G | CB49: =VLOOKUP(CA49,BASE!$A:$D,2,FALSE) -> 6406130 | CC49: шт. | CD49: 16 | CE49: RBV 120 F FS | CF49: =VLOOKUP(CE49,BASE!$A:$D,2,FALSE) -> 7007354 | CG49: шт. | CH49: 1 | CI49: DBV 110 200 F FS | CJ49: =VLOOKUP(CI49,BASE!$A:$D,2,FALSE) -> 7131034 | CK49: шт. | CL49: 1 | CM49: FRSB 6X12 G | CN49: =VLOOKUP(CM49,BASE!$A:$D,2,FALSE) -> 6406130 | CO49: шт. | CP49: 16 | CQ49: RGBV 120 FS | CR49: =VLOOKUP(CQ49,BASE!$A:$D,2,FALSE) -> 7006640 | CS49: шт. | CT49: 1 | CU49: Не требуется | CV49: --- | CW49: --- | CX49: 0 | CY49: Не требуется | CZ49: --- | DA49: --- | DB49: 0 | DC49: Не требуется | DD49: --- | DE49: --- | DF49: 0 | DG49: RT 120 FS | DH49: =VLOOKUP(DG49,BASE!$A:$D,2,FALSE) -> 7003668 | DI49: шт. | DJ49: 1 | DK49: DFT 200 FS | DL49: =VLOOKUP(DK49,BASE!$A:$D,2,FALSE) -> 7128231 | DM49: шт. | DN49: 1 | DO49: Не требуется | DP49: --- | DQ49: --- | DR49: 0 | DS49: Не требуется | DT49: --- | DU49: --- | DV49: 0 | DW49: Не требуется | DX49: --- | DY49: --- | DZ49: 0 | EA49: RAA 120 FS | EB49: =VLOOKUP(EA49,BASE!$A:$D,2,FALSE) -> 7002653 | EC49: шт. | ED49: 1 | EE49: DFAA 200 FS | EF49: =VLOOKUP(EE49,BASE!$A:$D,2,FALSE) -> 7128444 | EG49: шт. | EH49: 1 | EI49: Не требуется | EJ49: --- | EK49: --- | EL49: 0 | EM49: Не требуется | EN49: --- | EO49: --- | EP49: 0 | EQ49: Не требуется | ER49: --- | ES49: --- | ET49: 0 | EU49: RK 120 FS | EV49: =VLOOKUP(EU49,BASE!$A:$D,2,FALSE) -> 7004664 | EW49: шт. | EX49: 1 | EY49: DFK 200 FS | EZ49: =VLOOKUP(EY49,BASE!$A:$D,2,FALSE) -> 7128630 | FA49: шт. | FB49: 1 | FC49: Не требуется | FD49: --- | FE49: --- | FF49: 0 | FG49: Не требуется | FH49: --- | FI49: --- | FJ49: 0 | FK49: Не требуется | FL49: --- | FM49: --- | FN49: 0 | FO49: RWEB 120 FS | FP49: =VLOOKUP(FO49,BASE!$A:$D,2,FALSE) -> 7111207 | FQ49: шт. | FR49: 1 | FT49: 300 | FU49: 300 | FV49: 240 | FW49: 180 | FX49: 120 | FY49: 100 | FZ49: 80
A50: SKS 130 FS | B50: =VLOOKUP(A50,BASE!$A:$D,2,FALSE) -> 6061303 | C50: м | D50: 3 | E50: Листовой | F50: Перфорированный | G50: Конв.цинк. | H50: 1.5 | I50: 110 | J50: 300 | K50: DRL 300 FS | L50: =VLOOKUP(K50,BASE!$A:$D,2,FALSE) -> 6052304 | M50: м | N50: 3 | O50: Не требуется | P50: --- | Q50: --- | R50: 0 | S50: Не требуется | T50: --- | U50: --- | V50: 0 | W50: TSG 110 FS | X50: =VLOOKUP(W50,BASE!$A:$D,2,FALSE) -> 6062122 | Y50: м | Z50: 3 | AA50: TSGV A2 | AB50: =VLOOKUP(AA50,BASE!$A:$D,2,FALSE) -> 6067970 | AC50: шт. | AD50: 1 | AE50: FRSB 6X12 G | AF50: =VLOOKUP(AE50,BASE!$A:$D,2,FALSE) -> 6406130 | AG50: шт. | AH50: 6 | AI50: RB 90 130 FS | AJ50: =VLOOKUP(AI50,BASE!$A:$D,2,FALSE) -> 7001932 | AK50: шт. | AL50: 1 | AM50: DFB 90 300 FS | AN50: =VLOOKUP(AM50,BASE!$A:$D,2,FALSE) -> 7129653 | AO50: шт. | AP50: 1 | AQ50: Не требуется | AR50: --- | AS50: --- | AT50: 0 | AU50: Не требуется | AV50: --- | AW50: --- | AX50: 0 | AY50: RB 45 130 FS | AZ50: =VLOOKUP(AY50,BASE!$A:$D,2,FALSE) -> 7000677 | BA50: шт. | BB50: 1 | BC50: DFB 45 300 FS | BD50: =VLOOKUP(BC50,BASE!$A:$D,2,FALSE) -> 7128851 | BE50: шт. | BF50: 1 | BG50: Не требуется | BH50: --- | BI50: --- | BJ50: 0 | BK50: Не требуется | BL50: --- | BM50: --- | BN50: 0 | BO50: RLVL 110 FS | BP50: =VLOOKUP(BO50,BASE!$A:$D,2,FALSE) -> 6067131 | BQ50: шт. | BR50: 4 | BS50: RBV 130 S FS | BT50: =VLOOKUP(BS50,BASE!$A:$D,2,FALSE) -> 7007318 | BU50: шт. | BV50: 1 | BW50: DBV 300 S FS | BX50: =VLOOKUP(BW50,BASE!$A:$D,2,FALSE) -> 7130817 | BY50: шт. | BZ50: 1 | CA50: FRSB 6X12 G | CB50: =VLOOKUP(CA50,BASE!$A:$D,2,FALSE) -> 6406130 | CC50: шт. | CD50: 16 | CE50: RBV 130 F FS | CF50: =VLOOKUP(CE50,BASE!$A:$D,2,FALSE) -> 7007358 | CG50: шт. | CH50: 1 | CI50: DBV 110 300 F FS | CJ50: =VLOOKUP(CI50,BASE!$A:$D,2,FALSE) -> 7131038 | CK50: шт. | CL50: 1 | CM50: FRSB 6X12 G | CN50: =VLOOKUP(CM50,BASE!$A:$D,2,FALSE) -> 6406130 | CO50: шт. | CP50: 16 | CQ50: RGBV 130 FS | CR50: =VLOOKUP(CQ50,BASE!$A:$D,2,FALSE) -> 7006667 | CS50: шт. | CT50: 1 | CU50: Не требуется | CV50: --- | CW50: --- | CX50: 0 | CY50: Не требуется | CZ50: --- | DA50: --- | DB50: 0 | DC50: Не требуется | DD50: --- | DE50: --- | DF50: 0 | DG50: RT 130 FS | DH50: =VLOOKUP(DG50,BASE!$A:$D,2,FALSE) -> 7003684 | DI50: шт. | DJ50: 1 | DK50: DFT 300 FS | DL50: =VLOOKUP(DK50,BASE!$A:$D,2,FALSE) -> 7128266 | DM50: шт. | DN50: 1 | DO50: Не требуется | DP50: --- | DQ50: --- | DR50: 0 | DS50: Не требуется | DT50: --- | DU50: --- | DV50: 0 | DW50: Не требуется | DX50: --- | DY50: --- | DZ50: 0 | EA50: RAA 130 FS | EB50: =VLOOKUP(EA50,BASE!$A:$D,2,FALSE) -> 7002688 | EC50: шт. | ED50: 1 | EE50: DFAA 300 FS | EF50: =VLOOKUP(EE50,BASE!$A:$D,2,FALSE) -> 7128460 | EG50: шт. | EH50: 1 | EI50: Не требуется | EJ50: --- | EK50: --- | EL50: 0 | EM50: Не требуется | EN50: --- | EO50: --- | EP50: 0 | EQ50: Не требуется | ER50: --- | ES50: --- | ET50: 0 | EU50: RK 130 FS | EV50: =VLOOKUP(EU50,BASE!$A:$D,2,FALSE) -> 7004680 | EW50: шт. | EX50: 1 | EY50: DFK 300 FS | EZ50: =VLOOKUP(EY50,BASE!$A:$D,2,FALSE) -> 7128657 | FA50: шт. | FB50: 1 | FC50: Не требуется | FD50: --- | FE50: --- | FF50: 0 | FG50: Не требуется | FH50: --- | FI50: --- | FJ50: 0 | FK50: Не требуется | FL50: --- | FM50: --- | FN50: 0 | FO50: RWEB 130 FS | FP50: =VLOOKUP(FO50,BASE!$A:$D,2,FALSE) -> 7111304 | FQ50: шт. | FR50: 1 | FT50: 300 | FU50: 300 | FV50: 240 | FW50: 180 | FX50: 120 | FY50: 100 | FZ50: 80
A51: SKS 140 FS | B51: =VLOOKUP(A51,BASE!$A:$D,2,FALSE) -> 6061400 | C51: м | D51: 3 | E51: Листовой | F51: Перфорированный | G51: Конв.цинк. | H51: 1.5 | I51: 110 | J51: 400 | K51: DRL 400 FS | L51: =VLOOKUP(K51,BASE!$A:$D,2,FALSE) -> 6052401 | M51: м | N51: 3 | O51: Не требуется | P51: --- | Q51: --- | R51: 0 | S51: Не требуется | T51: --- | U51: --- | V51: 0 | W51: TSG 110 FS | X51: =VLOOKUP(W51,BASE!$A:$D,2,FALSE) -> 6062122 | Y51: м | Z51: 3 | AA51: TSGV A2 | AB51: =VLOOKUP(AA51,BASE!$A:$D,2,FALSE) -> 6067970 | AC51: шт. | AD51: 1 | AE51: FRSB 6X12 G | AF51: =VLOOKUP(AE51,BASE!$A:$D,2,FALSE) -> 6406130 | AG51: шт. | AH51: 6 | AI51: RB 90 140 FS | AJ51: =VLOOKUP(AI51,BASE!$A:$D,2,FALSE) -> 7001940 | AK51: шт. | AL51: 1 | AM51: DFB 90 400 FS | AN51: =VLOOKUP(AM51,BASE!$A:$D,2,FALSE) -> 7129688 | AO51: шт. | AP51: 1 | AQ51: RLVL 110 FS | AR51: =VLOOKUP(AQ51,BASE!$A:$D,2,FALSE) -> 6067131 | AS51: шт. | AT51: 4 | AU51: SSLB 400 FS | AV51: =VLOOKUP(AU51,BASE!$A:$D,2,FALSE) -> 7070221 | AW51: шт. | AX51: 2 | AY51: RB 45 140 FS | AZ51: =VLOOKUP(AY51,BASE!$A:$D,2,FALSE) -> 7000685 | BA51: шт. | BB51: 1 | BC51: DFB 45 400 FS | BD51: =VLOOKUP(BC51,BASE!$A:$D,2,FALSE) -> 7128886 | BE51: шт. | BF51: 1 | BG51: RLVL 110 FS | BH51: =VLOOKUP(BG51,BASE!$A:$D,2,FALSE) -> 6067131 | BI51: шт. | BJ51: 4 | BK51: SSLB 400 FS | BL51: =VLOOKUP(BK51,BASE!$A:$D,2,FALSE) -> 7070221 | BM51: шт. | BN51: 2 | BO51: RLVL 110 FS | BP51: =VLOOKUP(BO51,BASE!$A:$D,2,FALSE) -> 6067131 | BQ51: шт. | BR51: 4 | BS51: RBV 140 S FS | BT51: =VLOOKUP(BS51,BASE!$A:$D,2,FALSE) -> 7007322 | BU51: шт. | BV51: 1 | BW51: DBV 400 S FS | BX51: =VLOOKUP(BW51,BASE!$A:$D,2,FALSE) -> 7130821 | BY51: шт. | BZ51: 1 | CA51: FRSB 6X12 G | CB51: =VLOOKUP(CA51,BASE!$A:$D,2,FALSE) -> 6406130 | CC51: шт. | CD51: 16 | CE51: RBV 140 F FS | CF51: =VLOOKUP(CE51,BASE!$A:$D,2,FALSE) -> 7007362 | CG51: шт. | CH51: 1 | CI51: DBV 110 400 F FS | CJ51: =VLOOKUP(CI51,BASE!$A:$D,2,FALSE) -> 7131042 | CK51: шт. | CL51: 1 | CM51: FRSB 6X12 G | CN51: =VLOOKUP(CM51,BASE!$A:$D,2,FALSE) -> 6406130 | CO51: шт. | CP51: 16 | CQ51: RGBV 140 FS | CR51: =VLOOKUP(CQ51,BASE!$A:$D,2,FALSE) -> 7006683 | CS51: шт. | CT51: 1 | CU51: Не требуется | CV51: --- | CW51: --- | CX51: 0 | CY51: Не требуется | CZ51: --- | DA51: --- | DB51: 0 | DC51: Не требуется | DD51: --- | DE51: --- | DF51: 0 | DG51: RT 140 FS | DH51: =VLOOKUP(DG51,BASE!$A:$D,2,FALSE) -> 7003692 | DI51: шт. | DJ51: 1 | DK51: DFT 400 FS | DL51: =VLOOKUP(DK51,BASE!$A:$D,2,FALSE) -> 7128282 | DM51: шт. | DN51: 1 | DO51: RLVL 110 FS | DP51: =VLOOKUP(DO51,BASE!$A:$D,2,FALSE) -> 6067131 | DQ51: шт. | DR51: 6 | DS51: SSLB 400 FS | DT51: =VLOOKUP(DS51,BASE!$A:$D,2,FALSE) -> 7070221 | DU51: шт. | DV51: 3 | DW51: Не требуется | DX51: --- | DY51: --- | DZ51: 0 | EA51: RAA 140 FS | EB51: =VLOOKUP(EA51,BASE!$A:$D,2,FALSE) -> 7002696 | EC51: шт. | ED51: 1 | EE51: DFAA 400 FS | EF51: =VLOOKUP(EE51,BASE!$A:$D,2,FALSE) -> 7128487 | EG51: шт. | EH51: 1 | EI51: RLVL 110 FS | EJ51: =VLOOKUP(EI51,BASE!$A:$D,2,FALSE) -> 6067131 | EK51: шт. | EL51: 2 | EM51: SSLB 400 FS | EN51: =VLOOKUP(EM51,BASE!$A:$D,2,FALSE) -> 7070221 | EO51: шт. | EP51: 1 | EQ51: FRSB 6X12 G | ER51: =VLOOKUP(EQ51,BASE!$A:$D,2,FALSE) -> 6406130 | ES51: шт. | ET51: 12 | EU51: RK 140 FS | EV51: =VLOOKUP(EU51,BASE!$A:$D,2,FALSE) -> 7004699 | EW51: шт. | EX51: 1 | EY51: DFK 400 FS | EZ51: =VLOOKUP(EY51,BASE!$A:$D,2,FALSE) -> 7128673 | FA51: шт. | FB51: 1 | FC51: RLVL 110 FS | FD51: =VLOOKUP(FC51,BASE!$A:$D,2,FALSE) -> 6067131 | FE51: шт. | FF51: 8 | FG51: SSLB 400 FS | FH51: =VLOOKUP(FG51,BASE!$A:$D,2,FALSE) -> 7070221 | FI51: шт. | FJ51: 4 | FK51: Не требуется | FL51: --- | FM51: --- | FN51: 0 | FO51: RWEB 140 FS | FP51: =VLOOKUP(FO51,BASE!$A:$D,2,FALSE) -> 7111428 | FQ51: шт. | FR51: 1 | FT51: 300 | FU51: 300 | FV51: 240 | FW51: 180 | FX51: 120 | FY51: 100 | FZ51: 80
A52: SKS 150 FS | B52: =VLOOKUP(A52,BASE!$A:$D,2,FALSE) -> 6061508 | C52: м | D52: 3 | E52: Листовой | F52: Перфорированный | G52: Конв.цинк. | H52: 1.5 | I52: 110 | J52: 500 | K52: DRL 500 FS | L52: =VLOOKUP(K52,BASE!$A:$D,2,FALSE) -> 6052509 | M52: м | N52: 3 | O52: Не требуется | P52: --- | Q52: --- | R52: 0 | S52: Не требуется | T52: --- | U52: --- | V52: 0 | W52: TSG 110 FS | X52: =VLOOKUP(W52,BASE!$A:$D,2,FALSE) -> 6062122 | Y52: м | Z52: 3 | AA52: TSGV A2 | AB52: =VLOOKUP(AA52,BASE!$A:$D,2,FALSE) -> 6067970 | AC52: шт. | AD52: 1 | AE52: FRSB 6X12 G | AF52: =VLOOKUP(AE52,BASE!$A:$D,2,FALSE) -> 6406130 | AG52: шт. | AH52: 6 | AI52: RB 90 150 FS | AJ52: =VLOOKUP(AI52,BASE!$A:$D,2,FALSE) -> 7001967 | AK52: шт. | AL52: 1 | AM52: DFB 90 500 FS | AN52: =VLOOKUP(AM52,BASE!$A:$D,2,FALSE) -> 7129718 | AO52: шт. | AP52: 1 | AQ52: RLVL 110 FS | AR52: =VLOOKUP(AQ52,BASE!$A:$D,2,FALSE) -> 6067131 | AS52: шт. | AT52: 4 | AU52: SSLB 500 FS | AV52: =VLOOKUP(AU52,BASE!$A:$D,2,FALSE) -> 7070225 | AW52: шт. | AX52: 2 | AY52: RB 45 150 FS | AZ52: =VLOOKUP(AY52,BASE!$A:$D,2,FALSE) -> 7000707 | BA52: шт. | BB52: 1 | BC52: DFB 45 500 FS | BD52: =VLOOKUP(BC52,BASE!$A:$D,2,FALSE) -> 7128908 | BE52: шт. | BF52: 1 | BG52: RLVL 110 FS | BH52: =VLOOKUP(BG52,BASE!$A:$D,2,FALSE) -> 6067131 | BI52: шт. | BJ52: 4 | BK52: SSLB 500 FS | BL52: =VLOOKUP(BK52,BASE!$A:$D,2,FALSE) -> 7070225 | BM52: шт. | BN52: 2 | BO52: RLVL 110 FS | BP52: =VLOOKUP(BO52,BASE!$A:$D,2,FALSE) -> 6067131 | BQ52: шт. | BR52: 4 | BS52: RBV 150 S FS | BT52: =VLOOKUP(BS52,BASE!$A:$D,2,FALSE) -> 7007326 | BU52: шт. | BV52: 1 | BW52: DBV 500 S FS | BX52: =VLOOKUP(BW52,BASE!$A:$D,2,FALSE) -> 7130825 | BY52: шт. | BZ52: 1 | CA52: FRSB 6X12 G | CB52: =VLOOKUP(CA52,BASE!$A:$D,2,FALSE) -> 6406130 | CC52: шт. | CD52: 16 | CE52: RBV 150 F FS | CF52: =VLOOKUP(CE52,BASE!$A:$D,2,FALSE) -> 7007366 | CG52: шт. | CH52: 1 | CI52: DBV 110 500 F FS | CJ52: =VLOOKUP(CI52,BASE!$A:$D,2,FALSE) -> 7131046 | CK52: шт. | CL52: 1 | CM52: FRSB 6X12 G | CN52: =VLOOKUP(CM52,BASE!$A:$D,2,FALSE) -> 6406130 | CO52: шт. | CP52: 16 | CQ52: RGBV 150 FS | CR52: =VLOOKUP(CQ52,BASE!$A:$D,2,FALSE) -> 7006705 | CS52: шт. | CT52: 1 | CU52: Не требуется | CV52: --- | CW52: --- | CX52: 0 | CY52: Не требуется | CZ52: --- | DA52: --- | DB52: 0 | DC52: Не требуется | DD52: --- | DE52: --- | DF52: 0 | DG52: RT 150 FS | DH52: =VLOOKUP(DG52,BASE!$A:$D,2,FALSE) -> 7003714 | DI52: шт. | DJ52: 1 | DK52: DFT 500 FS | DL52: =VLOOKUP(DK52,BASE!$A:$D,2,FALSE) -> 7128304 | DM52: шт. | DN52: 1 | DO52: RLVL 110 FS | DP52: =VLOOKUP(DO52,BASE!$A:$D,2,FALSE) -> 6067131 | DQ52: шт. | DR52: 6 | DS52: SSLB 500 FS | DT52: =VLOOKUP(DS52,BASE!$A:$D,2,FALSE) -> 7070225 | DU52: шт. | DV52: 3 | DW52: Не требуется | DX52: --- | DY52: --- | DZ52: 0 | EA52: RAA 150 FS | EB52: =VLOOKUP(EA52,BASE!$A:$D,2,FALSE) -> 7002726 | EC52: шт. | ED52: 1 | EE52: DFAA 500 FS | EF52: =VLOOKUP(EE52,BASE!$A:$D,2,FALSE) -> 7128509 | EG52: шт. | EH52: 1 | EI52: RLVL 110 FS | EJ52: =VLOOKUP(EI52,BASE!$A:$D,2,FALSE) -> 6067131 | EK52: шт. | EL52: 2 | EM52: SSLB 500 FS | EN52: =VLOOKUP(EM52,BASE!$A:$D,2,FALSE) -> 7070225 | EO52: шт. | EP52: 1 | EQ52: FRSB 6X12 G | ER52: =VLOOKUP(EQ52,BASE!$A:$D,2,FALSE) -> 6406130 | ES52: шт. | ET52: 12 | EU52: RK 150 FS | EV52: =VLOOKUP(EU52,BASE!$A:$D,2,FALSE) -> 7004710 | EW52: шт. | EX52: 1 | EY52: DFK 500 FS | EZ52: =VLOOKUP(EY52,BASE!$A:$D,2,FALSE) -> 7128703 | FA52: шт. | FB52: 1 | FC52: RLVL 110 FS | FD52: =VLOOKUP(FC52,BASE!$A:$D,2,FALSE) -> 6067131 | FE52: шт. | FF52: 8 | FG52: SSLB 500 FS | FH52: =VLOOKUP(FG52,BASE!$A:$D,2,FALSE) -> 7070225 | FI52: шт. | FJ52: 4 | FK52: Не требуется | FL52: --- | FM52: --- | FN52: 0 | FO52: RWEB 150 FS | FP52: =VLOOKUP(FO52,BASE!$A:$D,2,FALSE) -> 7111509 | FQ52: шт. | FR52: 1 | FT52: 300 | FU52: 300 | FV52: 240 | FW52: 180 | FX52: 120 | FY52: 100 | FZ52: 80
A53: SKS 155 FS | B53: =VLOOKUP(A53,BASE!$A:$D,2,FALSE) -> 6061559 | C53: м | D53: 3 | E53: Листовой | F53: Перфорированный | G53: Конв.цинк. | H53: 1.5 | I53: 110 | J53: 550 | K53: DRL 550 FS | L53: =VLOOKUP(K53,BASE!$A:$D,2,FALSE) -> 6052568 | M53: м | N53: 3 | O53: Не требуется | P53: --- | Q53: --- | R53: 0 | S53: Не требуется | T53: --- | U53: --- | V53: 0 | W53: TSG 110 FS | X53: =VLOOKUP(W53,BASE!$A:$D,2,FALSE) -> 6062122 | Y53: м | Z53: 3 | AA53: TSGV A2 | AB53: =VLOOKUP(AA53,BASE!$A:$D,2,FALSE) -> 6067970 | AC53: шт. | AD53: 1 | AE53: FRSB 6X12 G | AF53: =VLOOKUP(AE53,BASE!$A:$D,2,FALSE) -> 6406130 | AG53: шт. | AH53: 6 | AI53: RB 90 155 FS | AJ53: =VLOOKUP(AI53,BASE!$A:$D,2,FALSE) -> 7001975 | AK53: шт. | AL53: 1 | AM53: DFB 90 550 FS | AN53: =VLOOKUP(AM53,BASE!$A:$D,2,FALSE) -> 7129726 | AO53: шт. | AP53: 1 | AQ53: RLVL 110 FS | AR53: =VLOOKUP(AQ53,BASE!$A:$D,2,FALSE) -> 6067131 | AS53: шт. | AT53: 4 | AU53: SSLB 550 FS | AV53: =VLOOKUP(AU53,BASE!$A:$D,2,FALSE) -> 7070229 | AW53: шт. | AX53: 2 | AY53: RB 45 155 FS | AZ53: =VLOOKUP(AY53,BASE!$A:$D,2,FALSE) -> 7000715 | BA53: шт. | BB53: 1 | BC53: DFB 45 550 FS | BD53: =VLOOKUP(BC53,BASE!$A:$D,2,FALSE) -> 7128916 | BE53: шт. | BF53: 1 | BG53: RLVL 110 FS | BH53: =VLOOKUP(BG53,BASE!$A:$D,2,FALSE) -> 6067131 | BI53: шт. | BJ53: 4 | BK53: SSLB 550 FS | BL53: =VLOOKUP(BK53,BASE!$A:$D,2,FALSE) -> 7070229 | BM53: шт. | BN53: 2 | BO53: RLVL 110 FS | BP53: =VLOOKUP(BO53,BASE!$A:$D,2,FALSE) -> 6067131 | BQ53: шт. | BR53: 4 | BS53: RBV 155 S FS | BT53: =VLOOKUP(BS53,BASE!$A:$D,2,FALSE) -> 7007330 | BU53: шт. | BV53: 1 | BW53: DBV 550 S FS | BX53: =VLOOKUP(BW53,BASE!$A:$D,2,FALSE) ->  | BY53: шт. | BZ53: 1 | CA53: FRSB 6X12 G | CB53: =VLOOKUP(CA53,BASE!$A:$D,2,FALSE) -> 6406130 | CC53: шт. | CD53: 16 | CE53: RBV 155 F FS | CF53: =VLOOKUP(CE53,BASE!$A:$D,2,FALSE) -> 7007370 | CG53: шт. | CH53: 1 | CI53: DBV 110 550 F FS | CJ53: =VLOOKUP(CI53,BASE!$A:$D,2,FALSE) -> 7131050 | CK53: шт. | CL53: 1 | CM53: FRSB 6X12 G | CN53: =VLOOKUP(CM53,BASE!$A:$D,2,FALSE) -> 6406130 | CO53: шт. | CP53: 16 | CQ53: RGBV 155 FS | CR53: =VLOOKUP(CQ53,BASE!$A:$D,2,FALSE) -> 7006713 | CS53: шт. | CT53: 1 | CU53: Не требуется | CV53: --- | CW53: --- | CX53: 0 | CY53: Не требуется | CZ53: --- | DA53: --- | DB53: 0 | DC53: Не требуется | DD53: --- | DE53: --- | DF53: 0 | DG53: RT 155 FS | DH53: =VLOOKUP(DG53,BASE!$A:$D,2,FALSE) -> 7003722 | DI53: шт. | DJ53: 1 | DK53: DFT 550 FS | DL53: =VLOOKUP(DK53,BASE!$A:$D,2,FALSE) -> 7128312 | DM53: шт. | DN53: 1 | DO53: RLVL 110 FS | DP53: =VLOOKUP(DO53,BASE!$A:$D,2,FALSE) -> 6067131 | DQ53: шт. | DR53: 6 | DS53: SSLB 550 FS | DT53: =VLOOKUP(DS53,BASE!$A:$D,2,FALSE) -> 7070229 | DU53: шт. | DV53: 3 | DW53: Не требуется | DX53: --- | DY53: --- | DZ53: 0 | EA53: RAA 155 FS | EB53: =VLOOKUP(EA53,BASE!$A:$D,2,FALSE) -> 7002734 | EC53: шт. | ED53: 1 | EE53: DFAA 550 FS | EF53: =VLOOKUP(EE53,BASE!$A:$D,2,FALSE) -> 7128517 | EG53: шт. | EH53: 1 | EI53: RLVL 110 FS | EJ53: =VLOOKUP(EI53,BASE!$A:$D,2,FALSE) -> 6067131 | EK53: шт. | EL53: 2 | EM53: SSLB 550 FS | EN53: =VLOOKUP(EM53,BASE!$A:$D,2,FALSE) -> 7070229 | EO53: шт. | EP53: 1 | EQ53: FRSB 6X12 G | ER53: =VLOOKUP(EQ53,BASE!$A:$D,2,FALSE) -> 6406130 | ES53: шт. | ET53: 12 | EU53: RK 155 FS | EV53: =VLOOKUP(EU53,BASE!$A:$D,2,FALSE) -> 7004729 | EW53: шт. | EX53: 1 | EY53: DFK 550 FS | EZ53: =VLOOKUP(EY53,BASE!$A:$D,2,FALSE) -> 7128711 | FA53: шт. | FB53: 1 | FC53: RLVL 110 FS | FD53: =VLOOKUP(FC53,BASE!$A:$D,2,FALSE) -> 6067131 | FE53: шт. | FF53: 8 | FG53: SSLB 550 FS | FH53: =VLOOKUP(FG53,BASE!$A:$D,2,FALSE) -> 7070229 | FI53: шт. | FJ53: 4 | FK53: Не требуется | FL53: --- | FM53: --- | FN53: 0 | FO53: RWEB 155 FS | FP53: =VLOOKUP(FO53,BASE!$A:$D,2,FALSE) -> 7111541 | FQ53: шт. | FR53: 1 | FT53: 300 | FU53: 300 | FV53: 240 | FW53: 180 | FX53: 120 | FY53: 100 | FZ53: 80
A54: LKSU 610 FS RU | B54: =VLOOKUP(A54,BASE!$A:$D,2,FALSE) -> 6048940 | C54: м | D54: 3 | E54: Листовой | F54: Неперфорированный | G54: Конв.цинк. | H54: 0.7 | I54: 60 | J54: 100 | K54: DRLU 100 FS RU | L54: =VLOOKUP(K54,BASE!$A:$D,2,FALSE) -> 6052021 | M54: м | N54: 3 | O54: Не требуется | P54: --- | Q54: --- | R54: 0 | S54: RLVK 60 FS RU | T54: =VLOOKUP(S54,BASE!$A:$D,2,FALSE) -> 6067091 | U54: шт. | V54: 2 | W54: TSG 60 FS | X54: =VLOOKUP(W54,BASE!$A:$D,2,FALSE) -> 6062068 | Y54: м | Z54: 3 | AA54: TSGV A2 | AB54: =VLOOKUP(AA54,BASE!$A:$D,2,FALSE) -> 6067970 | AC54: шт. | AD54: 1 | AE54: FRSB 6X12 G | AF54: =VLOOKUP(AE54,BASE!$A:$D,2,FALSE) -> 6406130 | AG54: шт. | AH54: 6 | AI54: RBL 90 610 FS RU | AJ54: =VLOOKUP(AI54,BASE!$A:$D,2,FALSE) -> 6043092 | AK54: шт. | AL54: 1 | AM54: DFB 90 100 FS RU | AN54: =VLOOKUP(AM54,BASE!$A:$D,2,FALSE) -> 7129741 | AO54: шт. | AP54: 1 | AQ54: Не требуется | AR54: --- | AS54: --- | AT54: 0 | AU54: Не требуется | AV54: --- | AW54: --- | AX54: 0 | AY54: RBL 45 610 FS RU | AZ54: =VLOOKUP(AY54,BASE!$A:$D,2,FALSE) -> 6043682 | BA54: шт. | BB54: 1 | BC54: DFB 45 100 FS RU | BD54: =VLOOKUP(BC54,BASE!$A:$D,2,FALSE) -> 7128931 | BE54: шт. | BF54: 1 | BG54: Не требуется | BH54: --- | BI54: --- | BJ54: 0 | BK54: Не требуется | BL54: --- | BM54: --- | BN54: 0 | BO54: RWVL 60 FS RU | BP54: =VLOOKUP(BO54,BASE!$A:$D,2,FALSE) -> 6067117 | BQ54: шт. | BR54: 4 | BS54: RBV 610 S FS | BT54: =VLOOKUP(BS54,BASE!$A:$D,2,FALSE) -> 7007005 | BU54: шт. | BV54: 1 | BW54: DBV 100 S FS | BX54: =VLOOKUP(BW54,BASE!$A:$D,2,FALSE) -> 7130805 | BY54: шт. | BZ54: 1 | CA54: FRSB 6X12 G | CB54: =VLOOKUP(CA54,BASE!$A:$D,2,FALSE) -> 6406130 | CC54: шт. | CD54: 8 | CE54: RBV 610 F FS | CF54: =VLOOKUP(CE54,BASE!$A:$D,2,FALSE) -> 7007055 | CG54: шт. | CH54: 1 | CI54: DBV 60 100 F FS | CJ54: =VLOOKUP(CI54,BASE!$A:$D,2,FALSE) -> 7130852 | CK54: шт. | CL54: 1 | CM54: FRSB 6X12 G | CN54: =VLOOKUP(CM54,BASE!$A:$D,2,FALSE) -> 6406130 | CO54: шт. | CP54: 8 | CQ54: RGBEV 610 FS RU | CR54: =VLOOKUP(CQ54,BASE!$A:$D,2,FALSE) -> 7005431 | CS54: шт. | CT54: 1 | CU54: RGV 60 FS RU | CV54: =VLOOKUP(CU54,BASE!$A:$D,2,FALSE) -> 7082012 | CW54: шт. | CX54: 2 | CY54: FRSB 6X12 G | CZ54: =VLOOKUP(CY54,BASE!$A:$D,2,FALSE) -> 6406130 | DA54: шт. | DB54: 2 | DC54: SKS 6X12 F | DD54: =VLOOKUP(DC54,BASE!$A:$D,2,FALSE) -> 3156494 | DE54: шт. | DF54: 2 | DG54: RT 610 FS RU | DH54: =VLOOKUP(DG54,BASE!$A:$D,2,FALSE) -> 6043302 | DI54: шт. | DJ54: 1 | DK54: DFT 100 FS RU | DL54: =VLOOKUP(DK54,BASE!$A:$D,2,FALSE) -> 7128331 | DM54: шт. | DN54: 1 | DO54: Не требуется | DP54: --- | DQ54: --- | DR54: 0 | DS54: Не требуется | DT54: --- | DU54: --- | DV54: 0 | DW54: Не требуется | DX54: --- | DY54: --- | DZ54: 0 | EA54: RAA 610 FS RU | EB54: =VLOOKUP(EA54,BASE!$A:$D,2,FALSE) -> 6040252 | EC54: шт. | ED54: 1 | EE54: DFAA 100 FS RU | EF54: =VLOOKUP(EE54,BASE!$A:$D,2,FALSE) -> 7128531 | EG54: шт. | EH54: 1 | EI54: Не требуется | EJ54: --- | EK54: --- | EL54: 0 | EM54: Не требуется | EN54: --- | EO54: --- | EP54: 0 | EQ54: Не требуется | ER54: --- | ES54: --- | ET54: 0 | EU54: RK 610 FS RU | EV54: =VLOOKUP(EU54,BASE!$A:$D,2,FALSE) -> 6043652 | EW54: шт. | EX54: 1 | EY54: DFK 100 FS RU | EZ54: =VLOOKUP(EY54,BASE!$A:$D,2,FALSE) -> 7128750 | FA54: шт. | FB54: 1 | FC54: Не требуется | FD54: --- | FE54: --- | FF54: 0 | FG54: Не требуется | FH54: --- | FI54: --- | FJ54: 0 | FK54: Не требуется | FL54: --- | FM54: --- | FN54: 0 | FO54: RWEB 610 FS RU | FP54: =VLOOKUP(FO54,BASE!$A:$D,2,FALSE) -> 7109611 | FQ54: шт. | FR54: 1 | FT54: 140 | FU54: 80 | FV54: 45 | FW54: =FV54-25/2 -> 32.5 | FX54: 20
A55: LKSU 615 FS RU | B55: =VLOOKUP(A55,BASE!$A:$D,2,FALSE) -> 6048942 | C55: м | D55: 3 | E55: Листовой | F55: Неперфорированный | G55: Конв.цинк. | H55: 0.7 | I55: 60 | J55: 150 | K55: DRLU 150 FS RU | L55: =VLOOKUP(K55,BASE!$A:$D,2,FALSE) -> 6052022 | M55: м | N55: 3 | O55: Не требуется | P55: --- | Q55: --- | R55: 0 | S55: RLVK 60 FS RU | T55: =VLOOKUP(S55,BASE!$A:$D,2,FALSE) -> 6067091 | U55: шт. | V55: 2 | W55: TSG 60 FS | X55: =VLOOKUP(W55,BASE!$A:$D,2,FALSE) -> 6062068 | Y55: м | Z55: 3 | AA55: TSGV A2 | AB55: =VLOOKUP(AA55,BASE!$A:$D,2,FALSE) -> 6067970 | AC55: шт. | AD55: 1 | AE55: FRSB 6X12 G | AF55: =VLOOKUP(AE55,BASE!$A:$D,2,FALSE) -> 6406130 | AG55: шт. | AH55: 6 | AI55: RBL 90 615 FS RU | AJ55: =VLOOKUP(AI55,BASE!$A:$D,2,FALSE) -> 6043093 | AK55: шт. | AL55: 1 | AM55: DFB 90 150 FS RU | AN55: =VLOOKUP(AM55,BASE!$A:$D,2,FALSE) -> 7129742 | AO55: шт. | AP55: 1 | AQ55: Не требуется | AR55: --- | AS55: --- | AT55: 0 | AU55: Не требуется | AV55: --- | AW55: --- | AX55: 0 | AY55: RBL 45 615 FS RU | AZ55: =VLOOKUP(AY55,BASE!$A:$D,2,FALSE) -> 6043683 | BA55: шт. | BB55: 1 | BC55: DFB 45 150 FS RU | BD55: =VLOOKUP(BC55,BASE!$A:$D,2,FALSE) -> 7128932 | BE55: шт. | BF55: 1 | BG55: Не требуется | BH55: --- | BI55: --- | BJ55: 0 | BK55: Не требуется | BL55: --- | BM55: --- | BN55: 0 | BO55: RWVL 60 FS RU | BP55: =VLOOKUP(BO55,BASE!$A:$D,2,FALSE) -> 6067117 | BQ55: шт. | BR55: 4 | BS55: RBV 615 S FS | BT55: =VLOOKUP(BS55,BASE!$A:$D,2,FALSE) -> 7007009 | BU55: шт. | BV55: 1 | BW55: DBV 150 S FS | BX55: =VLOOKUP(BW55,BASE!$A:$D,2,FALSE) -> 7130809 | BY55: шт. | BZ55: 1 | CA55: FRSB 6X12 G | CB55: =VLOOKUP(CA55,BASE!$A:$D,2,FALSE) -> 6406130 | CC55: шт. | CD55: 8 | CE55: RBV 615 F FS | CF55: =VLOOKUP(CE55,BASE!$A:$D,2,FALSE) -> 7007059 | CG55: шт. | CH55: 1 | CI55: DBV 60 150 F FS | CJ55: =VLOOKUP(CI55,BASE!$A:$D,2,FALSE) -> 7130856 | CK55: шт. | CL55: 1 | CM55: FRSB 6X12 G | CN55: =VLOOKUP(CM55,BASE!$A:$D,2,FALSE) -> 6406130 | CO55: шт. | CP55: 8 | CQ55: RGBEV 650 FS RU | CR55: =VLOOKUP(CQ55,BASE!$A:$D,2,FALSE) -> 7005439 | CS55: шт. | CT55: 1 | CU55: RGV 60 FS RU | CV55: =VLOOKUP(CU55,BASE!$A:$D,2,FALSE) -> 7082012 | CW55: шт. | CX55: 2 | CY55: FRSB 6X12 G | CZ55: =VLOOKUP(CY55,BASE!$A:$D,2,FALSE) -> 6406130 | DA55: шт. | DB55: 2 | DC55: SKS 6X12 F | DD55: =VLOOKUP(DC55,BASE!$A:$D,2,FALSE) -> 3156494 | DE55: шт. | DF55: 2 | DG55: RT 615 FS RU | DH55: =VLOOKUP(DG55,BASE!$A:$D,2,FALSE) -> 6043303 | DI55: шт. | DJ55: 1 | DK55: DFT 150 FS RU | DL55: =VLOOKUP(DK55,BASE!$A:$D,2,FALSE) -> 7128332 | DM55: шт. | DN55: 1 | DO55: Не требуется | DP55: --- | DQ55: --- | DR55: 0 | DS55: Не требуется | DT55: --- | DU55: --- | DV55: 0 | DW55: Не требуется | DX55: --- | DY55: --- | DZ55: 0 | EA55: RAA 615 FS RU | EB55: =VLOOKUP(EA55,BASE!$A:$D,2,FALSE) -> 6040253 | EC55: шт. | ED55: 1 | EE55: DFAA 150 FS RU | EF55: =VLOOKUP(EE55,BASE!$A:$D,2,FALSE) -> 7128532 | EG55: шт. | EH55: 1 | EI55: Не требуется | EJ55: --- | EK55: --- | EL55: 0 | EM55: Не требуется | EN55: --- | EO55: --- | EP55: 0 | EQ55: Не требуется | ER55: --- | ES55: --- | ET55: 0 | EU55: RK 615 FS RU | EV55: =VLOOKUP(EU55,BASE!$A:$D,2,FALSE) -> 6043653 | EW55: шт. | EX55: 1 | EY55: DFK 150 FS RU | EZ55: =VLOOKUP(EY55,BASE!$A:$D,2,FALSE) -> 7128752 | FA55: шт. | FB55: 1 | FC55: Не требуется | FD55: --- | FE55: --- | FF55: 0 | FG55: Не требуется | FH55: --- | FI55: --- | FJ55: 0 | FK55: Не требуется | FL55: --- | FM55: --- | FN55: 0 | FO55: RWEB 615 FS RU | FP55: =VLOOKUP(FO55,BASE!$A:$D,2,FALSE) -> 7109612 | FQ55: шт. | FR55: 1 | FT55: 140 | FU55: 80 | FV55: 45 | FW55: 32.5 | FX55: 20
A56: LKSU 620 FS RU | B56: =VLOOKUP(A56,BASE!$A:$D,2,FALSE) -> 6048944 | C56: м | D56: 3 | E56: Листовой | F56: Неперфорированный | G56: Конв.цинк. | H56: 0.7 | I56: 60 | J56: 200 | K56: DRLU 200 FS RU | L56: =VLOOKUP(K56,BASE!$A:$D,2,FALSE) -> 6052023 | M56: м | N56: 3 | O56: Не требуется | P56: --- | Q56: --- | R56: 0 | S56: RLVK 60 FS RU | T56: =VLOOKUP(S56,BASE!$A:$D,2,FALSE) -> 6067091 | U56: шт. | V56: 2 | W56: TSG 60 FS | X56: =VLOOKUP(W56,BASE!$A:$D,2,FALSE) -> 6062068 | Y56: м | Z56: 3 | AA56: TSGV A2 | AB56: =VLOOKUP(AA56,BASE!$A:$D,2,FALSE) -> 6067970 | AC56: шт. | AD56: 1 | AE56: FRSB 6X12 G | AF56: =VLOOKUP(AE56,BASE!$A:$D,2,FALSE) -> 6406130 | AG56: шт. | AH56: 6 | AI56: RBL 90 620 FS RU | AJ56: =VLOOKUP(AI56,BASE!$A:$D,2,FALSE) -> 6043094 | AK56: шт. | AL56: 1 | AM56: DFB 90 200 FS RU | AN56: =VLOOKUP(AM56,BASE!$A:$D,2,FALSE) -> 7129743 | AO56: шт. | AP56: 1 | AQ56: Не требуется | AR56: --- | AS56: --- | AT56: 0 | AU56: Не требуется | AV56: --- | AW56: --- | AX56: 0 | AY56: RBL 45 620 FS RU | AZ56: =VLOOKUP(AY56,BASE!$A:$D,2,FALSE) -> 6043684 | BA56: шт. | BB56: 1 | BC56: DFB 45 200 FS RU | BD56: =VLOOKUP(BC56,BASE!$A:$D,2,FALSE) -> 7128933 | BE56: шт. | BF56: 1 | BG56: Не требуется | BH56: --- | BI56: --- | BJ56: 0 | BK56: Не требуется | BL56: --- | BM56: --- | BN56: 0 | BO56: RWVL 60 FS RU | BP56: =VLOOKUP(BO56,BASE!$A:$D,2,FALSE) -> 6067117 | BQ56: шт. | BR56: 4 | BS56: RBV 620 S FS | BT56: =VLOOKUP(BS56,BASE!$A:$D,2,FALSE) -> 7007013 | BU56: шт. | BV56: 1 | BW56: DBV 200 S FS | BX56: =VLOOKUP(BW56,BASE!$A:$D,2,FALSE) -> 7130813 | BY56: шт. | BZ56: 1 | CA56: FRSB 6X12 G | CB56: =VLOOKUP(CA56,BASE!$A:$D,2,FALSE) -> 6406130 | CC56: шт. | CD56: 8 | CE56: RBV 620 F FS | CF56: =VLOOKUP(CE56,BASE!$A:$D,2,FALSE) -> 7007063 | CG56: шт. | CH56: 1 | CI56: DBV 60 200 F FS | CJ56: =VLOOKUP(CI56,BASE!$A:$D,2,FALSE) -> 7130860 | CK56: шт. | CL56: 1 | CM56: FRSB 6X12 G | CN56: =VLOOKUP(CM56,BASE!$A:$D,2,FALSE) -> 6406130 | CO56: шт. | CP56: 8 | CQ56: RGBEV 620 FS RU | CR56: =VLOOKUP(CQ56,BASE!$A:$D,2,FALSE) -> 7005433 | CS56: шт. | CT56: 1 | CU56: RGV 60 FS RU | CV56: =VLOOKUP(CU56,BASE!$A:$D,2,FALSE) -> 7082012 | CW56: шт. | CX56: 2 | CY56: FRSB 6X12 G | CZ56: =VLOOKUP(CY56,BASE!$A:$D,2,FALSE) -> 6406130 | DA56: шт. | DB56: 2 | DC56: SKS 6X12 F | DD56: =VLOOKUP(DC56,BASE!$A:$D,2,FALSE) -> 3156494 | DE56: шт. | DF56: 2 | DG56: RT 620 FS RU | DH56: =VLOOKUP(DG56,BASE!$A:$D,2,FALSE) -> 6043304 | DI56: шт. | DJ56: 1 | DK56: DFT 200 FS RU | DL56: =VLOOKUP(DK56,BASE!$A:$D,2,FALSE) -> 7128333 | DM56: шт. | DN56: 1 | DO56: Не требуется | DP56: --- | DQ56: --- | DR56: 0 | DS56: Не требуется | DT56: --- | DU56: --- | DV56: 0 | DW56: Не требуется | DX56: --- | DY56: --- | DZ56: 0 | EA56: RAA 620 FS RU | EB56: =VLOOKUP(EA56,BASE!$A:$D,2,FALSE) -> 6040254 | EC56: шт. | ED56: 1 | EE56: DFAA 200 FS RU | EF56: =VLOOKUP(EE56,BASE!$A:$D,2,FALSE) -> 7128533 | EG56: шт. | EH56: 1 | EI56: Не требуется | EJ56: --- | EK56: --- | EL56: 0 | EM56: Не требуется | EN56: --- | EO56: --- | EP56: 0 | EQ56: Не требуется | ER56: --- | ES56: --- | ET56: 0 | EU56: RK 620 FS RU | EV56: =VLOOKUP(EU56,BASE!$A:$D,2,FALSE) -> 6043654 | EW56: шт. | EX56: 1 | EY56: DFK 200 FS RU | EZ56: =VLOOKUP(EY56,BASE!$A:$D,2,FALSE) -> 7128754 | FA56: шт. | FB56: 1 | FC56: Не требуется | FD56: --- | FE56: --- | FF56: 0 | FG56: Не требуется | FH56: --- | FI56: --- | FJ56: 0 | FK56: Не требуется | FL56: --- | FM56: --- | FN56: 0 | FO56: RWEB 620 FS RU | FP56: =VLOOKUP(FO56,BASE!$A:$D,2,FALSE) -> 7109613 | FQ56: шт. | FR56: 1 | FT56: 140 | FU56: 80 | FV56: 45 | FW56: 32.5 | FX56: 20
A57: LKSU 630 FS RU | B57: =VLOOKUP(A57,BASE!$A:$D,2,FALSE) -> 6048948 | C57: м | D57: 3 | E57: Листовой | F57: Неперфорированный | G57: Конв.цинк. | H57: 0.7 | I57: 60 | J57: 300 | K57: DRLU 300 FS RU | L57: =VLOOKUP(K57,BASE!$A:$D,2,FALSE) -> 6052025 | M57: м | N57: 3 | O57: Не требуется | P57: --- | Q57: --- | R57: 0 | S57: RLVK 60 FS RU | T57: =VLOOKUP(S57,BASE!$A:$D,2,FALSE) -> 6067091 | U57: шт. | V57: 2 | W57: TSG 60 FS | X57: =VLOOKUP(W57,BASE!$A:$D,2,FALSE) -> 6062068 | Y57: м | Z57: 3 | AA57: TSGV A2 | AB57: =VLOOKUP(AA57,BASE!$A:$D,2,FALSE) -> 6067970 | AC57: шт. | AD57: 1 | AE57: FRSB 6X12 G | AF57: =VLOOKUP(AE57,BASE!$A:$D,2,FALSE) -> 6406130 | AG57: шт. | AH57: 6 | AI57: RBL 90 630 FS RU | AJ57: =VLOOKUP(AI57,BASE!$A:$D,2,FALSE) -> 6043096 | AK57: шт. | AL57: 1 | AM57: DFB 90 300 FS RU | AN57: =VLOOKUP(AM57,BASE!$A:$D,2,FALSE) -> 7129745 | AO57: шт. | AP57: 1 | AQ57: Не требуется | AR57: --- | AS57: --- | AT57: 0 | AU57: Не требуется | AV57: --- | AW57: --- | AX57: 0 | AY57: RBL 45 630 FS RU | AZ57: =VLOOKUP(AY57,BASE!$A:$D,2,FALSE) -> 6043686 | BA57: шт. | BB57: 1 | BC57: DFB 45 300 FS RU | BD57: =VLOOKUP(BC57,BASE!$A:$D,2,FALSE) -> 7128935 | BE57: шт. | BF57: 1 | BG57: Не требуется | BH57: --- | BI57: --- | BJ57: 0 | BK57: Не требуется | BL57: --- | BM57: --- | BN57: 0 | BO57: RWVL 60 FS RU | BP57: =VLOOKUP(BO57,BASE!$A:$D,2,FALSE) -> 6067117 | BQ57: шт. | BR57: 4 | BS57: RBV 630 S FS | BT57: =VLOOKUP(BS57,BASE!$A:$D,2,FALSE) -> 7007017 | BU57: шт. | BV57: 1 | BW57: DBV 300 S FS | BX57: =VLOOKUP(BW57,BASE!$A:$D,2,FALSE) -> 7130817 | BY57: шт. | BZ57: 1 | CA57: FRSB 6X12 G | CB57: =VLOOKUP(CA57,BASE!$A:$D,2,FALSE) -> 6406130 | CC57: шт. | CD57: 8 | CE57: RBV 630 F FS | CF57: =VLOOKUP(CE57,BASE!$A:$D,2,FALSE) -> 7007067 | CG57: шт. | CH57: 1 | CI57: DBV 60 300 F FS | CJ57: =VLOOKUP(CI57,BASE!$A:$D,2,FALSE) -> 7130864 | CK57: шт. | CL57: 1 | CM57: FRSB 6X12 G | CN57: =VLOOKUP(CM57,BASE!$A:$D,2,FALSE) -> 6406130 | CO57: шт. | CP57: 8 | CQ57: RGBEV 630 FS RU | CR57: =VLOOKUP(CQ57,BASE!$A:$D,2,FALSE) -> 7005435 | CS57: шт. | CT57: 1 | CU57: RGV 60 FS RU | CV57: =VLOOKUP(CU57,BASE!$A:$D,2,FALSE) -> 7082012 | CW57: шт. | CX57: 2 | CY57: FRSB 6X12 G | CZ57: =VLOOKUP(CY57,BASE!$A:$D,2,FALSE) -> 6406130 | DA57: шт. | DB57: 2 | DC57: SKS 6X12 F | DD57: =VLOOKUP(DC57,BASE!$A:$D,2,FALSE) -> 3156494 | DE57: шт. | DF57: 2 | DG57: RT 630 FS RU | DH57: =VLOOKUP(DG57,BASE!$A:$D,2,FALSE) -> 6043306 | DI57: шт. | DJ57: 1 | DK57: DFT 300 FS RU | DL57: =VLOOKUP(DK57,BASE!$A:$D,2,FALSE) -> 7128335 | DM57: шт. | DN57: 1 | DO57: Не требуется | DP57: --- | DQ57: --- | DR57: 0 | DS57: Не требуется | DT57: --- | DU57: --- | DV57: 0 | DW57: Не требуется | DX57: --- | DY57: --- | DZ57: 0 | EA57: RAA 630 FS RU | EB57: =VLOOKUP(EA57,BASE!$A:$D,2,FALSE) -> 6040256 | EC57: шт. | ED57: 1 | EE57: DFAA 300 FS RU | EF57: =VLOOKUP(EE57,BASE!$A:$D,2,FALSE) -> 7128535 | EG57: шт. | EH57: 1 | EI57: Не требуется | EJ57: --- | EK57: --- | EL57: 0 | EM57: Не требуется | EN57: --- | EO57: --- | EP57: 0 | EQ57: Не требуется | ER57: --- | ES57: --- | ET57: 0 | EU57: RK 630 FS RU | EV57: =VLOOKUP(EU57,BASE!$A:$D,2,FALSE) -> 6043656 | EW57: шт. | EX57: 1 | EY57: DFK 300 FS RU | EZ57: =VLOOKUP(EY57,BASE!$A:$D,2,FALSE) -> 7128756 | FA57: шт. | FB57: 1 | FC57: Не требуется | FD57: --- | FE57: --- | FF57: 0 | FG57: Не требуется | FH57: --- | FI57: --- | FJ57: 0 | FK57: Не требуется | FL57: --- | FM57: --- | FN57: 0 | FO57: RWEB 630 FS RU | FP57: =VLOOKUP(FO57,BASE!$A:$D,2,FALSE) -> 7109615 | FQ57: шт. | FR57: 1 | FT57: 140 | FU57: 80 | FV57: 45 | FW57: 32.5 | FX57: 20
A58: LKSU 640 FS RU | B58: =VLOOKUP(A58,BASE!$A:$D,2,FALSE) -> 6048950 | C58: м | D58: 3 | E58: Листовой | F58: Неперфорированный | G58: Конв.цинк. | H58: 0.9 | I58: 60 | J58: 400 | K58: DRLU 400 FS RU | L58: =VLOOKUP(K58,BASE!$A:$D,2,FALSE) -> 6052027 | M58: м | N58: 3 | O58: Не требуется | P58: --- | Q58: --- | R58: 0 | S58: RLVK 60 FS RU | T58: =VLOOKUP(S58,BASE!$A:$D,2,FALSE) -> 6067091 | U58: шт. | V58: 2 | W58: TSG 60 FS | X58: =VLOOKUP(W58,BASE!$A:$D,2,FALSE) -> 6062068 | Y58: м | Z58: 3 | AA58: TSGV A2 | AB58: =VLOOKUP(AA58,BASE!$A:$D,2,FALSE) -> 6067970 | AC58: шт. | AD58: 1 | AE58: FRSB 6X12 G | AF58: =VLOOKUP(AE58,BASE!$A:$D,2,FALSE) -> 6406130 | AG58: шт. | AH58: 6 | AI58: RBL 90 640 FS RU | AJ58: =VLOOKUP(AI58,BASE!$A:$D,2,FALSE) -> 6043098 | AK58: шт. | AL58: 1 | AM58: DFB 90 400 FS RU | AN58: =VLOOKUP(AM58,BASE!$A:$D,2,FALSE) -> 7129747 | AO58: шт. | AP58: 1 | AQ58: Не требуется | AR58: --- | AS58: --- | AT58: 0 | AU58: Не требуется | AV58: --- | AW58: --- | AX58: 0 | AY58: RBL 45 640 FS RU | AZ58: =VLOOKUP(AY58,BASE!$A:$D,2,FALSE) -> 6043688 | BA58: шт. | BB58: 1 | BC58: DFB 45 400 FS RU | BD58: =VLOOKUP(BC58,BASE!$A:$D,2,FALSE) -> 7128937 | BE58: шт. | BF58: 1 | BG58: Не требуется | BH58: --- | BI58: --- | BJ58: 0 | BK58: Не требуется | BL58: --- | BM58: --- | BN58: 0 | BO58: RWVL 60 FS RU | BP58: =VLOOKUP(BO58,BASE!$A:$D,2,FALSE) -> 6067117 | BQ58: шт. | BR58: 4 | BS58: RBV 640 S FS | BT58: =VLOOKUP(BS58,BASE!$A:$D,2,FALSE) -> 7007021 | BU58: шт. | BV58: 1 | BW58: DBV 400 S FS | BX58: =VLOOKUP(BW58,BASE!$A:$D,2,FALSE) -> 7130821 | BY58: шт. | BZ58: 1 | CA58: FRSB 6X12 G | CB58: =VLOOKUP(CA58,BASE!$A:$D,2,FALSE) -> 6406130 | CC58: шт. | CD58: 8 | CE58: RBV 640 F FS | CF58: =VLOOKUP(CE58,BASE!$A:$D,2,FALSE) -> 7007071 | CG58: шт. | CH58: 1 | CI58: DBV 60 400 F FS | CJ58: =VLOOKUP(CI58,BASE!$A:$D,2,FALSE) -> 7130868 | CK58: шт. | CL58: 1 | CM58: FRSB 6X12 G | CN58: =VLOOKUP(CM58,BASE!$A:$D,2,FALSE) -> 6406130 | CO58: шт. | CP58: 8 | CQ58: RGBEV 640 FS RU | CR58: =VLOOKUP(CQ58,BASE!$A:$D,2,FALSE) -> 7005437 | CS58: шт. | CT58: 1 | CU58: RGV 60 FS RU | CV58: =VLOOKUP(CU58,BASE!$A:$D,2,FALSE) -> 7082012 | CW58: шт. | CX58: 2 | CY58: FRSB 6X12 G | CZ58: =VLOOKUP(CY58,BASE!$A:$D,2,FALSE) -> 6406130 | DA58: шт. | DB58: 2 | DC58: SKS 6X12 F | DD58: =VLOOKUP(DC58,BASE!$A:$D,2,FALSE) -> 3156494 | DE58: шт. | DF58: 2 | DG58: RT 640 FS RU | DH58: =VLOOKUP(DG58,BASE!$A:$D,2,FALSE) -> 6043308 | DI58: шт. | DJ58: 1 | DK58: DFT 400 FS RU | DL58: =VLOOKUP(DK58,BASE!$A:$D,2,FALSE) -> 7128337 | DM58: шт. | DN58: 1 | DO58: Не требуется | DP58: --- | DQ58: --- | DR58: 0 | DS58: Не требуется | DT58: --- | DU58: --- | DV58: 0 | DW58: Не требуется | DX58: --- | DY58: --- | DZ58: 0 | EA58: RAA 640 FS RU | EB58: =VLOOKUP(EA58,BASE!$A:$D,2,FALSE) -> 6040258 | EC58: шт. | ED58: 1 | EE58: DFAA 400 FS RU | EF58: =VLOOKUP(EE58,BASE!$A:$D,2,FALSE) -> 7128537 | EG58: шт. | EH58: 1 | EI58: Не требуется | EJ58: --- | EK58: --- | EL58: 0 | EM58: Не требуется | EN58: --- | EO58: --- | EP58: 0 | EQ58: Не требуется | ER58: --- | ES58: --- | ET58: 0 | EU58: RK 640 FS RU | EV58: =VLOOKUP(EU58,BASE!$A:$D,2,FALSE) -> 6043660 | EW58: шт. | EX58: 1 | EY58: DFK 400 FS RU | EZ58: =VLOOKUP(EY58,BASE!$A:$D,2,FALSE) -> 7128758 | FA58: шт. | FB58: 1 | FC58: Не требуется | FD58: --- | FE58: --- | FF58: 0 | FG58: Не требуется | FH58: --- | FI58: --- | FJ58: 0 | FK58: Не требуется | FL58: --- | FM58: --- | FN58: 0 | FO58: RWEB 640 FS RU | FP58: =VLOOKUP(FO58,BASE!$A:$D,2,FALSE) -> 7109617 | FQ58: шт. | FR58: 1 | FT58: 150 | FU58: 90 | FV58: 55 | FW58: 42.5 | FX58: 30
A59: LKSU 650 FS RU | B59: =VLOOKUP(A59,BASE!$A:$D,2,FALSE) -> 6048954 | C59: м | D59: 3 | E59: Листовой | F59: Неперфорированный | G59: Конв.цинк. | H59: 0.9 | I59: 60 | J59: 500 | K59: DRLU 500 FS RU | L59: =VLOOKUP(K59,BASE!$A:$D,2,FALSE) -> 6052031 | M59: м | N59: 3 | O59: Не требуется | P59: --- | Q59: --- | R59: 0 | S59: RLVK 60 FS RU | T59: =VLOOKUP(S59,BASE!$A:$D,2,FALSE) -> 6067091 | U59: шт. | V59: 2 | W59: TSG 60 FS | X59: =VLOOKUP(W59,BASE!$A:$D,2,FALSE) -> 6062068 | Y59: м | Z59: 3 | AA59: TSGV A2 | AB59: =VLOOKUP(AA59,BASE!$A:$D,2,FALSE) -> 6067970 | AC59: шт. | AD59: 1 | AE59: FRSB 6X12 G | AF59: =VLOOKUP(AE59,BASE!$A:$D,2,FALSE) -> 6406130 | AG59: шт. | AH59: 6 | AI59: RBL 90 650 FS RU | AJ59: =VLOOKUP(AI59,BASE!$A:$D,2,FALSE) -> 6043100 | AK59: шт. | AL59: 1 | AM59: DFB 90 500 FS RU | AN59: =VLOOKUP(AM59,BASE!$A:$D,2,FALSE) -> 7129749 | AO59: шт. | AP59: 1 | AQ59: Не требуется | AR59: --- | AS59: --- | AT59: 0 | AU59: Не требуется | AV59: --- | AW59: --- | AX59: 0 | AY59: RBL 45 650 FS RU | AZ59: =VLOOKUP(AY59,BASE!$A:$D,2,FALSE) -> 6043690 | BA59: шт. | BB59: 1 | BC59: DFB 45 500 FS RU | BD59: =VLOOKUP(BC59,BASE!$A:$D,2,FALSE) -> 7128939 | BE59: шт. | BF59: 1 | BG59: Не требуется | BH59: --- | BI59: --- | BJ59: 0 | BK59: Не требуется | BL59: --- | BM59: --- | BN59: 0 | BO59: RWVL 60 FS RU | BP59: =VLOOKUP(BO59,BASE!$A:$D,2,FALSE) -> 6067117 | BQ59: шт. | BR59: 4 | BS59: RBV 650 S FS | BT59: =VLOOKUP(BS59,BASE!$A:$D,2,FALSE) -> 7007025 | BU59: шт. | BV59: 1 | BW59: DBV 500 S FS | BX59: =VLOOKUP(BW59,BASE!$A:$D,2,FALSE) -> 7130825 | BY59: шт. | BZ59: 1 | CA59: FRSB 6X12 G | CB59: =VLOOKUP(CA59,BASE!$A:$D,2,FALSE) -> 6406130 | CC59: шт. | CD59: 8 | CE59: RBV 650 F FS | CF59: =VLOOKUP(CE59,BASE!$A:$D,2,FALSE) -> 7007075 | CG59: шт. | CH59: 1 | CI59: DBV 60 500 F FS | CJ59: =VLOOKUP(CI59,BASE!$A:$D,2,FALSE) -> 7130872 | CK59: шт. | CL59: 1 | CM59: FRSB 6X12 G | CN59: =VLOOKUP(CM59,BASE!$A:$D,2,FALSE) -> 6406130 | CO59: шт. | CP59: 8 | CQ59: RGBEV 650 FS RU | CR59: =VLOOKUP(CQ59,BASE!$A:$D,2,FALSE) -> 7005439 | CS59: шт. | CT59: 1 | CU59: RGV 60 FS RU | CV59: =VLOOKUP(CU59,BASE!$A:$D,2,FALSE) -> 7082012 | CW59: шт. | CX59: 2 | CY59: FRSB 6X12 G | CZ59: =VLOOKUP(CY59,BASE!$A:$D,2,FALSE) -> 6406130 | DA59: шт. | DB59: 2 | DC59: SKS 6X12 F | DD59: =VLOOKUP(DC59,BASE!$A:$D,2,FALSE) -> 3156494 | DE59: шт. | DF59: 2 | DG59: RT 650 FS RU | DH59: =VLOOKUP(DG59,BASE!$A:$D,2,FALSE) -> 6043310 | DI59: шт. | DJ59: 1 | DK59: DFT 500 FS RU | DL59: =VLOOKUP(DK59,BASE!$A:$D,2,FALSE) -> 7128339 | DM59: шт. | DN59: 1 | DO59: Не требуется | DP59: --- | DQ59: --- | DR59: 0 | DS59: Не требуется | DT59: --- | DU59: --- | DV59: 0 | DW59: Не требуется | DX59: --- | DY59: --- | DZ59: 0 | EA59: RAA 650 FS RU | EB59: =VLOOKUP(EA59,BASE!$A:$D,2,FALSE) -> 6040260 | EC59: шт. | ED59: 1 | EE59: DFAA 500 FS RU | EF59: =VLOOKUP(EE59,BASE!$A:$D,2,FALSE) -> 7128539 | EG59: шт. | EH59: 1 | EI59: Не требуется | EJ59: --- | EK59: --- | EL59: 0 | EM59: Не требуется | EN59: --- | EO59: --- | EP59: 0 | EQ59: Не требуется | ER59: --- | ES59: --- | ET59: 0 | EU59: RK 650 FS RU | EV59: =VLOOKUP(EU59,BASE!$A:$D,2,FALSE) -> 6043662 | EW59: шт. | EX59: 1 | EY59: DFK 500 FS RU | EZ59: =VLOOKUP(EY59,BASE!$A:$D,2,FALSE) -> 7128760 | FA59: шт. | FB59: 1 | FC59: Не требуется | FD59: --- | FE59: --- | FF59: 0 | FG59: Не требуется | FH59: --- | FI59: --- | FJ59: 0 | FK59: Не требуется | FL59: --- | FM59: --- | FN59: 0 | FO59: RWEB 650 FS RU | FP59: =VLOOKUP(FO59,BASE!$A:$D,2,FALSE) -> 7109619 | FQ59: шт. | FR59: 1 | FT59: 150 | FU59: 90 | FV59: 55 | FW59: 42.5 | FX59: 30
A60: LKSU 660 FS RU | B60: =VLOOKUP(A60,BASE!$A:$D,2,FALSE) -> 6048956 | C60: м | D60: 3 | E60: Листовой | F60: Неперфорированный | G60: Конв.цинк. | H60: 0.9 | I60: 60 | J60: 600 | K60: DRLU 600 FS RU | L60: =VLOOKUP(K60,BASE!$A:$D,2,FALSE) -> 6052033 | M60: м | N60: 3 | O60: Не требуется | P60: --- | Q60: --- | R60: 0 | S60: RLVK 60 FS RU | T60: =VLOOKUP(S60,BASE!$A:$D,2,FALSE) -> 6067091 | U60: шт. | V60: 2 | W60: TSG 60 FS | X60: =VLOOKUP(W60,BASE!$A:$D,2,FALSE) -> 6062068 | Y60: м | Z60: 3 | AA60: TSGV A2 | AB60: =VLOOKUP(AA60,BASE!$A:$D,2,FALSE) -> 6067970 | AC60: шт. | AD60: 1 | AE60: FRSB 6X12 G | AF60: =VLOOKUP(AE60,BASE!$A:$D,2,FALSE) -> 6406130 | AG60: шт. | AH60: 6 | AI60: RBL 90 660 FS RU | AJ60: =VLOOKUP(AI60,BASE!$A:$D,2,FALSE) -> 6043102 | AK60: шт. | AL60: 1 | AM60: DFB 90 600 FS RU | AN60: =VLOOKUP(AM60,BASE!$A:$D,2,FALSE) -> 7129751 | AO60: шт. | AP60: 1 | AQ60: Не требуется | AR60: --- | AS60: --- | AT60: 0 | AU60: Не требуется | AV60: --- | AW60: --- | AX60: 0 | AY60: RBL 45 660 FS RU | AZ60: =VLOOKUP(AY60,BASE!$A:$D,2,FALSE) -> 6043692 | BA60: шт. | BB60: 1 | BC60: DFB 45 600 FS RU | BD60: =VLOOKUP(BC60,BASE!$A:$D,2,FALSE) -> 7128941 | BE60: шт. | BF60: 1 | BG60: Не требуется | BH60: --- | BI60: --- | BJ60: 0 | BK60: Не требуется | BL60: --- | BM60: --- | BN60: 0 | BO60: RWVL 60 FS RU | BP60: =VLOOKUP(BO60,BASE!$A:$D,2,FALSE) -> 6067117 | BQ60: шт. | BR60: 4 | BS60: RBV 660 S FS | BT60: =VLOOKUP(BS60,BASE!$A:$D,2,FALSE) -> 7007029 | BU60: шт. | BV60: 1 | BW60: DBV 600 S FS | BX60: =VLOOKUP(BW60,BASE!$A:$D,2,FALSE) -> 7130829 | BY60: шт. | BZ60: 1 | CA60: FRSB 6X12 G | CB60: =VLOOKUP(CA60,BASE!$A:$D,2,FALSE) -> 6406130 | CC60: шт. | CD60: 8 | CE60: RBV 660 F FS | CF60: =VLOOKUP(CE60,BASE!$A:$D,2,FALSE) -> 7007079 | CG60: шт. | CH60: 1 | CI60: DBV 60 600 F FS | CJ60: =VLOOKUP(CI60,BASE!$A:$D,2,FALSE) -> 7130876 | CK60: шт. | CL60: 1 | CM60: FRSB 6X12 G | CN60: =VLOOKUP(CM60,BASE!$A:$D,2,FALSE) -> 6406130 | CO60: шт. | CP60: 8 | CQ60: RGBEV 660 FS RU | CR60: =VLOOKUP(CQ60,BASE!$A:$D,2,FALSE) -> 7005441 | CS60: шт. | CT60: 1 | CU60: RGV 60 FS RU | CV60: =VLOOKUP(CU60,BASE!$A:$D,2,FALSE) -> 7082012 | CW60: шт. | CX60: 2 | CY60: FRSB 6X12 G | CZ60: =VLOOKUP(CY60,BASE!$A:$D,2,FALSE) -> 6406130 | DA60: шт. | DB60: 2 | DC60: SKS 6X12 F | DD60: =VLOOKUP(DC60,BASE!$A:$D,2,FALSE) -> 3156494 | DE60: шт. | DF60: 2 | DG60: RT 660 FS RU | DH60: =VLOOKUP(DG60,BASE!$A:$D,2,FALSE) -> 6043312 | DI60: шт. | DJ60: 1 | DK60: DFT 600 FS RU | DL60: =VLOOKUP(DK60,BASE!$A:$D,2,FALSE) -> 7128341 | DM60: шт. | DN60: 1 | DO60: Не требуется | DP60: --- | DQ60: --- | DR60: 0 | DS60: Не требуется | DT60: --- | DU60: --- | DV60: 0 | DW60: Не требуется | DX60: --- | DY60: --- | DZ60: 0 | EA60: RAA 660 FS RU | EB60: =VLOOKUP(EA60,BASE!$A:$D,2,FALSE) -> 6040262 | EC60: шт. | ED60: 1 | EE60: DFAA 600 FS RU | EF60: =VLOOKUP(EE60,BASE!$A:$D,2,FALSE) -> 7128541 | EG60: шт. | EH60: 1 | EI60: Не требуется | EJ60: --- | EK60: --- | EL60: 0 | EM60: Не требуется | EN60: --- | EO60: --- | EP60: 0 | EQ60: Не требуется | ER60: --- | ES60: --- | ET60: 0 | EU60: RK 660 FS RU | EV60: =VLOOKUP(EU60,BASE!$A:$D,2,FALSE) -> 6043664 | EW60: шт. | EX60: 1 | EY60: DFK 600 FS RU | EZ60: =VLOOKUP(EY60,BASE!$A:$D,2,FALSE) -> 7128762 | FA60: шт. | FB60: 1 | FC60: Не требуется | FD60: --- | FE60: --- | FF60: 0 | FG60: Не требуется | FH60: --- | FI60: --- | FJ60: 0 | FK60: Не требуется | FL60: --- | FM60: --- | FN60: 0 | FO60: RWEB 660 FS RU | FP60: =VLOOKUP(FO60,BASE!$A:$D,2,FALSE) -> 7109621 | FQ60: шт. | FR60: 1 | FT60: 150 | FU60: 90 | FV60: 55 | FW60: 42.5 | FX60: 30
A61: MKSU 610 FS | B61: =VLOOKUP(A61,BASE!$A:$D,2,FALSE) -> 6063160 | C61: м | D61: 3 | E61: Листовой | F61: Неперфорированный | G61: Конв.цинк. | H61: 1 | I61: 60 | J61: 100 | K61: DRL 100 FS | L61: =VLOOKUP(K61,BASE!$A:$D,2,FALSE) -> 6052096 | M61: м | N61: 3 | O61: Не требуется | P61: --- | Q61: --- | R61: 0 | S61: RLVK 60 FS | T61: =VLOOKUP(S61,BASE!$A:$D,2,FALSE) -> 6067093 | U61: шт. | V61: 2 | W61: TSG 60 FS | X61: =VLOOKUP(W61,BASE!$A:$D,2,FALSE) -> 6062068 | Y61: м | Z61: 3 | AA61: TSGV A2 | AB61: =VLOOKUP(AA61,BASE!$A:$D,2,FALSE) -> 6067970 | AC61: шт. | AD61: 1 | AE61: FRSB 6X12 G | AF61: =VLOOKUP(AE61,BASE!$A:$D,2,FALSE) -> 6406130 | AG61: шт. | AH61: 6 | AI61: RB 90 610 FS | AJ61: =VLOOKUP(AI61,BASE!$A:$D,2,FALSE) -> 6043216 | AK61: шт. | AL61: 1 | AM61: DFB 90 100 FS | AN61: =VLOOKUP(AM61,BASE!$A:$D,2,FALSE) -> 7129610 | AO61: шт. | AP61: 1 | AQ61: Не требуется | AR61: --- | AS61: --- | AT61: 0 | AU61: Не требуется | AV61: --- | AW61: --- | AX61: 0 | AY61: RB 45 610 FS | AZ61: =VLOOKUP(AY61,BASE!$A:$D,2,FALSE) -> 6043763 | BA61: шт. | BB61: 1 | BC61: DFB 45 100 FS | BD61: =VLOOKUP(BC61,BASE!$A:$D,2,FALSE) -> 7128819 | BE61: шт. | BF61: 1 | BG61: Не требуется | BH61: --- | BI61: --- | BJ61: 0 | BK61: Не требуется | BL61: --- | BM61: --- | BN61: 0 | BO61: RWVL 60 FS | BP61: =VLOOKUP(BO61,BASE!$A:$D,2,FALSE) -> 6067115 | BQ61: шт. | BR61: 4 | BS61: RBV 610 S FS | BT61: =VLOOKUP(BS61,BASE!$A:$D,2,FALSE) -> 7007005 | BU61: шт. | BV61: 1 | BW61: DBV 100 S FS | BX61: =VLOOKUP(BW61,BASE!$A:$D,2,FALSE) -> 7130805 | BY61: шт. | BZ61: 1 | CA61: FRSB 6X12 G | CB61: =VLOOKUP(CA61,BASE!$A:$D,2,FALSE) -> 6406130 | CC61: шт. | CD61: 8 | CE61: RBV 610 F FS | CF61: =VLOOKUP(CE61,BASE!$A:$D,2,FALSE) -> 7007055 | CG61: шт. | CH61: 1 | CI61: DBV 60 100 F FS | CJ61: =VLOOKUP(CI61,BASE!$A:$D,2,FALSE) -> 7130852 | CK61: шт. | CL61: 1 | CM61: FRSB 6X12 G | CN61: =VLOOKUP(CM61,BASE!$A:$D,2,FALSE) -> 6406130 | CO61: шт. | CP61: 8 | CQ61: RGBV 610 FS | CR61: =VLOOKUP(CQ61,BASE!$A:$D,2,FALSE) -> 7006322 | CS61: шт. | CT61: 1 | CU61: Не требуется | CV61: --- | CW61: --- | CX61: 0 | CY61: Не требуется | CZ61: --- | DA61: --- | DB61: 0 | DC61: Не требуется | DD61: --- | DE61: --- | DF61: 0 | DG61: RT 610 FS | DH61: =VLOOKUP(DG61,BASE!$A:$D,2,FALSE) -> 6043410 | DI61: шт. | DJ61: 1 | DK61: DFT 100 FS | DL61: =VLOOKUP(DK61,BASE!$A:$D,2,FALSE) -> 7128215 | DM61: шт. | DN61: 1 | DO61: Не требуется | DP61: --- | DQ61: --- | DR61: 0 | DS61: Не требуется | DT61: --- | DU61: --- | DV61: 0 | DW61: Не требуется | DX61: --- | DY61: --- | DZ61: 0 | EA61: RAA 610 FS | EB61: =VLOOKUP(EA61,BASE!$A:$D,2,FALSE) -> 6040403 | EC61: шт. | ED61: 1 | EE61: DFAA 100 FS | EF61: =VLOOKUP(EE61,BASE!$A:$D,2,FALSE) -> 7128428 | EG61: шт. | EH61: 1 | EI61: Не требуется | EJ61: --- | EK61: --- | EL61: 0 | EM61: Не требуется | EN61: --- | EO61: --- | EP61: 0 | EQ61: Не требуется | ER61: --- | ES61: --- | ET61: 0 | EU61: RK 610 FS | EV61: =VLOOKUP(EU61,BASE!$A:$D,2,FALSE) -> 6043615 | EW61: шт. | EX61: 1 | EY61: DFK 100 FS | EZ61: =VLOOKUP(EY61,BASE!$A:$D,2,FALSE) -> 7128614 | FA61: шт. | FB61: 1 | FC61: Не требуется | FD61: --- | FE61: --- | FF61: 0 | FG61: Не требуется | FH61: --- | FI61: --- | FJ61: 0 | FK61: Не требуется | FL61: --- | FM61: --- | FN61: 0 | FO61: RWEB 610 FS | FP61: =VLOOKUP(FO61,BASE!$A:$D,2,FALSE) -> 7109105 | FQ61: шт. | FR61: 1 | FT61: 150 | FU61: 150 | FV61: 100 | FW61: 50 | FX61: 0
A62: MKSU 615 FS | B62: =VLOOKUP(A62,BASE!$A:$D,2,FALSE) -> 6063179 | C62: м | D62: 3 | E62: Листовой | F62: Неперфорированный | G62: Конв.цинк. | H62: 1 | I62: 60 | J62: 150 | K62: DRL 150 FS | L62: =VLOOKUP(K62,BASE!$A:$D,2,FALSE) -> 6052150 | M62: м | N62: 3 | O62: Не требуется | P62: --- | Q62: --- | R62: 0 | S62: RLVK 60 FS | T62: =VLOOKUP(S62,BASE!$A:$D,2,FALSE) -> 6067093 | U62: шт. | V62: 2 | W62: TSG 60 FS | X62: =VLOOKUP(W62,BASE!$A:$D,2,FALSE) -> 6062068 | Y62: м | Z62: 3 | AA62: TSGV A2 | AB62: =VLOOKUP(AA62,BASE!$A:$D,2,FALSE) -> 6067970 | AC62: шт. | AD62: 1 | AE62: FRSB 6X12 G | AF62: =VLOOKUP(AE62,BASE!$A:$D,2,FALSE) -> 6406130 | AG62: шт. | AH62: 6 | AI62: RB 90 615 FS | AJ62: =VLOOKUP(AI62,BASE!$A:$D,2,FALSE) -> 6043208 | AK62: шт. | AL62: 1 | AM62: DFB 90 150 FS | AN62: =VLOOKUP(AM62,BASE!$A:$D,2,FALSE) -> 7129629 | AO62: шт. | AP62: 1 | AQ62: Не требуется | AR62: --- | AS62: --- | AT62: 0 | AU62: Не требуется | AV62: --- | AW62: --- | AX62: 0 | AY62: RB 45 615 FS | AZ62: =VLOOKUP(AY62,BASE!$A:$D,2,FALSE) -> 6043755 | BA62: шт. | BB62: 1 | BC62: DFB 45 150 FS | BD62: =VLOOKUP(BC62,BASE!$A:$D,2,FALSE) -> 7128827 | BE62: шт. | BF62: 1 | BG62: Не требуется | BH62: --- | BI62: --- | BJ62: 0 | BK62: Не требуется | BL62: --- | BM62: --- | BN62: 0 | BO62: RWVL 60 FS | BP62: =VLOOKUP(BO62,BASE!$A:$D,2,FALSE) -> 6067115 | BQ62: шт. | BR62: 4 | BS62: RBV 615 S FS | BT62: =VLOOKUP(BS62,BASE!$A:$D,2,FALSE) -> 7007009 | BU62: шт. | BV62: 1 | BW62: DBV 150 S FS | BX62: =VLOOKUP(BW62,BASE!$A:$D,2,FALSE) -> 7130809 | BY62: шт. | BZ62: 1 | CA62: FRSB 6X12 G | CB62: =VLOOKUP(CA62,BASE!$A:$D,2,FALSE) -> 6406130 | CC62: шт. | CD62: 8 | CE62: RBV 615 F FS | CF62: =VLOOKUP(CE62,BASE!$A:$D,2,FALSE) -> 7007059 | CG62: шт. | CH62: 1 | CI62: DBV 60 150 F FS | CJ62: =VLOOKUP(CI62,BASE!$A:$D,2,FALSE) -> 7130856 | CK62: шт. | CL62: 1 | CM62: FRSB 6X12 G | CN62: =VLOOKUP(CM62,BASE!$A:$D,2,FALSE) -> 6406130 | CO62: шт. | CP62: 8 | CQ62: RGBV 615 FS | CR62: =VLOOKUP(CQ62,BASE!$A:$D,2,FALSE) -> 7006330 | CS62: шт. | CT62: 1 | CU62: Не требуется | CV62: --- | CW62: --- | CX62: 0 | CY62: Не требуется | CZ62: --- | DA62: --- | DB62: 0 | DC62: Не требуется | DD62: --- | DE62: --- | DF62: 0 | DG62: RT 615 FS | DH62: =VLOOKUP(DG62,BASE!$A:$D,2,FALSE) -> 6043402 | DI62: шт. | DJ62: 1 | DK62: DFT 150 FS | DL62: =VLOOKUP(DK62,BASE!$A:$D,2,FALSE) -> 7128223 | DM62: шт. | DN62: 1 | DO62: Не требуется | DP62: --- | DQ62: --- | DR62: 0 | DS62: Не требуется | DT62: --- | DU62: --- | DV62: 0 | DW62: Не требуется | DX62: --- | DY62: --- | DZ62: 0 | EA62: RAA 615 FS | EB62: =VLOOKUP(EA62,BASE!$A:$D,2,FALSE) -> 6040411 | EC62: шт. | ED62: 1 | EE62: DFAA 150 FS | EF62: =VLOOKUP(EE62,BASE!$A:$D,2,FALSE) -> 7128436 | EG62: шт. | EH62: 1 | EI62: Не требуется | EJ62: --- | EK62: --- | EL62: 0 | EM62: Не требуется | EN62: --- | EO62: --- | EP62: 0 | EQ62: Не требуется | ER62: --- | ES62: --- | ET62: 0 | EU62: RK 615 FS | EV62: =VLOOKUP(EU62,BASE!$A:$D,2,FALSE) -> 6043607 | EW62: шт. | EX62: 1 | EY62: DFK 150 FS | EZ62: =VLOOKUP(EY62,BASE!$A:$D,2,FALSE) -> 7128622 | FA62: шт. | FB62: 1 | FC62: Не требуется | FD62: --- | FE62: --- | FF62: 0 | FG62: Не требуется | FH62: --- | FI62: --- | FJ62: 0 | FK62: Не требуется | FL62: --- | FM62: --- | FN62: 0 | FO62: RWEB 615 FS | FP62: =VLOOKUP(FO62,BASE!$A:$D,2,FALSE) -> 7109156 | FQ62: шт. | FR62: 1 | FT62: 150 | FU62: 150 | FV62: 100 | FW62: 50 | FX62: 0
A63: MKSU 620 FS | B63: =VLOOKUP(A63,BASE!$A:$D,2,FALSE) -> 6063187 | C63: м | D63: 3 | E63: Листовой | F63: Неперфорированный | G63: Конв.цинк. | H63: 1 | I63: 60 | J63: 200 | K63: DRL 200 FS | L63: =VLOOKUP(K63,BASE!$A:$D,2,FALSE) -> 6052207 | M63: м | N63: 3 | O63: Не требуется | P63: --- | Q63: --- | R63: 0 | S63: RLVK 60 FS | T63: =VLOOKUP(S63,BASE!$A:$D,2,FALSE) -> 6067093 | U63: шт. | V63: 2 | W63: TSG 60 FS | X63: =VLOOKUP(W63,BASE!$A:$D,2,FALSE) -> 6062068 | Y63: м | Z63: 3 | AA63: TSGV A2 | AB63: =VLOOKUP(AA63,BASE!$A:$D,2,FALSE) -> 6067970 | AC63: шт. | AD63: 1 | AE63: FRSB 6X12 G | AF63: =VLOOKUP(AE63,BASE!$A:$D,2,FALSE) -> 6406130 | AG63: шт. | AH63: 6 | AI63: RB 90 620 FS | AJ63: =VLOOKUP(AI63,BASE!$A:$D,2,FALSE) -> 6043224 | AK63: шт. | AL63: 1 | AM63: DFB 90 200 FS | AN63: =VLOOKUP(AM63,BASE!$A:$D,2,FALSE) -> 7129637 | AO63: шт. | AP63: 1 | AQ63: Не требуется | AR63: --- | AS63: --- | AT63: 0 | AU63: Не требуется | AV63: --- | AW63: --- | AX63: 0 | AY63: RB 45 620 FS | AZ63: =VLOOKUP(AY63,BASE!$A:$D,2,FALSE) -> 6043771 | BA63: шт. | BB63: 1 | BC63: DFB 45 200 FS | BD63: =VLOOKUP(BC63,BASE!$A:$D,2,FALSE) -> 7128835 | BE63: шт. | BF63: 1 | BG63: Не требуется | BH63: --- | BI63: --- | BJ63: 0 | BK63: Не требуется | BL63: --- | BM63: --- | BN63: 0 | BO63: RWVL 60 FS | BP63: =VLOOKUP(BO63,BASE!$A:$D,2,FALSE) -> 6067115 | BQ63: шт. | BR63: 4 | BS63: RBV 620 S FS | BT63: =VLOOKUP(BS63,BASE!$A:$D,2,FALSE) -> 7007013 | BU63: шт. | BV63: 1 | BW63: DBV 200 S FS | BX63: =VLOOKUP(BW63,BASE!$A:$D,2,FALSE) -> 7130813 | BY63: шт. | BZ63: 1 | CA63: FRSB 6X12 G | CB63: =VLOOKUP(CA63,BASE!$A:$D,2,FALSE) -> 6406130 | CC63: шт. | CD63: 8 | CE63: RBV 620 F FS | CF63: =VLOOKUP(CE63,BASE!$A:$D,2,FALSE) -> 7007063 | CG63: шт. | CH63: 1 | CI63: DBV 60 200 F FS | CJ63: =VLOOKUP(CI63,BASE!$A:$D,2,FALSE) -> 7130860 | CK63: шт. | CL63: 1 | CM63: FRSB 6X12 G | CN63: =VLOOKUP(CM63,BASE!$A:$D,2,FALSE) -> 6406130 | CO63: шт. | CP63: 8 | CQ63: RGBV 620 FS | CR63: =VLOOKUP(CQ63,BASE!$A:$D,2,FALSE) -> 7006349 | CS63: шт. | CT63: 1 | CU63: Не требуется | CV63: --- | CW63: --- | CX63: 0 | CY63: Не требуется | CZ63: --- | DA63: --- | DB63: 0 | DC63: Не требуется | DD63: --- | DE63: --- | DF63: 0 | DG63: RT 620 FS | DH63: =VLOOKUP(DG63,BASE!$A:$D,2,FALSE) -> 6043429 | DI63: шт. | DJ63: 1 | DK63: DFT 200 FS | DL63: =VLOOKUP(DK63,BASE!$A:$D,2,FALSE) -> 7128231 | DM63: шт. | DN63: 1 | DO63: Не требуется | DP63: --- | DQ63: --- | DR63: 0 | DS63: Не требуется | DT63: --- | DU63: --- | DV63: 0 | DW63: Не требуется | DX63: --- | DY63: --- | DZ63: 0 | EA63: RAA 620 FS | EB63: =VLOOKUP(EA63,BASE!$A:$D,2,FALSE) -> 6040438 | EC63: шт. | ED63: 1 | EE63: DFAA 200 FS | EF63: =VLOOKUP(EE63,BASE!$A:$D,2,FALSE) -> 7128444 | EG63: шт. | EH63: 1 | EI63: Не требуется | EJ63: --- | EK63: --- | EL63: 0 | EM63: Не требуется | EN63: --- | EO63: --- | EP63: 0 | EQ63: Не требуется | ER63: --- | ES63: --- | ET63: 0 | EU63: RK 620 FS | EV63: =VLOOKUP(EU63,BASE!$A:$D,2,FALSE) -> 6043623 | EW63: шт. | EX63: 1 | EY63: DFK 200 FS | EZ63: =VLOOKUP(EY63,BASE!$A:$D,2,FALSE) -> 7128630 | FA63: шт. | FB63: 1 | FC63: Не требуется | FD63: --- | FE63: --- | FF63: 0 | FG63: Не требуется | FH63: --- | FI63: --- | FJ63: 0 | FK63: Не требуется | FL63: --- | FM63: --- | FN63: 0 | FO63: RWEB 620 FS | FP63: =VLOOKUP(FO63,BASE!$A:$D,2,FALSE) -> 7109202 | FQ63: шт. | FR63: 1 | FT63: 150 | FU63: 150 | FV63: 100 | FW63: 50 | FX63: 0
A64: MKSU 630 FS | B64: =VLOOKUP(A64,BASE!$A:$D,2,FALSE) -> 6063209 | C64: м | D64: 3 | E64: Листовой | F64: Неперфорированный | G64: Конв.цинк. | H64: 1 | I64: 60 | J64: 300 | K64: DRL 300 FS | L64: =VLOOKUP(K64,BASE!$A:$D,2,FALSE) -> 6052304 | M64: м | N64: 3 | O64: Не требуется | P64: --- | Q64: --- | R64: 0 | S64: RLVK 60 FS | T64: =VLOOKUP(S64,BASE!$A:$D,2,FALSE) -> 6067093 | U64: шт. | V64: 2 | W64: TSG 60 FS | X64: =VLOOKUP(W64,BASE!$A:$D,2,FALSE) -> 6062068 | Y64: м | Z64: 3 | AA64: TSGV A2 | AB64: =VLOOKUP(AA64,BASE!$A:$D,2,FALSE) -> 6067970 | AC64: шт. | AD64: 1 | AE64: FRSB 6X12 G | AF64: =VLOOKUP(AE64,BASE!$A:$D,2,FALSE) -> 6406130 | AG64: шт. | AH64: 6 | AI64: RB 90 630 FS | AJ64: =VLOOKUP(AI64,BASE!$A:$D,2,FALSE) -> 6043232 | AK64: шт. | AL64: 1 | AM64: DFB 90 300 FS | AN64: =VLOOKUP(AM64,BASE!$A:$D,2,FALSE) -> 7129653 | AO64: шт. | AP64: 1 | AQ64: Не требуется | AR64: --- | AS64: --- | AT64: 0 | AU64: Не требуется | AV64: --- | AW64: --- | AX64: 0 | AY64: RB 45 630 FS | AZ64: =VLOOKUP(AY64,BASE!$A:$D,2,FALSE) -> 6043798 | BA64: шт. | BB64: 1 | BC64: DFB 45 300 FS | BD64: =VLOOKUP(BC64,BASE!$A:$D,2,FALSE) -> 7128851 | BE64: шт. | BF64: 1 | BG64: Не требуется | BH64: --- | BI64: --- | BJ64: 0 | BK64: Не требуется | BL64: --- | BM64: --- | BN64: 0 | BO64: RWVL 60 FS | BP64: =VLOOKUP(BO64,BASE!$A:$D,2,FALSE) -> 6067115 | BQ64: шт. | BR64: 4 | BS64: RBV 630 S FS | BT64: =VLOOKUP(BS64,BASE!$A:$D,2,FALSE) -> 7007017 | BU64: шт. | BV64: 1 | BW64: DBV 300 S FS | BX64: =VLOOKUP(BW64,BASE!$A:$D,2,FALSE) -> 7130817 | BY64: шт. | BZ64: 1 | CA64: FRSB 6X12 G | CB64: =VLOOKUP(CA64,BASE!$A:$D,2,FALSE) -> 6406130 | CC64: шт. | CD64: 8 | CE64: RBV 630 F FS | CF64: =VLOOKUP(CE64,BASE!$A:$D,2,FALSE) -> 7007067 | CG64: шт. | CH64: 1 | CI64: DBV 60 300 F FS | CJ64: =VLOOKUP(CI64,BASE!$A:$D,2,FALSE) -> 7130864 | CK64: шт. | CL64: 1 | CM64: FRSB 6X12 G | CN64: =VLOOKUP(CM64,BASE!$A:$D,2,FALSE) -> 6406130 | CO64: шт. | CP64: 8 | CQ64: RGBV 630 FS | CR64: =VLOOKUP(CQ64,BASE!$A:$D,2,FALSE) -> 7006365 | CS64: шт. | CT64: 1 | CU64: Не требуется | CV64: --- | CW64: --- | CX64: 0 | CY64: Не требуется | CZ64: --- | DA64: --- | DB64: 0 | DC64: Не требуется | DD64: --- | DE64: --- | DF64: 0 | DG64: RT 630 FS | DH64: =VLOOKUP(DG64,BASE!$A:$D,2,FALSE) -> 6043437 | DI64: шт. | DJ64: 1 | DK64: DFT 300 FS | DL64: =VLOOKUP(DK64,BASE!$A:$D,2,FALSE) -> 7128266 | DM64: шт. | DN64: 1 | DO64: Не требуется | DP64: --- | DQ64: --- | DR64: 0 | DS64: Не требуется | DT64: --- | DU64: --- | DV64: 0 | DW64: Не требуется | DX64: --- | DY64: --- | DZ64: 0 | EA64: RAA 630 FS | EB64: =VLOOKUP(EA64,BASE!$A:$D,2,FALSE) -> 6040446 | EC64: шт. | ED64: 1 | EE64: DFAA 300 FS | EF64: =VLOOKUP(EE64,BASE!$A:$D,2,FALSE) -> 7128460 | EG64: шт. | EH64: 1 | EI64: Не требуется | EJ64: --- | EK64: --- | EL64: 0 | EM64: Не требуется | EN64: --- | EO64: --- | EP64: 0 | EQ64: Не требуется | ER64: --- | ES64: --- | ET64: 0 | EU64: RK 630 FS | EV64: =VLOOKUP(EU64,BASE!$A:$D,2,FALSE) -> 6043631 | EW64: шт. | EX64: 1 | EY64: DFK 300 FS | EZ64: =VLOOKUP(EY64,BASE!$A:$D,2,FALSE) -> 7128657 | FA64: шт. | FB64: 1 | FC64: Не требуется | FD64: --- | FE64: --- | FF64: 0 | FG64: Не требуется | FH64: --- | FI64: --- | FJ64: 0 | FK64: Не требуется | FL64: --- | FM64: --- | FN64: 0 | FO64: RWEB 630 FS | FP64: =VLOOKUP(FO64,BASE!$A:$D,2,FALSE) -> 7109296 | FQ64: шт. | FR64: 1 | FT64: 150 | FU64: 150 | FV64: 100 | FW64: 50 | FX64: 0
A65: MKSU 640 FS | B65: =VLOOKUP(A65,BASE!$A:$D,2,FALSE) -> 6063225 | C65: м | D65: 3 | E65: Листовой | F65: Неперфорированный | G65: Конв.цинк. | H65: 1 | I65: 60 | J65: 400 | K65: DRL 400 FS | L65: =VLOOKUP(K65,BASE!$A:$D,2,FALSE) -> 6052401 | M65: м | N65: 3 | O65: Не требуется | P65: --- | Q65: --- | R65: 0 | S65: RLVK 60 FS | T65: =VLOOKUP(S65,BASE!$A:$D,2,FALSE) -> 6067093 | U65: шт. | V65: 2 | W65: TSG 60 FS | X65: =VLOOKUP(W65,BASE!$A:$D,2,FALSE) -> 6062068 | Y65: м | Z65: 3 | AA65: TSGV A2 | AB65: =VLOOKUP(AA65,BASE!$A:$D,2,FALSE) -> 6067970 | AC65: шт. | AD65: 1 | AE65: FRSB 6X12 G | AF65: =VLOOKUP(AE65,BASE!$A:$D,2,FALSE) -> 6406130 | AG65: шт. | AH65: 6 | AI65: RB 90 640 FS | AJ65: =VLOOKUP(AI65,BASE!$A:$D,2,FALSE) -> 7001290 | AK65: шт. | AL65: 1 | AM65: DFB 90 400 FS | AN65: =VLOOKUP(AM65,BASE!$A:$D,2,FALSE) -> 7129688 | AO65: шт. | AP65: 1 | AQ65: RLVK 60 FS | AR65: =VLOOKUP(AQ65,BASE!$A:$D,2,FALSE) -> 6067093 | AS65: шт. | AT65: 4 | AU65: SSLB 400 FS | AV65: =VLOOKUP(AU65,BASE!$A:$D,2,FALSE) -> 7070221 | AW65: шт. | AX65: 2 | AY65: RB 45 640 FS | AZ65: =VLOOKUP(AY65,BASE!$A:$D,2,FALSE) -> 7000383 | BA65: шт. | BB65: 1 | BC65: DFB 45 400 FS | BD65: =VLOOKUP(BC65,BASE!$A:$D,2,FALSE) -> 7128886 | BE65: шт. | BF65: 1 | BG65: RLVK 60 FS | BH65: =VLOOKUP(BG65,BASE!$A:$D,2,FALSE) -> 6067093 | BI65: шт. | BJ65: 4 | BK65: SSLB 400 FS | BL65: =VLOOKUP(BK65,BASE!$A:$D,2,FALSE) -> 7070221 | BM65: шт. | BN65: 2 | BO65: RWVL 60 FS | BP65: =VLOOKUP(BO65,BASE!$A:$D,2,FALSE) -> 6067115 | BQ65: шт. | BR65: 4 | BS65: RBV 640 S FS | BT65: =VLOOKUP(BS65,BASE!$A:$D,2,FALSE) -> 7007021 | BU65: шт. | BV65: 1 | BW65: DBV 400 S FS | BX65: =VLOOKUP(BW65,BASE!$A:$D,2,FALSE) -> 7130821 | BY65: шт. | BZ65: 1 | CA65: FRSB 6X12 G | CB65: =VLOOKUP(CA65,BASE!$A:$D,2,FALSE) -> 6406130 | CC65: шт. | CD65: 8 | CE65: RBV 640 F FS | CF65: =VLOOKUP(CE65,BASE!$A:$D,2,FALSE) -> 7007071 | CG65: шт. | CH65: 1 | CI65: DBV 60 400 F FS | CJ65: =VLOOKUP(CI65,BASE!$A:$D,2,FALSE) -> 7130868 | CK65: шт. | CL65: 1 | CM65: FRSB 6X12 G | CN65: =VLOOKUP(CM65,BASE!$A:$D,2,FALSE) -> 6406130 | CO65: шт. | CP65: 8 | CQ65: RGBV 640 FS | CR65: =VLOOKUP(CQ65,BASE!$A:$D,2,FALSE) -> 7006381 | CS65: шт. | CT65: 1 | CU65: Не требуется | CV65: --- | CW65: --- | CX65: 0 | CY65: Не требуется | CZ65: --- | DA65: --- | DB65: 0 | DC65: Не требуется | DD65: --- | DE65: --- | DF65: 0 | DG65: RT 640 FS | DH65: =VLOOKUP(DG65,BASE!$A:$D,2,FALSE) -> 7003390 | DI65: шт. | DJ65: 1 | DK65: DFT 400 FS | DL65: =VLOOKUP(DK65,BASE!$A:$D,2,FALSE) -> 7128282 | DM65: шт. | DN65: 1 | DO65: RLVK 60 FS | DP65: =VLOOKUP(DO65,BASE!$A:$D,2,FALSE) -> 6067093 | DQ65: шт. | DR65: 6 | DS65: SSLB 400 FS | DT65: =VLOOKUP(DS65,BASE!$A:$D,2,FALSE) -> 7070221 | DU65: шт. | DV65: 3 | DW65: Не требуется | DX65: --- | DY65: --- | DZ65: 0 | EA65: RAA 640 FS | EB65: =VLOOKUP(EA65,BASE!$A:$D,2,FALSE) -> 7002394 | EC65: шт. | ED65: 1 | EE65: DFAA 400 FS | EF65: =VLOOKUP(EE65,BASE!$A:$D,2,FALSE) -> 7128487 | EG65: шт. | EH65: 1 | EI65: RLVK 60 FS | EJ65: =VLOOKUP(EI65,BASE!$A:$D,2,FALSE) -> 6067093 | EK65: шт. | EL65: 2 | EM65: SSLB 400 FS | EN65: =VLOOKUP(EM65,BASE!$A:$D,2,FALSE) -> 7070221 | EO65: шт. | EP65: 1 | EQ65: FRSB 6X12 G | ER65: =VLOOKUP(EQ65,BASE!$A:$D,2,FALSE) -> 6406130 | ES65: шт. | ET65: 8 | EU65: RK 640 FS | EV65: =VLOOKUP(EU65,BASE!$A:$D,2,FALSE) -> 7004397 | EW65: шт. | EX65: 1 | EY65: DFK 400 FS | EZ65: =VLOOKUP(EY65,BASE!$A:$D,2,FALSE) -> 7128673 | FA65: шт. | FB65: 1 | FC65: RLVK 60 FS | FD65: =VLOOKUP(FC65,BASE!$A:$D,2,FALSE) -> 6067093 | FE65: шт. | FF65: 8 | FG65: SSLB 400 FS | FH65: =VLOOKUP(FG65,BASE!$A:$D,2,FALSE) -> 7070221 | FI65: шт. | FJ65: 4 | FK65: Не требуется | FL65: --- | FM65: --- | FN65: 0 | FO65: RWEB 640 FS | FP65: =VLOOKUP(FO65,BASE!$A:$D,2,FALSE) -> 7109407 | FQ65: шт. | FR65: 1 | FT65: 150 | FU65: 150 | FV65: 100 | FW65: 50 | FX65: 0
A66: SKSU 610 FS | B66: =VLOOKUP(A66,BASE!$A:$D,2,FALSE) -> 6063234 | C66: м | D66: 3 | E66: Листовой | F66: Неперфорированный | G66: Конв.цинк. | H66: 1.5 | I66: 60 | J66: 100 | K66: DRL 100 FS | L66: =VLOOKUP(K66,BASE!$A:$D,2,FALSE) -> 6052096 | M66: м | N66: 3 | O66: Не требуется | P66: --- | Q66: --- | R66: 0 | S66: RLVK 60 FS | T66: =VLOOKUP(S66,BASE!$A:$D,2,FALSE) -> 6067093 | U66: шт. | V66: 2 | W66: TSG 60 FS | X66: =VLOOKUP(W66,BASE!$A:$D,2,FALSE) -> 6062068 | Y66: м | Z66: 3 | AA66: TSGV A2 | AB66: =VLOOKUP(AA66,BASE!$A:$D,2,FALSE) -> 6067970 | AC66: шт. | AD66: 1 | AE66: FRSB 6X12 G | AF66: =VLOOKUP(AE66,BASE!$A:$D,2,FALSE) -> 6406130 | AG66: шт. | AH66: 6 | AI66: RB 90 610 FS | AJ66: =VLOOKUP(AI66,BASE!$A:$D,2,FALSE) -> 6043216 | AK66: шт. | AL66: 1 | AM66: DFB 90 100 FS | AN66: =VLOOKUP(AM66,BASE!$A:$D,2,FALSE) -> 7129610 | AO66: шт. | AP66: 1 | AQ66: Не требуется | AR66: --- | AS66: --- | AT66: 0 | AU66: Не требуется | AV66: --- | AW66: --- | AX66: 0 | AY66: RB 45 610 FS | AZ66: =VLOOKUP(AY66,BASE!$A:$D,2,FALSE) -> 6043763 | BA66: шт. | BB66: 1 | BC66: DFB 45 100 FS | BD66: =VLOOKUP(BC66,BASE!$A:$D,2,FALSE) -> 7128819 | BE66: шт. | BF66: 1 | BG66: Не требуется | BH66: --- | BI66: --- | BJ66: 0 | BK66: Не требуется | BL66: --- | BM66: --- | BN66: 0 | BO66: RWVL 60 FS | BP66: =VLOOKUP(BO66,BASE!$A:$D,2,FALSE) -> 6067115 | BQ66: шт. | BR66: 4 | BS66: RBV 610 S FS | BT66: =VLOOKUP(BS66,BASE!$A:$D,2,FALSE) -> 7007005 | BU66: шт. | BV66: 1 | BW66: DBV 100 S FS | BX66: =VLOOKUP(BW66,BASE!$A:$D,2,FALSE) -> 7130805 | BY66: шт. | BZ66: 1 | CA66: FRSB 6X12 G | CB66: =VLOOKUP(CA66,BASE!$A:$D,2,FALSE) -> 6406130 | CC66: шт. | CD66: 8 | CE66: RBV 610 F FS | CF66: =VLOOKUP(CE66,BASE!$A:$D,2,FALSE) -> 7007055 | CG66: шт. | CH66: 1 | CI66: DBV 60 100 F FS | CJ66: =VLOOKUP(CI66,BASE!$A:$D,2,FALSE) -> 7130852 | CK66: шт. | CL66: 1 | CM66: FRSB 6X12 G | CN66: =VLOOKUP(CM66,BASE!$A:$D,2,FALSE) -> 6406130 | CO66: шт. | CP66: 8 | CQ66: RGBV 610 FS | CR66: =VLOOKUP(CQ66,BASE!$A:$D,2,FALSE) -> 7006322 | CS66: шт. | CT66: 1 | CU66: Не требуется | CV66: --- | CW66: --- | CX66: 0 | CY66: Не требуется | CZ66: --- | DA66: --- | DB66: 0 | DC66: Не требуется | DD66: --- | DE66: --- | DF66: 0 | DG66: RT 610 FS | DH66: =VLOOKUP(DG66,BASE!$A:$D,2,FALSE) -> 6043410 | DI66: шт. | DJ66: 1 | DK66: DFT 100 FS | DL66: =VLOOKUP(DK66,BASE!$A:$D,2,FALSE) -> 7128215 | DM66: шт. | DN66: 1 | DO66: Не требуется | DP66: --- | DQ66: --- | DR66: 0 | DS66: Не требуется | DT66: --- | DU66: --- | DV66: 0 | DW66: Не требуется | DX66: --- | DY66: --- | DZ66: 0 | EA66: RAA 610 FS | EB66: =VLOOKUP(EA66,BASE!$A:$D,2,FALSE) -> 6040403 | EC66: шт. | ED66: 1 | EE66: DFAA 100 FS | EF66: =VLOOKUP(EE66,BASE!$A:$D,2,FALSE) -> 7128428 | EG66: шт. | EH66: 1 | EI66: Не требуется | EJ66: --- | EK66: --- | EL66: 0 | EM66: Не требуется | EN66: --- | EO66: --- | EP66: 0 | EQ66: Не требуется | ER66: --- | ES66: --- | ET66: 0 | EU66: RK 610 FS | EV66: =VLOOKUP(EU66,BASE!$A:$D,2,FALSE) -> 6043615 | EW66: шт. | EX66: 1 | EY66: DFK 100 FS | EZ66: =VLOOKUP(EY66,BASE!$A:$D,2,FALSE) -> 7128614 | FA66: шт. | FB66: 1 | FC66: Не требуется | FD66: --- | FE66: --- | FF66: 0 | FG66: Не требуется | FH66: --- | FI66: --- | FJ66: 0 | FK66: Не требуется | FL66: --- | FM66: --- | FN66: 0 | FO66: RWEB 610 FS | FP66: =VLOOKUP(FO66,BASE!$A:$D,2,FALSE) -> 7109105 | FQ66: шт. | FR66: 1 | FT66: 260 | FU66: 260 | FV66: 190 | FW66: 110 | FX66: 55
A67: SKSU 620 FS | B67: =VLOOKUP(A67,BASE!$A:$D,2,FALSE) -> 6063236 | C67: м | D67: 3 | E67: Листовой | F67: Неперфорированный | G67: Конв.цинк. | H67: 1.5 | I67: 60 | J67: 200 | K67: DRL 200 FS | L67: =VLOOKUP(K67,BASE!$A:$D,2,FALSE) -> 6052207 | M67: м | N67: 3 | O67: Не требуется | P67: --- | Q67: --- | R67: 0 | S67: RLVK 60 FS | T67: =VLOOKUP(S67,BASE!$A:$D,2,FALSE) -> 6067093 | U67: шт. | V67: 2 | W67: TSG 60 FS | X67: =VLOOKUP(W67,BASE!$A:$D,2,FALSE) -> 6062068 | Y67: м | Z67: 3 | AA67: TSGV A2 | AB67: =VLOOKUP(AA67,BASE!$A:$D,2,FALSE) -> 6067970 | AC67: шт. | AD67: 1 | AE67: FRSB 6X12 G | AF67: =VLOOKUP(AE67,BASE!$A:$D,2,FALSE) -> 6406130 | AG67: шт. | AH67: 6 | AI67: RB 90 620 FS | AJ67: =VLOOKUP(AI67,BASE!$A:$D,2,FALSE) -> 6043224 | AK67: шт. | AL67: 1 | AM67: DFB 90 200 FS | AN67: =VLOOKUP(AM67,BASE!$A:$D,2,FALSE) -> 7129637 | AO67: шт. | AP67: 1 | AQ67: Не требуется | AR67: --- | AS67: --- | AT67: 0 | AU67: Не требуется | AV67: --- | AW67: --- | AX67: 0 | AY67: RB 45 620 FS | AZ67: =VLOOKUP(AY67,BASE!$A:$D,2,FALSE) -> 6043771 | BA67: шт. | BB67: 1 | BC67: DFB 45 200 FS | BD67: =VLOOKUP(BC67,BASE!$A:$D,2,FALSE) -> 7128835 | BE67: шт. | BF67: 1 | BG67: Не требуется | BH67: --- | BI67: --- | BJ67: 0 | BK67: Не требуется | BL67: --- | BM67: --- | BN67: 0 | BO67: RWVL 60 FS | BP67: =VLOOKUP(BO67,BASE!$A:$D,2,FALSE) -> 6067115 | BQ67: шт. | BR67: 4 | BS67: RBV 620 S FS | BT67: =VLOOKUP(BS67,BASE!$A:$D,2,FALSE) -> 7007013 | BU67: шт. | BV67: 1 | BW67: DBV 200 S FS | BX67: =VLOOKUP(BW67,BASE!$A:$D,2,FALSE) -> 7130813 | BY67: шт. | BZ67: 1 | CA67: FRSB 6X12 G | CB67: =VLOOKUP(CA67,BASE!$A:$D,2,FALSE) -> 6406130 | CC67: шт. | CD67: 8 | CE67: RBV 620 F FS | CF67: =VLOOKUP(CE67,BASE!$A:$D,2,FALSE) -> 7007063 | CG67: шт. | CH67: 1 | CI67: DBV 60 200 F FS | CJ67: =VLOOKUP(CI67,BASE!$A:$D,2,FALSE) -> 7130860 | CK67: шт. | CL67: 1 | CM67: FRSB 6X12 G | CN67: =VLOOKUP(CM67,BASE!$A:$D,2,FALSE) -> 6406130 | CO67: шт. | CP67: 8 | CQ67: RGBV 620 FS | CR67: =VLOOKUP(CQ67,BASE!$A:$D,2,FALSE) -> 7006349 | CS67: шт. | CT67: 1 | CU67: Не требуется | CV67: --- | CW67: --- | CX67: 0 | CY67: Не требуется | CZ67: --- | DA67: --- | DB67: 0 | DC67: Не требуется | DD67: --- | DE67: --- | DF67: 0 | DG67: RT 620 FS | DH67: =VLOOKUP(DG67,BASE!$A:$D,2,FALSE) -> 6043429 | DI67: шт. | DJ67: 1 | DK67: DFT 200 FS | DL67: =VLOOKUP(DK67,BASE!$A:$D,2,FALSE) -> 7128231 | DM67: шт. | DN67: 1 | DO67: Не требуется | DP67: --- | DQ67: --- | DR67: 0 | DS67: Не требуется | DT67: --- | DU67: --- | DV67: 0 | DW67: Не требуется | DX67: --- | DY67: --- | DZ67: 0 | EA67: RAA 620 FS | EB67: =VLOOKUP(EA67,BASE!$A:$D,2,FALSE) -> 6040438 | EC67: шт. | ED67: 1 | EE67: DFAA 200 FS | EF67: =VLOOKUP(EE67,BASE!$A:$D,2,FALSE) -> 7128444 | EG67: шт. | EH67: 1 | EI67: Не требуется | EJ67: --- | EK67: --- | EL67: 0 | EM67: Не требуется | EN67: --- | EO67: --- | EP67: 0 | EQ67: Не требуется | ER67: --- | ES67: --- | ET67: 0 | EU67: RK 620 FS | EV67: =VLOOKUP(EU67,BASE!$A:$D,2,FALSE) -> 6043623 | EW67: шт. | EX67: 1 | EY67: DFK 200 FS | EZ67: =VLOOKUP(EY67,BASE!$A:$D,2,FALSE) -> 7128630 | FA67: шт. | FB67: 1 | FC67: Не требуется | FD67: --- | FE67: --- | FF67: 0 | FG67: Не требуется | FH67: --- | FI67: --- | FJ67: 0 | FK67: Не требуется | FL67: --- | FM67: --- | FN67: 0 | FO67: RWEB 620 FS | FP67: =VLOOKUP(FO67,BASE!$A:$D,2,FALSE) -> 7109202 | FQ67: шт. | FR67: 1 | FT67: 260 | FU67: 260 | FV67: 190 | FW67: 110 | FX67: 55
A68: SKSU 630 FS | B68: =VLOOKUP(A68,BASE!$A:$D,2,FALSE) -> 6063238 | C68: м | D68: 3 | E68: Листовой | F68: Неперфорированный | G68: Конв.цинк. | H68: 1.5 | I68: 60 | J68: 300 | K68: DRL 300 FS | L68: =VLOOKUP(K68,BASE!$A:$D,2,FALSE) -> 6052304 | M68: м | N68: 3 | O68: Не требуется | P68: --- | Q68: --- | R68: 0 | S68: RLVK 60 FS | T68: =VLOOKUP(S68,BASE!$A:$D,2,FALSE) -> 6067093 | U68: шт. | V68: 2 | W68: TSG 60 FS | X68: =VLOOKUP(W68,BASE!$A:$D,2,FALSE) -> 6062068 | Y68: м | Z68: 3 | AA68: TSGV A2 | AB68: =VLOOKUP(AA68,BASE!$A:$D,2,FALSE) -> 6067970 | AC68: шт. | AD68: 1 | AE68: FRSB 6X12 G | AF68: =VLOOKUP(AE68,BASE!$A:$D,2,FALSE) -> 6406130 | AG68: шт. | AH68: 6 | AI68: RB 90 630 FS | AJ68: =VLOOKUP(AI68,BASE!$A:$D,2,FALSE) -> 6043232 | AK68: шт. | AL68: 1 | AM68: DFB 90 300 FS | AN68: =VLOOKUP(AM68,BASE!$A:$D,2,FALSE) -> 7129653 | AO68: шт. | AP68: 1 | AQ68: Не требуется | AR68: --- | AS68: --- | AT68: 0 | AU68: Не требуется | AV68: --- | AW68: --- | AX68: 0 | AY68: RB 45 630 FS | AZ68: =VLOOKUP(AY68,BASE!$A:$D,2,FALSE) -> 6043798 | BA68: шт. | BB68: 1 | BC68: DFB 45 300 FS | BD68: =VLOOKUP(BC68,BASE!$A:$D,2,FALSE) -> 7128851 | BE68: шт. | BF68: 1 | BG68: Не требуется | BH68: --- | BI68: --- | BJ68: 0 | BK68: Не требуется | BL68: --- | BM68: --- | BN68: 0 | BO68: RWVL 60 FS | BP68: =VLOOKUP(BO68,BASE!$A:$D,2,FALSE) -> 6067115 | BQ68: шт. | BR68: 4 | BS68: RBV 630 S FS | BT68: =VLOOKUP(BS68,BASE!$A:$D,2,FALSE) -> 7007017 | BU68: шт. | BV68: 1 | BW68: DBV 300 S FS | BX68: =VLOOKUP(BW68,BASE!$A:$D,2,FALSE) -> 7130817 | BY68: шт. | BZ68: 1 | CA68: FRSB 6X12 G | CB68: =VLOOKUP(CA68,BASE!$A:$D,2,FALSE) -> 6406130 | CC68: шт. | CD68: 8 | CE68: RBV 630 F FS | CF68: =VLOOKUP(CE68,BASE!$A:$D,2,FALSE) -> 7007067 | CG68: шт. | CH68: 1 | CI68: DBV 60 300 F FS | CJ68: =VLOOKUP(CI68,BASE!$A:$D,2,FALSE) -> 7130864 | CK68: шт. | CL68: 1 | CM68: FRSB 6X12 G | CN68: =VLOOKUP(CM68,BASE!$A:$D,2,FALSE) -> 6406130 | CO68: шт. | CP68: 8 | CQ68: RGBV 630 FS | CR68: =VLOOKUP(CQ68,BASE!$A:$D,2,FALSE) -> 7006365 | CS68: шт. | CT68: 1 | CU68: Не требуется | CV68: --- | CW68: --- | CX68: 0 | CY68: Не требуется | CZ68: --- | DA68: --- | DB68: 0 | DC68: Не требуется | DD68: --- | DE68: --- | DF68: 0 | DG68: RT 630 FS | DH68: =VLOOKUP(DG68,BASE!$A:$D,2,FALSE) -> 6043437 | DI68: шт. | DJ68: 1 | DK68: DFT 300 FS | DL68: =VLOOKUP(DK68,BASE!$A:$D,2,FALSE) -> 7128266 | DM68: шт. | DN68: 1 | DO68: Не требуется | DP68: --- | DQ68: --- | DR68: 0 | DS68: Не требуется | DT68: --- | DU68: --- | DV68: 0 | DW68: Не требуется | DX68: --- | DY68: --- | DZ68: 0 | EA68: RAA 630 FS | EB68: =VLOOKUP(EA68,BASE!$A:$D,2,FALSE) -> 6040446 | EC68: шт. | ED68: 1 | EE68: DFAA 300 FS | EF68: =VLOOKUP(EE68,BASE!$A:$D,2,FALSE) -> 7128460 | EG68: шт. | EH68: 1 | EI68: Не требуется | EJ68: --- | EK68: --- | EL68: 0 | EM68: Не требуется | EN68: --- | EO68: --- | EP68: 0 | EQ68: Не требуется | ER68: --- | ES68: --- | ET68: 0 | EU68: RK 630 FS | EV68: =VLOOKUP(EU68,BASE!$A:$D,2,FALSE) -> 6043631 | EW68: шт. | EX68: 1 | EY68: DFK 300 FS | EZ68: =VLOOKUP(EY68,BASE!$A:$D,2,FALSE) -> 7128657 | FA68: шт. | FB68: 1 | FC68: Не требуется | FD68: --- | FE68: --- | FF68: 0 | FG68: Не требуется | FH68: --- | FI68: --- | FJ68: 0 | FK68: Не требуется | FL68: --- | FM68: --- | FN68: 0 | FO68: RWEB 630 FS | FP68: =VLOOKUP(FO68,BASE!$A:$D,2,FALSE) -> 7109296 | FQ68: шт. | FR68: 1 | FT68: 260 | FU68: 260 | FV68: 190 | FW68: 110 | FX68: 55
A69: SKSU 640 FS | B69: =VLOOKUP(A69,BASE!$A:$D,2,FALSE) -> 6063950 | C69: м | D69: 3 | E69: Листовой | F69: Неперфорированный | G69: Конв.цинк. | H69: 1.5 | I69: 60 | J69: 400 | K69: DRL 400 FS | L69: =VLOOKUP(K69,BASE!$A:$D,2,FALSE) -> 6052401 | M69: м | N69: 3 | O69: Не требуется | P69: --- | Q69: --- | R69: 0 | S69: RLVK 60 FS | T69: =VLOOKUP(S69,BASE!$A:$D,2,FALSE) -> 6067093 | U69: шт. | V69: 2 | W69: TSG 60 FS | X69: =VLOOKUP(W69,BASE!$A:$D,2,FALSE) -> 6062068 | Y69: м | Z69: 3 | AA69: TSGV A2 | AB69: =VLOOKUP(AA69,BASE!$A:$D,2,FALSE) -> 6067970 | AC69: шт. | AD69: 1 | AE69: FRSB 6X12 G | AF69: =VLOOKUP(AE69,BASE!$A:$D,2,FALSE) -> 6406130 | AG69: шт. | AH69: 6 | AI69: RB 90 640 FS | AJ69: =VLOOKUP(AI69,BASE!$A:$D,2,FALSE) -> 7001290 | AK69: шт. | AL69: 1 | AM69: DFB 90 400 FS | AN69: =VLOOKUP(AM69,BASE!$A:$D,2,FALSE) -> 7129688 | AO69: шт. | AP69: 1 | AQ69: RLVK 60 FS | AR69: =VLOOKUP(AQ69,BASE!$A:$D,2,FALSE) -> 6067093 | AS69: шт. | AT69: 4 | AU69: SSLB 400 FS | AV69: =VLOOKUP(AU69,BASE!$A:$D,2,FALSE) -> 7070221 | AW69: шт. | AX69: 2 | AY69: RB 45 640 FS | AZ69: =VLOOKUP(AY69,BASE!$A:$D,2,FALSE) -> 7000383 | BA69: шт. | BB69: 1 | BC69: DFB 45 400 FS | BD69: =VLOOKUP(BC69,BASE!$A:$D,2,FALSE) -> 7128886 | BE69: шт. | BF69: 1 | BG69: RLVK 60 FS | BH69: =VLOOKUP(BG69,BASE!$A:$D,2,FALSE) -> 6067093 | BI69: шт. | BJ69: 4 | BK69: SSLB 400 FS | BL69: =VLOOKUP(BK69,BASE!$A:$D,2,FALSE) -> 7070221 | BM69: шт. | BN69: 2 | BO69: RWVL 60 FS | BP69: =VLOOKUP(BO69,BASE!$A:$D,2,FALSE) -> 6067115 | BQ69: шт. | BR69: 4 | BS69: RBV 640 S FS | BT69: =VLOOKUP(BS69,BASE!$A:$D,2,FALSE) -> 7007021 | BU69: шт. | BV69: 1 | BW69: DBV 400 S FS | BX69: =VLOOKUP(BW69,BASE!$A:$D,2,FALSE) -> 7130821 | BY69: шт. | BZ69: 1 | CA69: FRSB 6X12 G | CB69: =VLOOKUP(CA69,BASE!$A:$D,2,FALSE) -> 6406130 | CC69: шт. | CD69: 8 | CE69: RBV 640 F FS | CF69: =VLOOKUP(CE69,BASE!$A:$D,2,FALSE) -> 7007071 | CG69: шт. | CH69: 1 | CI69: DBV 60 400 F FS | CJ69: =VLOOKUP(CI69,BASE!$A:$D,2,FALSE) -> 7130868 | CK69: шт. | CL69: 1 | CM69: FRSB 6X12 G | CN69: =VLOOKUP(CM69,BASE!$A:$D,2,FALSE) -> 6406130 | CO69: шт. | CP69: 8 | CQ69: RGBV 640 FS | CR69: =VLOOKUP(CQ69,BASE!$A:$D,2,FALSE) -> 7006381 | CS69: шт. | CT69: 1 | CU69: Не требуется | CV69: --- | CW69: --- | CX69: 0 | CY69: Не требуется | CZ69: --- | DA69: --- | DB69: 0 | DC69: Не требуется | DD69: --- | DE69: --- | DF69: 0 | DG69: RT 640 FS | DH69: =VLOOKUP(DG69,BASE!$A:$D,2,FALSE) -> 7003390 | DI69: шт. | DJ69: 1 | DK69: DFT 400 FS | DL69: =VLOOKUP(DK69,BASE!$A:$D,2,FALSE) -> 7128282 | DM69: шт. | DN69: 1 | DO69: RLVK 60 FS | DP69: =VLOOKUP(DO69,BASE!$A:$D,2,FALSE) -> 6067093 | DQ69: шт. | DR69: 6 | DS69: SSLB 400 FS | DT69: =VLOOKUP(DS69,BASE!$A:$D,2,FALSE) -> 7070221 | DU69: шт. | DV69: 3 | DW69: Не требуется | DX69: --- | DY69: --- | DZ69: 0 | EA69: RAA 640 FS | EB69: =VLOOKUP(EA69,BASE!$A:$D,2,FALSE) -> 7002394 | EC69: шт. | ED69: 1 | EE69: DFAA 400 FS | EF69: =VLOOKUP(EE69,BASE!$A:$D,2,FALSE) -> 7128487 | EG69: шт. | EH69: 1 | EI69: RLVK 60 FS | EJ69: =VLOOKUP(EI69,BASE!$A:$D,2,FALSE) -> 6067093 | EK69: шт. | EL69: 2 | EM69: SSLB 400 FS | EN69: =VLOOKUP(EM69,BASE!$A:$D,2,FALSE) -> 7070221 | EO69: шт. | EP69: 1 | EQ69: FRSB 6X12 G | ER69: =VLOOKUP(EQ69,BASE!$A:$D,2,FALSE) -> 6406130 | ES69: шт. | ET69: 8 | EU69: RK 640 FS | EV69: =VLOOKUP(EU69,BASE!$A:$D,2,FALSE) -> 7004397 | EW69: шт. | EX69: 1 | EY69: DFK 400 FS | EZ69: =VLOOKUP(EY69,BASE!$A:$D,2,FALSE) -> 7128673 | FA69: шт. | FB69: 1 | FC69: RLVK 60 FS | FD69: =VLOOKUP(FC69,BASE!$A:$D,2,FALSE) -> 6067093 | FE69: шт. | FF69: 8 | FG69: SSLB 400 FS | FH69: =VLOOKUP(FG69,BASE!$A:$D,2,FALSE) -> 7070221 | FI69: шт. | FJ69: 4 | FK69: Не требуется | FL69: --- | FM69: --- | FN69: 0 | FO69: RWEB 640 FS | FP69: =VLOOKUP(FO69,BASE!$A:$D,2,FALSE) -> 7109407 | FQ69: шт. | FR69: 1 | FT69: 260 | FU69: 260 | FV69: 190 | FW69: 110 | FX69: 55
A70: SKSU 650 FS | B70: =VLOOKUP(A70,BASE!$A:$D,2,FALSE) -> 6063241 | C70: м | D70: 3 | E70: Листовой | F70: Неперфорированный | G70: Конв.цинк. | H70: 1.5 | I70: 60 | J70: 500 | K70: DRL 500 FS | L70: =VLOOKUP(K70,BASE!$A:$D,2,FALSE) -> 6052509 | M70: м | N70: 3 | O70: Не требуется | P70: --- | Q70: --- | R70: 0 | S70: RLVK 60 FS | T70: =VLOOKUP(S70,BASE!$A:$D,2,FALSE) -> 6067093 | U70: шт. | V70: 2 | W70: TSG 60 FS | X70: =VLOOKUP(W70,BASE!$A:$D,2,FALSE) -> 6062068 | Y70: м | Z70: 3 | AA70: TSGV A2 | AB70: =VLOOKUP(AA70,BASE!$A:$D,2,FALSE) -> 6067970 | AC70: шт. | AD70: 1 | AE70: FRSB 6X12 G | AF70: =VLOOKUP(AE70,BASE!$A:$D,2,FALSE) -> 6406130 | AG70: шт. | AH70: 6 | AI70: RB 90 650 FS | AJ70: =VLOOKUP(AI70,BASE!$A:$D,2,FALSE) -> 7001304 | AK70: шт. | AL70: 1 | AM70: DFB 90 500 FS | AN70: =VLOOKUP(AM70,BASE!$A:$D,2,FALSE) -> 7129718 | AO70: шт. | AP70: 1 | AQ70: RLVK 60 FS | AR70: =VLOOKUP(AQ70,BASE!$A:$D,2,FALSE) -> 6067093 | AS70: шт. | AT70: 4 | AU70: SSLB 500 FS | AV70: =VLOOKUP(AU70,BASE!$A:$D,2,FALSE) -> 7070225 | AW70: шт. | AX70: 2 | AY70: RB 45 650 FS | AZ70: =VLOOKUP(AY70,BASE!$A:$D,2,FALSE) -> 7000405 | BA70: шт. | BB70: 1 | BC70: DFB 45 500 FS | BD70: =VLOOKUP(BC70,BASE!$A:$D,2,FALSE) -> 7128908 | BE70: шт. | BF70: 1 | BG70: RLVK 60 FS | BH70: =VLOOKUP(BG70,BASE!$A:$D,2,FALSE) -> 6067093 | BI70: шт. | BJ70: 4 | BK70: SSLB 500 FS | BL70: =VLOOKUP(BK70,BASE!$A:$D,2,FALSE) -> 7070225 | BM70: шт. | BN70: 2 | BO70: RWVL 60 FS | BP70: =VLOOKUP(BO70,BASE!$A:$D,2,FALSE) -> 6067115 | BQ70: шт. | BR70: 4 | BS70: RBV 650 S FS | BT70: =VLOOKUP(BS70,BASE!$A:$D,2,FALSE) -> 7007025 | BU70: шт. | BV70: 1 | BW70: DBV 500 S FS | BX70: =VLOOKUP(BW70,BASE!$A:$D,2,FALSE) -> 7130825 | BY70: шт. | BZ70: 1 | CA70: FRSB 6X12 G | CB70: =VLOOKUP(CA70,BASE!$A:$D,2,FALSE) -> 6406130 | CC70: шт. | CD70: 8 | CE70: RBV 650 F FS | CF70: =VLOOKUP(CE70,BASE!$A:$D,2,FALSE) -> 7007075 | CG70: шт. | CH70: 1 | CI70: DBV 60 500 F FS | CJ70: =VLOOKUP(CI70,BASE!$A:$D,2,FALSE) -> 7130872 | CK70: шт. | CL70: 1 | CM70: FRSB 6X12 G | CN70: =VLOOKUP(CM70,BASE!$A:$D,2,FALSE) -> 6406130 | CO70: шт. | CP70: 8 | CQ70: RGBV 650 FS | CR70: =VLOOKUP(CQ70,BASE!$A:$D,2,FALSE) -> 7006411 | CS70: шт. | CT70: 1 | CU70: Не требуется | CV70: --- | CW70: --- | CX70: 0 | CY70: Не требуется | CZ70: --- | DA70: --- | DB70: 0 | DC70: Не требуется | DD70: --- | DE70: --- | DF70: 0 | DG70: RT 650 FS | DH70: =VLOOKUP(DG70,BASE!$A:$D,2,FALSE) -> 7003412 | DI70: шт. | DJ70: 1 | DK70: DFT 500 FS | DL70: =VLOOKUP(DK70,BASE!$A:$D,2,FALSE) -> 7128304 | DM70: шт. | DN70: 1 | DO70: RLVK 60 FS | DP70: =VLOOKUP(DO70,BASE!$A:$D,2,FALSE) -> 6067093 | DQ70: шт. | DR70: 6 | DS70: SSLB 500 FS | DT70: =VLOOKUP(DS70,BASE!$A:$D,2,FALSE) -> 7070225 | DU70: шт. | DV70: 3 | DW70: Не требуется | DX70: --- | DY70: --- | DZ70: 0 | EA70: RAA 650 FS | EB70: =VLOOKUP(EA70,BASE!$A:$D,2,FALSE) -> 7002416 | EC70: шт. | ED70: 1 | EE70: DFAA 500 FS | EF70: =VLOOKUP(EE70,BASE!$A:$D,2,FALSE) -> 7128509 | EG70: шт. | EH70: 1 | EI70: RLVK 60 FS | EJ70: =VLOOKUP(EI70,BASE!$A:$D,2,FALSE) -> 6067093 | EK70: шт. | EL70: 2 | EM70: SSLB 500 FS | EN70: =VLOOKUP(EM70,BASE!$A:$D,2,FALSE) -> 7070225 | EO70: шт. | EP70: 1 | EQ70: FRSB 6X12 G | ER70: =VLOOKUP(EQ70,BASE!$A:$D,2,FALSE) -> 6406130 | ES70: шт. | ET70: 8 | EU70: RK 650 FS | EV70: =VLOOKUP(EU70,BASE!$A:$D,2,FALSE) -> 7004419 | EW70: шт. | EX70: 1 | EY70: DFK 500 FS | EZ70: =VLOOKUP(EY70,BASE!$A:$D,2,FALSE) -> 7128703 | FA70: шт. | FB70: 1 | FC70: RLVK 60 FS | FD70: =VLOOKUP(FC70,BASE!$A:$D,2,FALSE) -> 6067093 | FE70: шт. | FF70: 8 | FG70: SSLB 500 FS | FH70: =VLOOKUP(FG70,BASE!$A:$D,2,FALSE) -> 7070225 | FI70: шт. | FJ70: 4 | FK70: Не требуется | FL70: --- | FM70: --- | FN70: 0 | FO70: RWEB 650 FS | FP70: =VLOOKUP(FO70,BASE!$A:$D,2,FALSE) -> 7109504 | FQ70: шт. | FR70: 1 | FT70: 260 | FU70: 260 | FV70: 190 | FW70: 110 | FX70: 55
A71: SKSU 660 FS | B71: =VLOOKUP(A71,BASE!$A:$D,2,FALSE) -> 6063276 | C71: м | D71: 3 | E71: Листовой | F71: Неперфорированный | G71: Конв.цинк. | H71: 1.5 | I71: 60 | J71: 600 | K71: DRL 600 FS | L71: =VLOOKUP(K71,BASE!$A:$D,2,FALSE) -> 6052606 | M71: м | N71: 3 | O71: Не требуется | P71: --- | Q71: --- | R71: 0 | S71: RLVK 60 FS | T71: =VLOOKUP(S71,BASE!$A:$D,2,FALSE) -> 6067093 | U71: шт. | V71: 2 | W71: TSG 60 FS | X71: =VLOOKUP(W71,BASE!$A:$D,2,FALSE) -> 6062068 | Y71: м | Z71: 3 | AA71: TSGV A2 | AB71: =VLOOKUP(AA71,BASE!$A:$D,2,FALSE) -> 6067970 | AC71: шт. | AD71: 1 | AE71: FRSB 6X12 G | AF71: =VLOOKUP(AE71,BASE!$A:$D,2,FALSE) -> 6406130 | AG71: шт. | AH71: 6 | AI71: RB 90 660 FS | AJ71: =VLOOKUP(AI71,BASE!$A:$D,2,FALSE) -> 7001312 | AK71: шт. | AL71: 1 | AM71: DFB 90 600 FS | AN71: =VLOOKUP(AM71,BASE!$A:$D,2,FALSE) -> 7129734 | AO71: шт. | AP71: 1 | AQ71: RLVK 60 FS | AR71: =VLOOKUP(AQ71,BASE!$A:$D,2,FALSE) -> 6067093 | AS71: шт. | AT71: 4 | AU71: SSLB 600 FS | AV71: =VLOOKUP(AU71,BASE!$A:$D,2,FALSE) -> 7070233 | AW71: шт. | AX71: 2 | AY71: RB 45 660 FS | AZ71: =VLOOKUP(AY71,BASE!$A:$D,2,FALSE) -> 7000421 | BA71: шт. | BB71: 1 | BC71: DFB 45 600 FS | BD71: =VLOOKUP(BC71,BASE!$A:$D,2,FALSE) -> 7128924 | BE71: шт. | BF71: 1 | BG71: RLVK 60 FS | BH71: =VLOOKUP(BG71,BASE!$A:$D,2,FALSE) -> 6067093 | BI71: шт. | BJ71: 4 | BK71: SSLB 600 FS | BL71: =VLOOKUP(BK71,BASE!$A:$D,2,FALSE) -> 7070233 | BM71: шт. | BN71: 2 | BO71: RWVL 60 FS | BP71: =VLOOKUP(BO71,BASE!$A:$D,2,FALSE) -> 6067115 | BQ71: шт. | BR71: 4 | BS71: RBV 660 S FS | BT71: =VLOOKUP(BS71,BASE!$A:$D,2,FALSE) -> 7007029 | BU71: шт. | BV71: 1 | BW71: DBV 600 S FS | BX71: =VLOOKUP(BW71,BASE!$A:$D,2,FALSE) -> 7130829 | BY71: шт. | BZ71: 1 | CA71: FRSB 6X12 G | CB71: =VLOOKUP(CA71,BASE!$A:$D,2,FALSE) -> 6406130 | CC71: шт. | CD71: 8 | CE71: RBV 660 F FS | CF71: =VLOOKUP(CE71,BASE!$A:$D,2,FALSE) -> 7007079 | CG71: шт. | CH71: 1 | CI71: DBV 60 600 F FS | CJ71: =VLOOKUP(CI71,BASE!$A:$D,2,FALSE) -> 7130876 | CK71: шт. | CL71: 1 | CM71: FRSB 6X12 G | CN71: =VLOOKUP(CM71,BASE!$A:$D,2,FALSE) -> 6406130 | CO71: шт. | CP71: 8 | CQ71: RGBV 660 FS | CR71: =VLOOKUP(CQ71,BASE!$A:$D,2,FALSE) -> 7006446 | CS71: шт. | CT71: 1 | CU71: Не требуется | CV71: --- | CW71: --- | CX71: 0 | CY71: Не требуется | CZ71: --- | DA71: --- | DB71: 0 | DC71: Не требуется | DD71: --- | DE71: --- | DF71: 0 | DG71: RT 660 FS | DH71: =VLOOKUP(DG71,BASE!$A:$D,2,FALSE) -> 7003439 | DI71: шт. | DJ71: 1 | DK71: DFT 600 FS | DL71: =VLOOKUP(DK71,BASE!$A:$D,2,FALSE) -> 7128320 | DM71: шт. | DN71: 1 | DO71: RLVK 60 FS | DP71: =VLOOKUP(DO71,BASE!$A:$D,2,FALSE) -> 6067093 | DQ71: шт. | DR71: 6 | DS71: SSLB 600 FS | DT71: =VLOOKUP(DS71,BASE!$A:$D,2,FALSE) -> 7070233 | DU71: шт. | DV71: 3 | DW71: Не требуется | DX71: --- | DY71: --- | DZ71: 0 | EA71: RAA 660 FS | EB71: =VLOOKUP(EA71,BASE!$A:$D,2,FALSE) -> 7002432 | EC71: шт. | ED71: 1 | EE71: DFAA 600 FS | EF71: =VLOOKUP(EE71,BASE!$A:$D,2,FALSE) -> 7128525 | EG71: шт. | EH71: 1 | EI71: RLVK 60 FS | EJ71: =VLOOKUP(EI71,BASE!$A:$D,2,FALSE) -> 6067093 | EK71: шт. | EL71: 2 | EM71: SSLB 600 FS | EN71: =VLOOKUP(EM71,BASE!$A:$D,2,FALSE) -> 7070233 | EO71: шт. | EP71: 1 | EQ71: FRSB 6X12 G | ER71: =VLOOKUP(EQ71,BASE!$A:$D,2,FALSE) -> 6406130 | ES71: шт. | ET71: 8 | EU71: RK 660 FS | EV71: =VLOOKUP(EU71,BASE!$A:$D,2,FALSE) -> 7004435 | EW71: шт. | EX71: 1 | EY71: DFK 600 FS | EZ71: =VLOOKUP(EY71,BASE!$A:$D,2,FALSE) -> 7128738 | FA71: шт. | FB71: 1 | FC71: RLVK 60 FS | FD71: =VLOOKUP(FC71,BASE!$A:$D,2,FALSE) -> 6067093 | FE71: шт. | FF71: 8 | FG71: SSLB 600 FS | FH71: =VLOOKUP(FG71,BASE!$A:$D,2,FALSE) -> 7070233 | FI71: шт. | FJ71: 4 | FK71: Не требуется | FL71: --- | FM71: --- | FN71: 0 | FO71: RWEB 660 FS | FP71: =VLOOKUP(FO71,BASE!$A:$D,2,FALSE) -> 7109601 | FQ71: шт. | FR71: 1 | FT71: 260 | FU71: 260 | FV71: 190 | FW71: 110 | FX71: 55
A72: MKSU 810 FS | B72: =VLOOKUP(A72,BASE!$A:$D,2,FALSE) -> 6063312 | C72: м | D72: 3 | E72: Листовой | F72: Неперфорированный | G72: Конв.цинк. | H72: 1 | I72: 85 | J72: 100 | K72: DRL 100 FS | L72: =VLOOKUP(K72,BASE!$A:$D,2,FALSE) -> 6052096 | M72: м | N72: 3 | O72: Не требуется | P72: --- | Q72: --- | R72: 0 | S72: RLVL 85 FS | T72: =VLOOKUP(S72,BASE!$A:$D,2,FALSE) -> 6067123 | U72: шт. | V72: 2 | W72: TSG 85 FS | X72: =VLOOKUP(W72,BASE!$A:$D,2,FALSE) -> 6062114 | Y72: м | Z72: 3 | AA72: TSGV A2 | AB72: =VLOOKUP(AA72,BASE!$A:$D,2,FALSE) -> 6067970 | AC72: шт. | AD72: 1 | AE72: FRSB 6X12 G | AF72: =VLOOKUP(AE72,BASE!$A:$D,2,FALSE) -> 6406130 | AG72: шт. | AH72: 6 | AI72: RB 90 810 FS | AJ72: =VLOOKUP(AI72,BASE!$A:$D,2,FALSE) -> 7001762 | AK72: шт. | AL72: 1 | AM72: DFB 90 100 FS | AN72: =VLOOKUP(AM72,BASE!$A:$D,2,FALSE) -> 7129610 | AO72: шт. | AP72: 1 | AQ72: Не требуется | AR72: --- | AS72: --- | AT72: 0 | AU72: Не требуется | AV72: --- | AW72: --- | AX72: 0 | AY72: RB 45 810 FS | AZ72: =VLOOKUP(AY72,BASE!$A:$D,2,FALSE) -> 7000472 | BA72: шт. | BB72: 1 | BC72: DFB 45 100 FS | BD72: =VLOOKUP(BC72,BASE!$A:$D,2,FALSE) -> 7128819 | BE72: шт. | BF72: 1 | BG72: Не требуется | BH72: --- | BI72: --- | BJ72: 0 | BK72: Не требуется | BL72: --- | BM72: --- | BN72: 0 | BO72: RLVL 85 FS | BP72: =VLOOKUP(BO72,BASE!$A:$D,2,FALSE) -> 6067123 | BQ72: шт. | BR72: 4 | BS72: RBV 810 S FS | BT72: =VLOOKUP(BS72,BASE!$A:$D,2,FALSE) -> 7007230 | BU72: шт. | BV72: 1 | BW72: DBV 100 S FS | BX72: =VLOOKUP(BW72,BASE!$A:$D,2,FALSE) -> 7130805 | BY72: шт. | BZ72: 1 | CA72: FRSB 6X12 G | CB72: =VLOOKUP(CA72,BASE!$A:$D,2,FALSE) -> 6406130 | CC72: шт. | CD72: 16 | CE72: RBV 810 F FS | CF72: =VLOOKUP(CE72,BASE!$A:$D,2,FALSE) -> 7007270 | CG72: шт. | CH72: 1 | CI72: DBV 85 100 F FS | CJ72: =VLOOKUP(CI72,BASE!$A:$D,2,FALSE) -> 7130990 | CK72: шт. | CL72: 1 | CM72: FRSB 6X12 G | CN72: =VLOOKUP(CM72,BASE!$A:$D,2,FALSE) -> 6406130 | CO72: шт. | CP72: 16 | CQ72: RGBV 810 FS | CR72: =VLOOKUP(CQ72,BASE!$A:$D,2,FALSE) -> 7006462 | CS72: шт. | CT72: 1 | CU72: Не требуется | CV72: --- | CW72: --- | CX72: 0 | CY72: Не требуется | CZ72: --- | DA72: --- | DB72: 0 | DC72: Не требуется | DD72: --- | DE72: --- | DF72: 0 | DG72: RAA 810 FS | DH72: =VLOOKUP(DG72,BASE!$A:$D,2,FALSE) -> 7002475 | DI72: шт. | DJ72: 1 | DK72: DFAA 100 FS | DL72: =VLOOKUP(DK72,BASE!$A:$D,2,FALSE) -> 7128428 | DM72: шт. | DN72: 1 | DO72: Не требуется | DP72: --- | DQ72: --- | DR72: 0 | DS72: Не требуется | DT72: --- | DU72: --- | DV72: 0 | DW72: Не требуется | DX72: --- | DY72: --- | DZ72: 0 | EA72: RAA 810 FS | EB72: =VLOOKUP(EA72,BASE!$A:$D,2,FALSE) -> 7002475 | EC72: шт. | ED72: 1 | EE72: DFAA 100 FS | EF72: =VLOOKUP(EE72,BASE!$A:$D,2,FALSE) -> 7128428 | EG72: шт. | EH72: 1 | EI72: Не требуется | EJ72: --- | EK72: --- | EL72: 0 | EM72: Не требуется | EN72: --- | EO72: --- | EP72: 0 | EQ72: Не требуется | ER72: --- | ES72: --- | ET72: 0 | EU72: RAA 810 FS | EV72: =VLOOKUP(EU72,BASE!$A:$D,2,FALSE) -> 7002475 | EW72: шт. | EX72: 2 | EY72: DFAA 100 FS | EZ72: =VLOOKUP(EY72,BASE!$A:$D,2,FALSE) -> 7128428 | FA72: шт. | FB72: 2 | FC72: Не требуется | FD72: --- | FE72: --- | FF72: 0 | FG72: Не требуется | FH72: --- | FI72: --- | FJ72: 0 | FK72: Не требуется | FL72: --- | FM72: --- | FN72: 0 | FO72: RWEB 810 FS | FP72: =VLOOKUP(FO72,BASE!$A:$D,2,FALSE) -> 7110103 | FQ72: шт. | FR72: 1 | FT72: 175 | FU72: 175 | FV72: 110 | FW72: 50 | FX72: 0
A73: MKSU 820 FS | B73: =VLOOKUP(A73,BASE!$A:$D,2,FALSE) -> 6063314 | C73: м | D73: 3 | E73: Листовой | F73: Неперфорированный | G73: Конв.цинк. | H73: 1 | I73: 85 | J73: 200 | K73: DRL 200 FS | L73: =VLOOKUP(K73,BASE!$A:$D,2,FALSE) -> 6052207 | M73: м | N73: 3 | O73: Не требуется | P73: --- | Q73: --- | R73: 0 | S73: RLVL 85 FS | T73: =VLOOKUP(S73,BASE!$A:$D,2,FALSE) -> 6067123 | U73: шт. | V73: 2 | W73: TSG 85 FS | X73: =VLOOKUP(W73,BASE!$A:$D,2,FALSE) -> 6062114 | Y73: м | Z73: 3 | AA73: TSGV A2 | AB73: =VLOOKUP(AA73,BASE!$A:$D,2,FALSE) -> 6067970 | AC73: шт. | AD73: 1 | AE73: FRSB 6X12 G | AF73: =VLOOKUP(AE73,BASE!$A:$D,2,FALSE) -> 6406130 | AG73: шт. | AH73: 6 | AI73: RB 90 820 FS | AJ73: =VLOOKUP(AI73,BASE!$A:$D,2,FALSE) -> 7001789 | AK73: шт. | AL73: 1 | AM73: DFB 90 200 FS | AN73: =VLOOKUP(AM73,BASE!$A:$D,2,FALSE) -> 7129637 | AO73: шт. | AP73: 1 | AQ73: Не требуется | AR73: --- | AS73: --- | AT73: 0 | AU73: Не требуется | AV73: --- | AW73: --- | AX73: 0 | AY73: RB 45 820 FS | AZ73: =VLOOKUP(AY73,BASE!$A:$D,2,FALSE) -> 7000499 | BA73: шт. | BB73: 1 | BC73: DFB 45 200 FS | BD73: =VLOOKUP(BC73,BASE!$A:$D,2,FALSE) -> 7128835 | BE73: шт. | BF73: 1 | BG73: Не требуется | BH73: --- | BI73: --- | BJ73: 0 | BK73: Не требуется | BL73: --- | BM73: --- | BN73: 0 | BO73: RLVL 85 FS | BP73: =VLOOKUP(BO73,BASE!$A:$D,2,FALSE) -> 6067123 | BQ73: шт. | BR73: 4 | BS73: RBV 820 S FS | BT73: =VLOOKUP(BS73,BASE!$A:$D,2,FALSE) -> 7007234 | BU73: шт. | BV73: 1 | BW73: DBV 200 S FS | BX73: =VLOOKUP(BW73,BASE!$A:$D,2,FALSE) -> 7130813 | BY73: шт. | BZ73: 1 | CA73: FRSB 6X12 G | CB73: =VLOOKUP(CA73,BASE!$A:$D,2,FALSE) -> 6406130 | CC73: шт. | CD73: 16 | CE73: RBV 820 F FS | CF73: =VLOOKUP(CE73,BASE!$A:$D,2,FALSE) -> 7007274 | CG73: шт. | CH73: 1 | CI73: DBV 85 200 F FS | CJ73: =VLOOKUP(CI73,BASE!$A:$D,2,FALSE) -> 7130994 | CK73: шт. | CL73: 1 | CM73: FRSB 6X12 G | CN73: =VLOOKUP(CM73,BASE!$A:$D,2,FALSE) -> 6406130 | CO73: шт. | CP73: 16 | CQ73: RGBV 820 FS | CR73: =VLOOKUP(CQ73,BASE!$A:$D,2,FALSE) -> 7006489 | CS73: шт. | CT73: 1 | CU73: Не требуется | CV73: --- | CW73: --- | CX73: 0 | CY73: Не требуется | CZ73: --- | DA73: --- | DB73: 0 | DC73: Не требуется | DD73: --- | DE73: --- | DF73: 0 | DG73: RAA 820 FS | DH73: =VLOOKUP(DG73,BASE!$A:$D,2,FALSE) -> 7002491 | DI73: шт. | DJ73: 1 | DK73: DFAA 200 FS | DL73: =VLOOKUP(DK73,BASE!$A:$D,2,FALSE) -> 7128444 | DM73: шт. | DN73: 1 | DO73: Не требуется | DP73: --- | DQ73: --- | DR73: 0 | DS73: Не требуется | DT73: --- | DU73: --- | DV73: 0 | DW73: Не требуется | DX73: --- | DY73: --- | DZ73: 0 | EA73: RAA 820 FS | EB73: =VLOOKUP(EA73,BASE!$A:$D,2,FALSE) -> 7002491 | EC73: шт. | ED73: 1 | EE73: DFAA 200 FS | EF73: =VLOOKUP(EE73,BASE!$A:$D,2,FALSE) -> 7128444 | EG73: шт. | EH73: 1 | EI73: Не требуется | EJ73: --- | EK73: --- | EL73: 0 | EM73: Не требуется | EN73: --- | EO73: --- | EP73: 0 | EQ73: Не требуется | ER73: --- | ES73: --- | ET73: 0 | EU73: RAA 820 FS | EV73: =VLOOKUP(EU73,BASE!$A:$D,2,FALSE) -> 7002491 | EW73: шт. | EX73: 2 | EY73: DFAA 200 FS | EZ73: =VLOOKUP(EY73,BASE!$A:$D,2,FALSE) -> 7128444 | FA73: шт. | FB73: 2 | FC73: Не требуется | FD73: --- | FE73: --- | FF73: 0 | FG73: Не требуется | FH73: --- | FI73: --- | FJ73: 0 | FK73: Не требуется | FL73: --- | FM73: --- | FN73: 0 | FO73: RWEB 820 FS | FP73: =VLOOKUP(FO73,BASE!$A:$D,2,FALSE) -> 7110200 | FQ73: шт. | FR73: 1 | FT73: 175 | FU73: 175 | FV73: 110 | FW73: 50 | FX73: 0
A74: MKSU 830 FS | B74: =VLOOKUP(A74,BASE!$A:$D,2,FALSE) -> 6063330 | C74: м | D74: 3 | E74: Листовой | F74: Неперфорированный | G74: Конв.цинк. | H74: 1 | I74: 85 | J74: 300 | K74: DRL 300 FS | L74: =VLOOKUP(K74,BASE!$A:$D,2,FALSE) -> 6052304 | M74: м | N74: 3 | O74: Не требуется | P74: --- | Q74: --- | R74: 0 | S74: RLVL 85 FS | T74: =VLOOKUP(S74,BASE!$A:$D,2,FALSE) -> 6067123 | U74: шт. | V74: 2 | W74: TSG 85 FS | X74: =VLOOKUP(W74,BASE!$A:$D,2,FALSE) -> 6062114 | Y74: м | Z74: 3 | AA74: TSGV A2 | AB74: =VLOOKUP(AA74,BASE!$A:$D,2,FALSE) -> 6067970 | AC74: шт. | AD74: 1 | AE74: FRSB 6X12 G | AF74: =VLOOKUP(AE74,BASE!$A:$D,2,FALSE) -> 6406130 | AG74: шт. | AH74: 6 | AI74: RB 90 830 FS | AJ74: =VLOOKUP(AI74,BASE!$A:$D,2,FALSE) -> 7001800 | AK74: шт. | AL74: 1 | AM74: DFB 90 300 FS | AN74: =VLOOKUP(AM74,BASE!$A:$D,2,FALSE) -> 7129653 | AO74: шт. | AP74: 1 | AQ74: Не требуется | AR74: --- | AS74: --- | AT74: 0 | AU74: Не требуется | AV74: --- | AW74: --- | AX74: 0 | AY74: RB 45 830 FS | AZ74: =VLOOKUP(AY74,BASE!$A:$D,2,FALSE) -> 7000510 | BA74: шт. | BB74: 1 | BC74: DFB 45 300 FS | BD74: =VLOOKUP(BC74,BASE!$A:$D,2,FALSE) -> 7128851 | BE74: шт. | BF74: 1 | BG74: Не требуется | BH74: --- | BI74: --- | BJ74: 0 | BK74: Не требуется | BL74: --- | BM74: --- | BN74: 0 | BO74: RLVL 85 FS | BP74: =VLOOKUP(BO74,BASE!$A:$D,2,FALSE) -> 6067123 | BQ74: шт. | BR74: 4 | BS74: RBV 830 S FS | BT74: =VLOOKUP(BS74,BASE!$A:$D,2,FALSE) -> 7007238 | BU74: шт. | BV74: 1 | BW74: DBV 300 S FS | BX74: =VLOOKUP(BW74,BASE!$A:$D,2,FALSE) -> 7130817 | BY74: шт. | BZ74: 1 | CA74: FRSB 6X12 G | CB74: =VLOOKUP(CA74,BASE!$A:$D,2,FALSE) -> 6406130 | CC74: шт. | CD74: 16 | CE74: RBV 830 F FS | CF74: =VLOOKUP(CE74,BASE!$A:$D,2,FALSE) -> 7007278 | CG74: шт. | CH74: 1 | CI74: DBV 85 300 F FS | CJ74: =VLOOKUP(CI74,BASE!$A:$D,2,FALSE) -> 7130998 | CK74: шт. | CL74: 1 | CM74: FRSB 6X12 G | CN74: =VLOOKUP(CM74,BASE!$A:$D,2,FALSE) -> 6406130 | CO74: шт. | CP74: 16 | CQ74: RGBV 830 FS | CR74: =VLOOKUP(CQ74,BASE!$A:$D,2,FALSE) -> 7006500 | CS74: шт. | CT74: 1 | CU74: Не требуется | CV74: --- | CW74: --- | CX74: 0 | CY74: Не требуется | CZ74: --- | DA74: --- | DB74: 0 | DC74: Не требуется | DD74: --- | DE74: --- | DF74: 0 | DG74: RAA 830 FS | DH74: =VLOOKUP(DG74,BASE!$A:$D,2,FALSE) -> 7002513 | DI74: шт. | DJ74: 1 | DK74: DFAA 300 FS | DL74: =VLOOKUP(DK74,BASE!$A:$D,2,FALSE) -> 7128460 | DM74: шт. | DN74: 1 | DO74: Не требуется | DP74: --- | DQ74: --- | DR74: 0 | DS74: Не требуется | DT74: --- | DU74: --- | DV74: 0 | DW74: Не требуется | DX74: --- | DY74: --- | DZ74: 0 | EA74: RAA 830 FS | EB74: =VLOOKUP(EA74,BASE!$A:$D,2,FALSE) -> 7002513 | EC74: шт. | ED74: 1 | EE74: DFAA 300 FS | EF74: =VLOOKUP(EE74,BASE!$A:$D,2,FALSE) -> 7128460 | EG74: шт. | EH74: 1 | EI74: Не требуется | EJ74: --- | EK74: --- | EL74: 0 | EM74: Не требуется | EN74: --- | EO74: --- | EP74: 0 | EQ74: Не требуется | ER74: --- | ES74: --- | ET74: 0 | EU74: RAA 830 FS | EV74: =VLOOKUP(EU74,BASE!$A:$D,2,FALSE) -> 7002513 | EW74: шт. | EX74: 2 | EY74: DFAA 300 FS | EZ74: =VLOOKUP(EY74,BASE!$A:$D,2,FALSE) -> 7128460 | FA74: шт. | FB74: 2 | FC74: Не требуется | FD74: --- | FE74: --- | FF74: 0 | FG74: Не требуется | FH74: --- | FI74: --- | FJ74: 0 | FK74: Не требуется | FL74: --- | FM74: --- | FN74: 0 | FO74: RWEB 830 FS | FP74: =VLOOKUP(FO74,BASE!$A:$D,2,FALSE) -> 7110308 | FQ74: шт. | FR74: 1 | FT74: 175 | FU74: 175 | FV74: 110 | FW74: 50 | FX74: 0
A75: MKSU 840 FS | B75: =VLOOKUP(A75,BASE!$A:$D,2,FALSE) -> 6063332 | C75: м | D75: 3 | E75: Листовой | F75: Неперфорированный | G75: Конв.цинк. | H75: 1 | I75: 85 | J75: 400 | K75: DRL 400 FS | L75: =VLOOKUP(K75,BASE!$A:$D,2,FALSE) -> 6052401 | M75: м | N75: 3 | O75: Не требуется | P75: --- | Q75: --- | R75: 0 | S75: RLVL 85 FS | T75: =VLOOKUP(S75,BASE!$A:$D,2,FALSE) -> 6067123 | U75: шт. | V75: 2 | W75: TSG 85 FS | X75: =VLOOKUP(W75,BASE!$A:$D,2,FALSE) -> 6062114 | Y75: м | Z75: 3 | AA75: TSGV A2 | AB75: =VLOOKUP(AA75,BASE!$A:$D,2,FALSE) -> 6067970 | AC75: шт. | AD75: 1 | AE75: FRSB 6X12 G | AF75: =VLOOKUP(AE75,BASE!$A:$D,2,FALSE) -> 6406130 | AG75: шт. | AH75: 6 | AI75: RB 90 840 FS | AJ75: =VLOOKUP(AI75,BASE!$A:$D,2,FALSE) -> 7001819 | AK75: шт. | AL75: 1 | AM75: DFB 90 400 FS | AN75: =VLOOKUP(AM75,BASE!$A:$D,2,FALSE) -> 7129688 | AO75: шт. | AP75: 1 | AQ75: RLVL 85 FS | AR75: =VLOOKUP(AQ75,BASE!$A:$D,2,FALSE) -> 6067123 | AS75: шт. | AT75: 4 | AU75: SSLB 400 FS | AV75: =VLOOKUP(AU75,BASE!$A:$D,2,FALSE) -> 7070221 | AW75: шт. | AX75: 2 | AY75: RB 45 840 FS | AZ75: =VLOOKUP(AY75,BASE!$A:$D,2,FALSE) -> 7000529 | BA75: шт. | BB75: 1 | BC75: DFB 45 400 FS | BD75: =VLOOKUP(BC75,BASE!$A:$D,2,FALSE) -> 7128886 | BE75: шт. | BF75: 1 | BG75: RLVL 85 FS | BH75: =VLOOKUP(BG75,BASE!$A:$D,2,FALSE) -> 6067123 | BI75: шт. | BJ75: 4 | BK75: SSLB 400 FS | BL75: =VLOOKUP(BK75,BASE!$A:$D,2,FALSE) -> 7070221 | BM75: шт. | BN75: 2 | BO75: RLVL 85 FS | BP75: =VLOOKUP(BO75,BASE!$A:$D,2,FALSE) -> 6067123 | BQ75: шт. | BR75: 4 | BS75: RBV 840 S FS | BT75: =VLOOKUP(BS75,BASE!$A:$D,2,FALSE) -> 7007242 | BU75: шт. | BV75: 1 | BW75: DBV 400 S FS | BX75: =VLOOKUP(BW75,BASE!$A:$D,2,FALSE) -> 7130821 | BY75: шт. | BZ75: 1 | CA75: FRSB 6X12 G | CB75: =VLOOKUP(CA75,BASE!$A:$D,2,FALSE) -> 6406130 | CC75: шт. | CD75: 16 | CE75: RBV 840 F FS | CF75: =VLOOKUP(CE75,BASE!$A:$D,2,FALSE) -> 7007282 | CG75: шт. | CH75: 1 | CI75: DBV 85 400 F FS | CJ75: =VLOOKUP(CI75,BASE!$A:$D,2,FALSE) -> 7131002 | CK75: шт. | CL75: 1 | CM75: FRSB 6X12 G | CN75: =VLOOKUP(CM75,BASE!$A:$D,2,FALSE) -> 6406130 | CO75: шт. | CP75: 16 | CQ75: RGBV 840 FS | CR75: =VLOOKUP(CQ75,BASE!$A:$D,2,FALSE) -> 7006527 | CS75: шт. | CT75: 1 | CU75: Не требуется | CV75: --- | CW75: --- | CX75: 0 | CY75: Не требуется | CZ75: --- | DA75: --- | DB75: 0 | DC75: Не требуется | DD75: --- | DE75: --- | DF75: 0 | DG75: RAA 840 FS | DH75: =VLOOKUP(DG75,BASE!$A:$D,2,FALSE) -> 7002521 | DI75: шт. | DJ75: 1 | DK75: DFAA 400 FS | DL75: =VLOOKUP(DK75,BASE!$A:$D,2,FALSE) -> 7128487 | DM75: шт. | DN75: 1 | DO75: RLVL 85 FS | DP75: =VLOOKUP(DO75,BASE!$A:$D,2,FALSE) -> 6067123 | DQ75: шт. | DR75: 2 | DS75: SSLB 400 FS | DT75: =VLOOKUP(DS75,BASE!$A:$D,2,FALSE) -> 7070221 | DU75: шт. | DV75: 1 | DW75: FRSB 6X12 G | DX75: =VLOOKUP(DW75,BASE!$A:$D,2,FALSE) -> 6406130 | DY75: шт. | DZ75: 12 | EA75: RAA 840 FS | EB75: =VLOOKUP(EA75,BASE!$A:$D,2,FALSE) -> 7002521 | EC75: шт. | ED75: 1 | EE75: DFAA 400 FS | EF75: =VLOOKUP(EE75,BASE!$A:$D,2,FALSE) -> 7128487 | EG75: шт. | EH75: 1 | EI75: RLVL 85 FS | EJ75: =VLOOKUP(EI75,BASE!$A:$D,2,FALSE) -> 6067123 | EK75: шт. | EL75: 2 | EM75: SSLB 400 FS | EN75: =VLOOKUP(EM75,BASE!$A:$D,2,FALSE) -> 7070221 | EO75: шт. | EP75: 1 | EQ75: FRSB 6X12 G | ER75: =VLOOKUP(EQ75,BASE!$A:$D,2,FALSE) -> 6406130 | ES75: шт. | ET75: 12 | EU75: RAA 840 FS | EV75: =VLOOKUP(EU75,BASE!$A:$D,2,FALSE) -> 7002521 | EW75: шт. | EX75: 2 | EY75: DFAA 400 FS | EZ75: =VLOOKUP(EY75,BASE!$A:$D,2,FALSE) -> 7128487 | FA75: шт. | FB75: 2 | FC75: RLVL 85 FS | FD75: =VLOOKUP(FC75,BASE!$A:$D,2,FALSE) -> 6067123 | FE75: шт. | FF75: 8 | FG75: SSLB 400 FS | FH75: =VLOOKUP(FG75,BASE!$A:$D,2,FALSE) -> 7070221 | FI75: шт. | FJ75: 4 | FK75: FRSB 6X12 G | FL75: =VLOOKUP(FK75,BASE!$A:$D,2,FALSE) -> 6406130 | FM75: шт. | FN75: 24 | FO75: RWEB 840 FS | FP75: =VLOOKUP(FO75,BASE!$A:$D,2,FALSE) -> 7110405 | FQ75: шт. | FR75: 1 | FT75: 175 | FU75: 175 | FV75: 110 | FW75: 50 | FX75: 0
A76: MKSU 850 FS | B76: =VLOOKUP(A76,BASE!$A:$D,2,FALSE) -> 6063334 | C76: м | D76: 3 | E76: Листовой | F76: Неперфорированный | G76: Конв.цинк. | H76: 1 | I76: 85 | J76: 500 | K76: DRL 500 FS | L76: =VLOOKUP(K76,BASE!$A:$D,2,FALSE) -> 6052509 | M76: м | N76: 3 | O76: Не требуется | P76: --- | Q76: --- | R76: 0 | S76: RLVL 85 FS | T76: =VLOOKUP(S76,BASE!$A:$D,2,FALSE) -> 6067123 | U76: шт. | V76: 2 | W76: TSG 85 FS | X76: =VLOOKUP(W76,BASE!$A:$D,2,FALSE) -> 6062114 | Y76: м | Z76: 3 | AA76: TSGV A2 | AB76: =VLOOKUP(AA76,BASE!$A:$D,2,FALSE) -> 6067970 | AC76: шт. | AD76: 1 | AE76: FRSB 6X12 G | AF76: =VLOOKUP(AE76,BASE!$A:$D,2,FALSE) -> 6406130 | AG76: шт. | AH76: 6 | AI76: RB 90 850 FS | AJ76: =VLOOKUP(AI76,BASE!$A:$D,2,FALSE) -> 7001835 | AK76: шт. | AL76: 1 | AM76: DFB 90 500 FS | AN76: =VLOOKUP(AM76,BASE!$A:$D,2,FALSE) -> 7129718 | AO76: шт. | AP76: 1 | AQ76: RLVL 85 FS | AR76: =VLOOKUP(AQ76,BASE!$A:$D,2,FALSE) -> 6067123 | AS76: шт. | AT76: 4 | AU76: SSLB 500 FS | AV76: =VLOOKUP(AU76,BASE!$A:$D,2,FALSE) -> 7070225 | AW76: шт. | AX76: 2 | AY76: RB 45 850 FS | AZ76: =VLOOKUP(AY76,BASE!$A:$D,2,FALSE) -> 7000545 | BA76: шт. | BB76: 1 | BC76: DFB 45 500 FS | BD76: =VLOOKUP(BC76,BASE!$A:$D,2,FALSE) -> 7128908 | BE76: шт. | BF76: 1 | BG76: RLVL 85 FS | BH76: =VLOOKUP(BG76,BASE!$A:$D,2,FALSE) -> 6067123 | BI76: шт. | BJ76: 4 | BK76: SSLB 500 FS | BL76: =VLOOKUP(BK76,BASE!$A:$D,2,FALSE) -> 7070225 | BM76: шт. | BN76: 2 | BO76: RLVL 85 FS | BP76: =VLOOKUP(BO76,BASE!$A:$D,2,FALSE) -> 6067123 | BQ76: шт. | BR76: 4 | BS76: RBV 850 S FS | BT76: =VLOOKUP(BS76,BASE!$A:$D,2,FALSE) -> 7007246 | BU76: шт. | BV76: 1 | BW76: DBV 500 S FS | BX76: =VLOOKUP(BW76,BASE!$A:$D,2,FALSE) -> 7130825 | BY76: шт. | BZ76: 1 | CA76: FRSB 6X12 G | CB76: =VLOOKUP(CA76,BASE!$A:$D,2,FALSE) -> 6406130 | CC76: шт. | CD76: 16 | CE76: RBV 850 F FS | CF76: =VLOOKUP(CE76,BASE!$A:$D,2,FALSE) -> 7007286 | CG76: шт. | CH76: 1 | CI76: DBV 85 500 F FS | CJ76: =VLOOKUP(CI76,BASE!$A:$D,2,FALSE) -> 7131006 | CK76: шт. | CL76: 1 | CM76: FRSB 6X12 G | CN76: =VLOOKUP(CM76,BASE!$A:$D,2,FALSE) -> 6406130 | CO76: шт. | CP76: 16 | CQ76: RGBV 850 FS | CR76: =VLOOKUP(CQ76,BASE!$A:$D,2,FALSE) -> 7006543 | CS76: шт. | CT76: 1 | CU76: Не требуется | CV76: --- | CW76: --- | CX76: 0 | CY76: Не требуется | CZ76: --- | DA76: --- | DB76: 0 | DC76: Не требуется | DD76: --- | DE76: --- | DF76: 0 | DG76: RAA 850 FS | DH76: =VLOOKUP(DG76,BASE!$A:$D,2,FALSE) -> 7002556 | DI76: шт. | DJ76: 1 | DK76: DFAA 500 FS | DL76: =VLOOKUP(DK76,BASE!$A:$D,2,FALSE) -> 7128509 | DM76: шт. | DN76: 1 | DO76: RLVL 85 FS | DP76: =VLOOKUP(DO76,BASE!$A:$D,2,FALSE) -> 6067123 | DQ76: шт. | DR76: 2 | DS76: SSLB 500 FS | DT76: =VLOOKUP(DS76,BASE!$A:$D,2,FALSE) -> 7070225 | DU76: шт. | DV76: 1 | DW76: FRSB 6X12 G | DX76: =VLOOKUP(DW76,BASE!$A:$D,2,FALSE) -> 6406130 | DY76: шт. | DZ76: 12 | EA76: RAA 850 FS | EB76: =VLOOKUP(EA76,BASE!$A:$D,2,FALSE) -> 7002556 | EC76: шт. | ED76: 1 | EE76: DFAA 500 FS | EF76: =VLOOKUP(EE76,BASE!$A:$D,2,FALSE) -> 7128509 | EG76: шт. | EH76: 1 | EI76: RLVL 85 FS | EJ76: =VLOOKUP(EI76,BASE!$A:$D,2,FALSE) -> 6067123 | EK76: шт. | EL76: 2 | EM76: SSLB 500 FS | EN76: =VLOOKUP(EM76,BASE!$A:$D,2,FALSE) -> 7070225 | EO76: шт. | EP76: 1 | EQ76: FRSB 6X12 G | ER76: =VLOOKUP(EQ76,BASE!$A:$D,2,FALSE) -> 6406130 | ES76: шт. | ET76: 12 | EU76: RAA 850 FS | EV76: =VLOOKUP(EU76,BASE!$A:$D,2,FALSE) -> 7002556 | EW76: шт. | EX76: 2 | EY76: DFAA 500 FS | EZ76: =VLOOKUP(EY76,BASE!$A:$D,2,FALSE) -> 7128509 | FA76: шт. | FB76: 2 | FC76: RLVL 85 FS | FD76: =VLOOKUP(FC76,BASE!$A:$D,2,FALSE) -> 6067123 | FE76: шт. | FF76: 8 | FG76: SSLB 500 FS | FH76: =VLOOKUP(FG76,BASE!$A:$D,2,FALSE) -> 7070225 | FI76: шт. | FJ76: 4 | FK76: FRSB 6X12 G | FL76: =VLOOKUP(FK76,BASE!$A:$D,2,FALSE) -> 6406130 | FM76: шт. | FN76: 24 | FO76: RWEB 850 FS | FP76: =VLOOKUP(FO76,BASE!$A:$D,2,FALSE) -> 7110502 | FQ76: шт. | FR76: 1 | FT76: 175 | FU76: 175 | FV76: 110 | FW76: 50 | FX76: 0
A77: MKSU 860 FS | B77: =VLOOKUP(A77,BASE!$A:$D,2,FALSE) -> 6063336 | C77: м | D77: 3 | E77: Листовой | F77: Неперфорированный | G77: Конв.цинк. | H77: 1 | I77: 85 | J77: 600 | K77: DRL 600 FS | L77: =VLOOKUP(K77,BASE!$A:$D,2,FALSE) -> 6052606 | M77: м | N77: 3 | O77: Не требуется | P77: --- | Q77: --- | R77: 0 | S77: RLVL 85 FS | T77: =VLOOKUP(S77,BASE!$A:$D,2,FALSE) -> 6067123 | U77: шт. | V77: 2 | W77: TSG 85 FS | X77: =VLOOKUP(W77,BASE!$A:$D,2,FALSE) -> 6062114 | Y77: м | Z77: 3 | AA77: TSGV A2 | AB77: =VLOOKUP(AA77,BASE!$A:$D,2,FALSE) -> 6067970 | AC77: шт. | AD77: 1 | AE77: FRSB 6X12 G | AF77: =VLOOKUP(AE77,BASE!$A:$D,2,FALSE) -> 6406130 | AG77: шт. | AH77: 6 | AI77: RB 90 860 FS | AJ77: =VLOOKUP(AI77,BASE!$A:$D,2,FALSE) -> 7001851 | AK77: шт. | AL77: 1 | AM77: DFB 90 600 FS | AN77: =VLOOKUP(AM77,BASE!$A:$D,2,FALSE) -> 7129734 | AO77: шт. | AP77: 1 | AQ77: RLVL 85 FS | AR77: =VLOOKUP(AQ77,BASE!$A:$D,2,FALSE) -> 6067123 | AS77: шт. | AT77: 4 | AU77: SSLB 600 FS | AV77: =VLOOKUP(AU77,BASE!$A:$D,2,FALSE) -> 7070233 | AW77: шт. | AX77: 2 | AY77: RB 45 860 FS | AZ77: =VLOOKUP(AY77,BASE!$A:$D,2,FALSE) -> 7000561 | BA77: шт. | BB77: 1 | BC77: DFB 45 600 FS | BD77: =VLOOKUP(BC77,BASE!$A:$D,2,FALSE) -> 7128924 | BE77: шт. | BF77: 1 | BG77: RLVL 85 FS | BH77: =VLOOKUP(BG77,BASE!$A:$D,2,FALSE) -> 6067123 | BI77: шт. | BJ77: 4 | BK77: SSLB 600 FS | BL77: =VLOOKUP(BK77,BASE!$A:$D,2,FALSE) -> 7070233 | BM77: шт. | BN77: 2 | BO77: RLVL 85 FS | BP77: =VLOOKUP(BO77,BASE!$A:$D,2,FALSE) -> 6067123 | BQ77: шт. | BR77: 4 | BS77: RBV 860 S FS | BT77: =VLOOKUP(BS77,BASE!$A:$D,2,FALSE) -> 7007250 | BU77: шт. | BV77: 1 | BW77: DBV 600 S FS | BX77: =VLOOKUP(BW77,BASE!$A:$D,2,FALSE) -> 7130829 | BY77: шт. | BZ77: 1 | CA77: FRSB 6X12 G | CB77: =VLOOKUP(CA77,BASE!$A:$D,2,FALSE) -> 6406130 | CC77: шт. | CD77: 16 | CE77: RBV 860 F FS | CF77: =VLOOKUP(CE77,BASE!$A:$D,2,FALSE) -> 7007290 | CG77: шт. | CH77: 1 | CI77: DBV 85 600 F FS | CJ77: =VLOOKUP(CI77,BASE!$A:$D,2,FALSE) -> 7131010 | CK77: шт. | CL77: 1 | CM77: FRSB 6X12 G | CN77: =VLOOKUP(CM77,BASE!$A:$D,2,FALSE) -> 6406130 | CO77: шт. | CP77: 16 | CQ77: RGBV 860 FS | CR77: =VLOOKUP(CQ77,BASE!$A:$D,2,FALSE) -> 7006578 | CS77: шт. | CT77: 1 | CU77: Не требуется | CV77: --- | CW77: --- | CX77: 0 | CY77: Не требуется | CZ77: --- | DA77: --- | DB77: 0 | DC77: Не требуется | DD77: --- | DE77: --- | DF77: 0 | DG77: RAA 860 FS | DH77: =VLOOKUP(DG77,BASE!$A:$D,2,FALSE) -> 7002572 | DI77: шт. | DJ77: 1 | DK77: DFAA 600 FS | DL77: =VLOOKUP(DK77,BASE!$A:$D,2,FALSE) -> 7128525 | DM77: шт. | DN77: 1 | DO77: RLVL 85 FS | DP77: =VLOOKUP(DO77,BASE!$A:$D,2,FALSE) -> 6067123 | DQ77: шт. | DR77: 2 | DS77: SSLB 600 FS | DT77: =VLOOKUP(DS77,BASE!$A:$D,2,FALSE) -> 7070233 | DU77: шт. | DV77: 1 | DW77: FRSB 6X12 G | DX77: =VLOOKUP(DW77,BASE!$A:$D,2,FALSE) -> 6406130 | DY77: шт. | DZ77: 12 | EA77: RAA 860 FS | EB77: =VLOOKUP(EA77,BASE!$A:$D,2,FALSE) -> 7002572 | EC77: шт. | ED77: 1 | EE77: DFAA 600 FS | EF77: =VLOOKUP(EE77,BASE!$A:$D,2,FALSE) -> 7128525 | EG77: шт. | EH77: 1 | EI77: RLVL 85 FS | EJ77: =VLOOKUP(EI77,BASE!$A:$D,2,FALSE) -> 6067123 | EK77: шт. | EL77: 2 | EM77: SSLB 600 FS | EN77: =VLOOKUP(EM77,BASE!$A:$D,2,FALSE) -> 7070233 | EO77: шт. | EP77: 1 | EQ77: FRSB 6X12 G | ER77: =VLOOKUP(EQ77,BASE!$A:$D,2,FALSE) -> 6406130 | ES77: шт. | ET77: 12 | EU77: RAA 860 FS | EV77: =VLOOKUP(EU77,BASE!$A:$D,2,FALSE) -> 7002572 | EW77: шт. | EX77: 2 | EY77: DFAA 600 FS | EZ77: =VLOOKUP(EY77,BASE!$A:$D,2,FALSE) -> 7128525 | FA77: шт. | FB77: 2 | FC77: RLVL 85 FS | FD77: =VLOOKUP(FC77,BASE!$A:$D,2,FALSE) -> 6067123 | FE77: шт. | FF77: 8 | FG77: SSLB 600 FS | FH77: =VLOOKUP(FG77,BASE!$A:$D,2,FALSE) -> 7070233 | FI77: шт. | FJ77: 4 | FK77: FRSB 6X12 G | FL77: =VLOOKUP(FK77,BASE!$A:$D,2,FALSE) -> 6406130 | FM77: шт. | FN77: 24 | FO77: RWEB 860 FS | FP77: =VLOOKUP(FO77,BASE!$A:$D,2,FALSE) -> 7110618 | FQ77: шт. | FR77: 1 | FT77: 175 | FU77: 175 | FV77: 110 | FW77: 50 | FX77: 0
